Workbook

Sheet Info
A1: Table | C1: Description
A2: S1 | B2: ASV counts | C2: S1. ASV counts and relative abundances of archaeal 16S rRNA gene amplicon sequencing for control and protein amended samples.
A3: S2 | B3: Blast similarity search | C3: S2. Top hits of a megablast search of the EX4484-6 ASV sq2 and 16S rRNA gene obtained from the EX4484-6 MAG E3_1_d157 against the rRNA/ITS database of the NCBI RefSeq Targeted Loci Project
A4: S3 | B4: metagenomic studies analyzed | C4: S3. Overview list of metagenomic studies, in which EX4484-6 MAGs had a coverage >2. These studies were used to reconstruct EX4484-6 MAGs
A5: S4 | B5: Overview MAGs | C5: S4. Overview list of MAGs obtained in this study
A6: S5 | B6: MAG statistics and classification | C6: S5. Quality statistics computed with checkM and checkM2 and taxonomy information computed using gtdb_tk with the GTDB database v207
A7: S6 | B7: relative abundance MAGs | C7: S6. Table containing relative abundances of single MAGs in mapped metagenomic runs
A8: S7 | B8: biogeography mapping | C8: S7. List of all unique metagenomic runs, in which EX4484-6 MAGs were found with meta data derived from ENA of the sampling location and environment details.
A9: S8 | B9: core genome OG | C9: S8. List of Orthogroups, which were selected as core genome (Orthogroup present in at least 90% of MAGs). The table shows gene counts for each MAG within single orthogroups.
A10: S9 | B10: core genome gene count | C10: S9. Gene counts for single pathways within each of the EX4484-6 MAGs. Genes were extracted from the core genome and annotated using NR and kegg. Based on found annotations genes were grouped into kegg pathway descriptions.
A11: S10 | B11: core genome annotation full | C11: S 10. Full annotation of genes, which were found in all orthogroups of the core genome. Annotation was performed using kegg, NR, OM_RGC, dbCAN and merops.
A12: S11 | B12: full annotation | C12: S11. Full annotation of selected pathways for all 35 EX4484-6 MAGs. Annotation was performed using KEGG (release 104) and NR (release 13/05/2023), dbCAN (v3.0.7) and merops (v12.4).
A13: S12 | B13: Peptidases | C13: S12. Annotation of peptidases found in all 35 EX4484-6 MAGs. The annotation was performed using merops (v12.4).
A14: S13 | B14: CAZymes | C14: S13. Annotation of CAZymes found in all 35 EX4484-6 MAGs. The annotation was performed using dbCAN (v3.0.7). Results were validated with NR and KEGG annotations.
A15: S14 | B15: gene counts | C15: S14. Gene counts for the categories annotated, hypothetical and unknown, along with percentages for each category.
A16: S15 | B16: overview rarity group | C16: S15. Counts of rarity groups per habitat
A17: S16 | B17: genome percentage habitat | C17: S16. Overview table of all Thermoplasmatota MAGs with their taxonomic classification, fraction of occurrence, percentage of unknown genes (percentage_unknown), rarity and habitat
A18: S17 | B18: OMDv2 list | C18: S17. Studies from selected marine metagenomics literature and matched with BioProject identifiers from the European Nucleotide Archive for MAG reconstruction in OMDv2

Sheet S1
A1: S1. ASV counts and relative abundances of archaeal 16S rRNA gene amplicon sequencing for control and protein amended samples.
H3: Control biological replicate 1 | L3: Control biological replicate 2 | P3: Protein biological replicate 1 | T3: Protein biological replicate 2
A4: ASV_ID | B4: Kingdom | C4: Phylum | D4: Class | E4: Order | F4: Family | G4: Genus | H4: A3.1.day157_1 | I4: rel_abundance_A3.1.day157_1 | J4: A3.1.day98_1 | K4: rel_abundance_A3.1.day98_1 | L4: A3.2.day157_1 | M4: rel_abundance_A3.2.day157_1 | N4: A3.2.day98_1 | O4: rel_abundance_A3.2.day98_1 | P4: E3.1.day157 | Q4: rel_abundance_E3.1.day157 | R4: E3.1.day98 | S4: rel_abundance_E3.1.day98 | T4: E3.2.day157 | U4: rel_abundance_E3.2.day157 | V4: E3.2.day98 | W4: rel_abundance_E3.2.day98
A5: sq1 | B5: Archaea | C5: Asgardarchaeota | D5: Lokiarchaeia | E5: CR-4 | F5: MK-D1 | G5: Prometheoarchaeum | H5: 426 | I5: =H5/SUM(H$5:H$1146) -> 0.01163934426 | J5: 162 | K5: =J5/SUM(J$5:J$1146) -> 0.007275013472 | L5: 133 | M5: =L5/SUM(L$5:L$1146) -> 0.005910848407 | N5: 290 | O5: =N5/SUM(N$5:N$1146) -> 0.008624791815 | P5: 59 | Q5: =P5/SUM(P$5:P$1146) -> 0.001082390064 | R5: 531 | S5: =R5/SUM(R$5:R$1146) -> 0.01380403983 | T5: 97837 | U5: =T5/SUM(T$5:T$1146) -> 0.84471862 | V5: 35587 | W5: =V5/SUM(V$5:V$1146) -> 0.6799067653
A6: sq2 | B6: Archaea | C6: Thermoplasmatota | D6: EX4484-6 | E6: EX4484-6 | F6: EX4484-6 | G6: EX4484-6 | H6: 0 | I6: =H6/SUM(H$5:H$1146) -> 0 | J6: 20 | K6: =J6/SUM(J$5:J$1146) -> 0.0008981498114 | L6: 1 | M6: =L6/SUM(L$5:L$1146) -> 4.444246922e-05 | N6: 14 | O6: =N6/SUM(N$5:N$1146) -> 0.0004163692601 | P6: 49178 | Q6: =P6/SUM(P$5:P$1146) -> 0.9021996368 | R6: 27327 | S6: =R6/SUM(R$5:R$1146) -> 0.710401123 | T6: 14007 | U6: =T6/SUM(T$5:T$1146) -> 0.1209355736 | V6: 7639 | W6: =V6/SUM(V$5:V$1146) -> 0.1459467721
A7: sq3 | B7: Archaea | C7: Asgardarchaeota | D7: Lokiarchaeia | E7: CR-4 | F7: MK-D1 | G7: Prometheoarchaeum | H7: 128 | I7: 0.00349726776 | J7: 39 | K7: 0.001751392132 | L7: 72 | M7: 0.003199857784 | N7: 92 | O7: 0.002736140852 | P7: 382 | Q7: 0.007008017025 | R7: 641 | S7: 0.01666363376 | T7: 739 | U7: 0.006380480392 | V7: 870 | W7: 0.01662176879
A8: sq4 | B8: Archaea | C8: Thermoproteota | D8: Bathyarchaeia | E8: B26-1 | F8: BA1 | G8: NA | H8: 3072 | I8: 0.08393442623 | J8: 2889 | K8: 0.1297377403 | L8: 2472 | M8: 0.1098617839 | N8: 2353 | O8: 0.06997977635 | P8: 91 | Q8: 0.001669449082 | R8: 354 | S8: 0.009202693218 | T8: 17 | U8: 0.0001467769508 | V8: 92 | W8: 0.001757704285
A9: sq5 | B9: Archaea | C9: Thermoproteota | D9: Bathyarchaeia | E9: TCS64 | F9: TCS64 | G9: RBG-16-57-9 | H9: 1398 | I9: 0.03819672131 | J9: 872 | K9: 0.03915933178 | L9: 891 | M9: 0.03959824008 | N9: 1063 | O9: 0.0316143231 | P9: 233 | Q9: 0.004274523473 | R9: 795 | S9: 0.02066706528 | T9: 44 | U9: 0.0003798932845 | V9: 116 | W9: 0.002216235838
A10: sq6 | B10: Archaea | C10: Asgardarchaeota | D10: Lokiarchaeia | E10: CR-4 | F10: SOKP01 | G10: SOKP01 | H10: 2421 | I10: 0.06614754098 | J10: 944 | K10: 0.0423926711 | L10: 896 | M10: 0.03982045242 | N10: 1690 | O10: 0.05026171782 | P10: 50 | Q10: 0.0009172797153 | R10: 400 | S10: 0.01039852341 | T10: 85 | U10: 0.0007338847542 | V10: 99 | W10: 0.001891442655
A11: sq7 | B11: Archaea | C11: Thermoproteota | D11: Bathyarchaeia | E11: B26-1 | F11: BA1 | G11: Kmv02 | H11: 1339 | I11: 0.03658469945 | J11: 1030 | K11: 0.04625471529 | L11: 897 | M11: 0.03986489489 | N11: 934 | O11: 0.02777777778 | P11: 46 | Q11: 0.0008438973381 | R11: 139 | S11: 0.003613486885 | T11: 5 | U11: 4.316969142e-05 | V11: 32 | W11: 0.0006113754036
A12: sq8 | B12: Archaea | C12: Thermoproteota | D12: Bathyarchaeia | E12: B26-1 | F12: BA1 | G12: NA | H12: 1127 | I12: 0.03079234973 | J12: 1021 | K12: 0.04585054787 | L12: 1000 | M12: 0.04444246922 | N12: 1041 | O12: 0.03096002855 | P12: 26 | Q12: 0.0004769854519 | R12: 158 | S12: 0.004107416747 | T12: 9 | U12: 7.770544456e-05 | V12: 49 | W12: 0.0009361685868
A13: sq9 | B13: Archaea | C13: Thermoproteota | D13: Bathyarchaeia | E13: TCS64 | F13: TCS64 | G13: RBG-16-57-9 | H13: 2 | I13: 5.464480874e-05 | J13: 0 | K13: 0 | L13: 0 | M13: 0 | N13: 0 | O13: 0 | P13: 1361 | Q13: 0.02496835385 | R13: 973 | S13: 0.02529440819 | T13: 298 | U13: 0.002572913609 | V13: 127 | W13: 0.002426396133
A14: sq10 | B14: Archaea | C14: Asgardarchaeota | D14: Lokiarchaeia | E14: CR-4 | F14: SOKP01 | G14: SOKP01 | H14: 760 | I14: 0.02076502732 | J14: 215 | K14: 0.009655110472 | L14: 230 | M14: 0.01022176792 | N14: 590 | O14: 0.01754699025 | P14: 17 | Q14: 0.0003118751032 | R14: 173 | S14: 0.004497361375 | T14: 19 | U14: 0.0001640448274 | V14: 44 | W14: 0.00084064118
A15: sq11 | B15: Archaea | C15: Asgardarchaeota | D15: Lokiarchaeia | E15: CR-4 | F15: SOKP01 | G15: NA | H15: 1192 | I15: 0.03256830601 | J15: 394 | K15: 0.01769355128 | L15: 347 | M15: 0.01542153682 | N15: 771 | O15: 0.02293004996 | P15: 5 | Q15: 9.172797153e-05 | R15: 109 | S15: 0.002833597629 | T15: 28 | U15: 0.000241750272 | V15: 6 | W15: 0.0001146328882
A16: sq12 | B16: Archaea | C16: Asgardarchaeota | D16: Lokiarchaeia | E16: CR-4 | F16: SOKP01 | G16: NA | H16: 1302 | I16: 0.03557377049 | J16: 418 | K16: 0.01877133106 | L16: 382 | M16: 0.01697702324 | N16: 766 | O16: 0.02278134666 | P16: 16 | Q16: 0.0002935295089 | R16: 129 | S16: 0.0033535238 | T16: 22 | U16: 0.0001899466423 | V16: 53 | W16: 0.001012590512
A17: sq13 | B17: Archaea | C17: Thermoproteota | D17: Bathyarchaeia | E17: B26-1 | F17: SOJC01 | G17: SOJC01 | H17: 816 | I17: 0.02229508197 | J17: 649 | K17: 0.02914496138 | L17: 536 | M17: 0.0238211635 | N17: 625 | O17: 0.0185879134 | P17: 16 | Q17: 0.0002935295089 | R17: 67 | S17: 0.001741752671 | T17: 3 | U17: 2.590181485e-05 | V17: 28 | W17: 0.0005349534782
A18: sq14 | B18: Archaea | C18: Thermoproteota | D18: Bathyarchaeia | E18: B26-1 | F18: NA | G18: NA | H18: 597 | I18: 0.01631147541 | J18: 532 | K18: 0.02389078498 | L18: 450 | M18: 0.01999911115 | N18: 482 | O18: 0.01433499881 | P18: 14 | Q18: 0.0002568383203 | R18: 67 | S18: 0.001741752671 | T18: 5 | U18: 4.316969142e-05 | V18: 35 | W18: 0.0006686918477
A19: sq15 | B19: Archaea | C19: Asgardarchaeota | D19: Lokiarchaeia | E19: CR-4 | F19: SOKP01 | G19: SOKP01 | H19: 781 | I19: 0.02133879781 | J19: 192 | K19: 0.008622238189 | L19: 245 | M19: 0.01088840496 | N19: 545 | O19: 0.01620866048 | P19: 12 | Q19: 0.0002201471317 | R19: 81 | S19: 0.00210570099 | T19: 27 | U19: 0.0002331163337 | V19: 27 | W19: 0.0005158479968
A20: sq16 | B20: Archaea | C20: NA | D20: NA | E20: NA | F20: NA | G20: NA | H20: 32 | I20: 0.0008743169399 | J20: 46 | K20: 0.002065744566 | L20: 34 | M20: 0.001511043954 | N20: 67 | O20: 0.001992624316 | P20: 1 | Q20: 1.834559431e-05 | R20: 10 | S20: 0.0002599630852 | T20: 2 | U20: 1.726787657e-05 | V20: 2 | W20: 3.821096273e-05
A21: sq17 | B21: Archaea | C21: Halobacteriota | D21: Methanosarcinia | E21: Methanosarcinales | F21: Methanosarcinaceae | G21: NA | H21: 1766 | I21: 0.04825136612 | J21: 818 | K21: 0.03673432729 | L21: 1270 | M21: 0.05644193591 | N21: 1098 | O21: 0.03265524625 | P21: 9 | Q21: 0.0001651103487 | R21: 25 | S21: 0.0006499077131 | T21: 1 | U21: 8.633938285e-06 | V21: 5 | W21: 9.552740681e-05
A22: sq18 | B22: Archaea | C22: Asgardarchaeota | D22: Lokiarchaeia | E22: CR-4 | F22: SOKP01 | G22: NA | H22: 780 | I22: 0.02131147541 | J22: 250 | K22: 0.01122687264 | L22: 253 | M22: 0.01124394471 | N22: 565 | O22: 0.01680347371 | P22: 9 | Q22: 0.0001651103487 | R22: 97 | S22: 0.002521641927 | T22: 15 | U22: 0.0001295090743 | V22: 24 | W22: 0.0004585315527
A23: sq19 | B23: Archaea | C23: Thermoproteota | D23: Bathyarchaeia | E23: TCS64 | F23: TCS64 | G23: RBG-16-57-9 | H23: 312 | I23: 0.008524590164 | J23: 344 | K23: 0.01544817676 | L23: 186 | M23: 0.008266299276 | N23: 188 | O23: 0.005591244349 | P23: 60 | Q23: 0.001100735658 | R23: 205 | S23: 0.005329243247 | T23: 14 | U23: 0.000120875136 | V23: 41 | W23: 0.0007833247359
A24: sq20 | B24: Archaea | C24: Thermoplasmatota | D24: Thermoplasmata | E24: UBA10834 | F24: UBA10834 | G24: UBA10834 | H24: 94 | I24: 0.002568306011 | J24: 102 | K24: 0.004580564038 | L24: 136 | M24: 0.006044175814 | N24: 265 | O24: 0.00788127528 | P24: 12 | Q24: 0.0002201471317 | R24: 45 | S24: 0.001169833884 | T24: 4 | U24: 3.453575314e-05 | V24: 4 | W24: 7.642192545e-05
A25: sq21 | B25: Archaea | C25: Thermoproteota | D25: Bathyarchaeia | E25: 40CM-2-53-6 | F25: NA | G25: NA | H25: 322 | I25: 0.008797814208 | J25: 296 | K25: 0.01329261721 | L25: 308 | M25: 0.01368828052 | N25: 321 | O25: 0.00954675232 | P25: 10 | Q25: 0.0001834559431 | R25: 24 | S25: 0.0006239114046 | T25: 4 | U25: 3.453575314e-05 | V25: 25 | W25: 0.0004776370341
A26: sq22 | B26: Archaea | C26: Halobacteriota | D26: Syntropharchaeia | E26: ANME-1 | F26: ANME-1 | G26: JACGMN01 | H26: 878 | I26: 0.02398907104 | J26: 425 | K26: 0.01908568349 | L26: 646 | M26: 0.02870983512 | N26: 847 | O26: 0.02519034023 | P26: 36 | Q26: 0.000660441395 | R26: 116 | S26: 0.003015571789 | T26: 11 | U26: 9.497332113e-05 | V26: 17 | W26: 0.0003247931832
A27: sq23 | B27: Archaea | C27: Thermoproteota | D27: Bathyarchaeia | E27: B26-1 | F27: BA1 | G27: NA | H27: 588 | I27: 0.01606557377 | J27: 202 | K27: 0.009071313095 | L27: 359 | M27: 0.01595484645 | N27: 286 | O27: 0.00850582917 | P27: 17 | Q27: 0.0003118751032 | R27: 50 | S27: 0.001299815426 | T27: 7 | U27: 6.043756799e-05 | V27: 5 | W27: 9.552740681e-05
A28: sq24 | B28: Archaea | C28: Asgardarchaeota | D28: Lokiarchaeia | E28: CR-4 | F28: SOKP01 | G28: SOKP01 | H28: 345 | I28: 0.009426229508 | J28: 130 | K28: 0.005837973774 | L28: 133 | M28: 0.005910848407 | N28: 232 | O28: 0.006899833452 | P28: 3 | Q28: 5.503678292e-05 | R28: 43 | S28: 0.001117841267 | T28: 8 | U28: 6.907150628e-05 | V28: 19 | W28: 0.0003630041459
A29: sq25 | B29: Archaea | C29: Thermoproteota | D29: Bathyarchaeia | E29: B26-1 | F29: NA | G29: NA | H29: 507 | I29: 0.01385245902 | J29: 430 | K29: 0.01931022094 | L29: 405 | M29: 0.01799920004 | N29: 319 | O29: 0.009487270997 | P29: 14 | Q29: 0.0002568383203 | R29: 66 | S29: 0.001715756363 | T29: 3 | U29: 2.590181485e-05 | V29: 16 | W29: 0.0003056877018
A30: sq26 | B30: Archaea | C30: Thermoplasmatota | D30: E2 | E30: DHVEG-1 | F30: DHVEG-1 | G30: NA | H30: 263 | I30: 0.00718579235 | J30: 124 | K30: 0.005568528831 | L30: 201 | M30: 0.008932936314 | N30: 761 | O30: 0.02263264335 | P30: 33 | Q30: 0.0006054046121 | R30: 200 | S30: 0.005199261705 | T30: 19 | U30: 0.0001640448274 | V30: 33 | W30: 0.000630480885
A31: sq27 | B31: Archaea | C31: Thermoproteota | D31: Bathyarchaeia | E31: TCS64 | F31: TCS64 | G31: RBG-16-57-9 | H31: 9 | I31: 0.0002459016393 | J31: 0 | K31: 0 | L31: 2 | M31: 8.888493845e-05 | N31: 2 | O31: 5.948132286e-05 | P31: 884 | Q31: 0.01621750537 | R31: 938 | S31: 0.0243845374 | T31: 123 | U31: 0.001061974409 | V31: 190 | W31: 0.003630041459
A32: sq28 | B32: Archaea | C32: NA | D32: NA | E32: NA | F32: NA | G32: NA | H32: 254 | I32: 0.00693989071 | J32: 183 | K32: 0.008218070774 | L32: 289 | M32: 0.01284387361 | N32: 480 | O32: 0.01427551749 | P32: 11 | Q32: 0.0002018015374 | R32: 76 | S32: 0.001975719448 | T32: 2 | U32: 1.726787657e-05 | V32: 19 | W32: 0.0003630041459
A33: sq29 | B33: Archaea | C33: Asgardarchaeota | D33: Lokiarchaeia | E33: CR-4 | F33: SOKP01 | G33: SOKP01 | H33: 588 | I33: 0.01606557377 | J33: 148 | K33: 0.006646308604 | L33: 237 | M33: 0.01053286521 | N33: 399 | O33: 0.01186652391 | P33: 6 | Q33: 0.0001100735658 | R33: 81 | S33: 0.00210570099 | T33: 29 | U33: 0.0002503842103 | V33: 25 | W33: 0.0004776370341
A34: sq30 | B34: Archaea | C34: Halobacteriota | D34: Methanosarcinia | E34: Methanosarcinales | F34: Methanosarcinaceae | G34: MTP4 | H34: 6 | I34: 0.0001639344262 | J34: 0 | K34: 0 | L34: 7 | M34: 0.0003110972846 | N34: 4 | O34: 0.0001189626457 | P34: 0 | Q34: 0 | R34: 0 | S34: 0 | T34: 0 | U34: 0 | V34: 0 | W34: 0
A35: sq31 | B35: Archaea | C35: Thermoplasmatota | D35: EX4484-6 | E35: EX4484-6 | F35: EX4484-6 | G35: EX4484-6 | H35: 0 | I35: 0 | J35: 0 | K35: 0 | L35: 0 | M35: 0 | N35: 5 | O35: 0.0001487033072 | P35: 92 | Q35: 0.001687794676 | R35: 90 | S35: 0.002339667767 | T35: 119 | U35: 0.001027438656 | V35: 19 | W35: 0.0003630041459
A36: sq32 | B36: Archaea | C36: Asgardarchaeota | D36: Lokiarchaeia | E36: CR-4 | F36: SOKP01 | G36: SOKP01 | H36: 576 | I36: 0.01573770492 | J36: 105 | K36: 0.00471528651 | L36: 172 | M36: 0.007644104706 | N36: 379 | O36: 0.01127171068 | P36: 6 | Q36: 0.0001100735658 | R36: 104 | S36: 0.002703616087 | T36: 20 | U36: 0.0001726787657 | V36: 17 | W36: 0.0003247931832
A37: sq33 | B37: Archaea | C37: Thermoproteota | D37: Bathyarchaeia | E37: TCS64 | F37: TCS64 | G37: RBG-16-57-9 | H37: 8 | I37: 0.000218579235 | J37: 2 | K37: 8.981498114e-05 | L37: 2 | M37: 8.888493845e-05 | N37: 2 | O37: 5.948132286e-05 | P37: 0 | Q37: 0 | R37: 1 | S37: 2.599630852e-05 | T37: 0 | U37: 0 | V37: 0 | W37: 0
A38: sq34 | B38: Archaea | C38: Thermoproteota | D38: Bathyarchaeia | E38: TCS64 | F38: TCS64 | G38: RBG-16-57-9 | H38: 113 | I38: 0.003087431694 | J38: 67 | K38: 0.003008801868 | L38: 81 | M38: 0.003599840007 | N38: 79 | O38: 0.002349512253 | P38: 9 | Q38: 0.0001651103487 | R38: 20 | S38: 0.0005199261705 | T38: 2 | U38: 1.726787657e-05 | V38: 3 | W38: 5.731644409e-05
A39: sq35 | B39: Archaea | C39: Thermoplasmatota | D39: Thermoplasmata | E39: NA | F39: NA | G39: NA | H39: 0 | I39: 0 | J39: 0 | K39: 0 | L39: 0 | M39: 0 | N39: 0 | O39: 0 | P39: 0 | Q39: 0 | R39: 0 | S39: 0 | T39: 0 | U39: 0 | V39: 0 | W39: 0
A40: sq36 | B40: Archaea | C40: Thermoproteota | D40: Bathyarchaeia | E40: NA | F40: NA | G40: NA | H40: 238 | I40: 0.00650273224 | J40: 182 | K40: 0.008173163284 | L40: 137 | M40: 0.006088618284 | N40: 135 | O40: 0.004014989293 | P40: 1 | Q40: 1.834559431e-05 | R40: 31 | S40: 0.0008058855642 | T40: 1 | U40: 8.633938285e-06 | V40: 4 | W40: 7.642192545e-05
A41: sq37 | B41: Archaea | C41: Thermoproteota | D41: Bathyarchaeia | E41: B26-1 | F41: NA | G41: NA | H41: 278 | I41: 0.007595628415 | J41: 270 | K41: 0.01212502245 | L41: 207 | M41: 0.009199591129 | N41: 203 | O41: 0.006037354271 | P41: 5 | Q41: 9.172797153e-05 | R41: 32 | S41: 0.0008318818728 | T41: 0 | U41: 0 | V41: 4 | W41: 7.642192545e-05
A42: sq38 | B42: Archaea | C42: Halobacteriota | D42: Methanosarcinia | E42: Methanosarcinales | F42: Methanosarcinaceae | G42: NA | H42: 1 | I42: 2.732240437e-05 | J42: 0 | K42: 0 | L42: 0 | M42: 0 | N42: 0 | O42: 0 | P42: 0 | Q42: 0 | R42: 0 | S42: 0 | T42: 0 | U42: 0 | V42: 0 | W42: 0
A43: sq39 | B43: Archaea | C43: Thermoproteota | D43: Bathyarchaeia | E43: TCS64 | F43: TCS64 | G43: RBG-16-57-9 | H43: 0 | I43: 0 | J43: 0 | K43: 0 | L43: 0 | M43: 0 | N43: 1 | O43: 2.974066143e-05 | P43: 182 | Q43: 0.003338898164 | R43: 369 | S43: 0.009592637845 | T43: 215 | U43: 0.001856296731 | V43: 79 | W43: 0.001509333028
A44: sq40 | B44: Archaea | C44: Thermoplasmatota | D44: E2 | E44: DHVEG-1 | F44: DHVEG-1 | G44: SG8-52-3 | H44: 127 | I44: 0.003469945355 | J44: 83 | K44: 0.003727321717 | L44: 98 | M44: 0.004355361984 | N44: 525 | O44: 0.01561384725 | P44: 31 | Q44: 0.0005687134235 | R44: 250 | S44: 0.006499077131 | T44: 26 | U44: 0.0002244823954 | V44: 49 | W44: 0.0009361685868
A45: sq41 | B45: Archaea | C45: Asgardarchaeota | D45: Lokiarchaeia | E45: CR-4 | F45: MK-D1 | G45: Prometheoarchaeum | H45: 0 | I45: 0 | J45: 4 | K45: 0.0001796299623 | L45: 0 | M45: 0 | N45: 0 | O45: 0 | P45: 0 | Q45: 0 | R45: 0 | S45: 0 | T45: 79 | U45: 0.0006820811245 | V45: 617 | W45: 0.011788082
A46: sq42 | B46: Archaea | C46: Thermoproteota | D46: Bathyarchaeia | E46: B26-1 | F46: BA1 | G46: SOJZ01 | H46: 261 | I46: 0.007131147541 | J46: 79 | K46: 0.003547691755 | L46: 105 | M46: 0.004666459268 | N46: 140 | O46: 0.004163692601 | P46: 10 | Q46: 0.0001834559431 | R46: 24 | S46: 0.0006239114046 | T46: 0 | U46: 0 | V46: 4 | W46: 7.642192545e-05
A47: sq43 | B47: Archaea | C47: Halobacteriota | D47: Syntropharchaeia | E47: ANME-1 | F47: ANME-1 | G47: JACGMN01 | H47: 293 | I47: 0.008005464481 | J47: 177 | K47: 0.007948625831 | L47: 182 | M47: 0.008088529399 | N47: 435 | O47: 0.01293718772 | P47: 16 | Q47: 0.0002935295089 | R47: 39 | S47: 0.001013856032 | T47: 7 | U47: 6.043756799e-05 | V47: 18 | W47: 0.0003438986645
A48: sq44 | B48: Archaea | C48: Halobacteriota | D48: Syntropharchaeia | E48: ANME-1 | F48: ANME-1 | G48: JACGMN01 | H48: 357 | I48: 0.009754098361 | J48: 193 | K48: 0.00866714568 | L48: 232 | M48: 0.01031065286 | N48: 375 | O48: 0.01115274804 | P48: 7 | Q48: 0.0001284191601 | R48: 40 | S48: 0.001039852341 | T48: 4 | U48: 3.453575314e-05 | V48: 21 | W48: 0.0004012151086
A49: sq45 | B49: Archaea | C49: Thermoproteota | D49: Bathyarchaeia | E49: B26-1 | F49: BA1 | G49: Kmv02 | H49: 255 | I49: 0.006967213115 | J49: 125 | K49: 0.005613436321 | L49: 185 | M49: 0.008221856806 | N49: 152 | O49: 0.004520580538 | P49: 4 | Q49: 7.338237722e-05 | R49: 25 | S49: 0.0006499077131 | T49: 3 | U49: 2.590181485e-05 | V49: 14 | W49: 0.0002674767391
A50: sq46 | B50: Archaea | C50: Halobacteriota | D50: Syntropharchaeia | E50: ANME-1 | F50: ANME-1 | G50: JACGMN01 | H50: 255 | I50: 0.006967213115 | J50: 232 | K50: 0.01041853781 | L50: 224 | M50: 0.009955113106 | N50: 498 | O50: 0.01481084939 | P50: 9 | Q50: 0.0001651103487 | R50: 38 | S50: 0.0009878597239 | T50: 2 | U50: 1.726787657e-05 | V50: 9 | W50: 0.0001719493323
A51: sq47 | B51: Archaea | C51: Halobacteriota | D51: Methanosarcinia | E51: Methanosarcinales | F51: Methanosarcinaceae | G51: NA | H51: 295 | I51: 0.00806010929 | J51: 328 | K51: 0.01472965691 | L51: 293 | M51: 0.01302164348 | N51: 207 | O51: 0.006156316916 | P51: 14 | Q51: 0.0002568383203 | R51: 22 | S51: 0.0005719187875 | T51: 5 | U51: 4.316969142e-05 | V51: 6 | W51: 0.0001146328882
A52: sq48 | B52: Archaea | C52: Asgardarchaeota | D52: Lokiarchaeia | E52: CR-4 | F52: MK-D1 | G52: Prometheoarchaeum | H52: 0 | I52: 0 | J52: 0 | K52: 0 | L52: 0 | M52: 0 | N52: 0 | O52: 0 | P52: 0 | Q52: 0 | R52: 0 | S52: 0 | T52: 116 | U52: 0.001001536841 | V52: 611 | W52: 0.01167344911
A53: sq49 | B53: Archaea | C53: Thermoplasmatota | D53: Thermoplasmata | E53: Methanomassiliicoccales | F53: JAAEEP01 | G53: JAAEEP01 | H53: 17 | I53: 0.0004644808743 | J53: 14 | K53: 0.000628704868 | L53: 50 | M53: 0.002222123461 | N53: 56 | O53: 0.00166547704 | P53: 59 | Q53: 0.001082390064 | R53: 106 | S53: 0.002755608704 | T53: 60 | U53: 0.0005180362971 | V53: 16 | W53: 0.0003056877018
A54: sq50 | B54: Archaea | C54: Halobacteriota | D54: Syntropharchaeia | E54: ANME-1 | F54: ANME-1 | G54: JACGMN01 | H54: 289 | I54: 0.007896174863 | J54: 213 | K54: 0.009565295491 | L54: 212 | M54: 0.009421803475 | N54: 415 | O54: 0.01234237449 | P54: 15 | Q54: 0.0002751839146 | R54: 60 | S54: 0.001559778511 | T54: 6 | U54: 5.180362971e-05 | V54: 12 | W54: 0.0002292657764
A55: sq51 | B55: Archaea | C55: Halobacteriota | D55: Syntropharchaeia | E55: ANME-1 | F55: ANME-1 | G55: JACGMN01 | H55: 195 | I55: 0.005327868852 | J55: 133 | K55: 0.005972696246 | L55: 105 | M55: 0.004666459268 | N55: 258 | O55: 0.00767309065 | P55: 9 | Q55: 0.0001651103487 | R55: 38 | S55: 0.0009878597239 | T55: 2 | U55: 1.726787657e-05 | V55: 12 | W55: 0.0002292657764
A56: sq52 | B56: Archaea | C56: Halobacteriota | D56: Methanosarcinia | E56: Methanosarcinales | F56: Methanocomedenaceae | G56: Kmv04 | H56: 53 | I56: 0.001448087432 | J56: 33 | K56: 0.001481947189 | L56: 41 | M56: 0.001822141238 | N56: 51 | O56: 0.001516773733 | P56: 1 | Q56: 1.834559431e-05 | R56: 9 | S56: 0.0002339667767 | T56: 0 | U56: 0 | V56: 1 | W56: 1.910548136e-05
A57: sq53 | B57: Archaea | C57: Thermoplasmatota | D57: E2 | E57: DHVEG-1 | F57: DHVEG-1 | G57: NA | H57: 117 | I57: 0.003196721311 | J57: 102 | K57: 0.004580564038 | L57: 116 | M57: 0.00515532643 | N57: 583 | O57: 0.01733880562 | P57: 10 | Q57: 0.0001834559431 | R57: 61 | S57: 0.00158577482 | T57: 8 | U57: 6.907150628e-05 | V57: 15 | W57: 0.0002865822204
A58: sq54 | B58: Archaea | C58: Thermoproteota | D58: Bathyarchaeia | E58: B26-1 | F58: NA | G58: NA | H58: 90 | I58: 0.002459016393 | J58: 83 | K58: 0.003727321717 | L58: 73 | M58: 0.003244300253 | N58: 56 | O58: 0.00166547704 | P58: 2 | Q58: 3.669118861e-05 | R58: 9 | S58: 0.0002339667767 | T58: 0 | U58: 0 | V58: 0 | W58: 0
A59: sq55 | B59: Archaea | C59: Asgardarchaeota | D59: Lokiarchaeia | E59: CR-4 | F59: MK-D1 | G59: Prometheoarchaeum | H59: 559 | I59: 0.01527322404 | J59: 168 | K59: 0.007544458416 | L59: 47 | M59: 0.002088796054 | N59: 37 | O59: 0.001100404473 | P59: 1 | Q59: 1.834559431e-05 | R59: 1 | S59: 2.599630852e-05 | T59: 0 | U59: 0 | V59: 0 | W59: 0
A60: sq56 | B60: Archaea | C60: Thermoproteota | D60: Bathyarchaeia | E60: B26-1 | F60: NA | G60: NA | H60: 107 | I60: 0.002923497268 | J60: 85 | K60: 0.003817136698 | L60: 172 | M60: 0.007644104706 | N60: 113 | O60: 0.003360694742 | P60: 4 | Q60: 7.338237722e-05 | R60: 18 | S60: 0.0004679335534 | T60: 0 | U60: 0 | V60: 6 | W60: 0.0001146328882
A61: sq57 | B61: Archaea | C61: Asgardarchaeota | D61: Lokiarchaeia | E61: CR-4 | F61: SOKP01 | G61: NA | H61: 494 | I61: 0.01349726776 | J61: 108 | K61: 0.004850008981 | L61: 194 | M61: 0.008621839029 | N61: 319 | O61: 0.009487270997 | P61: 7 | Q61: 0.0001284191601 | R61: 74 | S61: 0.001923726831 | T61: 14 | U61: 0.000120875136 | V61: 42 | W61: 0.0008024302172
A62: sq58 | B62: Archaea | C62: Asgardarchaeota | D62: Lokiarchaeia | E62: CR-4 | F62: MK-D1 | G62: Prometheoarchaeum | H62: 1 | I62: 2.732240437e-05 | J62: 0 | K62: 0 | L62: 0 | M62: 0 | N62: 0 | O62: 0 | P62: 0 | Q62: 0 | R62: 2 | S62: 5.199261705e-05 | T62: 72 | U62: 0.0006216435565 | V62: 291 | W62: 0.005559695077
A63: sq59 | B63: Archaea | C63: Thermoproteota | D63: Bathyarchaeia | E63: NA | F63: NA | G63: NA | H63: 124 | I63: 0.003387978142 | J63: 44 | K63: 0.001975929585 | L63: 48 | M63: 0.002133238523 | N63: 81 | O63: 0.002408993576 | P63: 6 | Q63: 0.0001100735658 | R63: 13 | S63: 0.0003379520108 | T63: 0 | U63: 0 | V63: 7 | W63: 0.0001337383695
A64: sq60 | B64: Archaea | C64: Thermoplasmatota | D64: E2 | E64: DHVEG-1 | F64: DHVEG-1 | G64: SG8-52-3 | H64: 145 | I64: 0.003961748634 | J64: 82 | K64: 0.003682414227 | L64: 123 | M64: 0.005466423715 | N64: 496 | O64: 0.01475136807 | P64: 16 | Q64: 0.0002935295089 | R64: 103 | S64: 0.002677619778 | T64: 4 | U64: 3.453575314e-05 | V64: 12 | W64: 0.0002292657764
A65: sq61 | B65: Archaea | C65: Halobacteriota | D65: Syntropharchaeia | E65: ANME-1 | F65: ANME-1 | G65: JACGMN01 | H65: 226 | I65: 0.006174863388 | J65: 156 | K65: 0.007005568529 | L65: 138 | M65: 0.006133060753 | N65: 314 | O65: 0.00933856769 | P65: 9 | Q65: 0.0001651103487 | R65: 45 | S65: 0.001169833884 | T65: 6 | U65: 5.180362971e-05 | V65: 8 | W65: 0.0001528438509
A66: sq62 | B66: Archaea | C66: Asgardarchaeota | D66: Lokiarchaeia | E66: CR-4 | F66: SOKP01 | G66: NA | H66: 219 | I66: 0.005983606557 | J66: 61 | K66: 0.002739356925 | L66: 64 | M66: 0.00284431803 | N66: 146 | O66: 0.004342136569 | P66: 9 | Q66: 0.0001651103487 | R66: 66 | S66: 0.001715756363 | T66: 11 | U66: 9.497332113e-05 | V66: 34 | W66: 0.0006495863663
A67: sq63 | B67: Archaea | C67: Asgardarchaeota | D67: Lokiarchaeia | E67: CR-4 | F67: SOKP01 | G67: SOKP01 | H67: 168 | I67: 0.004590163934 | J67: 37 | K67: 0.001661577151 | L67: 48 | M67: 0.002133238523 | N67: 106 | O67: 0.003152510112 | P67: 1 | Q67: 1.834559431e-05 | R67: 35 | S67: 0.0009098707983 | T67: 5 | U67: 4.316969142e-05 | V67: 6 | W67: 0.0001146328882
A68: sq64 | B68: Archaea | C68: Thermoproteota | D68: Bathyarchaeia | E68: 40CM-2-53-6 | F68: RBG-13-38-9 | G68: DTMT01 | H68: 77 | I68: 0.002103825137 | J68: 94 | K68: 0.004221304114 | L68: 83 | M68: 0.003688724946 | N68: 58 | O68: 0.001724958363 | P68: 2 | Q68: 3.669118861e-05 | R68: 9 | S68: 0.0002339667767 | T68: 2 | U68: 1.726787657e-05 | V68: 3 | W68: 5.731644409e-05
A69: sq65 | B69: Archaea | C69: Asgardarchaeota | D69: Lokiarchaeia | E69: CR-4 | F69: MK-D1 | G69: Prometheoarchaeum | H69: 0 | I69: 0 | J69: 5 | K69: 0.0002245374528 | L69: 0 | M69: 0 | N69: 0 | O69: 0 | P69: 0 | Q69: 0 | R69: 1 | S69: 2.599630852e-05 | T69: 94 | U69: 0.0008115901988 | V69: 248 | W69: 0.004738159378
A70: sq66 | B70: Archaea | C70: Thermoplasmatota | D70: Thermoplasmata | E70: Methanomassiliicoccales | F70: NA | G70: NA | H70: 27 | I70: =H70/SUM(H$5:H$1146) -> 0.000737704918 | J70: 39 | K70: =J70/SUM(J$5:J$1146) -> 0.001751392132 | L70: 49 | M70: =L70/SUM(L$5:L$1146) -> 0.002177680992 | N70: 108 | O70: =N70/SUM(N$5:N$1146) -> 0.003211991435 | P70: 1 | Q70: =P70/SUM(P$5:P$1146) -> 1.834559431e-05 | R70: 13 | S70: =R70/SUM(R$5:R$1146) -> 0.0003379520108 | T70: 1 | U70: =T70/SUM(T$5:T$1146) -> 8.633938285e-06 | V70: 5 | W70: =V70/SUM(V$5:V$1146) -> 9.552740681e-05
A71: sq67 | B71: Archaea | C71: Halobacteriota | D71: Methanosarcinia | E71: Methanosarcinales | F71: Methanocomedenaceae | G71: Kmv04 | H71: 20 | I71: 0.0005464480874 | J71: 32 | K71: 0.001437039698 | L71: 38 | M71: 0.00168881383 | N71: 41 | O71: 0.001219367119 | P71: 2 | Q71: 3.669118861e-05 | R71: 2 | S71: 5.199261705e-05 | T71: 0 | U71: 0 | V71: 4 | W71: 7.642192545e-05
A72: sq68 | B72: Archaea | C72: Thermoplasmatota | D72: E2 | E72: UBA202 | F72: DSCA01 | G72: VBQP01 | H72: 142 | I72: 0.003879781421 | J72: 96 | K72: 0.004311119095 | L72: 102 | M72: 0.004533131861 | N72: 90 | O72: 0.002676659529 | P72: 12 | Q72: 0.0002201471317 | R72: 23 | S72: 0.0005979150961 | T72: 13 | U72: 0.0001122411977 | V72: 7 | W72: 0.0001337383695
A73: sq69 | B73: Archaea | C73: Thermoproteota | D73: Bathyarchaeia | E73: B26-1 | F73: NA | G73: NA | H73: 112 | I73: 0.00306010929 | J73: 24 | K73: 0.001077779774 | L73: 85 | M73: 0.003777609884 | N73: 127 | O73: 0.003777064002 | P73: 1 | Q73: 1.834559431e-05 | R73: 4 | S73: 0.0001039852341 | T73: 0 | U73: 0 | V73: 3 | W73: 5.731644409e-05
A74: sq70 | B74: Archaea | C74: Thermoplasmatota | D74: Themoplasmata_A | E74: DTKX01 | F74: GCA-020343715 | G74: GCA-020343715 | H74: 61 | I74: 0.001666666667 | J74: 78 | K74: 0.003502784264 | L74: 69 | M74: 0.003066530376 | N74: 157 | O74: 0.004669283845 | P74: 0 | Q74: 0 | R74: 5 | S74: 0.0001299815426 | T74: 0 | U74: 0 | V74: 0 | W74: 0
A75: sq71 | B75: Archaea | C75: Thermoproteota | D75: Bathyarchaeia | E75: B26-1 | F75: BA1 | G75: SOJZ01 | H75: 71 | I75: 0.00193989071 | J75: 63 | K75: 0.002829171906 | L75: 89 | M75: 0.003955379761 | N75: 45 | O75: 0.001338329764 | P75: 2 | Q75: 3.669118861e-05 | R75: 11 | S75: 0.0002859593938 | T75: 0 | U75: 0 | V75: 2 | W75: 3.821096273e-05
A76: sq72 | B76: Archaea | C76: Asgardarchaeota | D76: Lokiarchaeia | E76: CR-4 | F76: MK-D1 | G76: Prometheoarchaeum | H76: 0 | I76: 0 | J76: 0 | K76: 0 | L76: 0 | M76: 0 | N76: 0 | O76: 0 | P76: 0 | Q76: 0 | R76: 0 | S76: 0 | T76: 66 | U76: 0.0005698399268 | V76: 330 | W76: 0.00630480885
A77: sq73 | B77: Archaea | C77: Thermoproteota | D77: Bathyarchaeia | E77: B26-1 | F77: BA1 | G77: NA | H77: 97 | I77: 0.002650273224 | J77: 87 | K77: 0.00390695168 | L77: 111 | M77: 0.004933114084 | N77: 71 | O77: 0.002111586962 | P77: 0 | Q77: 0 | R77: 9 | S77: 0.0002339667767 | T77: 0 | U77: 0 | V77: 0 | W77: 0
A78: sq74 | B78: Archaea | C78: Asgardarchaeota | D78: Thorarchaeia | E78: Thorarchaeales | F78: Thorarchaeaceae | G78: NA | H78: 216 | I78: 0.005901639344 | J78: 22 | K78: 0.0009879647925 | L78: 26 | M78: 0.0011555042 | N78: 77 | O78: 0.00229003093 | P78: 3 | Q78: 5.503678292e-05 | R78: 8 | S78: 0.0002079704682 | T78: 5 | U78: 4.316969142e-05 | V78: 40 | W78: 0.0007642192545
A79: sq75 | B79: Archaea | C79: Thermoproteota | D79: Bathyarchaeia | E79: B26-1 | F79: NA | G79: NA | H79: 23 | I79: 0.0006284153005 | J79: 37 | K79: 0.001661577151 | L79: 40 | M79: 0.001777698769 | N79: 26 | O79: 0.0007732571972 | P79: 0 | Q79: 0 | R79: 4 | S79: 0.0001039852341 | T79: 0 | U79: 0 | V79: 0 | W79: 0
A80: sq76 | B80: Archaea | C80: Asgardarchaeota | D80: Lokiarchaeia | E80: CR-4 | F80: MK-D1 | G80: Prometheoarchaeum | H80: 0 | I80: 0 | J80: 0 | K80: 0 | L80: 0 | M80: 0 | N80: 0 | O80: 0 | P80: 0 | Q80: 0 | R80: 0 | S80: 0 | T80: 97 | U80: 0.0008374920136 | V80: 334 | W80: 0.006381230775
A81: sq77 | B81: Archaea | C81: Thermoproteota | D81: Bathyarchaeia | E81: B26-1 | F81: NA | G81: NA | H81: 65 | I81: 0.001775956284 | J81: 71 | K81: 0.00318843183 | L81: 56 | M81: 0.002488778277 | N81: 42 | O81: 0.00124910778 | P81: 1 | Q81: 1.834559431e-05 | R81: 3 | S81: 7.798892557e-05 | T81: 0 | U81: 0 | V81: 0 | W81: 0
A82: sq78 | B82: Archaea | C82: Asgardarchaeota | D82: Lokiarchaeia | E82: CR-4 | F82: MK-D1 | G82: Prometheoarchaeum | H82: 0 | I82: 0 | J82: 0 | K82: 0 | L82: 0 | M82: 0 | N82: 0 | O82: 0 | P82: 0 | Q82: 0 | R82: 0 | S82: 0 | T82: 89 | U82: 0.0007684205073 | V82: 370 | W82: 0.007069028104
A83: sq79 | B83: Archaea | C83: Thermoplasmatota | D83: E2 | E83: DHVEG-1 | F83: DHVEG-1 | G83: NA | H83: 72 | I83: 0.001967213115 | J83: 62 | K83: 0.002784264415 | L83: 55 | M83: 0.002444335807 | N83: 272 | O83: 0.00808945991 | P83: 6 | Q83: 0.0001100735658 | R83: 27 | S83: 0.0007019003302 | T83: 3 | U83: 2.590181485e-05 | V83: 2 | W83: 3.821096273e-05
A84: sq80 | B84: Archaea | C84: Halobacteriota | D84: Syntropharchaeia | E84: ANME-1 | F84: ANME-1 | G84: NA | H84: 159 | I84: 0.004344262295 | J84: 111 | K84: 0.004984731453 | L84: 101 | M84: 0.004488689392 | N84: 213 | O84: 0.006334760885 | P84: 21 | Q84: 0.0003852574804 | R84: 41 | S84: 0.001065848649 | T84: 3 | U84: 2.590181485e-05 | V84: 2 | W84: 3.821096273e-05
A85: sq81 | B85: Archaea | C85: Thermoproteota | D85: Bathyarchaeia | E85: B26-1 | F85: BA1 | G85: BIN-L-1 | H85: 44 | I85: 0.001202185792 | J85: 53 | K85: 0.002380097 | L85: 39 | M85: 0.0017332563 | N85: 32 | O85: 0.0009517011658 | P85: 1 | Q85: 1.834559431e-05 | R85: 6 | S85: 0.0001559778511 | T85: 2 | U85: 1.726787657e-05 | V85: 1 | W85: 1.910548136e-05
A86: sq82 | B86: Archaea | C86: Halobacteriota | D86: Methanosarcinia | E86: Methanotrichales | F86: Methanotrichaceae | G86: NA | H86: 11 | I86: 0.0003005464481 | J86: 7 | K86: 0.000314352434 | L86: 9 | M86: 0.000399982223 | N86: 15 | O86: 0.0004461099215 | P86: 1 | Q86: 1.834559431e-05 | R86: 4 | S86: 0.0001039852341 | T86: 1 | U86: 8.633938285e-06 | V86: 0 | W86: 0
A87: sq83 | B87: Archaea | C87: Halobacteriota | D87: Methanosarcinia | E87: Methanosarcinales | F87: Methanocomedenaceae | G87: Methanocomedens | H87: 22 | I87: 0.0006010928962 | J87: 0 | K87: 0 | L87: 17 | M87: 0.0007555219768 | N87: 10 | O87: 0.0002974066143 | P87: 1 | Q87: 1.834559431e-05 | R87: 1 | S87: 2.599630852e-05 | T87: 0 | U87: 0 | V87: 0 | W87: 0
A88: sq84 | B88: Archaea | C88: Nanoarchaeota | D88: Nanoarchaeia | E88: Pacearchaeales | F88: GW2011-AR1 | G88: ASMP01 | H88: 120 | I88: 0.003278688525 | J88: 18 | K88: 0.0008083348302 | L88: 53 | M88: 0.002355450869 | N88: 97 | O88: 0.002884844159 | P88: 7 | Q88: 0.0001284191601 | R88: 8 | S88: 0.0002079704682 | T88: 0 | U88: 0 | V88: 2 | W88: 3.821096273e-05
A89: sq85 | B89: Archaea | C89: Thermoproteota | D89: Bathyarchaeia | E89: B26-1 | F89: NA | G89: NA | H89: 82 | I89: 0.002240437158 | J89: 149 | K89: 0.006691216095 | L89: 82 | M89: 0.003644282476 | N89: 87 | O89: 0.002587437545 | P89: 8 | Q89: 0.0001467647544 | R89: 13 | S89: 0.0003379520108 | T89: 1 | U89: 8.633938285e-06 | V89: 8 | W89: 0.0001528438509
A90: sq86 | B90: Archaea | C90: Asgardarchaeota | D90: Heimdallarchaeia | E90: Hodarchaeales | F90: Hodarchaeaceae | G90: Hodarchaeum | H90: 111 | I90: 0.003032786885 | J90: 29 | K90: 0.001302317227 | L90: 122 | M90: 0.005421981245 | N90: 228 | O90: 0.006780870807 | P90: 0 | Q90: 0 | R90: 7 | S90: 0.0001819741597 | T90: 0 | U90: 0 | V90: 8 | W90: 0.0001528438509
A91: sq87 | B91: Archaea | C91: Thermoplasmatota | D91: E2 | E91: DHVEG-1 | F91: DHVEG-1 | G91: JAJISJ01 | H91: 32 | I91: 0.0008743169399 | J91: 37 | K91: 0.001661577151 | L91: 30 | M91: 0.001333274077 | N91: 125 | O91: 0.003717582679 | P91: 3 | Q91: 5.503678292e-05 | R91: 24 | S91: 0.0006239114046 | T91: 4 | U91: 3.453575314e-05 | V91: 2 | W91: 3.821096273e-05
A92: sq88 | B92: Archaea | C92: Thermoproteota | D92: Bathyarchaeia | E92: TCS64 | F92: TCS64 | G92: RBG-16-57-9 | H92: 5 | I92: 0.0001366120219 | J92: 0 | K92: 0 | L92: 8 | M92: 0.0003555397538 | N92: 3 | O92: 8.92219843e-05 | P92: 9 | Q92: 0.0001651103487 | R92: 11 | S92: 0.0002859593938 | T92: 8 | U92: 6.907150628e-05 | V92: 0 | W92: 0
A93: sq89 | B93: Archaea | C93: Micrarchaeota | D93: Micrarchaeia | E93: NA | F93: NA | G93: NA | H93: 66 | I93: 0.001803278689 | J93: 162 | K93: 0.007275013472 | L93: 105 | M93: 0.004666459268 | N93: 178 | O93: 0.005293837735 | P93: 1 | Q93: 1.834559431e-05 | R93: 34 | S93: 0.0008838744898 | T93: 5 | U93: 4.316969142e-05 | V93: 16 | W93: 0.0003056877018
A94: sq90 | B94: Archaea | C94: Nanoarchaeota | D94: Nanoarchaeia | E94: Pacearchaeales | F94: GW2011-AR1 | G94: NA | H94: 132 | I94: 0.003606557377 | J94: 96 | K94: 0.004311119095 | L94: 56 | M94: 0.002488778277 | N94: 142 | O94: 0.004223173923 | P94: 4 | Q94: 7.338237722e-05 | R94: 21 | S94: 0.000545922479 | T94: 6 | U94: 5.180362971e-05 | V94: 8 | W94: 0.0001528438509
A95: sq91 | B95: Archaea | C95: Thermoproteota | D95: Bathyarchaeia | E95: B26-1 | F95: BA1 | G95: NA | H95: 69 | I95: 0.001885245902 | J95: 19 | K95: 0.0008532423208 | L95: 33 | M95: 0.001466601484 | N95: 34 | O95: 0.001011182489 | P95: 5 | Q95: 9.172797153e-05 | R95: 3 | S95: 7.798892557e-05 | T95: 0 | U95: 0 | V95: 1 | W95: 1.910548136e-05
A96: sq92 | B96: Archaea | C96: Asgardarchaeota | D96: Lokiarchaeia | E96: CR-4 | F96: MK-D1 | G96: Prometheoarchaeum | H96: 0 | I96: 0 | J96: 0 | K96: 0 | L96: 0 | M96: 0 | N96: 0 | O96: 0 | P96: 0 | Q96: 0 | R96: 0 | S96: 0 | T96: 41 | U96: 0.0003539914697 | V96: 242 | W96: 0.00462352649
A97: sq93 | B97: Archaea | C97: Thermoplasmatota | D97: E2 | E97: DHVEG-1 | F97: DHVEG-1 | G97: NA | H97: 62 | I97: 0.001693989071 | J97: 27 | K97: 0.001212502245 | L97: 55 | M97: 0.002444335807 | N97: 199 | O97: 0.005918391625 | P97: 1 | Q97: 1.834559431e-05 | R97: 18 | S97: 0.0004679335534 | T97: 1 | U97: 8.633938285e-06 | V97: 5 | W97: 9.552740681e-05
A98: sq94 | B98: Archaea | C98: Thermoproteota | D98: Bathyarchaeia | E98: B26-1 | F98: NA | G98: NA | H98: 43 | I98: 0.001174863388 | J98: 47 | K98: 0.002110652057 | L98: 11 | M98: 0.0004888671615 | N98: 18 | O98: 0.0005353319058 | P98: 3 | Q98: 5.503678292e-05 | R98: 2 | S98: 5.199261705e-05 | T98: 0 | U98: 0 | V98: 3 | W98: 5.731644409e-05
A99: sq95 | B99: Archaea | C99: Asgardarchaeota | D99: Lokiarchaeia | E99: CR-4 | F99: MK-D1 | G99: Prometheoarchaeum | H99: 0 | I99: 0 | J99: 0 | K99: 0 | L99: 0 | M99: 0 | N99: 0 | O99: 0 | P99: 0 | Q99: 0 | R99: 1 | S99: 2.599630852e-05 | T99: 57 | U99: 0.0004921344822 | V99: 260 | W99: 0.004967425154
A100: sq96 | B100: Archaea | C100: Thermoproteota | D100: Bathyarchaeia | E100: B26-1 | F100: UBA233 | G100: NA | H100: 82 | I100: 0.002240437158 | J100: 62 | K100: 0.002784264415 | L100: 47 | M100: 0.002088796054 | N100: 47 | O100: 0.001397811087 | P100: 2 | Q100: 3.669118861e-05 | R100: 9 | S100: 0.0002339667767 | T100: 0 | U100: 0 | V100: 6 | W100: 0.0001146328882
A101: sq97 | B101: Archaea | C101: Thermoplasmatota | D101: E2 | E101: DHVEG-1 | F101: DHVEG-1 | G101: NA | H101: 44 | I101: 0.001202185792 | J101: 11 | K101: 0.0004939823963 | L101: 43 | M101: 0.001911026177 | N101: 148 | O101: 0.004401617892 | P101: 3 | Q101: 5.503678292e-05 | R101: 59 | S101: 0.001533782203 | T101: 4 | U101: 3.453575314e-05 | V101: 31 | W101: 0.0005922699222
A102: sq98 | B102: Archaea | C102: Thermoproteota | D102: Bathyarchaeia | E102: B26-1 | F102: UBA233 | G102: NA | H102: 58 | I102: 0.001584699454 | J102: 39 | K102: 0.001751392132 | L102: 57 | M102: 0.002533220746 | N102: 66 | O102: 0.001962883655 | P102: 1 | Q102: 1.834559431e-05 | R102: 7 | S102: 0.0001819741597 | T102: 1 | U102: 8.633938285e-06 | V102: 3 | W102: 5.731644409e-05
A103: sq99 | B103: Archaea | C103: Thermoproteota | D103: Bathyarchaeia | E103: TCS64 | F103: TCS64 | G103: RBG-16-57-9 | H103: 28 | I103: 0.0007650273224 | J103: 6 | K103: 0.0002694449434 | L103: 21 | M103: 0.0009332918537 | N103: 29 | O103: 0.0008624791815 | P103: 2 | Q103: 3.669118861e-05 | R103: 26 | S103: 0.0006759040216 | T103: 2 | U103: 1.726787657e-05 | V103: 8 | W103: 0.0001528438509
A104: sq100 | B104: Archaea | C104: Asgardarchaeota | D104: Lokiarchaeia | E104: CR-4 | F104: MK-D1 | G104: Prometheoarchaeum | H104: 0 | I104: 0 | J104: 0 | K104: 0 | L104: 0 | M104: 0 | N104: 0 | O104: 0 | P104: 0 | Q104: 0 | R104: 2 | S104: 5.199261705e-05 | T104: 83 | U104: 0.0007166168776 | V104: 215 | W104: 0.004107678493
A105: sq101 | B105: Archaea | C105: Thermoproteota | D105: Bathyarchaeia | E105: B26-1 | F105: SOJC01 | G105: SOJC01 | H105: 94 | I105: 0.002568306011 | J105: 21 | K105: 0.000943057302 | L105: 69 | M105: 0.003066530376 | N105: 47 | O105: 0.001397811087 | P105: 1 | Q105: 1.834559431e-05 | R105: 13 | S105: 0.0003379520108 | T105: 1 | U105: 8.633938285e-06 | V105: 1 | W105: 1.910548136e-05
A106: sq102 | B106: Archaea | C106: Thermoproteota | D106: Bathyarchaeia | E106: B26-1 | F106: BA1 | G106: NA | H106: 86 | I106: 0.002349726776 | J106: 12 | K106: 0.0005388898868 | L106: 45 | M106: 0.001999911115 | N106: 47 | O106: 0.001397811087 | P106: 3 | Q106: 5.503678292e-05 | R106: 10 | S106: 0.0002599630852 | T106: 0 | U106: 0 | V106: 7 | W106: 0.0001337383695
A107: sq103 | B107: Archaea | C107: Halobacteriota | D107: Methanosarcinia | E107: Methanosarcinales | F107: Methanosarcinaceae | G107: MTP4 | H107: 1 | I107: 2.732240437e-05 | J107: 0 | K107: 0 | L107: 2 | M107: 8.888493845e-05 | N107: 0 | O107: 0 | P107: 555 | Q107: 0.01018180484 | R107: 187 | S107: 0.004861309694 | T107: 198 | U107: 0.00170951978 | V107: 45 | W107: 0.0008597466613
A108: sq104 | B108: Archaea | C108: Halobacteriota | D108: Methanosarcinia | E108: Methanosarcinales | F108: Methanogasteraceae | G108: Methanogaster | H108: 211 | I108: 0.005765027322 | J108: 38 | K108: 0.001706484642 | L108: 145 | M108: 0.006444158037 | N108: 12 | O108: 0.0003568879372 | P108: 4 | Q108: 7.338237722e-05 | R108: 11 | S108: 0.0002859593938 | T108: 2 | U108: 1.726787657e-05 | V108: 1 | W108: 1.910548136e-05
A109: sq105 | B109: Archaea | C109: Thermoproteota | D109: Bathyarchaeia | E109: TCS64 | F109: TCS64 | G109: RBG-16-57-9 | H109: 1 | I109: 2.732240437e-05 | J109: 0 | K109: 0 | L109: 4 | M109: 0.0001777698769 | N109: 2 | O109: 5.948132286e-05 | P109: 68 | Q109: 0.001247500413 | R109: 133 | S109: 0.003457509034 | T109: 9 | U109: 7.770544456e-05 | V109: 21 | W109: 0.0004012151086
A110: sq106 | B110: Archaea | C110: Halobacteriota | D110: Methanosarcinia | E110: Methanosarcinales | F110: Methanosarcinaceae | G110: Methanococcoides | H110: 4 | I110: 0.0001092896175 | J110: 6 | K110: 0.0002694449434 | L110: 9 | M110: 0.000399982223 | N110: 4 | O110: 0.0001189626457 | P110: 102 | Q110: 0.001871250619 | R110: 188 | S110: 0.004887306003 | T110: 26 | U110: 0.0002244823954 | V110: 33 | W110: 0.000630480885
A111: sq107 | B111: Archaea | C111: Thermoproteota | D111: Bathyarchaeia | E111: B26-1 | F111: UBA233 | G111: NA | H111: 50 | I111: 0.001366120219 | J111: 88 | K111: 0.00395185917 | L111: 55 | M111: 0.002444335807 | N111: 53 | O111: 0.001576255056 | P111: 3 | Q111: 5.503678292e-05 | R111: 11 | S111: 0.0002859593938 | T111: 0 | U111: 0 | V111: 14 | W111: 0.0002674767391
A112: sq108 | B112: Archaea | C112: Asgardarchaeota | D112: Thorarchaeia | E112: Thorarchaeales | F112: Thorarchaeaceae | G112: MP8T-1 | H112: 46 | I112: 0.001256830601 | J112: 2 | K112: 8.981498114e-05 | L112: 1 | M112: 4.444246922e-05 | N112: 9 | O112: 0.0002676659529 | P112: 32 | Q112: 0.0005870590178 | R112: 49 | S112: 0.001273819118 | T112: 13 | U112: 0.0001122411977 | V112: 122 | W112: 0.002330868726
A113: sq109 | B113: Archaea | C113: Thermoplasmatota | D113: E2 | E113: DHVEG-1 | F113: DHVEG-1 | G113: SM1-50 | H113: 45 | I113: 0.001229508197 | J113: 20 | K113: 0.0008981498114 | L113: 35 | M113: 0.001555486423 | N113: 154 | O113: 0.004580061861 | P113: 8 | Q113: 0.0001467647544 | R113: 55 | S113: 0.001429796969 | T113: 3 | U113: 2.590181485e-05 | V113: 40 | W113: 0.0007642192545
A114: sq110 | B114: Archaea | C114: Thermoproteota | D114: Bathyarchaeia | E114: B26-1 | F114: UBA233 | G114: NA | H114: 69 | I114: 0.001885245902 | J114: 54 | K114: 0.002425004491 | L114: 98 | M114: 0.004355361984 | N114: 46 | O114: 0.001368070426 | P114: 3 | Q114: 5.503678292e-05 | R114: 4 | S114: 0.0001039852341 | T114: 3 | U114: 2.590181485e-05 | V114: 4 | W114: 7.642192545e-05
A115: sq111 | B115: Archaea | C115: Thermoproteota | D115: Bathyarchaeia | E115: B26-1 | F115: NA | G115: NA | H115: 78 | I115: 0.002131147541 | J115: 55 | K115: 0.002469911981 | L115: 71 | M115: 0.003155415315 | N115: 41 | O115: 0.001219367119 | P115: 0 | Q115: 0 | R115: 5 | S115: 0.0001299815426 | T115: 0 | U115: 0 | V115: 2 | W115: 3.821096273e-05
A116: sq112 | B116: Archaea | C116: Thermoproteota | D116: Nitrososphaeria | E116: Nitrososphaerales | F116: Nitrososphaeraceae | G116: NA | H116: 7 | I116: 0.0001912568306 | J116: 27 | K116: 0.001212502245 | L116: 23 | M116: 0.001022176792 | N116: 23 | O116: 0.0006840352129 | P116: 1 | Q116: 1.834559431e-05 | R116: 3 | S116: 7.798892557e-05 | T116: 0 | U116: 0 | V116: 0 | W116: 0
A117: sq113 | B117: Archaea | C117: Thermoproteota | D117: Bathyarchaeia | E117: B26-1 | F117: BA1 | G117: NA | H117: 45 | I117: 0.001229508197 | J117: 44 | K117: 0.001975929585 | L117: 48 | M117: 0.002133238523 | N117: 29 | O117: 0.0008624791815 | P117: 0 | Q117: 0 | R117: 5 | S117: 0.0001299815426 | T117: 0 | U117: 0 | V117: 2 | W117: 3.821096273e-05
A118: sq114 | B118: Archaea | C118: Asgardarchaeota | D118: Lokiarchaeia | E118: CR-4 | F118: MK-D1 | G118: Prometheoarchaeum | H118: 0 | I118: 0 | J118: 0 | K118: 0 | L118: 0 | M118: 0 | N118: 0 | O118: 0 | P118: 0 | Q118: 0 | R118: 0 | S118: 0 | T118: 56 | U118: 0.0004835005439 | V118: 177 | W118: 0.003381670201
A119: sq115 | B119: Archaea | C119: Asgardarchaeota | D119: Lokiarchaeia | E119: CR-4 | F119: MK-D1 | G119: Prometheoarchaeum | H119: 0 | I119: 0 | J119: 4 | K119: 0.0001796299623 | L119: 0 | M119: 0 | N119: 0 | O119: 0 | P119: 0 | Q119: 0 | R119: 1 | S119: 2.599630852e-05 | T119: 106 | U119: 0.0009151974582 | V119: 161 | W119: 0.003075982499
A120: sq116 | B120: Archaea | C120: Asgardarchaeota | D120: Lokiarchaeia | E120: CR-4 | F120: MK-D1 | G120: Prometheoarchaeum | H120: 3 | I120: 8.196721311e-05 | J120: 0 | K120: 0 | L120: 0 | M120: 0 | N120: 0 | O120: 0 | P120: 0 | Q120: 0 | R120: 0 | S120: 0 | T120: 40 | U120: 0.0003453575314 | V120: 229 | W120: 0.004375155232
A121: sq117 | B121: Archaea | C121: Thermoproteota | D121: Bathyarchaeia | E121: B26-1 | F121: BA1 | G121: Kmv02 | H121: 65 | I121: 0.001775956284 | J121: 54 | K121: 0.002425004491 | L121: 41 | M121: 0.001822141238 | N121: 47 | O121: 0.001397811087 | P121: 1 | Q121: 1.834559431e-05 | R121: 4 | S121: 0.0001039852341 | T121: 0 | U121: 0 | V121: 5 | W121: 9.552740681e-05
A122: sq118 | B122: Archaea | C122: Thermoproteota | D122: Bathyarchaeia | E122: B26-1 | F122: BA1 | G122: SOJZ01 | H122: 62 | I122: 0.001693989071 | J122: 32 | K122: 0.001437039698 | L122: 39 | M122: 0.0017332563 | N122: 29 | O122: 0.0008624791815 | P122: 0 | Q122: 0 | R122: 6 | S122: 0.0001559778511 | T122: 0 | U122: 0 | V122: 0 | W122: 0
A123: sq119 | B123: Archaea | C123: Asgardarchaeota | D123: Lokiarchaeia | E123: CR-4 | F123: SOKP01 | G123: SOKP01 | H123: 92 | I123: 0.002513661202 | J123: 37 | K123: 0.001661577151 | L123: 13 | M123: 0.0005777520999 | N123: 49 | O123: 0.00145729241 | P123: 1 | Q123: 1.834559431e-05 | R123: 7 | S123: 0.0001819741597 | T123: 4 | U123: 3.453575314e-05 | V123: 0 | W123: 0
A124: sq120 | B124: Archaea | C124: Thermoproteota | D124: Nitrososphaeria | E124: Nitrososphaerales | F124: Nitrososphaeraceae | G124: NA | H124: 17 | I124: 0.0004644808743 | J124: 88 | K124: 0.00395185917 | L124: 8 | M124: 0.0003555397538 | N124: 4 | O124: 0.0001189626457 | P124: 3 | Q124: 5.503678292e-05 | R124: 4 | S124: 0.0001039852341 | T124: 0 | U124: 0 | V124: 3 | W124: 5.731644409e-05
A125: sq121 | B125: Archaea | C125: Thermoproteota | D125: Bathyarchaeia | E125: TCS64 | F125: TCS64 | G125: RBG-16-57-9 | H125: 39 | I125: 0.00106557377 | J125: 55 | K125: 0.002469911981 | L125: 28 | M125: 0.001244389138 | N125: 37 | O125: 0.001100404473 | P125: 29 | Q125: 0.0005320222349 | R125: 65 | S125: 0.001689760054 | T125: 5 | U125: 4.316969142e-05 | V125: 7 | W125: 0.0001337383695
A126: sq122 | B126: Archaea | C126: Nanoarchaeota | D126: Nanoarchaeia | E126: NA | F126: NA | G126: NA | H126: 97 | I126: 0.002650273224 | J126: 75 | K126: 0.003368061793 | L126: 47 | M126: 0.002088796054 | N126: 77 | O126: 0.00229003093 | P126: 1 | Q126: 1.834559431e-05 | R126: 12 | S126: 0.0003119557023 | T126: 5 | U126: 4.316969142e-05 | V126: 15 | W126: 0.0002865822204
A127: sq123 | B127: Archaea | C127: Thermoproteota | D127: Bathyarchaeia | E127: B26-1 | F127: BA1 | G127: NA | H127: 15 | I127: 0.0004098360656 | J127: 11 | K127: 0.0004939823963 | L127: 16 | M127: 0.0007110795076 | N127: 13 | O127: 0.0003866285986 | P127: 0 | Q127: 0 | R127: 5 | S127: 0.0001299815426 | T127: 0 | U127: 0 | V127: 0 | W127: 0
A128: sq124 | B128: Archaea | C128: Asgardarchaeota | D128: Heimdallarchaeia | E128: Hodarchaeales | F128: Hodarchaeaceae | G128: Hodarchaeum | H128: 34 | I128: 0.0009289617486 | J128: 1 | K128: 4.490749057e-05 | L128: 24 | M128: 0.001066619261 | N128: 84 | O128: 0.00249821556 | P128: 0 | Q128: 0 | R128: 9 | S128: 0.0002339667767 | T128: 0 | U128: 0 | V128: 0 | W128: 0
A129: sq125 | B129: Archaea | C129: Halobacteriota | D129: Syntropharchaeia | E129: ANME-1 | F129: ANME-1 | G129: JACGMN01 | H129: 89 | I129: 0.002431693989 | J129: 33 | K129: 0.001481947189 | L129: 68 | M129: 0.003022087907 | N129: 142 | O129: 0.004223173923 | P129: 8 | Q129: 0.0001467647544 | R129: 10 | S129: 0.0002599630852 | T129: 1 | U129: 8.633938285e-06 | V129: 0 | W129: 0
A130: sq126 | B130: Archaea | C130: Thermoplasmatota | D130: E2 | E130: DHVEG-1 | F130: DHVEG-1 | G130: NA | H130: 43 | I130: 0.001174863388 | J130: 0 | K130: 0 | L130: 17 | M130: 0.0007555219768 | N130: 113 | O130: 0.003360694742 | P130: 10 | Q130: 0.0001834559431 | R130: 69 | S130: 0.001793745288 | T130: 12 | U130: 0.0001036072594 | V130: 43 | W130: 0.0008215356986
A131: sq127 | B131: Archaea | C131: Thermoproteota | D131: Bathyarchaeia | E131: NA | F131: NA | G131: NA | H131: 16 | I131: 0.0004371584699 | J131: 20 | K131: 0.0008981498114 | L131: 23 | M131: 0.001022176792 | N131: 16 | O131: 0.0004758505829 | P131: 4 | Q131: 7.338237722e-05 | R131: 2 | S131: 5.199261705e-05 | T131: 2 | U131: 1.726787657e-05 | V131: 1 | W131: 1.910548136e-05
A132: sq128 | B132: Archaea | C132: Asgardarchaeota | D132: Lokiarchaeia | E132: CR-4 | F132: MK-D1 | G132: Prometheoarchaeum | H132: 3 | I132: 8.196721311e-05 | J132: 0 | K132: 0 | L132: 0 | M132: 0 | N132: 0 | O132: 0 | P132: 1 | Q132: 1.834559431e-05 | R132: 0 | S132: 0 | T132: 43 | U132: 0.0003712593462 | V132: 166 | W132: 0.003171509906
A133: sq129 | B133: Archaea | C133: Thermoplasmatota | D133: E2 | E133: DHVEG-1 | F133: DHVEG-1 | G133: M9B1D | H133: 72 | I133: 0.001967213115 | J133: 145 | K133: 0.006511586133 | L133: 60 | M133: 0.002666548153 | N133: 155 | O133: 0.004609802522 | P133: 0 | Q133: 0 | R133: 5 | S133: 0.0001299815426 | T133: 0 | U133: 0 | V133: 10 | W133: 0.0001910548136
A134: sq130 | B134: Archaea | C134: NA | D134: NA | E134: NA | F134: NA | G134: NA | H134: 4 | I134: =H134/SUM(H$5:H$1146) -> 0.0001092896175 | J134: 22 | K134: =J134/SUM(J$5:J$1146) -> 0.0009879647925 | L134: 6 | M134: =L134/SUM(L$5:L$1146) -> 0.0002666548153 | N134: 12 | O134: =N134/SUM(N$5:N$1146) -> 0.0003568879372 | P134: 0 | Q134: =P134/SUM(P$5:P$1146) -> 0 | R134: 0 | S134: =R134/SUM(R$5:R$1146) -> 0 | T134: 0 | U134: =T134/SUM(T$5:T$1146) -> 0 | V134: 0 | W134: =V134/SUM(V$5:V$1146) -> 0
A135: sq131 | B135: Archaea | C135: Asgardarchaeota | D135: Lokiarchaeia | E135: CR-4 | F135: MK-D1 | G135: Prometheoarchaeum | H135: 0 | I135: 0 | J135: 0 | K135: 0 | L135: 0 | M135: 0 | N135: 0 | O135: 0 | P135: 0 | Q135: 0 | R135: 3 | S135: 7.798892557e-05 | T135: 4 | U135: 3.453575314e-05 | V135: 757 | W135: 0.01446284939
A136: sq132 | B136: Archaea | C136: Asgardarchaeota | D136: Heimdallarchaeia | E136: UBA460 | F136: UBA460 | G136: UBA460 | H136: 269 | I136: 0.007349726776 | J136: 7 | K136: 0.000314352434 | L136: 3 | M136: 0.0001333274077 | N136: 187 | O136: 0.005561503688 | P136: 0 | Q136: 0 | R136: 0 | S136: 0 | T136: 0 | U136: 0 | V136: 0 | W136: 0
A137: sq133 | B137: Archaea | C137: Asgardarchaeota | D137: Thorarchaeia | E137: Thorarchaeales | F137: Thorarchaeaceae | G137: NA | H137: 103 | I137: 0.00281420765 | J137: 17 | K137: 0.0007634273397 | L137: 5 | M137: 0.0002222123461 | N137: 40 | O137: 0.001189626457 | P137: 1 | Q137: 1.834559431e-05 | R137: 6 | S137: 0.0001559778511 | T137: 1 | U137: 8.633938285e-06 | V137: 5 | W137: 9.552740681e-05
A138: sq134 | B138: Archaea | C138: Thermoproteota | D138: Nitrososphaeria | E138: Nitrososphaerales | F138: Nitrosopumilaceae | G138: Nitrosopumilus | H138: 4 | I138: 0.0001092896175 | J138: 0 | K138: 0 | L138: 5 | M138: 0.0002222123461 | N138: 10 | O138: 0.0002974066143 | P138: 4 | Q138: 7.338237722e-05 | R138: 1 | S138: 2.599630852e-05 | T138: 0 | U138: 0 | V138: 0 | W138: 0
A139: sq135 | B139: Archaea | C139: Thermoproteota | D139: Bathyarchaeia | E139: B26-1 | F139: UBA233 | G139: NA | H139: 31 | I139: 0.0008469945355 | J139: 53 | K139: 0.002380097 | L139: 29 | M139: 0.001288831607 | N139: 39 | O139: 0.001159885796 | P139: 0 | Q139: 0 | R139: 8 | S139: 0.0002079704682 | T139: 0 | U139: 0 | V139: 0 | W139: 0
A140: sq136 | B140: Archaea | C140: Thermoproteota | D140: Bathyarchaeia | E140: B26-1 | F140: BA1 | G140: NA | H140: 63 | I140: 0.001721311475 | J140: 126 | K140: 0.005658343812 | L140: 57 | M140: 0.002533220746 | N140: 39 | O140: 0.001159885796 | P140: 0 | Q140: 0 | R140: 4 | S140: 0.0001039852341 | T140: 0 | U140: 0 | V140: 0 | W140: 0
A141: sq137 | B141: Archaea | C141: Thermoproteota | D141: Bathyarchaeia | E141: B26-1 | F141: BA1 | G141: BIN-L-1 | H141: 25 | I141: 0.0006830601093 | J141: 19 | K141: 0.0008532423208 | L141: 11 | M141: 0.0004888671615 | N141: 23 | O141: 0.0006840352129 | P141: 0 | Q141: 0 | R141: 0 | S141: 0 | T141: 0 | U141: 0 | V141: 0 | W141: 0
A142: sq138 | B142: Archaea | C142: Thermoproteota | D142: Bathyarchaeia | E142: B26-1 | F142: BA1 | G142: SOJZ01 | H142: 70 | I142: 0.001912568306 | J142: 4 | K142: 0.0001796299623 | L142: 26 | M142: 0.0011555042 | N142: 25 | O142: 0.0007435165358 | P142: 1 | Q142: 1.834559431e-05 | R142: 6 | S142: 0.0001559778511 | T142: 3 | U142: 2.590181485e-05 | V142: 0 | W142: 0
A143: sq139 | B143: Archaea | C143: Halobacteriota | D143: Syntropharchaeia | E143: ANME-1 | F143: ANME-1 | G143: JACGMN01 | H143: 27 | I143: 0.000737704918 | J143: 39 | K143: 0.001751392132 | L143: 17 | M143: 0.0007555219768 | N143: 76 | O143: 0.002260290269 | P143: 4 | Q143: 7.338237722e-05 | R143: 2 | S143: 5.199261705e-05 | T143: 4 | U143: 3.453575314e-05 | V143: 9 | W143: 0.0001719493323
A144: sq140 | B144: Archaea | C144: Asgardarchaeota | D144: Lokiarchaeia | E144: CR-4 | F144: MK-D1 | G144: Prometheoarchaeum | H144: 0 | I144: 0 | J144: 0 | K144: 0 | L144: 0 | M144: 0 | N144: 0 | O144: 0 | P144: 0 | Q144: 0 | R144: 0 | S144: 0 | T144: 35 | U144: 0.00030218784 | V144: 130 | W144: 0.002483712577
A145: sq141 | B145: Archaea | C145: Thermoproteota | D145: Bathyarchaeia | E145: B26-1 | F145: BA1 | G145: Kmv02 | H145: 22 | I145: 0.0006010928962 | J145: 15 | K145: 0.0006736123585 | L145: 9 | M145: 0.000399982223 | N145: 10 | O145: 0.0002974066143 | P145: 2 | Q145: 3.669118861e-05 | R145: 1 | S145: 2.599630852e-05 | T145: 1 | U145: 8.633938285e-06 | V145: 0 | W145: 0
A146: sq142 | B146: Archaea | C146: Thermoplasmatota | D146: E2 | E146: DHVEG-1 | F146: DHVEG-1 | G146: M9B1D | H146: 28 | I146: 0.0007650273224 | J146: 20 | K146: 0.0008981498114 | L146: 23 | M146: 0.001022176792 | N146: 121 | O146: 0.003598620033 | P146: 3 | Q146: 5.503678292e-05 | R146: 12 | S146: 0.0003119557023 | T146: 5 | U146: 4.316969142e-05 | V146: 7 | W146: 0.0001337383695
A147: sq143 | B147: Archaea | C147: Halobacteriota | D147: Syntropharchaeia | E147: ANME-1 | F147: ANME-1 | G147: JACGMN01 | H147: 87 | I147: 0.00237704918 | J147: 0 | K147: 0 | L147: 30 | M147: 0.001333274077 | N147: 53 | O147: 0.001576255056 | P147: 0 | Q147: 0 | R147: 15 | S147: 0.0003899446279 | T147: 1 | U147: 8.633938285e-06 | V147: 0 | W147: 0
A148: sq144 | B148: Archaea | C148: Thermoplasmatota | D148: E2 | E148: DHVEG-1 | F148: DHVEG-1 | G148: M9B1D | H148: 33 | I148: 0.0009016393443 | J148: 26 | K148: 0.001167594755 | L148: 34 | M148: 0.001511043954 | N148: 118 | O148: 0.003509398049 | P148: 3 | Q148: 5.503678292e-05 | R148: 19 | S148: 0.000493929862 | T148: 2 | U148: 1.726787657e-05 | V148: 3 | W148: 5.731644409e-05
A149: sq145 | B149: Archaea | C149: Thermoproteota | D149: Bathyarchaeia | E149: B26-1 | F149: SOJC01 | G149: SOJC01 | H149: 47 | I149: 0.001284153005 | J149: 38 | K149: 0.001706484642 | L149: 60 | M149: 0.002666548153 | N149: 31 | O149: 0.0009219605044 | P149: 1 | Q149: 1.834559431e-05 | R149: 4 | S149: 0.0001039852341 | T149: 0 | U149: 0 | V149: 6 | W149: 0.0001146328882
A150: sq146 | B150: Archaea | C150: Asgardarchaeota | D150: Heimdallarchaeia | E150: Hodarchaeales | F150: Hodarchaeaceae | G150: Hodarchaeum | H150: 53 | I150: 0.001448087432 | J150: 67 | K150: 0.003008801868 | L150: 41 | M150: 0.001822141238 | N150: 102 | O150: 0.003033547466 | P150: 2 | Q150: 3.669118861e-05 | R150: 9 | S150: 0.0002339667767 | T150: 0 | U150: 0 | V150: 8 | W150: 0.0001528438509
A151: sq147 | B151: Archaea | C151: Thermoproteota | D151: Nitrososphaeria | E151: Nitrososphaerales | F151: Nitrososphaeraceae | G151: NA | H151: 14 | I151: 0.0003825136612 | J151: 27 | K151: 0.001212502245 | L151: 15 | M151: 0.0006666370384 | N151: 16 | O151: 0.0004758505829 | P151: 0 | Q151: 0 | R151: 1 | S151: 2.599630852e-05 | T151: 0 | U151: 0 | V151: 0 | W151: 0
A152: sq148 | B152: Archaea | C152: Thermoproteota | D152: Bathyarchaeia | E152: B26-1 | F152: NA | G152: NA | H152: 27 | I152: 0.000737704918 | J152: 27 | K152: 0.001212502245 | L152: 21 | M152: 0.0009332918537 | N152: 30 | O152: 0.000892219843 | P152: 3 | Q152: 5.503678292e-05 | R152: 5 | S152: 0.0001299815426 | T152: 0 | U152: 0 | V152: 0 | W152: 0
A153: sq149 | B153: Archaea | C153: Thermoplasmatota | D153: E2 | E153: DHVEG-1 | F153: DHVEG-1 | G153: SG8-52-3 | H153: 11 | I153: 0.0003005464481 | J153: 1 | K153: 4.490749057e-05 | L153: 0 | M153: 0 | N153: 27 | O153: 0.0008029978587 | P153: 2 | Q153: 3.669118861e-05 | R153: 1 | S153: 2.599630852e-05 | T153: 0 | U153: 0 | V153: 0 | W153: 0
A154: sq150 | B154: Archaea | C154: Asgardarchaeota | D154: Lokiarchaeia | E154: CR-4 | F154: MK-D1 | G154: Prometheoarchaeum | H154: 0 | I154: 0 | J154: 0 | K154: 0 | L154: 0 | M154: 0 | N154: 0 | O154: 0 | P154: 0 | Q154: 0 | R154: 0 | S154: 0 | T154: 18 | U154: 0.0001554108891 | V154: 132 | W154: 0.00252192354
A155: sq151 | B155: Archaea | C155: Thermoproteota | D155: Bathyarchaeia | E155: B26-1 | F155: NA | G155: NA | H155: 52 | I155: 0.001420765027 | J155: 42 | K155: 0.001886114604 | L155: 30 | M155: 0.001333274077 | N155: 29 | O155: 0.0008624791815 | P155: 2 | Q155: 3.669118861e-05 | R155: 1 | S155: 2.599630852e-05 | T155: 1 | U155: 8.633938285e-06 | V155: 0 | W155: 0
A156: sq152 | B156: Archaea | C156: Halobacteriota | D156: Methanosarcinia | E156: Methanosarcinales | F156: Methanocomedenaceae | G156: Methanocomedens | H156: 1 | I156: 2.732240437e-05 | J156: 0 | K156: 0 | L156: 11 | M156: 0.0004888671615 | N156: 3 | O156: 8.92219843e-05 | P156: 0 | Q156: 0 | R156: 0 | S156: 0 | T156: 0 | U156: 0 | V156: 0 | W156: 0
A157: sq153 | B157: Archaea | C157: Thermoproteota | D157: Nitrososphaeria | E157: Nitrososphaerales | F157: Nitrososphaeraceae | G157: Nitrosocosmicus | H157: 9 | I157: 0.0002459016393 | J157: 0 | K157: 0 | L157: 15 | M157: 0.0006666370384 | N157: 2 | O157: 5.948132286e-05 | P157: 1 | Q157: 1.834559431e-05 | R157: 1 | S157: 2.599630852e-05 | T157: 0 | U157: 0 | V157: 5 | W157: 9.552740681e-05
A158: sq154 | B158: Archaea | C158: Thermoproteota | D158: Bathyarchaeia | E158: B26-1 | F158: BA1 | G158: SOJZ01 | H158: 49 | I158: 0.001338797814 | J158: 41 | K158: 0.001841207113 | L158: 23 | M158: 0.001022176792 | N158: 28 | O158: 0.0008327385201 | P158: 0 | Q158: 0 | R158: 1 | S158: 2.599630852e-05 | T158: 0 | U158: 0 | V158: 0 | W158: 0
A159: sq155 | B159: Archaea | C159: Thermoproteota | D159: Bathyarchaeia | E159: B26-1 | F159: BA1 | G159: BIN-L-1 | H159: 16 | I159: 0.0004371584699 | J159: 10 | K159: 0.0004490749057 | L159: 14 | M159: 0.0006221945691 | N159: 10 | O159: 0.0002974066143 | P159: 0 | Q159: 0 | R159: 1 | S159: 2.599630852e-05 | T159: 0 | U159: 0 | V159: 0 | W159: 0
A160: sq156 | B160: Archaea | C160: Asgardarchaeota | D160: Heimdallarchaeia | E160: Hodarchaeales | F160: Hodarchaeaceae | G160: Hodarchaeum | H160: 36 | I160: 0.0009836065574 | J160: 82 | K160: 0.003682414227 | L160: 81 | M160: 0.003599840007 | N160: 91 | O160: 0.00270640019 | P160: 3 | Q160: 5.503678292e-05 | R160: 11 | S160: 0.0002859593938 | T160: 0 | U160: 0 | V160: 1 | W160: 1.910548136e-05
A161: sq157 | B161: Archaea | C161: Thermoproteota | D161: Nitrososphaeria | E161: Nitrososphaerales | F161: NA | G161: NA | H161: 31 | I161: 0.0008469945355 | J161: 0 | K161: 0 | L161: 11 | M161: 0.0004888671615 | N161: 19 | O161: 0.0005650725672 | P161: 0 | Q161: 0 | R161: 3 | S161: 7.798892557e-05 | T161: 0 | U161: 0 | V161: 1 | W161: 1.910548136e-05
A162: sq158 | B162: Archaea | C162: Thermoproteota | D162: Bathyarchaeia | E162: B26-1 | F162: BA1 | G162: BIN-L-1 | H162: 23 | I162: 0.0006284153005 | J162: 8 | K162: 0.0003592599246 | L162: 30 | M162: 0.001333274077 | N162: 21 | O162: 0.0006245538901 | P162: 0 | Q162: 0 | R162: 0 | S162: 0 | T162: 0 | U162: 0 | V162: 9 | W162: 0.0001719493323
A163: sq159 | B163: Archaea | C163: Thermoproteota | D163: Bathyarchaeia | E163: B26-1 | F163: BA1 | G163: NA | H163: 34 | I163: 0.0009289617486 | J163: 56 | K163: 0.002514819472 | L163: 43 | M163: 0.001911026177 | N163: 20 | O163: 0.0005948132286 | P163: 1 | Q163: 1.834559431e-05 | R163: 4 | S163: 0.0001039852341 | T163: 0 | U163: 0 | V163: 0 | W163: 0
A164: sq160 | B164: Archaea | C164: Thermoproteota | D164: Bathyarchaeia | E164: B26-1 | F164: BA1 | G164: SOJZ01 | H164: 61 | I164: 0.001666666667 | J164: 0 | K164: 0 | L164: 14 | M164: 0.0006221945691 | N164: 49 | O164: 0.00145729241 | P164: 2 | Q164: 3.669118861e-05 | R164: 6 | S164: 0.0001559778511 | T164: 2 | U164: 1.726787657e-05 | V164: 0 | W164: 0
A165: sq161 | B165: Archaea | C165: Nanoarchaeota | D165: Nanoarchaeia | E165: Pacearchaeales | F165: GW2011-AR1 | G165: NA | H165: 23 | I165: 0.0006284153005 | J165: 1 | K165: 4.490749057e-05 | L165: 11 | M165: 0.0004888671615 | N165: 12 | O165: 0.0003568879372 | P165: 0 | Q165: 0 | R165: 1 | S165: 2.599630852e-05 | T165: 1 | U165: 8.633938285e-06 | V165: 12 | W165: 0.0002292657764
A166: sq162 | B166: Archaea | C166: Thermoplasmatota | D166: E2 | E166: DHVEG-1 | F166: DHVEG-1 | G166: NA | H166: 15 | I166: 0.0004098360656 | J166: 34 | K166: 0.001526854679 | L166: 14 | M166: 0.0006221945691 | N166: 87 | O166: 0.002587437545 | P166: 7 | Q166: 0.0001284191601 | R166: 11 | S166: 0.0002859593938 | T166: 1 | U166: 8.633938285e-06 | V166: 3 | W166: 5.731644409e-05
A167: sq163 | B167: Archaea | C167: Nanoarchaeota | D167: Nanoarchaeia | E167: Pacearchaeales | F167: GW2011-AR1 | G167: ASMP01 | H167: 6 | I167: 0.0001639344262 | J167: 26 | K167: 0.001167594755 | L167: 3 | M167: 0.0001333274077 | N167: 1 | O167: 2.974066143e-05 | P167: 0 | Q167: 0 | R167: 3 | S167: 7.798892557e-05 | T167: 0 | U167: 0 | V167: 0 | W167: 0
A168: sq164 | B168: Archaea | C168: Halobacteriota | D168: Syntropharchaeia | E168: ANME-1 | F168: ANME-1 | G168: JACGMN01 | H168: 26 | I168: 0.0007103825137 | J168: 46 | K168: 0.002065744566 | L168: 12 | M168: 0.0005333096307 | N168: 19 | O168: 0.0005650725672 | P168: 0 | Q168: 0 | R168: 2 | S168: 5.199261705e-05 | T168: 0 | U168: 0 | V168: 0 | W168: 0
A169: sq165 | B169: Archaea | C169: Asgardarchaeota | D169: Lokiarchaeia | E169: CR-4 | F169: SOKP01 | G169: SOKP01 | H169: 118 | I169: 0.003224043716 | J169: 9 | K169: 0.0004041674151 | L169: 8 | M169: 0.0003555397538 | N169: 18 | O169: 0.0005353319058 | P169: 0 | Q169: 0 | R169: 9 | S169: 0.0002339667767 | T169: 1 | U169: 8.633938285e-06 | V169: 2 | W169: 3.821096273e-05
A170: sq166 | B170: Archaea | C170: NA | D170: NA | E170: NA | F170: NA | G170: NA | H170: 8 | I170: 0.000218579235 | J170: 4 | K170: 0.0001796299623 | L170: 15 | M170: 0.0006666370384 | N170: 36 | O170: 0.001070663812 | P170: 0 | Q170: 0 | R170: 4 | S170: 0.0001039852341 | T170: 2 | U170: 1.726787657e-05 | V170: 0 | W170: 0
A171: sq167 | B171: Archaea | C171: Halobacteriota | D171: Methanosarcinia | E171: Methanotrichales | F171: Methanotrichaceae | G171: Methanothrix_A | H171: 27 | I171: 0.000737704918 | J171: 8 | K171: 0.0003592599246 | L171: 28 | M171: 0.001244389138 | N171: 12 | O171: 0.0003568879372 | P171: 0 | Q171: 0 | R171: 5 | S171: 0.0001299815426 | T171: 0 | U171: 0 | V171: 0 | W171: 0
A172: sq168 | B172: Archaea | C172: Asgardarchaeota | D172: Lokiarchaeia | E172: CR-4 | F172: MK-D1 | G172: Prometheoarchaeum | H172: 0 | I172: 0 | J172: 0 | K172: 0 | L172: 0 | M172: 0 | N172: 0 | O172: 0 | P172: 0 | Q172: 0 | R172: 0 | S172: 0 | T172: 62 | U172: 0.0005353041736 | V172: 70 | W172: 0.001337383695
A173: sq169 | B173: Archaea | C173: Thermoplasmatota | D173: E2 | E173: DHVEG-1 | F173: DHVEG-1 | G173: NA | H173: 33 | I173: 0.0009016393443 | J173: 18 | K173: 0.0008083348302 | L173: 13 | M173: 0.0005777520999 | N173: 78 | O173: 0.002319771592 | P173: 9 | Q173: 0.0001651103487 | R173: 42 | S173: 0.001091844958 | T173: 4 | U173: 3.453575314e-05 | V173: 12 | W173: 0.0002292657764
A174: sq170 | B174: Archaea | C174: Thermoproteota | D174: Bathyarchaeia | E174: TCS64 | F174: TCS64 | G174: RBG-16-57-9 | H174: 16 | I174: 0.0004371584699 | J174: 0 | K174: 0 | L174: 11 | M174: 0.0004888671615 | N174: 19 | O174: 0.0005650725672 | P174: 4 | Q174: 7.338237722e-05 | R174: 14 | S174: 0.0003639483193 | T174: 0 | U174: 0 | V174: 3 | W174: 5.731644409e-05
A175: sq171 | B175: Archaea | C175: Halobacteriota | D175: Methanosarcinia | E175: Methanosarcinales | F175: Methanocomedenaceae | G175: NA | H175: 0 | I175: 0 | J175: 2 | K175: 8.981498114e-05 | L175: 0 | M175: 0 | N175: 1 | O175: 2.974066143e-05 | P175: 0 | Q175: 0 | R175: 0 | S175: 0 | T175: 0 | U175: 0 | V175: 0 | W175: 0
A176: sq172 | B176: Archaea | C176: Asgardarchaeota | D176: Lokiarchaeia | E176: CR-4 | F176: MK-D1 | G176: Prometheoarchaeum | H176: 0 | I176: 0 | J176: 0 | K176: 0 | L176: 0 | M176: 0 | N176: 2 | O176: 5.948132286e-05 | P176: 44 | Q176: 0.0008072061494 | R176: 307 | S176: 0.007980866717 | T176: 45 | U176: 0.0003885272228 | V176: 71 | W176: 0.001356489177
A177: sq173 | B177: Archaea | C177: Altiarchaeota | D177: Altiarchaeia | E177: IMC4 | F177: MCBC01 | G177: MCBC01 | H177: 0 | I177: 0 | J177: 0 | K177: 0 | L177: 0 | M177: 0 | N177: 0 | O177: 0 | P177: 0 | Q177: 0 | R177: 0 | S177: 0 | T177: 0 | U177: 0 | V177: 0 | W177: 0
A178: sq174 | B178: Archaea | C178: Thermoproteota | D178: NA | E178: NA | F178: NA | G178: NA | H178: 32 | I178: 0.0008743169399 | J178: 34 | K178: 0.001526854679 | L178: 28 | M178: 0.001244389138 | N178: 19 | O178: 0.0005650725672 | P178: 0 | Q178: 0 | R178: 2 | S178: 5.199261705e-05 | T178: 1 | U178: 8.633938285e-06 | V178: 0 | W178: 0
A179: sq175 | B179: Archaea | C179: Thermoplasmatota | D179: E2 | E179: DHVEG-1 | F179: DHVEG-1 | G179: SG8-52-3 | H179: 52 | I179: 0.001420765027 | J179: 37 | K179: 0.001661577151 | L179: 85 | M179: 0.003777609884 | N179: 189 | O179: 0.005620985011 | P179: 2 | Q179: 3.669118861e-05 | R179: 10 | S179: 0.0002599630852 | T179: 0 | U179: 0 | V179: 1 | W179: 1.910548136e-05
A180: sq176 | B180: Archaea | C180: Micrarchaeota | D180: Micrarchaeia | E180: Anstonellales | F180: Bilamarchaeaceae | G180: Bilamarchaeum | H180: 4 | I180: 0.0001092896175 | J180: 0 | K180: 0 | L180: 3 | M180: 0.0001333274077 | N180: 7 | O180: 0.00020818463 | P180: 1 | Q180: 1.834559431e-05 | R180: 1 | S180: 2.599630852e-05 | T180: 0 | U180: 0 | V180: 2 | W180: 3.821096273e-05
A181: sq177 | B181: Archaea | C181: Thermoproteota | D181: Bathyarchaeia | E181: B26-1 | F181: BA1 | G181: NA | H181: 34 | I181: 0.0009289617486 | J181: 6 | K181: 0.0002694449434 | L181: 30 | M181: 0.001333274077 | N181: 20 | O181: 0.0005948132286 | P181: 0 | Q181: 0 | R181: 1 | S181: 2.599630852e-05 | T181: 0 | U181: 0 | V181: 0 | W181: 0
A182: sq178 | B182: Archaea | C182: Asgardarchaeota | D182: Lokiarchaeia | E182: CR-4 | F182: MK-D1 | G182: Prometheoarchaeum | H182: 11 | I182: 0.0003005464481 | J182: 0 | K182: 0 | L182: 4 | M182: 0.0001777698769 | N182: 29 | O182: 0.0008624791815 | P182: 0 | Q182: 0 | R182: 2 | S182: 5.199261705e-05 | T182: 0 | U182: 0 | V182: 0 | W182: 0
A183: sq179 | B183: Archaea | C183: Thermoproteota | D183: Bathyarchaeia | E183: B26-1 | F183: BA1 | G183: NA | H183: 13 | I183: 0.0003551912568 | J183: 0 | K183: 0 | L183: 3 | M183: 0.0001333274077 | N183: 2 | O183: 5.948132286e-05 | P183: 2 | Q183: 3.669118861e-05 | R183: 0 | S183: 0 | T183: 0 | U183: 0 | V183: 2 | W183: 3.821096273e-05
A184: sq180 | B184: Archaea | C184: Thermoproteota | D184: Nitrososphaeria | E184: Nitrososphaerales | F184: Nitrososphaeraceae | G184: Nitrosocosmicus | H184: 5 | I184: 0.0001366120219 | J184: 17 | K184: 0.0007634273397 | L184: 18 | M184: 0.000799964446 | N184: 5 | O184: 0.0001487033072 | P184: 1 | Q184: 1.834559431e-05 | R184: 0 | S184: 0 | T184: 0 | U184: 0 | V184: 0 | W184: 0
A185: sq181 | B185: Archaea | C185: Thermoproteota | D185: Bathyarchaeia | E185: TCS64 | F185: TCS64 | G185: RBG-16-57-9 | H185: 12 | I185: 0.0003278688525 | J185: 0 | K185: 0 | L185: 4 | M185: 0.0001777698769 | N185: 19 | O185: 0.0005650725672 | P185: 0 | Q185: 0 | R185: 1 | S185: 2.599630852e-05 | T185: 0 | U185: 0 | V185: 0 | W185: 0
A186: sq182 | B186: Archaea | C186: Nanohaloarchaeota | D186: Nanosalinia | E186: Nanosalinales | F186: JAFCCC01 | G186: JAFCCC01 | H186: 138 | I186: 0.003770491803 | J186: 101 | K186: 0.004535656548 | L186: 65 | M186: 0.0028887605 | N186: 81 | O186: 0.002408993576 | P186: 3 | Q186: 5.503678292e-05 | R186: 1 | S186: 2.599630852e-05 | T186: 2 | U186: 1.726787657e-05 | V186: 0 | W186: 0
A187: sq183 | B187: Archaea | C187: Thermoplasmatota | D187: E2 | E187: DHVEG-1 | F187: DHVEG-1 | G187: JAJISJ01 | H187: 20 | I187: 0.0005464480874 | J187: 18 | K187: 0.0008083348302 | L187: 29 | M187: 0.001288831607 | N187: 72 | O187: 0.002141327623 | P187: 5 | Q187: 9.172797153e-05 | R187: 12 | S187: 0.0003119557023 | T187: 0 | U187: 0 | V187: 9 | W187: 0.0001719493323
A188: sq184 | B188: Archaea | C188: Thermoplasmatota | D188: JAEHCK01 | E188: JAEHCK01 | F188: JAEHCK01 | G188: JAEHCK01 | H188: 53 | I188: 0.001448087432 | J188: 44 | K188: 0.001975929585 | L188: 72 | M188: 0.003199857784 | N188: 114 | O188: 0.003390435403 | P188: 7 | Q188: 0.0001284191601 | R188: 42 | S188: 0.001091844958 | T188: 4 | U188: 3.453575314e-05 | V188: 0 | W188: 0
A189: sq185 | B189: Archaea | C189: Thermoproteota | D189: Bathyarchaeia | E189: TCS64 | F189: TCS64 | G189: RBG-16-57-9 | H189: 22 | I189: 0.0006010928962 | J189: 0 | K189: 0 | L189: 20 | M189: 0.0008888493845 | N189: 17 | O189: 0.0005055912443 | P189: 0 | Q189: 0 | R189: 7 | S189: 0.0001819741597 | T189: 0 | U189: 0 | V189: 0 | W189: 0
A190: sq186 | B190: Archaea | C190: Thermoproteota | D190: Bathyarchaeia | E190: B26-1 | F190: NA | G190: NA | H190: 8 | I190: 0.000218579235 | J190: 24 | K190: 0.001077779774 | L190: 19 | M190: 0.0008444069152 | N190: 18 | O190: 0.0005353319058 | P190: 0 | Q190: 0 | R190: 2 | S190: 5.199261705e-05 | T190: 0 | U190: 0 | V190: 0 | W190: 0
A191: sq187 | B191: Archaea | C191: NA | D191: NA | E191: NA | F191: NA | G191: NA | H191: 22 | I191: 0.0006010928962 | J191: 24 | K191: 0.001077779774 | L191: 4 | M191: 0.0001777698769 | N191: 24 | O191: 0.0007137758744 | P191: 1 | Q191: 1.834559431e-05 | R191: 1 | S191: 2.599630852e-05 | T191: 0 | U191: 0 | V191: 2 | W191: 3.821096273e-05
A192: sq188 | B192: Archaea | C192: Thermoplasmatota | D192: E2 | E192: DHVEG-1 | F192: DHVEG-1 | G192: SM1-50 | H192: 33 | I192: 0.0009016393443 | J192: 21 | K192: 0.000943057302 | L192: 19 | M192: 0.0008444069152 | N192: 76 | O192: 0.002260290269 | P192: 1 | Q192: 1.834559431e-05 | R192: 17 | S192: 0.0004419372449 | T192: 0 | U192: 0 | V192: 9 | W192: 0.0001719493323
A193: sq189 | B193: Archaea | C193: Nanoarchaeota | D193: Nanoarchaeia | E193: Pacearchaeales | F193: GW2011-AR1 | G193: ASMP01 | H193: 30 | I193: 0.0008196721311 | J193: 49 | K193: 0.002200467038 | L193: 23 | M193: 0.001022176792 | N193: 46 | O193: 0.001368070426 | P193: 2 | Q193: 3.669118861e-05 | R193: 3 | S193: 7.798892557e-05 | T193: 1 | U193: 8.633938285e-06 | V193: 0 | W193: 0
A194: sq190 | B194: Archaea | C194: Thermoplasmatota | D194: E2 | E194: DHVEG-1 | F194: DHVEG-1 | G194: JAJISJ01 | H194: 33 | I194: 0.0009016393443 | J194: 17 | K194: 0.0007634273397 | L194: 47 | M194: 0.002088796054 | N194: 181 | O194: 0.005383059719 | P194: 0 | Q194: 0 | R194: 3 | S194: 7.798892557e-05 | T194: 1 | U194: 8.633938285e-06 | V194: 2 | W194: 3.821096273e-05
A195: sq191 | B195: Archaea | C195: Thermoplasmatota | D195: E2 | E195: DHVEG-1 | F195: DHVEG-1 | G195: SG8-52-3 | H195: 28 | I195: 0.0007650273224 | J195: 4 | K195: 0.0001796299623 | L195: 23 | M195: 0.001022176792 | N195: 85 | O195: 0.002527956222 | P195: 4 | Q195: 7.338237722e-05 | R195: 15 | S195: 0.0003899446279 | T195: 3 | U195: 2.590181485e-05 | V195: 0 | W195: 0
A196: sq192 | B196: Archaea | C196: Asgardarchaeota | D196: Lokiarchaeia | E196: CR-4 | F196: MK-D1 | G196: Prometheoarchaeum | H196: 0 | I196: 0 | J196: 0 | K196: 0 | L196: 0 | M196: 0 | N196: 0 | O196: 0 | P196: 0 | Q196: 0 | R196: 0 | S196: 0 | T196: 53 | U196: 0.0004575987291 | V196: 85 | W196: 0.001623965916
A197: sq193 | B197: Archaea | C197: Nanoarchaeota | D197: Nanoarchaeia | E197: Pacearchaeales | F197: GW2011-AR1 | G197: NA | H197: 37 | I197: 0.001010928962 | J197: 15 | K197: 0.0006736123585 | L197: 15 | M197: 0.0006666370384 | N197: 21 | O197: 0.0006245538901 | P197: 1 | Q197: 1.834559431e-05 | R197: 11 | S197: 0.0002859593938 | T197: 1 | U197: 8.633938285e-06 | V197: 3 | W197: 5.731644409e-05
A198: sq194 | B198: Archaea | C198: Thermoproteota | D198: NA | E198: NA | F198: NA | G198: NA | H198: 14 | I198: =H198/SUM(H$5:H$1146) -> 0.0003825136612 | J198: 72 | K198: =J198/SUM(J$5:J$1146) -> 0.003233339321 | L198: 3 | M198: =L198/SUM(L$5:L$1146) -> 0.0001333274077 | N198: 8 | O198: =N198/SUM(N$5:N$1146) -> 0.0002379252915 | P198: 3 | Q198: =P198/SUM(P$5:P$1146) -> 5.503678292e-05 | R198: 0 | S198: =R198/SUM(R$5:R$1146) -> 0 | T198: 0 | U198: =T198/SUM(T$5:T$1146) -> 0 | V198: 3 | W198: =V198/SUM(V$5:V$1146) -> 5.731644409e-05
A199: sq195 | B199: Archaea | C199: Thermoproteota | D199: Bathyarchaeia | E199: B26-1 | F199: NA | G199: NA | H199: 22 | I199: 0.0006010928962 | J199: 51 | K199: 0.002290282019 | L199: 5 | M199: 0.0002222123461 | N199: 22 | O199: 0.0006542945515 | P199: 0 | Q199: 0 | R199: 8 | S199: 0.0002079704682 | T199: 0 | U199: 0 | V199: 0 | W199: 0
A200: sq196 | B200: Archaea | C200: Thermoplasmatota | D200: Thermoplasmata | E200: NA | F200: NA | G200: NA | H200: 2 | I200: 5.464480874e-05 | J200: 0 | K200: 0 | L200: 4 | M200: 0.0001777698769 | N200: 8 | O200: 0.0002379252915 | P200: 0 | Q200: 0 | R200: 0 | S200: 0 | T200: 0 | U200: 0 | V200: 0 | W200: 0
A201: sq197 | B201: Archaea | C201: Thermoproteota | D201: Bathyarchaeia | E201: NA | F201: NA | G201: NA | H201: 20 | I201: 0.0005464480874 | J201: 27 | K201: 0.001212502245 | L201: 9 | M201: 0.000399982223 | N201: 6 | O201: 0.0001784439686 | P201: 0 | Q201: 0 | R201: 1 | S201: 2.599630852e-05 | T201: 0 | U201: 0 | V201: 0 | W201: 0
... 945 more rows

Sheet S2
A1: S2. Top hits of a megablast search of the EX4484-6 ASV sq2 and 16S rRNA gene obtained from the EX4484-6 MAG E3_1_d157 against the rRNA/ITS database of the NCBI RefSeq Targeted Loci Project
B3: Description | C3: Query Cover | D3: E value | E3: Per. Ident | F3: Acc Len | G3: Accession
A4: EX4484-6 ASV sq2 | B4: Methanomassiliicoccus luminyensis B10 16S ribosomal RNA, partial sequence | C4: 100% | D4: 5.00E-72 | E4: 83.86% | F4: 1434 | G4: NR_118098.1
B5: Methanosarcina semesiae strain MD1 16S ribosomal RNA, partial sequence | C5: 99% | D5: 4.00E-67 | E5: 83.07% | F5: 1449 | G5: NR_028182.1
B6: Thermococcus gammatolerans EJ3 16S ribosomal RNA, complete sequence | C6: 100% | D6: 2.00E-65 | E6: 81.89% | F6: 1539 | G6: NR_074867.1
A7: E3_1_d157 MAG | B7: Methanomassiliicoccus luminyensis B10 16S ribosomal RNA, partial sequence | C7: 97% | D7: 0 | E7: 84.17% | F7: 1434 | G7: NR_118098.1
B8: Cuniculiplasma divulgatum strain S5 16S ribosomal RNA, partial sequence | C8: 99% | D8: 0 | E8: 80.62% | F8: 1469 | G8: NR_144620.1
B9: Thermoplasma volcanium strain GSS1 16S ribosomal RNA, complete sequence | C9: 99% | D9: 0 | E9: 80.45% | F9: 1474 | G9: NR_074223.1

Sheet S3
A1: S3. Overview list of metagenomic studies, in which EX4484-6 MAGs had a coverage >2. These studies were used to reconstruct EX4484-6 MAGs
B3: mean coverage | N3: found through metaG mining
A4: study_accession | B4: E3_1_d157 | C4: GCA_003650025.1 | D4: GCA_003663595.1 | E4: GCA_016928095.1 | F4: GCA_023145185.1 | G4: mean_coverage_sum | H4: # samples in study with read count >1000 | I4: # samples in study with read count < 1000 | J4: total # samples in filtered study | K4: total # samples in study w/o filtering | L4: any MAGs published on ENA? | M4: # MAGs published on ENA | N4: EX4484-6_MAGs
A5: PRJNA656268 | B5: 0.1037485415 | C5: 1.231471246 | D5: 0.3057720336 | E5: 0.4228310771 | F5: 29.84148953 | G5: 31.90531243 | H5: 427 | I5: 150 | J5: =SUM(H5:I5) -> 577 | K5: 971 | L5: no | M5: 0 | N5: 0
A6: PRJNA713414 | B6: 0.1152310995 | C6: 28.04221439 | D6: 2.824844958 | E6: 0.0229641308 | F6: 0.0289786839 | G6: 31.03423326 | H6: 8 | I6: 0 | J6: 8 | K6: 8 | L6: yes | M6: 325 | N6: 3 | O6: EX4484-6 MAGs found were already present in the MAGs retrieved from ENA
A7: PRJNA545144 | B7: 0.6037717015 | C7: 27.69625626 | D7: 2.03178623 | E7: 0.000571774823 | F7: 0.005208673544 | G7: 30.33759464 | H7: 36 | I7: 0 | J7: 36 | K7: 92 | L7: no | M7: 0
A8: PRJNA707313 | B8: 0.723222212 | C8: 8.791158626 | D8: 0.3620244458 | E8: 0.3137447072 | F8: 19.5787751 | G8: 29.76892509 | H8: 22 | I8: 1 | J8: 23 | K8: 23 | L8: yes | M8: 768 | N8: 1 | O8: EX4484-6 MAGs found were already present in the MAGs retrieved from ENA
A9: PRJNA666025 | B9: 0.5298890587 | C9: 23.11343512 | D9: 1.028491244 | E9: 0.4430201228 | F9: 0.7315175362 | G9: 25.84635308 | H9: 56 | I9: 34 | J9: 90 | K9: 91 | L9: yes | M9: 3012 | N9: 0
A10: PRJNA504027 | B10: 0.01606062904 | C10: 0.2828023865 | D10: 0.04326869768 | E10: 0.0689499297 | F10: 16.67970493 | G10: 17.09078657 | H10: 17 | I10: 0 | J10: 17 | K10: 17 | L10: yes | M10: 11 | N10: 0
A11: PRJEB9136 | B11: 0.1867762504 | C11: 15.73743724 | D11: 0.5892289245 | E11: 0.00516970747 | F11: 0.06646052641 | G11: 16.58507265 | H11: 8 | I11: 2 | J11: 10 | K11: 10 | L11: no | M11: 0 | N11: 0
A12: PRJEB38290 | B12: 0.07557046806 | C12: 0.08166027794 | D12: 0.1352680686 | E12: 0.6732587363 | F12: 11.27900811 | G12: 12.24476566 | H12: 140 | I12: 88 | J12: 228 | K12: 308 | L12: yes | M12: 276 | N12: 0
A13: PRJNA368391 | B13: 0.016712284 | C13: 7.6918826 | D13: 3.98302 | E13: 0.012949081 | F13: 0.017503249 | G13: 11.72206721 | H13: 1 | I13: 0 | J13: 1 | K13: 1 | L13: no | M13: 0 | N13: 2
A14: PRJNA889212 | B14: 9.224992 | C14: 0.057909193 | D14: 0.051809365 | E14: 0.188707272 | F14: 0.059545618 | G14: 9.582963448 | H14: 4 | I14: 0 | J14: 4 | K14: 4 | L14: yes | M14: 1 | N14: 2
A15: PRJNA704804 | B15: 0.04289560173 | C15: 0.656185352 | D15: 0.07917582122 | E15: 0.1080168943 | F15: 8.240691435 | G15: 9.126965104 | H15: 29 | I15: 1 | J15: 30 | K15: 30 | L15: yes | M15: 30 | N15: 1
A16: PRJNA704702 | B16: 0.000102593856 | C16: 0.00506142065 | D16: 0.01161890227 | E16: 0.05638203176 | F16: 6.216906794 | G16: 6.290071743 | H16: 5 | I16: 7 | J16: 12 | K16: 12 | L16: no | M16: 0 | N16: 0
A17: PRJNA350692 | B17: 0.01612087767 | C17: 0.1518356373 | D17: 0.02900778735 | E17: 0.0508987473 | F17: 5.94750645 | G17: 6.1953695 | H17: 14 | I17: 0 | J17: 14 | K17: 14 | L17: yes | M17: 29 | N17: 0
A18: PRJNA385854 | B18: 0.1162720973 | C18: 2.76921976 | D18: 0.1372931507 | E18: 0.08855928929 | F18: 2.706153298 | G18: 5.817497596 | H18: 39 | I18: 431 | J18: 470 | K18: 480 | L18: no | M18: 0 | N18: 0
A19: PRJEB87662 | B19: 0.009673947599 | C19: 0.2137143939 | D19: 0.08259674297 | E19: 0.07646391401 | F19: 5.396427807 | G19: 5.778876805 | H19: 36 | I19: 14 | J19: 50 | K19: 50 | L19: no | M19: 0 | N19: 0
A20: PRJNA541421 | B20: 4.414057144 | C20: 0.08469004976 | D20: 0.09287136962 | E20: 0.4052786654 | F20: 0.1725634967 | G20: 5.169460726 | H20: 45 | I20: 0 | J20: 45 | K20: 45 | L20: no | M20: 0 | N20: 3
A21: PRJNA544494 | B21: 0.0917831415 | C21: 4.64899807 | D21: 0.03128794515 | E21: 0.01287356404 | F21: 0.00623427931 | G21: 4.791177 | H21: 10 | I21: 0 | J21: 10 | K21: 15 | L21: yes | M21: 94 | N21: 0
A22: PRJNA521300 | B22: 0.03718444864 | C22: 0.7161456303 | D22: 0.0943712446 | E22: 0.0667696352 | F22: 3.707358833 | G22: 4.621829792 | H22: 13 | I22: 1 | J22: 14 | K22: 14 | L22: no | M22: 0 | N22: 0
A23: PRJNA722826 | B23: 0.2184726376 | C23: 1.28067554 | D23: 0.0376451903 | E23: 0.0201228778 | F23: 2.407034128 | G23: 3.963950374 | H23: 3 | I23: 1 | J23: 4 | K23: 5 | L23: yes | M23: 2 | N23: 0
A24: PRJNA183510 | B24: 0.08335254048 | C24: 2.275932165 | D24: 0.3992872503 | E24: 0.3135893596 | F24: 0.3910436693 | G24: 3.463204985 | H24: 16 | I24: 39 | J24: 55 | K24: 99 | L24: yes | M24: 1 | N24: 0
A25: PRJEB33354 | B25: 0.003186377808 | C25: 0.003351844997 | D25: 0.01180598816 | E25: 0.0423526914 | F25: 3.39160781 | G25: 3.452304713 | H25: 21 | I25: 8 | J25: 29 | K25: 36 | L25: no | M25: 0 | N25: 0
A26: PRJNA72255 | B26: 0.009142789893 | C26: 3.308695707 | D26: 0.01495997044 | E26: 0.009130057169 | F26: 0.02416053996 | G26: 3.366089064 | H26: 6 | I26: 15 | J26: 21 | K26: 21 | L26: yes | M26: 86 | N26: 0
A27: PRJNA875076 | B27: 0.01837510095 | C27: 1.707936226 | D27: 1.54552586 | E27: 0.01155272813 | F27: 0.016527299 | G27: 3.299917214 | H27: 3 | I27: 1 | J27: 4 | K27: 4 | L27: yes | M27: 7 | N27: 0
A28: PRJNA531756 | B28: 2.66238352 | C28: 0.0742825307 | D28: 0.05431356885 | E28: 0.0907647582 | F28: 0.2545514769 | G28: 3.136295855 | H28: 12 | I28: 0 | J28: 12 | K28: 12 | L28: no | M28: 0 | N28: 4
A29: PRJNA721298 | B29: 1.887415024 | C29: 0.1479408568 | D29: 0.0854272058 | E29: 0.319690446 | F29: 0.2003735787 | G29: 2.640847111 | H29: 18 | I29: 0 | J29: 18 | K29: 18 | L29: no | M29: 0 | N29: 1
A30: PRJEB40764 | B30: 0.06320691442 | C30: 0.2769647037 | D30: 0.06662833668 | E30: 0.06896143802 | F30: 1.99164919 | G30: 2.467410582 | H30: 31 | I30: 14 | J30: 45 | K30: 45 | L30: no | M30: 0 | N30: 0
A31: PRJNA385855 | B31: 0.03765450521 | C31: 0.7335549939 | D31: 0.05413332804 | E31: 0.0409829492 | F31: 1.497214221 | G31: 2.363539997 | H31: 25 | I31: 105 | J31: 130 | K31: 130 | L31: no | M31: 0 | N31: 0
A32: PRJNA527656 | B32: 0.00024213288 | C32: 6.48E-05 | D32: 0 | E32: 0 | F32: 2.196640643 | G32: 2.196947589 | H32: 1 | I32: 2 | J32: 3 | K32: 3 | L32: no | M32: 0 | N32: 0
A33: PRJNA290197 | B33: 0.0713328585 | C33: 0.4921064844 | D33: 0.05284335286 | E33: 0.063091217 | F33: 1.463754164 | G33: 2.143128077 | H33: 8 | I33: 0 | J33: 8 | K33: 10 | L33: yes | M33: 22 | N33: 0
A34: PRJNA431796 | B34: 0.0491245542 | C34: 0.635758214 | D34: 0.0560005292 | E34: 0.06885067916 | F34: 1.232557884 | G34: 2.042291861 | H34: 3 | I34: 1 | J34: 4 | K34: 20 | L34: yes | M34: 29 | N34: 0
G35: SUM | H35: =SUM(H5:H34) -> 1057 | I35: =SUM(I5:I34) -> 915 | J35: =SUM(J5:J34) -> 1972 | K35: =SUM(K5:K34) -> 2588 | M35: total EX MAGs found | N35: =SUM(N5:N34) -> 17
J37: Samples in studies containing EX4484-6 MAGs | K37: =SUM(K6,K8,K13:K15,K20,K28,K29) -> 141
A39: EX MAGs present

Sheet S4
A1: S4. Overview list of MAGs obtained in this study
A3: MAG | B3: Name | C3: mining_strategy | D3: study | E3: environment | F3: size fraction [µm] | G3: water depth [m] | H3: sediment depth [cm] | I3: location | J3: lat | K3: lon | L3: Publication
A4: E3_1_d157_spades_bin_16_orig_1_refined-contigs | B4: E3_1_d157 | E4: marine sediment | H4: 45-70 | I4: Helgoland mud area | J4: 54.087639 | K4: 7.968194
A5: GCA_003663595.1_ASM366359v1_genomic | B5: GCA_003663595.1 | C5: MAG | D5: PRJNA362212 | E5: marine hydrothermal sediment | H5: 0-3.0 | I5: Guaymas basin | J5: 29.52416667 | K5: -113.57 | L5: https://www.nature.com/articles/s41467-018-07418-0
A6: GCA_003650025.1_ASM365002v1_genomic | B6: GCA_003650025.1 | C6: MAG | D6: PRJNA362212 | E6: marine hydrothermal sediment | H6: 0-3 | I6: Guaymas basin | J6: 29.52416667 | K6: -113.57 | L6: https://www.nature.com/articles/s41467-018-07418-0
A7: GCA_003663625.1_ASM366362v1_genomic | B7: GCA_003663625.1 | C7: MAG | D7: PRJNA362212 | E7: marine hydrothermal sediment | H7: 12-15 | I7: Guaymas basin | J7: 29.52416667 | K7: -113.57 | L7: https://www.nature.com/articles/s41467-018-07418-0
A8: GCA_011039765.1_ASM1103976v1_genomic | B8: GCA_011039765.1 | C8: MAG | D8: PRJNA480137 | E8: marine hydrothermal sediment | I8: Guaymas basin | J8: 27.0078 | K8: -111.4071 | L8: https://journals.asm.org/doi/10.1128/msystems.00795-19
A9: GCA_016928095.1_ASM1692809v1_genomic | B9: GCA_016928095.1 | C9: MAG | D9: PRJNA690107 | E9: freshwater lake sediment | H9: 100 | I9: Zodletone Spring | J9: 34.99562 | K9: -98.68895 | L9: https://journals.asm.org/doi/10.1128/aem.00947-21
A10: GCA_023145185.1_ASM2314518v1_genomic | B10: GCA_023145185.1 | C10: MAG | D10: PRJNA707313 | E10: cold seep fluid | G10: 1120 | I10: South China Sea | J10: 22.16 | K10: 119.29 | L10: https://www.biorxiv.org/content/10.1101/2022.10.18.512610v1.full.pdf
A11: GCA_021158585.1_ASM2115858v1_genomic | B11: GCA_021158585.1 | C11: MAG | D11: PRJNA713414 | E11: marine hydrothermal sediment | G11: 3675.5 | H11: 7-14 | I11: Pescadero basin /Auka hydrothermal vent field | J11: 23.957043 | K11: -108.862273 | L11: https://www.nature.com/articles/s41396-022-01222-x
A12: GCA_021160765.1_ASM2116076v1_genomic | B12: GCA_021160765.1 | C12: MAG | D12: PRJNA713414 | E12: marine hydrothermal sediment | I12: Pescadero basin /Auka hydrothermal vent field | J12: 23.957043 | K12: -108.862273 | L12: https://www.nature.com/articles/s41396-022-01222-x
A13: PRJNA368391_bin_183_orig-contigs | B13: PRJNA368391_1 | C13: metaG | D13: PRJNA368391 | E13: marine hydrothermal sediment | I13: Guaymas basin | J13: 27.0183 | K13: -111.3802
A14: PRJNA368391_bin_90_orig-contigs | B14: PRJNA368391_2 | C14: metaG | D14: PRJNA368391 | E14: marine hydrothermal sediment | H14: 0-3 | I14: Guaymas basin | J14: 27.0183 | K14: -111.3802
A15: PRJNA531756_bin_72_orig_refined-contigs | B15: PRJNA531756_1 | C15: metaG | D15: PRJNA531756 | E15: marine sediment | H15: 0-2.0 | I15: Eastern Gotland Basin | J15: 57.21366 | K15: 19.508972
A16: PRJNA531756_bin_93_strict_refined-contigs | B16: PRJNA531756_2 | C16: metaG | D16: PRJNA531756 | E16: marine sediment | H16: 0-2.0 | I16: Eastern Gotland Basin | J16: 57.21366 | K16: 19.508972
A17: PRJNA541421_bin_70_strict-contigs | B17: PRJNA541421_1 | C17: metaG | D17: PRJNA541421 | E17: marine sediment | H17: 0-2.0 | I17: Tvarminne | J17: 59.8559 | K17: 23.26695
A18: PRJNA541421_bin_72_orig_refined-contigs | B18: PRJNA541421_2 | C18: metaG | D18: PRJNA541421 | E18: marine sediment | H18: 0-2.0 | I18: Tvarminne | J18: 59.8559 | K18: 23.26695
A19: PRJNA541421_bin_98_orig_refined-contigs | B19: PRJNA541421_3 | C19: metaG | D19: PRJNA541421 | E19: marine sediment | H19: 0-2.0 | I19: Tvarminne | J19: 59.8559 | K19: 23.26695
A20: PRJNA704804_bin_147_orig_refined-contigs | B20: PRJNA704804_1 | C20: metaG | D20: PRJNA704804 | E20: marine water | I20: Eastern Tropical South Pacific Oxygen Deficient Zone | J20: -13 | K20: -82.2 | L20: https://ami-journals.onlinelibrary.wiley.com/doi/10.1111/1462-2920.15893
A21: PRJNA721298_bin_46_orig_refined-contigs | B21: PRJNA721298_1 | C21: metaG | D21: PRJNA721298 | E21: marine sediment | H21: 0-1.0 | I21: Okarshamn / Asko | J21: 57.264483 / 58.843577 | K21: 16.48195 / 17.544748
A22: PRJNA889212_bin_1_orig_refined-contigs | B22: PRJNA889212_1 | C22: metaG | D22: PRJNA889212 | E22: marine sediment | I22: Kaloe Vig marina, Denmark | J22: 56.242694 | K22: 10.3385
A23: PRJNA889212_bin_7_strict_refined-contigs | B23: PRJNA889212_2 | C23: metaG | D23: PRJNA889212 | E23: marine sediment | I23: Kaloe Vig marina, Denmark | J23: 56.242694 | K23: 10.3385
A24: MSM105_N25025F_bin_277_ori_permissive_1 | B24: MSM105 | C24: IOW | E24: marine sediment | I24: Namibia | J24: -25 | K24: 14.38333333
A25: EMB267_Co_bin_434_strict_1 | B25: EMB267 | C25: IOW | E25: marine sediment | I25: Baltic Sea | J25: 54.2573 | K25: 14.328883
A26: SCRA20-1_SAMN11854494_MAG_00000079 | B26: SAMN11854494_1 | C26: OMDv2 | D26: PRJNA544741 | E26: marine water | F26: 0.2-2.7 | G26: 314 | I26: Venezuela, Cariaco Basin | J26: 10.617 | K26: -65.167 | L26: https://agupubs.onlinelibrary.wiley.com/doi/full/10.1029/2019JG005276
A27: SUTE22-1_SAMN10231893_MAG_00000067 | B27: SAMN10231893_1 | C27: OMDv2 | D27: PRJNA326482 | E27: marine water | F27: >2.7 | G27: 314 | I27: Venezuela, Cariaco Basin | J27: 10.617 | K27: -65.167 | L27: https://www.frontiersin.org/articles/10.3389/fmicb.2021.764605/full
A28: SUTE22-1_SAMN10231913_MAG_00000219 | B28: SAMN10231913_1 | C28: OMDv2 | D28: PRJNA326482 | E28: marine water | F28: >2.7 | G28: 267 | I28: Venezuela, Cariaco Basin | J28: 10.617 | K28: -65.167 | L28: https://www.frontiersin.org/articles/10.3389/fmicb.2021.764605/full
A29: SUTE22-1_SAMN10231913_MAG_00000177 | B29: SAMN10231913_2 | C29: OMDv2 | D29: PRJNA326482 | E29: marine water | F29: >2.7 | G29: 267 | I29: Venezuela, Cariaco Basin | J29: 10.617 | K29: -65.167 | L29: https://www.frontiersin.org/articles/10.3389/fmicb.2021.764605/full
A30: SUTE22-1_SAMN10231914_MAG_00000186 | B30: SAMN10231914_1 | C30: OMDv2 | D30: PRJNA326482 | E30: marine water | F30: >2.7 | G30: 267 | I30: Venezuela, Cariaco Basin | J30: 10.617 | K30: -65.167 | L30: https://www.frontiersin.org/articles/10.3389/fmicb.2021.764605/full
A31: SUTE22-1_SAMN10231914_MAG_00000292 | B31: SAMN10231914_2 | C31: OMDv2 | D31: PRJNA326482 | E31: marine water | F31: >2.7 | G31: 267 | I31: Venezuela, Cariaco Basin | J31: 10.617 | K31: -65.167 | L31: https://www.frontiersin.org/articles/10.3389/fmicb.2021.764605/full
A32: SUTE22-1_SAMN10231894_MAG_00000173 | B32: SAMN10231894_1 | C32: OMDv2 | D32: PRJNA326482 | E32: marine water | F32: >2.7 | G32: 314 | I32: Venezuela, Cariaco Basin | J32: 10.617 | K32: -65.167 | L32: https://www.frontiersin.org/articles/10.3389/fmicb.2021.764605/full
A33: SUTE22-1_SAMN10231904_MAG_00000012 | B33: SAMN10231904_1 | C33: OMDv2 | D33: PRJNA326482 | E33: marine water | F33: 0.2-2.7 | G33: 314 | I33: Venezuela, Cariaco Basin | J33: 10.617 | K33: -65.167 | L33: https://www.frontiersin.org/articles/10.3389/fmicb.2021.764605/full
A34: TARA_SAMEA2620113_MAG_00000097 | B34: SAMEA2620113_1 | C34: OMDv2 | D34: PRJEB4352 / PRJEB6610 | E34: marine water | F34: <0.8 | G34: 270 | I34: Arabic Sea | J34: 18.7241 | K34: 66.3896 | L34: https://www.cell.com/cell/fulltext/S0092-8674(19)31164-X
A35: ZHEN22-1_SAMN22703512_MAG_00000312 | B35: SAMN22703512_1 | C35: OMDv2 | D35: PRJNA776043 | E35: lake sediment | I35: Qinghai Lake, China | J35: 36.68 | K35: 100.47 | L35: https://www.biorxiv.org/content/10.1101/2022.10.18.512610v1.full.pdf
A36: ZHEN22-1_SAMN22703513_MAG_00000265 | B36: SAMN22703513_1 | C36: OMDv2 | D36: PRJNA776043 | E36: lake sediment | I36: Qinghai Lake, China | J36: 36.68 | K36: 100.47 | L36: https://www.biorxiv.org/content/10.1101/2022.10.18.512610v1.full.pdf
A37: ZHEN22-1_SAMN22703514_MAG_00000188 | B37: SAMN22703514_1 | C37: OMDv2 | D37: PRJNA776043 | E37: lake sediment | I37: Qinghai Lake, China | J37: 36.68 | K37: 100.47 | L37: https://www.biorxiv.org/content/10.1101/2022.10.18.512610v1.full.pdf
A38: ZORZ22-1_SAMN30647027_MAG_00000060 | B38: SAMN30647027_1 | C38: OMDv2 | D38: PRJNA875933 | E38: marine sediment | H38: 0 | I38: Atlantic Ocean, Scotian Slope | J38: 42.15971392 | K38: -62.360103 | L38: https://www.biorxiv.org/content/10.1101/2022.10.18.512610v1.full.pdf

Sheet S5
A1: S5. Quality statistics computed with checkM and checkM2 and taxonomy information computed using gtdb_tk with the GTDB database v207
A3: MAG | B3: marker lineage | C3: # genomes | D3: # markers | E3: # marker sets | F3: 0 | G3: 1 | H3: 2 | I3: 3 | J3: 4 | K3: 5+ | L3: Completeness | M3: Contamination | N3: Completeness checkM2 | O3: Contamination checkM2 | P3: Completeness_Model_Used | Q3: GC | R3: GC std | S3: Genome size | T3: adjusted Genome size | U3: # ambiguous bases | V3: # scaffolds | W3: # contigs | X3: Longest scaffold | Y3: Longest contig | Z3: N50 (scaffolds) | AA3: N50 (contigs) | AB3: Mean scaffold length | AC3: Mean contig length | AD3: Coding density | AE3: Translation table | AF3: # predicted genes | AG3: classification | AH3: fastani_reference | AI3: fastani_reference_radius | AJ3: fastani_taxonomy | AK3: fastani_ani | AL3: fastani_af | AM3: closest_placement_reference | AN3: closest_placement_radius | AO3: closest_placement_taxonomy | AP3: closest_placement_ani | AQ3: closest_placement_af | AR3: pplacer_taxonomy | AS3: classification_method | AT3: note | AU3: other_related_references(genome_id,species_name,radius,ANI,AF) | AV3: msa_percent | AW3: translation_table | AX3: red_value
A4: E3_1_d157_spades_bin_16_orig_1_refined-contigs | B4: p__Euryarchaeota | C4: 148 | D4: 188 | E4: 125 | F4: 3 | G4: 179 | H4: 6 | I4: 0 | J4: 0 | K4: 0 | L4: 97.6 | M4: 4 | N4: 97.86 | O4: 2.81 | P4: Neural Network (Specific Model) | Q4: 0.4539240401 | R4: 0.02572135349 | S4: 3535829 | T4: =S4*(N4/100) -> 3460162.259 | U4: 200 | V4: 114 | W4: 116 | X4: 143046 | Y4: 143046 | Z4: 49582 | AA4: 49582 | AB4: 31016.04386 | AC4: 30479.56034 | AD4: 0.9133993754 | AE4: 11 | AF4: 2734 | AG4: d__Archaea;p__Thermoplasmatota;c__EX4484-6;o__EX4484-6;f__EX4484-6;g__;s__ | AH4: N/A | AI4: N/A | AJ4: N/A | AK4: N/A | AL4: N/A | AM4: GCA_002254385.1 | AN4: 95 | AO4: d__Archaea;p__Thermoplasmatota;c__EX4484-6;o__EX4484-6;f__EX4484-6;g__EX4484-6;s__EX4484-6 sp002254385 | AP4: 76.83 | AQ4: 0.09 | AR4: d__Archaea;p__Thermoplasmatota;c__EX4484-6;o__EX4484-6;f__EX4484-6;g__;s__ | AS4: taxonomic classification defined by topology and ANI | AT4: N/A | AU4: N/A | AV4: 96.8 | AW4: 11 | AX4: 0.8146937587
A5: GCA_003663595.1_ASM366359v1_genomic | B5: p__Euryarchaeota | C5: 148 | D5: 188 | E5: 125 | F5: 23 | G5: 159 | H5: 6 | I5: 0 | J5: 0 | K5: 0 | L5: 89.44615385 | M5: 4 | N5: 86.29 | O5: 0.63 | P5: Neural Network (Specific Model) | Q5: 0.5357097916 | R5: 0.02511215367 | S5: 2217165 | T5: =S5*(N5/100) -> 1913191.679 | U5: 0 | V5: 171 | W5: 171 | X5: 49213 | Y5: 49213 | Z5: 14994 | AA5: 14994 | AB5: 12965.87719 | AC5: 12965.87719 | AD5: 0.9100869804 | AE5: 11 | AF5: 1836 | AG5: d__Archaea;p__Thermoplasmatota;c__EX4484-6;o__EX4484-6;f__EX4484-6;g__EX4484-6;s__EX4484-6 sp002254385 | AH5: GCA_002254385.1 | AI5: 95 | AJ5: d__Archaea;p__Thermoplasmatota;c__EX4484-6;o__EX4484-6;f__EX4484-6;g__EX4484-6;s__EX4484-6 sp002254385 | AK5: 99.4 | AL5: 0.83 | AM5: GCA_002254385.1 | AN5: 95 | AO5: d__Archaea;p__Thermoplasmatota;c__EX4484-6;o__EX4484-6;f__EX4484-6;g__EX4484-6;s__EX4484-6 sp002254385 | AP5: 99.4 | AQ5: 0.83 | AR5: d__Archaea;p__Thermoplasmatota;c__EX4484-6;o__EX4484-6;f__EX4484-6;g__;s__ | AS5: taxonomic classification defined by topology and ANI | AT5: topological placement and ANI have congruent species assignments | AU5: N/A | AV5: 85.12 | AW5: 11 | AX5: N/A
A6: GCA_003650025.1_ASM365002v1_genomic | B6: p__Euryarchaeota | C6: 148 | D6: 188 | E6: 125 | F6: 4 | G6: 182 | H6: 2 | I6: 0 | J6: 0 | K6: 0 | L6: 97.6 | M6: 1.6 | N6: 92.64 | O6: 0.15 | P6: Neural Network (Specific Model) | Q6: 0.5297658644 | R6: 0.04114689784 | S6: 2042961 | T6: 1892599.07 | U6: 0 | V6: 248 | W6: 248 | X6: 49165 | Y6: 49165 | Z6: 10640 | AA6: 10640 | AB6: 8237.745968 | AC6: 8237.745968 | AD6: 0.928680479 | AE6: 11 | AF6: 1880 | AG6: d__Archaea;p__Thermoplasmatota;c__EX4484-6;o__EX4484-6;f__EX4484-36;g__EX4484-36;s__EX4484-36 sp002254765 | AH6: GCA_002254765.1 | AI6: 95 | AJ6: d__Archaea;p__Thermoplasmatota;c__EX4484-6;o__EX4484-6;f__EX4484-36;g__EX4484-36;s__EX4484-36 sp002254765 | AK6: 98.98 | AL6: 0.83 | AM6: GCA_002254765.1 | AN6: 95 | AO6: d__Archaea;p__Thermoplasmatota;c__EX4484-6;o__EX4484-6;f__EX4484-36;g__EX4484-36;s__EX4484-36 sp002254765 | AP6: 98.98 | AQ6: 0.83 | AR6: d__Archaea;p__Thermoplasmatota;c__EX4484-6;o__EX4484-6;f__;g__;s__ | AS6: taxonomic classification defined by topology and ANI | AT6: topological placement and ANI have congruent species assignments | AU6: N/A | AV6: 91.72 | AW6: 11 | AX6: N/A
A7: GCA_003663625.1_ASM366362v1_genomic | B7: p__Euryarchaeota | C7: 148 | D7: 188 | E7: 125 | F7: 19 | G7: 166 | H7: 3 | I7: 0 | J7: 0 | K7: 0 | L7: 86.4 | M7: 2.4 | N7: 83.67 | O7: 1.77 | P7: Neural Network (Specific Model) | Q7: 0.5219376194 | R7: 0.04578704032 | S7: 1894531 | T7: 1585154.088 | U7: 0 | V7: 283 | W7: 283 | X7: 39601 | Y7: 39601 | Z7: 8380 | AA7: 8380 | AB7: 6694.45583 | AC7: 6694.45583 | AD7: 0.9254987118 | AE7: 11 | AF7: 1726 | AG7: d__Archaea;p__Thermoplasmatota;c__EX4484-6;o__EX4484-6;f__EX4484-36;g__EX4484-36;s__EX4484-36 sp002254765 | AH7: GCA_002254765.1 | AI7: 95 | AJ7: d__Archaea;p__Thermoplasmatota;c__EX4484-6;o__EX4484-6;f__EX4484-36;g__EX4484-36;s__EX4484-36 sp002254765 | AK7: 98.43 | AL7: 0.69 | AM7: GCA_002254765.1 | AN7: 95 | AO7: d__Archaea;p__Thermoplasmatota;c__EX4484-6;o__EX4484-6;f__EX4484-36;g__EX4484-36;s__EX4484-36 sp002254765 | AP7: 98.43 | AQ7: 0.69 | AR7: d__Archaea;p__Thermoplasmatota;c__EX4484-6;o__EX4484-6;f__;g__;s__ | AS7: taxonomic classification defined by topology and ANI | AT7: topological placement and ANI have congruent species assignments | AU7: N/A | AV7: 85.48 | AW7: 11 | AX7: N/A
A8: GCA_011039765.1_ASM1103976v1_genomic | B8: p__Euryarchaeota | C8: 148 | D8: 188 | E8: 125 | F8: 11 | G8: 175 | H8: 2 | I8: 0 | J8: 0 | K8: 0 | L8: 92 | M8: 1.6 | N8: 89.75 | O8: 0.25 | P8: Neural Network (Specific Model) | Q8: 0.5346557568 | R8: 0.02575430124 | S8: 1819034 | T8: 1632583.015 | U8: 0 | V8: 267 | W8: 267 | X8: 36896 | Y8: 36896 | Z8: 9250 | AA8: 9250 | AB8: 6812.861423 | AC8: 6812.861423 | AD8: 0.932142005 | AE8: 11 | AF8: 1708 | AG8: d__Archaea;p__Thermoplasmatota;c__EX4484-6;o__EX4484-6;f__EX4484-36;g__EX4484-36;s__EX4484-36 sp002254765 | AH8: GCA_002254765.1 | AI8: 95 | AJ8: d__Archaea;p__Thermoplasmatota;c__EX4484-6;o__EX4484-6;f__EX4484-36;g__EX4484-36;s__EX4484-36 sp002254765 | AK8: 98.47 | AL8: 0.75 | AM8: GCA_002254765.1 | AN8: 95 | AO8: d__Archaea;p__Thermoplasmatota;c__EX4484-6;o__EX4484-6;f__EX4484-36;g__EX4484-36;s__EX4484-36 sp002254765 | AP8: 98.47 | AQ8: 0.75 | AR8: d__Archaea;p__Thermoplasmatota;c__EX4484-6;o__EX4484-6;f__;g__;s__ | AS8: taxonomic classification defined by topology and ANI | AT8: topological placement and ANI have congruent species assignments | AU8: N/A | AV8: 88.81 | AW8: 11 | AX8: N/A
A9: GCA_016928095.1_ASM1692809v1_genomic | B9: p__Euryarchaeota | C9: 148 | D9: 188 | E9: 125 | F9: 5 | G9: 177 | H9: 6 | I9: 0 | J9: 0 | K9: 0 | L9: 96.8 | M9: 4 | N9: 96 | O9: 1.44 | P9: Neural Network (Specific Model) | Q9: 0.5233114776 | R9: 0.02016031463 | S9: 2799415 | T9: 2687438.4 | U9: 0 | V9: 124 | W9: 124 | X9: 101893 | Y9: 101893 | Z9: 32247 | AA9: 32247 | AB9: 22575.92742 | AC9: 22575.92742 | AD9: 0.9200965202 | AE9: 11 | AF9: 2174 | AG9: d__Archaea;p__Thermoplasmatota;c__EX4484-6;o__EX4484-6;f__EX4484-6;g__JAFGLL01;s__JAFGLL01 sp016928095 | AH9: GCA_016928095.1 | AI9: 95 | AJ9: d__Archaea;p__Thermoplasmatota;c__EX4484-6;o__EX4484-6;f__EX4484-6;g__JAFGLL01;s__JAFGLL01 sp016928095 | AK9: 100 | AL9: 0.99 | AM9: GCA_016928095.1 | AN9: 95 | AO9: d__Archaea;p__Thermoplasmatota;c__EX4484-6;o__EX4484-6;f__EX4484-6;g__JAFGLL01;s__JAFGLL01 sp016928095 | AP9: 100 | AQ9: 0.99 | AR9: d__Archaea;p__Thermoplasmatota;c__EX4484-6;o__EX4484-6;f__EX4484-6;g__JAFGLL01;s__ | AS9: taxonomic classification defined by topology and ANI | AT9: topological placement and ANI have congruent species assignments | AU9: GCA_016929175.1, s__JAFGLL01 sp016929175, 95.0, 79.64, 0.55 | AV9: 92.12 | AW9: 11 | AX9: N/A
A10: GCA_023145185.1_ASM2314518v1_genomic | B10: p__Euryarchaeota | C10: 148 | D10: 188 | E10: 125 | F10: 13 | G10: 170 | H10: 5 | I10: 0 | J10: 0 | K10: 0 | L10: 92.67368421 | M10: 3.2 | N10: 91 | O10: 0.33 | P10: Neural Network (Specific Model) | Q10: 0.523670496 | R10: 0.04711682126 | S10: 2767517 | T10: 2518440.47 | U10: 0 | V10: 594 | W10: 594 | X10: 25530 | Y10: 25530 | Z10: 6300 | AA10: 6300 | AB10: 4659.119529 | AC10: 4659.119529 | AD10: 0.9198241601 | AE10: 11 | AF10: 2468 | AG10: d__Archaea;p__Thermoplasmatota;c__EX4484-6;o__EX4484-6;f__EX4484-6;g__;s__ | AH10: N/A | AI10: N/A | AJ10: N/A | AK10: N/A | AL10: N/A | AM10: N/A | AN10: N/A | AO10: N/A | AP10: N/A | AQ10: N/A | AR10: d__Archaea;p__Thermoplasmatota;c__EX4484-6;o__EX4484-6;f__;g__;s__ | AS10: taxonomic novelty determined using RED | AT10: N/A | AU10: N/A | AV10: 89 | AW10: 11 | AX10: 0.7128432801
A11: GCA_021158585.1_ASM2115858v1_genomic | B11: p__Euryarchaeota | C11: 148 | D11: 188 | E11: 125 | F11: 16 | G11: 170 | H11: 2 | I11: 0 | J11: 0 | K11: 0 | L11: 88.8 | M11: 1.6 | N11: 94.42 | O11: 0.67 | P11: Gradient Boost (General Model) | Q11: 0.5354861341 | R11: 0.02380017965 | S11: 1835872 | T11: 1733430.342 | U11: 0 | V11: 167 | W11: 167 | X11: 52375 | Y11: 52375 | Z11: 15473 | AA11: 15473 | AB11: 10993.24551 | AC11: 10993.24551 | AD11: 0.9365042879 | AE11: 11 | AF11: 1615 | AG11: d__Archaea;p__Thermoplasmatota;c__EX4484-6;o__EX4484-6;f__EX4484-36;g__EX4484-36;s__EX4484-36 sp002254765 | AH11: GCA_002254765.1 | AI11: 95 | AJ11: d__Archaea;p__Thermoplasmatota;c__EX4484-6;o__EX4484-6;f__EX4484-36;g__EX4484-36;s__EX4484-36 sp002254765 | AK11: 98.17 | AL11: 0.85 | AM11: GCA_002254765.1 | AN11: 95 | AO11: d__Archaea;p__Thermoplasmatota;c__EX4484-6;o__EX4484-6;f__EX4484-36;g__EX4484-36;s__EX4484-36 sp002254765 | AP11: 98.17 | AQ11: 0.85 | AR11: d__Archaea;p__Thermoplasmatota;c__EX4484-6;o__EX4484-6;f__;g__;s__ | AS11: taxonomic classification defined by topology and ANI | AT11: topological placement and ANI have congruent species assignments | AU11: N/A | AV11: 89.23 | AW11: 11 | AX11: N/A
A12: GCA_021160765.1_ASM2116076v1_genomic | B12: p__Euryarchaeota | C12: 148 | D12: 188 | E12: 125 | F12: 40 | G12: 146 | H12: 2 | I12: 0 | J12: 0 | K12: 0 | L12: 74.47179487 | M12: 0.9333333333 | N12: 81.19 | O12: 1.11 | P12: Gradient Boost (General Model) | Q12: 0.4911804594 | R12: 0.02467955514 | S12: 1405402 | T12: 1141045.884 | U12: 0 | V12: 253 | W12: 253 | X12: 25328 | Y12: 25328 | Z12: 6101 | AA12: 6101 | AB12: 5554.948617 | AC12: 5554.948617 | AD12: 0.938815371 | AE12: 11 | AF12: 1351 | AG12: d__Archaea;p__Thermoplasmatota;c__EX4484-6;o__EX4484-6;f__EX4484-36;g__;s__ | AH12: N/A | AI12: N/A | AJ12: N/A | AK12: N/A | AL12: N/A | AM12: GCA_002254765.1 | AN12: 95 | AO12: d__Archaea;p__Thermoplasmatota;c__EX4484-6;o__EX4484-6;f__EX4484-36;g__EX4484-36;s__EX4484-36 sp002254765 | AP12: 77.65 | AQ12: 0.17 | AR12: d__Archaea;p__Thermoplasmatota;c__EX4484-6;o__EX4484-6;f__;g__;s__ | AS12: taxonomic classification defined by topology and ANI | AT12: N/A | AU12: N/A | AV12: 73.45 | AW12: 11 | AX12: 0.8136743549
A13: PRJNA368391_bin_183_orig-contigs | B13: p__Euryarchaeota | C13: 148 | D13: 188 | E13: 125 | F13: 18 | G13: 165 | H13: 5 | I13: 0 | J13: 0 | K13: 0 | L13: 88.33846154 | M13: 3.2 | N13: 89.37 | O13: 0.5 | P13: Neural Network (Specific Model) | Q13: 0.5356546815 | R13: 0.02505050832 | S13: 2373994 | T13: 2121638.438 | U13: 0 | V13: 217 | W13: 217 | X13: 67060 | Y13: 67060 | Z13: 14296 | AA13: 14296 | AB13: 10940.06452 | AC13: 10940.06452 | AD13: 0.9157626346 | AE13: 11 | AF13: 1986 | AG13: d__Archaea;p__Thermoplasmatota;c__EX4484-6;o__EX4484-6;f__EX4484-6;g__EX4484-6;s__EX4484-6 sp002254385 | AH13: GCA_002254385.1 | AI13: 95 | AJ13: d__Archaea;p__Thermoplasmatota;c__EX4484-6;o__EX4484-6;f__EX4484-6;g__EX4484-6;s__EX4484-6 sp002254385 | AK13: 99.51 | AL13: 0.85 | AM13: GCA_002254385.1 | AN13: 95 | AO13: d__Archaea;p__Thermoplasmatota;c__EX4484-6;o__EX4484-6;f__EX4484-6;g__EX4484-6;s__EX4484-6 sp002254385 | AP13: 99.51 | AQ13: 0.85 | AR13: d__Archaea;p__Thermoplasmatota;c__EX4484-6;o__EX4484-6;f__EX4484-6;g__;s__ | AS13: taxonomic classification defined by topology and ANI | AT13: topological placement and ANI have congruent species assignments | AU13: N/A | AV13: 84.39 | AW13: 11 | AX13: N/A
A14: PRJNA368391_bin_90_orig-contigs | B14: p__Euryarchaeota | C14: 148 | D14: 188 | E14: 125 | F14: 10 | G14: 176 | H14: 2 | I14: 0 | J14: 0 | K14: 0 | L14: 92.8 | M14: 1.6 | N14: 91.64 | O14: 0.05 | P14: Neural Network (Specific Model) | Q14: 0.5395343359 | R14: 0.02028910263 | S14: 1842487 | T14: 1688455.087 | U14: 0 | V14: 118 | W14: 118 | X14: 55776 | Y14: 55776 | Z14: 21271 | AA14: 21271 | AB14: 15614.29661 | AC14: 15614.29661 | AD14: 0.9358530074 | AE14: 11 | AF14: 1594 | AG14: d__Archaea;p__Thermoplasmatota;c__EX4484-6;o__EX4484-6;f__EX4484-36;g__EX4484-36;s__EX4484-36 sp002254765 | AH14: GCA_002254765.1 | AI14: 95 | AJ14: d__Archaea;p__Thermoplasmatota;c__EX4484-6;o__EX4484-6;f__EX4484-36;g__EX4484-36;s__EX4484-36 sp002254765 | AK14: 99.14 | AL14: 0.87 | AM14: GCA_002254765.1 | AN14: 95 | AO14: d__Archaea;p__Thermoplasmatota;c__EX4484-6;o__EX4484-6;f__EX4484-36;g__EX4484-36;s__EX4484-36 sp002254765 | AP14: 99.14 | AQ14: 0.87 | AR14: d__Archaea;p__Thermoplasmatota;c__EX4484-6;o__EX4484-6;f__;g__;s__ | AS14: taxonomic classification defined by topology and ANI | AT14: topological placement and ANI have congruent species assignments | AU14: N/A | AV14: 89.23 | AW14: 11 | AX14: N/A
A15: PRJNA531756_bin_72_orig_refined-contigs | B15: p__Euryarchaeota | C15: 148 | D15: 188 | E15: 125 | F15: 19 | G15: 168 | H15: 1 | I15: 0 | J15: 0 | K15: 0 | L15: 88.4 | M15: 0.8 | N15: 84.13 | O15: 2.7 | P15: Gradient Boost (General Model) | Q15: 0.5230878055 | R15: 0.02081842461 | S15: 3507436 | T15: 2950805.907 | U15: 0 | V15: 499 | W15: 499 | X15: 38399 | Y15: 38399 | Z15: 8613 | AA15: 8613 | AB15: 7028.92986 | AC15: 7028.92986 | AD15: 0.9244245654 | AE15: 11 | AF15: 2885 | AG15: d__Archaea;p__Thermoplasmatota;c__EX4484-6;o__;f__;g__;s__ | AH15: N/A | AI15: N/A | AJ15: N/A | AK15: N/A | AL15: N/A | AM15: N/A | AN15: N/A | AO15: N/A | AP15: N/A | AQ15: N/A | AR15: d__Archaea;p__Thermoplasmatota;c__;o__;f__;g__;s__ | AS15: taxonomic novelty determined using RED | AT15: N/A | AU15: N/A | AV15: 85.62 | AW15: 11 | AX15: 0.4258039013
A16: PRJNA531756_bin_93_strict_refined-contigs | B16: p__Euryarchaeota | C16: 148 | D16: 188 | E16: 125 | F16: 8 | G16: 177 | H16: 3 | I16: 0 | J16: 0 | K16: 0 | L16: 94.4 | M16: 2.4 | N16: 87.78 | O16: 1.65 | P16: Gradient Boost (General Model) | Q16: 0.4485868705 | R16: 0.02447974557 | S16: 2998769 | T16: 2632319.428 | U16: 70 | V16: 219 | W16: 226 | X16: 117850 | Y16: 101264 | Z16: 20192 | AA16: 19288 | AB16: 13693.00913 | AC16: 13268.57965 | AD16: 0.9289995328 | AE16: 11 | AF16: 2505 | AG16: d__Archaea;p__Thermoplasmatota;c__EX4484-6;o__EX4484-6;f__EX4484-6;g__;s__ | AH16: N/A | AI16: N/A | AJ16: N/A | AK16: N/A | AL16: N/A | AM16: N/A | AN16: N/A | AO16: N/A | AP16: N/A | AQ16: N/A | AR16: d__Archaea;p__Thermoplasmatota;c__EX4484-6;o__EX4484-6;f__EX4484-6;g__;s__ | AS16: taxonomic novelty determined using RED | AT16: N/A | AU16: N/A | AV16: 92.68 | AW16: 11 | AX16: 0.8534705901
A17: PRJNA541421_bin_70_strict-contigs | B17: p__Euryarchaeota | C17: 148 | D17: 188 | E17: 125 | F17: 9 | G17: 177 | H17: 2 | I17: 0 | J17: 0 | K17: 0 | L17: 92.8 | M17: 0.8421052632 | N17: 89.85 | O17: 1.88 | P17: Neural Network (Specific Model) | Q17: 0.470000799 | R17: 0.02039862692 | S17: 2503200 | T17: 2249125.2 | U17: 0 | V17: 171 | W17: 171 | X17: 50692 | Y17: 50692 | Z17: 18954 | AA17: 18954 | AB17: 14638.59649 | AC17: 14638.59649 | AD17: 0.9252013423 | AE17: 11 | AF17: 2139 | AG17: d__Archaea;p__Thermoplasmatota;c__EX4484-6;o__EX4484-6;f__EX4484-6;g__;s__ | AH17: N/A | AI17: N/A | AJ17: N/A | AK17: N/A | AL17: N/A | AM17: GCA_002254385.1 | AN17: 95 | AO17: d__Archaea;p__Thermoplasmatota;c__EX4484-6;o__EX4484-6;f__EX4484-6;g__EX4484-6;s__EX4484-6 sp002254385 | AP17: 76.17 | AQ17: 0.08 | AR17: d__Archaea;p__Thermoplasmatota;c__EX4484-6;o__EX4484-6;f__EX4484-6;g__;s__ | AS17: taxonomic classification defined by topology and ANI | AT17: N/A | AU17: N/A | AV17: 92.19 | AW17: 11 | AX17: 0.8147562921
A18: PRJNA541421_bin_72_orig_refined-contigs | B18: p__Euryarchaeota | C18: 148 | D18: 188 | E18: 125 | F18: 5 | G18: 179 | H18: 4 | I18: 0 | J18: 0 | K18: 0 | L18: 96 | M18: 3.2 | N18: 87.36 | O18: 0.8 | P18: Gradient Boost (General Model) | Q18: 0.4945373677 | R18: 0.01907864368 | S18: 2874713 | T18: 2511349.277 | U18: 0 | V18: 124 | W18: 124 | X18: 130157 | Y18: 130157 | Z18: 34247 | AA18: 34247 | AB18: 23183.16935 | AC18: 23183.16935 | AD18: 0.9259766105 | AE18: 11 | AF18: 2341 | AG18: d__Archaea;p__Thermoplasmatota;c__EX4484-6;o__EX4484-6;f__EX4484-6;g__;s__ | AH18: N/A | AI18: N/A | AJ18: N/A | AK18: N/A | AL18: N/A | AM18: N/A | AN18: N/A | AO18: N/A | AP18: N/A | AQ18: N/A | AR18: d__Archaea;p__Thermoplasmatota;c__EX4484-6;o__EX4484-6;f__EX4484-6;g__;s__ | AS18: taxonomic novelty determined using RED | AT18: N/A | AU18: N/A | AV18: 90.77 | AW18: 11 | AX18: 0.8796092473
A19: PRJNA541421_bin_98_orig_refined-contigs | B19: p__Euryarchaeota | C19: 148 | D19: 188 | E19: 125 | F19: 31 | G19: 155 | H19: 2 | I19: 0 | J19: 0 | K19: 0 | L19: 78.33846154 | M19: 1.6 | N19: 80.71 | O19: 2.94 | P19: Gradient Boost (General Model) | Q19: 0.563683491 | R19: 0.02654596801 | S19: 3603006 | T19: 2907986.143 | U19: 0 | V19: 534 | W19: 534 | X19: 42369 | Y19: 42369 | Z19: 8340 | AA19: 8340 | AB19: 6747.202247 | AC19: 6747.202247 | AD19: 0.9240387055 | AE19: 11 | AF19: 2954 | AG19: d__Archaea;p__Thermoplasmatota;c__EX4484-6;o__;f__;g__;s__ | AH19: N/A | AI19: N/A | AJ19: N/A | AK19: N/A | AL19: N/A | AM19: N/A | AN19: N/A | AO19: N/A | AP19: N/A | AQ19: N/A | AR19: d__Archaea;p__Thermoplasmatota;c__;o__;f__;g__;s__ | AS19: taxonomic novelty determined using RED | AT19: N/A | AU19: N/A | AV19: 74.81 | AW19: 11 | AX19: 0.4351850063
A20: PRJNA704804_bin_147_orig_refined-contigs | B20: p__Euryarchaeota | C20: 148 | D20: 188 | E20: 125 | F20: 12 | G20: 174 | H20: 1 | I20: 1 | J20: 0 | K20: 0 | L20: 92.4 | M20: 2.4 | N20: 90.61 | O20: 2.29 | P20: Gradient Boost (General Model) | Q20: 0.4569880603 | R20: 0.01320703773 | S20: 3560058 | T20: 3225768.554 | U20: 0 | V20: 97 | W20: 97 | X20: 209601 | Y20: 209601 | Z20: 54679 | AA20: 54679 | AB20: 36701.62887 | AC20: 36701.62887 | AD20: 0.8914953071 | AE20: 11 | AF20: 2715 | AG20: d__Archaea;p__Thermoplasmatota;c__EX4484-6;o__;f__;g__;s__ | AH20: N/A | AI20: N/A | AJ20: N/A | AK20: N/A | AL20: N/A | AM20: N/A | AN20: N/A | AO20: N/A | AP20: N/A | AQ20: N/A | AR20: d__Archaea;p__Thermoplasmatota;c__;o__;f__;g__;s__ | AS20: taxonomic novelty determined using RED | AT20: N/A | AU20: N/A | AV20: 83.59 | AW20: 11 | AX20: 0.4013495732
A21: PRJNA721298_bin_46_orig_refined-contigs | B21: p__Euryarchaeota | C21: 148 | D21: 188 | E21: 125 | F21: 10 | G21: 174 | H21: 4 | I21: 0 | J21: 0 | K21: 0 | L21: 92.8 | M21: 3.2 | N21: 96.16 | O21: 0.42 | P21: Neural Network (Specific Model) | Q21: 0.4943752697 | R21: 0.01683495783 | S21: 2831958 | T21: 2723210.813 | U21: 0 | V21: 98 | W21: 98 | X21: 153618 | Y21: 153618 | Z21: 49677 | AA21: 49677 | AB21: 28897.53061 | AC21: 28897.53061 | AD21: 0.9251680286 | AE21: 11 | AF21: 2285 | AG21: d__Archaea;p__Thermoplasmatota;c__EX4484-6;o__EX4484-6;f__EX4484-6;g__;s__ | AH21: N/A | AI21: N/A | AJ21: N/A | AK21: N/A | AL21: N/A | AM21: N/A | AN21: N/A | AO21: N/A | AP21: N/A | AQ21: N/A | AR21: d__Archaea;p__Thermoplasmatota;c__EX4484-6;o__EX4484-6;f__EX4484-6;g__;s__ | AS21: taxonomic novelty determined using RED | AT21: N/A | AU21: N/A | AV21: 84.26 | AW21: 11 | AX21: 0.8807329037
A22: PRJNA889212_bin_1_orig_refined-contigs | B22: p__Euryarchaeota | C22: 148 | D22: 188 | E22: 125 | F22: 9 | G22: 177 | H22: 2 | I22: 0 | J22: 0 | K22: 0 | L22: 93.2 | M22: 1.6 | N22: 92.99 | O22: 1.03 | P22: Neural Network (Specific Model) | Q22: 0.4992119668 | R22: 0.01925460382 | S22: 2864727 | T22: 2663909.637 | U22: 0 | V22: 259 | W22: 259 | X22: 53388 | Y22: 53388 | Z22: 14457 | AA22: 14457 | AB22: 11060.72201 | AC22: 11060.72201 | AD22: 0.9257866456 | AE22: 11 | AF22: 2393 | AG22: d__Archaea;p__Thermoplasmatota;c__EX4484-6;o__EX4484-6;f__EX4484-6;g__;s__ | AH22: N/A | AI22: N/A | AJ22: N/A | AK22: N/A | AL22: N/A | AM22: N/A | AN22: N/A | AO22: N/A | AP22: N/A | AQ22: N/A | AR22: d__Archaea;p__Thermoplasmatota;c__EX4484-6;o__EX4484-6;f__EX4484-6;g__;s__ | AS22: taxonomic novelty determined using RED | AT22: N/A | AU22: N/A | AV22: 85.9 | AW22: 11 | AX22: 0.8819997916
A23: PRJNA889212_bin_7_strict_refined-contigs | B23: p__Euryarchaeota | C23: 148 | D23: 188 | E23: 125 | F23: 13 | G23: 172 | H23: 3 | I23: 0 | J23: 0 | K23: 0 | L23: 91.6 | M23: 2.4 | N23: 88.85 | O23: 2.37 | P23: Gradient Boost (General Model) | Q23: 0.4661907503 | R23: 0.01647005136 | S23: 2931157 | T23: 2604332.995 | U23: 110 | V23: 91 | W23: 93 | X23: 179260 | Y23: 179260 | Z23: 43388 | AA23: 43388 | AB23: 32210.51648 | AC23: 31516.63441 | AD23: 0.9228833529 | AE23: 11 | AF23: 2354 | AG23: d__Archaea;p__Thermoplasmatota;c__EX4484-6;o__EX4484-6;f__EX4484-6;g__;s__ | AH23: N/A | AI23: N/A | AJ23: N/A | AK23: N/A | AL23: N/A | AM23: GCA_002254385.1 | AN23: 95 | AO23: d__Archaea;p__Thermoplasmatota;c__EX4484-6;o__EX4484-6;f__EX4484-6;g__EX4484-6;s__EX4484-6 sp002254385 | AP23: 76.38 | AQ23: 0.08 | AR23: d__Archaea;p__Thermoplasmatota;c__EX4484-6;o__EX4484-6;f__EX4484-6;g__;s__ | AS23: taxonomic classification defined by topology and ANI | AT23: N/A | AU23: N/A | AV23: 96.8 | AW23: 11 | AX23: 0.8159134861
A24: MSM105_N25025F_bin_277_ori_permissive_1 | B24: p__Euryarchaeota | C24: 148 | D24: 188 | E24: 125 | F24: 49 | G24: 136 | H24: 3 | I24: 0 | J24: 0 | K24: 0 | L24: 86.22887989 | M24: 1.6 | N24: 86.35 | O24: 0.32 | P24: Neural Network (Specific Model) | Q24: 0.4599537808 | R24: 0.02951421293 | S24: 2821519 | T24: 2436381.657 | U24: 179 | V24: 310 | W24: 319 | X24: 37998 | Y24: 37998 | Z24: 13246 | AA24: 13210 | AB24: 9101.674194 | AC24: 8844.326019 | AD24: 0.9225679501 | AE24: 11 | AF24: 2455 | AG24: d__Archaea;p__Thermoplasmatota;c__EX4484-6;o__EX4484-6;f__EX4484-6;g__;s__ | AH24: N/A | AI24: N/A | AJ24: N/A | AK24: N/A | AL24: N/A | AM24: N/A | AN24: N/A | AO24: N/A | AP24: N/A | AQ24: N/A | AR24: d__Archaea;p__Thermoplasmatota;c__EX4484-6;o__EX4484-6;f__EX4484-6;g__;s__ | AS24: taxonomic novelty determined using RED | AT24: N/A | AU24: N/A | AV24: 69.19 | AW24: 11 | AX24: 0.8072512014
A25: EMB267_Co_bin_434_strict_1 | B25: p__Euryarchaeota | C25: 148 | D25: 188 | E25: 125 | F25: 10 | G25: 174 | H25: 4 | I25: 0 | J25: 0 | K25: 0 | L25: 93.6 | M25: 2.4 | N25: 90.4 | O25: 1.45 | P25: Gradient Boost (General Model) | Q25: 0.5017848866 | R25: 0.02176899773 | S25: 2811183 | T25: 2541309.432 | U25: 80 | V25: 80 | W25: 88 | X25: 172193 | Y25: 172193 | Z25: 56834 | AA25: 52255 | AB25: 35139.7875 | AC25: 31944.35227 | AD25: 0.9277795149 | AE25: 11 | AF25: 2238 | AG25: d__Archaea;p__Thermoplasmatota;c__EX4484-6;o__EX4484-6;f__EX4484-6;g__;s__ | AH25: N/A | AI25: N/A | AJ25: N/A | AK25: N/A | AL25: N/A | AM25: GCA_002254385.1 | AN25: 95 | AO25: d__Archaea;p__Thermoplasmatota;c__EX4484-6;o__EX4484-6;f__EX4484-6;g__EX4484-6;s__EX4484-6 sp002254385 | AP25: 76.86 | AQ25: 0.13 | AR25: d__Archaea;p__Thermoplasmatota;c__EX4484-6;o__EX4484-6;f__EX4484-6;g__;s__ | AS25: taxonomic classification defined by topology and ANI | AT25: N/A | AU25: N/A | AV25: 95.13 | AW25: 11 | AX25: 0.8229275914
A26: SCRA20-1_SAMN11854494_MAG_00000079 | B26: p__Euryarchaeota | C26: 148 | D26: 188 | E26: 125 | F26: 32 | G26: 149 | H26: 6 | I26: 1 | J26: 0 | K26: 0 | L26: 75.6 | M26: 5.6 | N26: 80.33 | O26: 3.65 | P26: Gradient Boost (General Model) | Q26: 0.5490068656 | R26: 0.02077437197 | S26: 3474649 | T26: 2791185.542 | U26: 1554 | V26: 664 | W26: 733 | X26: 28477 | Y26: 26178 | Z26: 6214 | AA26: 5758 | AB26: 5232.90512 | AC26: 4738.19236 | AD26: 0.8950527089 | AE26: 11 | AF26: 2815 | AG26: d__Archaea;p__Thermoplasmatota;c__JAEHCK01;o__;f__;g__;s__ | AH26: N/A | AI26: N/A | AJ26: N/A | AK26: N/A | AL26: N/A | AM26: N/A | AN26: N/A | AO26: N/A | AP26: N/A | AQ26: N/A | AR26: d__Archaea;p__Thermoplasmatota;c__;o__;f__;g__;s__ | AS26: taxonomic novelty determined using RED | AT26: N/A | AU26: N/A | AV26: 71.29 | AW26: 11 | AX26: 0.4696463764
A27: SUTE22-1_SAMN10231893_MAG_00000067 | B27: p__Euryarchaeota | C27: 148 | D27: 188 | E27: 125 | F27: 17 | G27: 171 | H27: 0 | I27: 0 | J27: 0 | K27: 0 | L27: 87.6 | M27: 0 | N27: 85.89 | O27: 2.09 | P27: Gradient Boost (General Model) | Q27: 0.4789842626 | R27: 0.03459090956 | S27: 3368107 | T27: 2892867.102 | U27: 583 | V27: 525 | W27: 537 | X27: 27538 | Y27: 27538 | Z27: 8022 | AA27: 7916 | AB27: 6415.441905 | AC27: 6270.994413 | AD27: 0.8844992157 | AE27: 11 | AF27: 2715 | AG27: d__Archaea;p__Thermoplasmatota;c__JAEHCK01;o__;f__;g__;s__ | AH27: N/A | AI27: N/A | AJ27: N/A | AK27: N/A | AL27: N/A | AM27: N/A | AN27: N/A | AO27: N/A | AP27: N/A | AQ27: N/A | AR27: d__Archaea;p__Thermoplasmatota;c__;o__;f__;g__;s__ | AS27: taxonomic novelty determined using RED | AT27: N/A | AU27: N/A | AV27: 88.08 | AW27: 11 | AX27: 0.4726901403
A28: SUTE22-1_SAMN10231913_MAG_00000219 | B28: p__Euryarchaeota | C28: 148 | D28: 188 | E28: 125 | F28: 24 | G28: 164 | H28: 0 | I28: 0 | J28: 0 | K28: 0 | L28: 84.4 | M28: 0 | N28: 83.67 | O28: 2.11 | P28: Gradient Boost (General Model) | Q28: 0.4836225847 | R28: 0.02519675264 | S28: 3104157 | T28: 2597248.162 | U28: 340 | V28: 468 | W28: 488 | X28: 26172 | Y28: 23914 | Z28: 8265 | AA28: 7896 | AB28: 6632.814103 | AC28: 6360.280738 | AD28: 0.8867441305 | AE28: 11 | AF28: 2478 | AG28: d__Archaea;p__Thermoplasmatota;c__JAEHCK01;o__;f__;g__;s__ | AH28: N/A | AI28: N/A | AJ28: N/A | AK28: N/A | AL28: N/A | AM28: N/A | AN28: N/A | AO28: N/A | AP28: N/A | AQ28: N/A | AR28: d__Archaea;p__Thermoplasmatota;c__;o__;f__;g__;s__ | AS28: taxonomic novelty determined using RED | AT28: N/A | AU28: N/A | AV28: 82.88 | AW28: 11 | AX28: 0.4737110205
A29: SUTE22-1_SAMN10231913_MAG_00000177 | B29: p__Euryarchaeota | C29: 148 | D29: 188 | E29: 125 | F29: 17 | G29: 165 | H29: 5 | I29: 1 | J29: 0 | K29: 0 | L29: 86.93333333 | M29: 4.8 | N29: 90.51 | O29: 1.41 | P29: Gradient Boost (General Model) | Q29: 0.4342743545 | R29: 0.02083690569 | S29: 3031150 | T29: 2743493.865 | U29: 400 | V29: 47 | W29: 505 | X29: 246360 | Y29: 246360 | Z29: 102702 | AA29: 102702 | AB29: 64492.55319 | AC29: 59426.47059 | AD29: 0.9080385332 | AE29: 11 | AF29: 2013 | AG29: d__Archaea;p__Thermoplasmatota;c__EX4484-6;o__;f__;g__;s__ | AH29: N/A | AI29: N/A | AJ29: N/A | AK29: N/A | AL29: N/A | AM29: N/A | AN29: N/A | AO29: N/A | AP29: N/A | AQ29: N/A | AR29: d__Archaea;p__Thermoplasmatota;c__;o__;f__;g__;s__ | AS29: taxonomic novelty determined using RED | AT29: N/A | AU29: N/A | AV29: 86.26 | AW29: 11 | AX29: 0.4521811519
A30: SUTE22-1_SAMN10231914_MAG_00000186 | B30: p__Euryarchaeota | C30: 148 | D30: 188 | E30: 125 | F30: 20 | G30: 168 | H30: 0 | I30: 0 | J30: 0 | K30: 0 | L30: 85.6 | M30: 0 | N30: 87.88 | O30: 0.83 | P30: Gradient Boost (General Model) | Q30: 0.4823076267 | R30: 0.02848763224 | S30: 2969503 | T30: 2609599.236 | U30: 964 | V30: 541 | W30: 51 | X30: 27109 | Y30: 27109 | Z30: 6298 | AA30: 5952 | AB30: 5488.914972 | AC30: 5014.423986 | AD30: 0.8892929221 | AE30: 11 | AF30: 2488 | AG30: d__Archaea;p__Thermoplasmatota;c__JAEHCK01;o__;f__;g__;s__ | AH30: N/A | AI30: N/A | AJ30: N/A | AK30: N/A | AL30: N/A | AM30: N/A | AN30: N/A | AO30: N/A | AP30: N/A | AQ30: N/A | AR30: d__Archaea;p__Thermoplasmatota;c__;o__;f__;g__;s__ | AS30: taxonomic novelty determined using RED | AT30: N/A | AU30: N/A | AV30: 82.61 | AW30: 11 | AX30: 0.4759943936
A31: SUTE22-1_SAMN10231914_MAG_00000292 | B31: p__Euryarchaeota | C31: 148 | D31: 188 | E31: 125 | F31: 14 | G31: 168 | H31: 5 | I31: 1 | J31: 0 | K31: 0 | L31: 89.33333333 | M31: 4.8 | N31: 92.06 | O31: 1.43 | P31: Gradient Boost (General Model) | Q31: 0.4338655881 | R31: 0.02813590969 | S31: 3118869 | T31: 2871230.801 | U31: 500 | V31: 49 | W31: 767 | X31: 409974 | Y31: 409974 | Z31: 100590 | AA31: 98585 | AB31: 63650.38776 | AC31: 57747.57407 | AD31: 0.9089859177 | AE31: 11 | AF31: 2071 | AG31: d__Archaea;p__Thermoplasmatota;c__EX4484-6;o__;f__;g__;s__ | AH31: N/A | AI31: N/A | AJ31: N/A | AK31: N/A | AL31: N/A | AM31: N/A | AN31: N/A | AO31: N/A | AP31: N/A | AQ31: N/A | AR31: d__Archaea;p__Thermoplasmatota;c__;o__;f__;g__;s__ | AS31: taxonomic novelty determined using RED | AT31: N/A | AU31: N/A | AV31: 89.87 | AW31: 11 | AX31: 0.4520279042
A32: SUTE22-1_SAMN10231894_MAG_00000173 | B32: p__Euryarchaeota | C32: 148 | D32: 188 | E32: 125 | F32: 18 | G32: 167 | H32: 3 | I32: 0 | J32: 0 | K32: 0 | L32: 88.4 | M32: 0.9333333333 | N32: 83.42 | O32: 4.35 | P32: Gradient Boost (General Model) | Q32: 0.4852204678 | R32: 0.0256011282 | S32: 3074116 | T32: 2564427.567 | U32: 1150 | V32: 489 | W32: 880 | X32: 26760 | Y32: 23870 | Z32: 7714 | AA32: 7567 | AB32: 6286.535787 | AC32: 6085.081188 | AD32: 0.8863022736 | AE32: 11 | AF32: 2456 | AG32: d__Archaea;p__Thermoplasmatota;c__JAEHCK01;o__;f__;g__;s__ | AH32: N/A | AI32: N/A | AJ32: N/A | AK32: N/A | AL32: N/A | AM32: N/A | AN32: N/A | AO32: N/A | AP32: N/A | AQ32: N/A | AR32: d__Archaea;p__Thermoplasmatota;c__;o__;f__;g__;s__ | AS32: taxonomic novelty determined using RED | AT32: N/A | AU32: N/A | AV32: 86.47 | AW32: 11 | AX32: 0.4718783641
A33: SUTE22-1_SAMN10231904_MAG_00000012 | B33: p__Euryarchaeota | C33: 148 | D33: 188 | E33: 125 | F33: 25 | G33: 146 | H33: 16 | I33: 1 | J33: 0 | K33: 0 | L33: 80.8 | M33: 6.830769231 | N33: 86.5 | O33: 3.39 | P33: Gradient Boost (General Model) | Q33: 0.541932875 | R33: 0.0482201705 | S33: 3750106 | T33: 3243841.69 | U33: 1162 | V33: 645 | W33: 358 | X33: 39466 | Y33: 27373 | Z33: 7261 | AA33: 6751 | AB33: 5814.117829 | AC33: 5386.413793 | AD33: 0.8893719271 | AE33: 11 | AF33: 3011 | AG33: d__Archaea;p__Thermoplasmatota;c__JAEHCK01;o__;f__;g__;s__ | AH33: N/A | AI33: N/A | AJ33: N/A | AK33: N/A | AL33: N/A | AM33: N/A | AN33: N/A | AO33: N/A | AP33: N/A | AQ33: N/A | AR33: d__Archaea;p__Thermoplasmatota;c__;o__;f__;g__;s__ | AS33: taxonomic novelty determined using RED | AT33: N/A | AU33: N/A | AV33: 72.25 | AW33: 11 | AX33: 0.4707043075
A34: TARA_SAMEA2620113_MAG_00000097 | B34: p__Euryarchaeota | C34: 148 | D34: 188 | E34: 125 | F34: 6 | G34: 177 | H34: 4 | I34: 1 | J34: 0 | K34: 0 | L34: 95.6 | M34: 4 | N34: 90.91 | O34: 2.98 | P34: Gradient Boost (General Model) | Q34: 0.4527009152 | R34: 0.01816157754 | S34: 4333602 | T34: 3939677.578 | U34: 1700 | V34: 71 | W34: 650 | X34: 342653 | Y34: 227393 | Z34: 104176 | AA34: 86995 | AB34: 61036.64789 | AC34: 49226.15909 | AD34: 0.8973498258 | AE34: 11 | AF34: 3009 | AG34: d__Archaea;p__Thermoplasmatota;c__JAEHCK01;o__;f__;g__;s__ | AH34: N/A | AI34: N/A | AJ34: N/A | AK34: N/A | AL34: N/A | AM34: N/A | AN34: N/A | AO34: N/A | AP34: N/A | AQ34: N/A | AR34: d__Archaea;p__Thermoplasmatota;c__;o__;f__;g__;s__ | AS34: taxonomic novelty determined using RED | AT34: N/A | AU34: N/A | AV34: 89.12 | AW34: 11 | AX34: 0.4790617881
A35: ZHEN22-1_SAMN22703512_MAG_00000312 | B35: p__Euryarchaeota | C35: 148 | D35: 188 | E35: 125 | F35: 30 | G35: 149 | H35: 9 | I35: 0 | J35: 0 | K35: 0 | L35: 83.96923077 | M35: 6 | N35: 81.61 | O35: 1.39 | P35: Gradient Boost (General Model) | Q35: 0.5486599399 | R35: 0.02625312612 | S35: 2333709 | T35: 1904539.915 | U35: 4000 | V35: 275 | W35: 315 | X35: 68769 | Y35: 68769 | Z35: 14164 | AA35: 11921 | AB35: 8486.214545 | AC35: 7395.901587 | AD35: 0.9191527307 | AE35: 11 | AF35: 2096 | AG35: d__Archaea;p__Thermoplasmatota;c__EX4484-6;o__EX4484-6;f__EX4484-6;g__;s__ | AH35: N/A | AI35: N/A | AJ35: N/A | AK35: N/A | AL35: N/A | AM35: N/A | AN35: N/A | AO35: N/A | AP35: N/A | AQ35: N/A | AR35: d__Archaea;p__Thermoplasmatota;c__EX4484-6;o__EX4484-6;f__;g__;s__ | AS35: taxonomic novelty determined using RED | AT35: N/A | AU35: N/A | AV35: 73.9 | AW35: 11 | AX35: 0.7182663939
A36: ZHEN22-1_SAMN22703513_MAG_00000265 | B36: p__Euryarchaeota | C36: 148 | D36: 188 | E36: 125 | F36: 12 | G36: 169 | H36: 7 | I36: 0 | J36: 0 | K36: 0 | L36: 92 | M36: 4.8 | N36: 90.23 | O36: 1.14 | P36: Gradient Boost (General Model) | Q36: 0.5505981668 | R36: 0.02227199337 | S36: 2474671 | T36: 2232895.643 | U36: 2200 | V36: 103 | W36: 125 | X36: 122765 | Y36: 103339 | Z36: 34851 | AA36: 31075 | AB36: 24025.93204 | AC36: 19779.768 | AD36: 0.9292229149 | AE36: 11 | AF36: 2030 | AG36: d__Archaea;p__Thermoplasmatota;c__EX4484-6;o__EX4484-6;f__EX4484-6;g__;s__ | AH36: N/A | AI36: N/A | AJ36: N/A | AK36: N/A | AL36: N/A | AM36: N/A | AN36: N/A | AO36: N/A | AP36: N/A | AQ36: N/A | AR36: d__Archaea;p__Thermoplasmatota;c__EX4484-6;o__EX4484-6;f__;g__;s__ | AS36: taxonomic novelty determined using RED | AT36: N/A | AU36: N/A | AV36: 86.13 | AW36: 11 | AX36: 0.7170266392
A37: ZHEN22-1_SAMN22703514_MAG_00000188 | B37: p__Euryarchaeota | C37: 148 | D37: 188 | E37: 125 | F37: 7 | G37: 174 | H37: 7 | I37: 0 | J37: 0 | K37: 0 | L37: 94.8 | M37: 4.8 | N37: 92.75 | O37: 1.26 | P37: Gradient Boost (General Model) | Q37: 0.5472065818 | R37: 0.02234860602 | S37: 2564120 | T37: 2378221.3 | U37: 3100 | V37: 88 | W37: 633 | X37: 236012 | Y37: 95631 | Z37: 43694 | AA37: 32588 | AB37: 29137.72727 | AC37: 21521.17647 | AD37: 0.9247706816 | AE37: 11 | AF37: 2083 | AG37: d__Archaea;p__Thermoplasmatota;c__EX4484-6;o__EX4484-6;f__EX4484-6;g__;s__ | AH37: N/A | AI37: N/A | AJ37: N/A | AK37: N/A | AL37: N/A | AM37: N/A | AN37: N/A | AO37: N/A | AP37: N/A | AQ37: N/A | AR37: d__Archaea;p__Thermoplasmatota;c__EX4484-6;o__EX4484-6;f__;g__;s__ | AS37: taxonomic novelty determined using RED | AT37: N/A | AU37: N/A | AV37: 89.94 | AW37: 11 | AX37: 0.7182451529
A38: ZORZ22-1_SAMN30647027_MAG_00000060 | B38: p__Euryarchaeota | C38: 148 | D38: 188 | E38: 125 | F38: 49 | G38: 133 | H38: 6 | I38: 0 | J38: 0 | K38: 0 | L38: 82.73846154 | M38: 3.261538462 | N38: 80.82 | O38: 1.19 | P38: Neural Network (Specific Model) | Q38: 0.534253008 | R38: 0.03184648153 | S38: 2344276 | T38: 1894643.863 | U38: 8160 | V38: 367 | W38: 454 | X38: 31754 | Y38: 25105 | Z38: 7825 | AA38: 6526 | AB38: 6387.673025 | AC38: 5145.629956 | AD38: 0.8982018329 | AE38: 11 | AF38: 2057 | AG38: d__Archaea;p__Thermoplasmatota;c__EX4484-6;o__EX4484-6;f__EX4484-6;g__JAGLEG01;s__ | AH38: N/A | AI38: N/A | AJ38: N/A | AK38: N/A | AL38: N/A | AM38: GCA_023145185.1 | AN38: 95 | AO38: d__Archaea;p__Thermoplasmatota;c__EX4484-6;o__EX4484-6;f__EX4484-6;g__JAGLEG01;s__JAGLEG01 sp023145185 | AP38: 87.34 | AQ38: 0.66 | AR38: d__Archaea;p__Thermoplasmatota;c__EX4484-6;o__EX4484-6;f__EX4484-6;g__;s__ | AS38: taxonomic classification defined by topology and ANI | AT38: N/A | AU38: N/A | AV38: 72.44 | AW38: 11 | AX38: 0.9698945532

Sheet S6
A1: S6. Table containing relative abundances of single MAGs in mapped metagenomic runs
A3: MAG | B3: run | C3: lat | D3: lon | E3: relative abundance | F3: domain | G3: phylum | H3: class | I3: order
A4: E3_1_d157_spades_bin_16_orig_1_refined.contigs | B4: SRR21856589 | C4: 56.242695 | D4: 10.3385 | E4: 0.001781751 | F4: Archaea | G4: Thermoplasmatota | H4: EX4484-6 | I4: EX4484-6
A5: E3_1_d157_spades_bin_16_orig_1_refined.contigs | B5: SRR21856590 | C5: 56.242695 | D5: 10.3385 | E5: 0.002729533 | F5: Archaea | G5: Thermoplasmatota | H5: EX4484-6 | I5: EX4484-6
A6: GCA_003650025.1_ASM365002v1_genomic | B6: SRR14000031 | C6: 23.957043 | D6: -108.862274 | E6: 0.09215786 | F6: Archaea | G6: Thermoplasmatota | H6: EX4484-6 | I6: EX4484-6
A7: GCA_003650025.1_ASM365002v1_genomic | B7: SRR14000032 | C7: 23.957043 | D7: -108.862274 | E7: 0.15559608 | F7: Archaea | G7: Thermoplasmatota | H7: EX4484-6 | I7: EX4484-6
A8: GCA_003650025.1_ASM365002v1_genomic | B8: SRR14000033 | C8: 23.957043 | D8: -108.862274 | E8: 0.0038558 | F8: Archaea | G8: Thermoplasmatota | H8: EX4484-6 | I8: EX4484-6
A9: GCA_003650025.1_ASM365002v1_genomic | B9: SRR14000034 | C9: 23.957043 | D9: -108.862274 | E9: 0.003847455 | F9: Archaea | G9: Thermoplasmatota | H9: EX4484-6 | I9: EX4484-6
A10: GCA_003650025.1_ASM365002v1_genomic | B10: SRR14000035 | C10: 23.957043 | D10: -108.862274 | E10: 0.090560265 | F10: Archaea | G10: Thermoplasmatota | H10: EX4484-6 | I10: EX4484-6
A11: GCA_003650025.1_ASM365002v1_genomic | B11: SRR14000036 | C11: 23.957043 | D11: -108.862274 | E11: 0.15255487 | F11: Archaea | G11: Thermoplasmatota | H11: EX4484-6 | I11: EX4484-6
A12: GCA_003650025.1_ASM365002v1_genomic | B12: SRR21418559 | C12: 23.954037 | D12: -108.86296 | E12: 0.017980313 | F12: Archaea | G12: Thermoplasmatota | H12: EX4484-6 | I12: EX4484-6
A13: GCA_003650025.1_ASM365002v1_genomic | B13: SRR6479061 | C13: 27.0183 | D13: -111.3802 | E13: 0.05321874 | F13: Archaea | G13: Thermoplasmatota | H13: EX4484-6 | I13: EX4484-6
A14: GCA_021160765.1_ASM2116076v1_genomic | B14: SRR14000031 | C14: 23.957043 | D14: -108.862274 | E14: 0.0169568 | F14: Archaea | G14: Thermoplasmatota | H14: EX4484-6 | I14: EX4484-6
A15: GCA_021160765.1_ASM2116076v1_genomic | B15: SRR14000032 | C15: 23.957043 | D15: -108.862274 | E15: 0.026997268 | F15: Archaea | G15: Thermoplasmatota | H15: EX4484-6 | I15: EX4484-6
A16: GCA_021160765.1_ASM2116076v1_genomic | B16: SRR14000033 | C16: 23.957043 | D16: -108.862274 | E16: 0.002908812 | F16: Archaea | G16: Thermoplasmatota | H16: EX4484-6 | I16: EX4484-6
A17: GCA_021160765.1_ASM2116076v1_genomic | B17: SRR14000034 | C17: 23.957043 | D17: -108.862274 | E17: 0.002641253 | F17: Archaea | G17: Thermoplasmatota | H17: EX4484-6 | I17: EX4484-6
A18: GCA_021160765.1_ASM2116076v1_genomic | B18: SRR14000035 | C18: 23.957043 | D18: -108.862274 | E18: 0.023065837 | F18: Archaea | G18: Thermoplasmatota | H18: EX4484-6 | I18: EX4484-6
A19: GCA_021160765.1_ASM2116076v1_genomic | B19: SRR14000036 | C19: 23.957043 | D19: -108.862274 | E19: 0.033827245 | F19: Archaea | G19: Thermoplasmatota | H19: EX4484-6 | I19: EX4484-6
A20: GCA_021160765.1_ASM2116076v1_genomic | B20: SRR14000037 | C20: 23.957043 | D20: -108.862274 | E20: 0.002715495 | F20: Archaea | G20: Thermoplasmatota | H20: EX4484-6 | I20: EX4484-6
A21: GCA_021160765.1_ASM2116076v1_genomic | B21: SRR14000038 | C21: 23.957043 | D21: -108.862274 | E21: 0.001989847 | F21: Archaea | G21: Thermoplasmatota | H21: EX4484-6 | I21: EX4484-6
A22: GCA_021160765.1_ASM2116076v1_genomic | B22: SRR21418560 | C22: 23.956095 | D22: -108.86192 | E22: 0.038276605 | F22: Archaea | G22: Thermoplasmatota | H22: EX4484-6 | I22: EX4484-6
A23: GCA_021160765.1_ASM2116076v1_genomic | B23: SRR6479061 | C23: 27.0183 | D23: -111.3802 | E23: 0.01379635 | F23: Archaea | G23: Thermoplasmatota | H23: EX4484-6 | I23: EX4484-6
A24: GCA_023145185.1_ASM2314518v1_genomic | B24: SRR13892585 | C24: 22.01 | D24: 119.28 | E24: 0.001226894 | F24: Archaea | G24: Thermoplasmatota | H24: EX4484-6 | I24: EX4484-6
A25: GCA_023145185.1_ASM2314518v1_genomic | B25: SRR13892588 | C25: 22.01 | D25: 119.28 | E25: 0.00079265 | F25: Archaea | G25: Thermoplasmatota | H25: EX4484-6 | I25: EX4484-6
A26: GCA_023145185.1_ASM2314518v1_genomic | B26: SRR13892591 | C26: 22.16 | D26: 119.29 | E26: 0.03008643 | F26: Archaea | G26: Thermoplasmatota | H26: EX4484-6 | I26: EX4484-6
A27: GCA_023145185.1_ASM2314518v1_genomic | B27: SRR13892599 | C27: 22.17 | D27: 119.28 | E27: 0.001875233 | F27: Archaea | G27: Thermoplasmatota | H27: EX4484-6 | I27: EX4484-6
A28: GCA_023145185.1_ASM2314518v1_genomic | B28: SRR13892605 | C28: 22.01 | D28: 119.28 | E28: 0.00278655 | F28: Archaea | G28: Thermoplasmatota | H28: EX4484-6 | I28: EX4484-6
A29: GCA_023145185.1_ASM2314518v1_genomic | B29: SRR13892606 | C29: 22.36 | D29: 119.32 | E29: 0.000546711 | F29: Archaea | G29: Thermoplasmatota | H29: EX4484-6 | I29: EX4484-6
A30: GCA_023145185.1_ASM2314518v1_genomic | B30: SRR6478915 | C30: 27.0151 | D30: -111.3798 | E30: 0.000662539 | F30: Archaea | G30: Thermoplasmatota | H30: EX4484-6 | I30: EX4484-6
A31: PRJNA368391_bin_183_orig.contigs | B31: SRR14000037 | C31: 23.957043 | D31: -108.862274 | E31: 0.037630264 | F31: Archaea | G31: Thermoplasmatota | H31: EX4484-6 | I31: EX4484-6
A32: PRJNA368391_bin_183_orig.contigs | B32: SRR14000038 | C32: 23.957043 | D32: -108.862274 | E32: 0.029098555 | F32: Archaea | G32: Thermoplasmatota | H32: EX4484-6 | I32: EX4484-6
A33: PRJNA368391_bin_183_orig.contigs | B33: SRR21418559 | C33: 23.954037 | D33: -108.86296 | E33: 0.028559921 | F33: Archaea | G33: Thermoplasmatota | H33: EX4484-6 | I33: EX4484-6
A34: PRJNA368391_bin_183_orig.contigs | B34: SRR6478866 | C34: 27.0151 | D34: -111.3798 | E34: 0.00387069 | F34: Archaea | G34: Thermoplasmatota | H34: EX4484-6 | I34: EX4484-6
A35: PRJNA368391_bin_183_orig.contigs | B35: SRR6479061 | C35: 27.0183 | D35: -111.3802 | E35: 0.030137654 | F35: Archaea | G35: Thermoplasmatota | H35: EX4484-6 | I35: EX4484-6
A36: PRJNA531756_bin_72_orig_refined.contigs | B36: SRR8943083 | C36: 57.21366 | D36: 19.508972 | E36: 0.029327389 | F36: Archaea | G36: Thermoplasmatota | H36: EX4484-6 | I36: EX4484-6_unclassified
A37: PRJNA531756_bin_72_orig_refined.contigs | B37: SRR8943089 | C37: 57.21366 | D37: 19.508972 | E37: 0.04120689 | F37: Archaea | G37: Thermoplasmatota | H37: EX4484-6 | I37: EX4484-6_unclassified
A38: PRJNA531756_bin_72_orig_refined.contigs | B38: SRR8943090 | C38: 57.21366 | D38: 19.508972 | E38: 0.017473614 | F38: Archaea | G38: Thermoplasmatota | H38: EX4484-6 | I38: EX4484-6_unclassified
A39: PRJNA531756_bin_72_orig_refined.contigs | B39: SRR8943091 | C39: 57.21366 | D39: 19.508972 | E39: 0.029499866 | F39: Archaea | G39: Thermoplasmatota | H39: EX4484-6 | I39: EX4484-6_unclassified
A40: PRJNA531756_bin_72_orig_refined.contigs | B40: SRR8943092 | C40: 57.21366 | D40: 19.508972 | E40: 0.032984644 | F40: Archaea | G40: Thermoplasmatota | H40: EX4484-6 | I40: EX4484-6_unclassified
A41: PRJNA531756_bin_72_orig_refined.contigs | B41: SRR8943093 | C41: 57.21366 | D41: 19.508972 | E41: 0.046604566 | F41: Archaea | G41: Thermoplasmatota | H41: EX4484-6 | I41: EX4484-6_unclassified
A42: PRJNA531756_bin_72_orig_refined.contigs | B42: SRR8943094 | C42: 57.21366 | D42: 19.508972 | E42: 0.056894533 | F42: Archaea | G42: Thermoplasmatota | H42: EX4484-6 | I42: EX4484-6_unclassified
A43: PRJNA531756_bin_72_orig_refined.contigs | B43: SRR8943095 | C43: 57.21366 | D43: 19.508972 | E43: 0.048656963 | F43: Archaea | G43: Thermoplasmatota | H43: EX4484-6 | I43: EX4484-6_unclassified
A44: PRJNA531756_bin_93_strict_refined.contigs | B44: SRR8943083 | C44: 57.21366 | D44: 19.508972 | E44: 0.05617944 | F44: Archaea | G44: Thermoplasmatota | H44: EX4484-6 | I44: EX4484-6
A45: PRJNA531756_bin_93_strict_refined.contigs | B45: SRR8943089 | C45: 57.21366 | D45: 19.508972 | E45: 0.036285963 | F45: Archaea | G45: Thermoplasmatota | H45: EX4484-6 | I45: EX4484-6
A46: PRJNA531756_bin_93_strict_refined.contigs | B46: SRR8943090 | C46: 57.21366 | D46: 19.508972 | E46: 0.05367895 | F46: Archaea | G46: Thermoplasmatota | H46: EX4484-6 | I46: EX4484-6
A47: PRJNA531756_bin_93_strict_refined.contigs | B47: SRR8943091 | C47: 57.21366 | D47: 19.508972 | E47: 0.03968404 | F47: Archaea | G47: Thermoplasmatota | H47: EX4484-6 | I47: EX4484-6
A48: PRJNA531756_bin_93_strict_refined.contigs | B48: SRR8943092 | C48: 57.21366 | D48: 19.508972 | E48: 0.04533635 | F48: Archaea | G48: Thermoplasmatota | H48: EX4484-6 | I48: EX4484-6
A49: PRJNA531756_bin_93_strict_refined.contigs | B49: SRR8943093 | C49: 57.21366 | D49: 19.508972 | E49: 0.02332306 | F49: Archaea | G49: Thermoplasmatota | H49: EX4484-6 | I49: EX4484-6
A50: PRJNA531756_bin_93_strict_refined.contigs | B50: SRR8943094 | C50: 57.21366 | D50: 19.508972 | E50: 0.01691027 | F50: Archaea | G50: Thermoplasmatota | H50: EX4484-6 | I50: EX4484-6
A51: PRJNA531756_bin_93_strict_refined.contigs | B51: SRR8943095 | C51: 57.21366 | D51: 19.508972 | E51: 0.028650207 | F51: Archaea | G51: Thermoplasmatota | H51: EX4484-6 | I51: EX4484-6
A52: PRJNA541421_bin_70_strict.contigs | B52: SRR14219477 | C52: 58.84358 | D52: 17.544748 | E52: 0.002478441 | F52: Archaea | G52: Thermoplasmatota | H52: EX4484-6 | I52: EX4484-6
A53: PRJNA541421_bin_70_strict.contigs | B53: SRR14219478 | C53: 58.84358 | D53: 17.544748 | E53: 0.002095342 | F53: Archaea | G53: Thermoplasmatota | H53: EX4484-6 | I53: EX4484-6
A54: PRJNA541421_bin_70_strict.contigs | B54: SRR14219479 | C54: 58.84358 | D54: 17.544748 | E54: 0.00225889 | F54: Archaea | G54: Thermoplasmatota | H54: EX4484-6 | I54: EX4484-6
A55: PRJNA541421_bin_70_strict.contigs | B55: SRR14219480 | C55: 58.84358 | D55: 17.544748 | E55: 0.003951064 | F55: Archaea | G55: Thermoplasmatota | H55: EX4484-6 | I55: EX4484-6
A56: PRJNA541421_bin_70_strict.contigs | B56: SRR14219485 | C56: 57.264484 | D56: 16.48195 | E56: 0.004787241 | F56: Archaea | G56: Thermoplasmatota | H56: EX4484-6 | I56: EX4484-6
A57: PRJNA541421_bin_70_strict.contigs | B57: SRR14219486 | C57: 57.264484 | D57: 16.48195 | E57: 0.002306046 | F57: Archaea | G57: Thermoplasmatota | H57: EX4484-6 | I57: EX4484-6
A58: PRJNA541421_bin_70_strict.contigs | B58: SRR14219487 | C58: 57.264484 | D58: 16.48195 | E58: 0.002955722 | F58: Archaea | G58: Thermoplasmatota | H58: EX4484-6 | I58: EX4484-6
A59: PRJNA541421_bin_70_strict.contigs | B59: SRR14219490 | C59: 58.84358 | D59: 17.544748 | E59: 0.002352583 | F59: Archaea | G59: Thermoplasmatota | H59: EX4484-6 | I59: EX4484-6
A60: PRJNA541421_bin_70_strict.contigs | B60: SRR14219491 | C60: 58.84358 | D60: 17.544748 | E60: 0.002390653 | F60: Archaea | G60: Thermoplasmatota | H60: EX4484-6 | I60: EX4484-6
A61: PRJNA541421_bin_70_strict.contigs | B61: SRR8403924 | C61: 63.291 | D61: 19.495 | E61: 0.012995455 | F61: Archaea | G61: Thermoplasmatota | H61: EX4484-6 | I61: EX4484-6
A62: PRJNA541421_bin_70_strict.contigs | B62: SRR8943083 | C62: 57.21366 | D62: 19.508972 | E62: 0.036849614 | F62: Archaea | G62: Thermoplasmatota | H62: EX4484-6 | I62: EX4484-6
A63: PRJNA541421_bin_70_strict.contigs | B63: SRR8943089 | C63: 57.21366 | D63: 19.508972 | E63: 0.02424808 | F63: Archaea | G63: Thermoplasmatota | H63: EX4484-6 | I63: EX4484-6
A64: PRJNA541421_bin_70_strict.contigs | B64: SRR8943090 | C64: 57.21366 | D64: 19.508972 | E64: 0.017382752 | F64: Archaea | G64: Thermoplasmatota | H64: EX4484-6 | I64: EX4484-6
A65: PRJNA541421_bin_70_strict.contigs | B65: SRR8943091 | C65: 57.21366 | D65: 19.508972 | E65: 0.014422769 | F65: Archaea | G65: Thermoplasmatota | H65: EX4484-6 | I65: EX4484-6
A66: PRJNA541421_bin_70_strict.contigs | B66: SRR8943092 | C66: 57.21366 | D66: 19.508972 | E66: 0.014842167 | F66: Archaea | G66: Thermoplasmatota | H66: EX4484-6 | I66: EX4484-6
A67: PRJNA541421_bin_70_strict.contigs | B67: SRR8943093 | C67: 57.21366 | D67: 19.508972 | E67: 0.013083912 | F67: Archaea | G67: Thermoplasmatota | H67: EX4484-6 | I67: EX4484-6
A68: PRJNA541421_bin_70_strict.contigs | B68: SRR8943094 | C68: 57.21366 | D68: 19.508972 | E68: 0.008853641 | F68: Archaea | G68: Thermoplasmatota | H68: EX4484-6 | I68: EX4484-6
A69: PRJNA541421_bin_70_strict.contigs | B69: SRR8943095 | C69: 57.21366 | D69: 19.508972 | E69: 0.013217404 | F69: Archaea | G69: Thermoplasmatota | H69: EX4484-6 | I69: EX4484-6
A70: PRJNA541421_bin_70_strict.contigs | B70: SRR9068927 | C70: 59.8559 | D70: 23.26695 | E70: 0.048421543 | F70: Archaea | G70: Thermoplasmatota | H70: EX4484-6 | I70: EX4484-6
A71: PRJNA541421_bin_70_strict.contigs | B71: SRR9068928 | C71: 59.8559 | D71: 23.26695 | E71: 0.042743362 | F71: Archaea | G71: Thermoplasmatota | H71: EX4484-6 | I71: EX4484-6
A72: PRJNA541421_bin_98_orig_refined.contigs | B72: SRR14219477 | C72: 58.84358 | D72: 17.544748 | E72: 0.002047056 | F72: Archaea | G72: Thermoplasmatota | H72: EX4484-6 | I72: EX4484-6_unclassified
A73: PRJNA541421_bin_98_orig_refined.contigs | B73: SRR14219478 | C73: 58.84358 | D73: 17.544748 | E73: 0.001397007 | F73: Archaea | G73: Thermoplasmatota | H73: EX4484-6 | I73: EX4484-6_unclassified
A74: PRJNA541421_bin_98_orig_refined.contigs | B74: SRR14219479 | C74: 58.84358 | D74: 17.544748 | E74: 0.001842323 | F74: Archaea | G74: Thermoplasmatota | H74: EX4484-6 | I74: EX4484-6_unclassified
A75: PRJNA541421_bin_98_orig_refined.contigs | B75: SRR14219480 | C75: 58.84358 | D75: 17.544748 | E75: 0.003235275 | F75: Archaea | G75: Thermoplasmatota | H75: EX4484-6 | I75: EX4484-6_unclassified
A76: PRJNA541421_bin_98_orig_refined.contigs | B76: SRR14219485 | C76: 57.264484 | D76: 16.48195 | E76: 0.002490459 | F76: Archaea | G76: Thermoplasmatota | H76: EX4484-6 | I76: EX4484-6_unclassified
A77: PRJNA541421_bin_98_orig_refined.contigs | B77: SRR14219490 | C77: 58.84358 | D77: 17.544748 | E77: 0.001508104 | F77: Archaea | G77: Thermoplasmatota | H77: EX4484-6 | I77: EX4484-6_unclassified
A78: PRJNA541421_bin_98_orig_refined.contigs | B78: SRR14219491 | C78: 58.84358 | D78: 17.544748 | E78: 0.001567117 | F78: Archaea | G78: Thermoplasmatota | H78: EX4484-6 | I78: EX4484-6_unclassified
A79: PRJNA541421_bin_98_orig_refined.contigs | B79: SRR9068927 | C79: 59.8559 | D79: 23.26695 | E79: 0.011785417 | F79: Archaea | G79: Thermoplasmatota | H79: EX4484-6 | I79: EX4484-6_unclassified
A80: PRJNA541421_bin_98_orig_refined.contigs | B80: SRR9068928 | C80: 59.8559 | D80: 23.26695 | E80: 0.010029842 | F80: Archaea | G80: Thermoplasmatota | H80: EX4484-6 | I80: EX4484-6_unclassified
A81: PRJNA541421_bin_98_orig_refined.contigs | B81: SRR9068939 | C81: 59.8559 | D81: 23.26695 | E81: 0.030091366 | F81: Archaea | G81: Thermoplasmatota | H81: EX4484-6 | I81: EX4484-6_unclassified
A82: PRJNA704804_bin_147_orig_refined.contigs | B82: ERR599004 | C82: 6.3559 | D82: -103.0598 | E82: 0.002723516 | F82: Archaea | G82: Thermoplasmatota | H82: EX4484-6 | I82: EX4484-6_unclassified
A83: PRJNA704804_bin_147_orig_refined.contigs | B83: ERR599015 | C83: 14.2025 | D83: -116.6433 | E83: 0.004821492 | F83: Archaea | G83: Thermoplasmatota | H83: EX4484-6 | I83: EX4484-6_unclassified
A84: PRJNA704804_bin_147_orig_refined.contigs | B84: ERR599051 | C84: 6.3559 | D84: -103.0598 | E84: 0.002727043 | F84: Archaea | G84: Thermoplasmatota | H84: EX4484-6 | I84: EX4484-6_unclassified
A85: PRJNA704804_bin_147_orig_refined.contigs | B85: ERR599060 | C85: 6.3559 | D85: -103.0598 | E85: 0.002717835 | F85: Archaea | G85: Thermoplasmatota | H85: EX4484-6 | I85: EX4484-6_unclassified
A86: PRJNA704804_bin_147_orig_refined.contigs | B86: ERR599076 | C86: 14.2025 | D86: -116.6433 | E86: 0.00479189 | F86: Archaea | G86: Thermoplasmatota | H86: EX4484-6 | I86: EX4484-6_unclassified
A87: PRJNA704804_bin_147_orig_refined.contigs | B87: ERR599127 | C87: 14.2025 | D87: -116.6433 | E87: 0.004829087 | F87: Archaea | G87: Thermoplasmatota | H87: EX4484-6 | I87: EX4484-6_unclassified
A88: PRJNA704804_bin_147_orig_refined.contigs | B88: ERR599152 | C88: 14.2025 | D88: -116.6433 | E88: 0.004837788 | F88: Archaea | G88: Thermoplasmatota | H88: EX4484-6 | I88: EX4484-6_unclassified
A89: PRJNA704804_bin_147_orig_refined.contigs | B89: ERR599175 | C89: 6.3559 | D89: -103.0598 | E89: 0.002713349 | F89: Archaea | G89: Thermoplasmatota | H89: EX4484-6 | I89: EX4484-6_unclassified
A90: PRJNA704804_bin_147_orig_refined.contigs | B90: SRR10556723 | C90: 20.3333 | D90: -107 | E90: 0.012128903 | F90: Archaea | G90: Thermoplasmatota | H90: EX4484-6 | I90: EX4484-6_unclassified
A91: PRJNA704804_bin_147_orig_refined.contigs | B91: SRR10556728 | C91: 18.2 | D91: -104.2 | E91: 0.03700643 | F91: Archaea | G91: Thermoplasmatota | H91: EX4484-6 | I91: EX4484-6_unclassified
A92: PRJNA704804_bin_147_orig_refined.contigs | B92: SRR11743108 | C92: 18.6893 | D92: -104.4164 | E92: 0.057134837 | F92: Archaea | G92: Thermoplasmatota | H92: EX4484-6 | I92: EX4484-6_unclassified
A93: PRJNA704804_bin_147_orig_refined.contigs | B93: SRR11744890 | C93: 17.206 | D93: -110.7114 | E93: 0.027113229 | F93: Archaea | G93: Thermoplasmatota | H93: EX4484-6 | I93: EX4484-6_unclassified
A94: PRJNA704804_bin_147_orig_refined.contigs | B94: SRR11826758 | C94: 18.6893 | D94: -104.4164 | E94: 0.014658698 | F94: Archaea | G94: Thermoplasmatota | H94: EX4484-6 | I94: EX4484-6_unclassified
A95: PRJNA704804_bin_147_orig_refined.contigs | B95: SRR11826814 | C95: 17.206 | D95: -110.7114 | E95: 0.02247143 | F95: Archaea | G95: Thermoplasmatota | H95: EX4484-6 | I95: EX4484-6_unclassified
A96: PRJNA704804_bin_147_orig_refined.contigs | B96: SRR11923209 | C96: 16 | D96: -110 | E96: 0.031040648 | F96: Archaea | G96: Thermoplasmatota | H96: EX4484-6 | I96: EX4484-6_unclassified
A97: PRJNA704804_bin_147_orig_refined.contigs | B97: SRR11923212 | C97: 16.5 | D97: -107.2 | E97: 0.02766326 | F97: Archaea | G97: Thermoplasmatota | H97: EX4484-6 | I97: EX4484-6_unclassified
A98: PRJNA704804_bin_147_orig_refined.contigs | B98: SRR11923215 | C98: 20.5 | D98: -106.5 | E98: 0.008428878 | F98: Archaea | G98: Thermoplasmatota | H98: EX4484-6 | I98: EX4484-6_unclassified
A99: PRJNA704804_bin_147_orig_refined.contigs | B99: SRR12424656 | C99: 18.9 | D99: -104.9 | E99: 0.029004075 | F99: Archaea | G99: Thermoplasmatota | H99: EX4484-6 | I99: EX4484-6_unclassified
A100: PRJNA704804_bin_147_orig_refined.contigs | B100: SRR12426445 | C100: 18.92 | D100: -108.8 | E100: 0.05130471 | F100: Archaea | G100: Thermoplasmatota | H100: EX4484-6 | I100: EX4484-6_unclassified
A101: PRJNA704804_bin_147_orig_refined.contigs | B101: SRR12430884 | C101: 18.92 | D101: -104.8 | E101: 0.003475861 | F101: Archaea | G101: Thermoplasmatota | H101: EX4484-6 | I101: EX4484-6_unclassified
A102: PRJNA704804_bin_147_orig_refined.contigs | B102: SRR12936904 | C102: 18 | D102: -102 | E102: 0.017001715 | F102: Archaea | G102: Thermoplasmatota | H102: EX4484-6 | I102: EX4484-6_unclassified
A103: PRJNA704804_bin_147_orig_refined.contigs | B103: SRR12937698 | C103: 16 | D103: -105 | E103: 0.006393764 | F103: Archaea | G103: Thermoplasmatota | H103: EX4484-6 | I103: EX4484-6_unclassified
A104: PRJNA704804_bin_147_orig_refined.contigs | B104: SRR13782122 | C104: -13 | D104: -82.2 | E104: 0.030807659 | F104: Archaea | G104: Thermoplasmatota | H104: EX4484-6 | I104: EX4484-6_unclassified
A105: PRJNA704804_bin_147_orig_refined.contigs | B105: SRR13782123 | C105: -13 | D105: -82.2 | E105: 0.01127992 | F105: Archaea | G105: Thermoplasmatota | H105: EX4484-6 | I105: EX4484-6_unclassified
A106: PRJNA704804_bin_147_orig_refined.contigs | B106: SRR13782124 | C106: -13 | D106: -82.2 | E106: 0.037478883 | F106: Archaea | G106: Thermoplasmatota | H106: EX4484-6 | I106: EX4484-6_unclassified
A107: PRJNA704804_bin_147_orig_refined.contigs | B107: SRR13782125 | C107: -13 | D107: -82.2 | E107: 0.016694669 | F107: Archaea | G107: Thermoplasmatota | H107: EX4484-6 | I107: EX4484-6_unclassified
A108: PRJNA704804_bin_147_orig_refined.contigs | B108: SRR13782126 | C108: -13 | D108: -82.2 | E108: 0.00404132 | F108: Archaea | G108: Thermoplasmatota | H108: EX4484-6 | I108: EX4484-6_unclassified
A109: PRJNA704804_bin_147_orig_refined.contigs | B109: SRR13782127 | C109: -13 | D109: -82.2 | E109: 0.007570963 | F109: Archaea | G109: Thermoplasmatota | H109: EX4484-6 | I109: EX4484-6_unclassified
A110: PRJNA704804_bin_147_orig_refined.contigs | B110: SRR13782128 | C110: -13 | D110: -82.2 | E110: 0.000755947 | F110: Archaea | G110: Thermoplasmatota | H110: EX4484-6 | I110: EX4484-6_unclassified
A111: PRJNA704804_bin_147_orig_refined.contigs | B111: SRR13782130 | C111: -13 | D111: -82.2 | E111: 0.013512533 | F111: Archaea | G111: Thermoplasmatota | H111: EX4484-6 | I111: EX4484-6_unclassified
A112: PRJNA704804_bin_147_orig_refined.contigs | B112: SRR13782132 | C112: -13 | D112: -82.2 | E112: 0.008591589 | F112: Archaea | G112: Thermoplasmatota | H112: EX4484-6 | I112: EX4484-6_unclassified
A113: PRJNA704804_bin_147_orig_refined.contigs | B113: SRR13782133 | C113: -13 | D113: -82.2 | E113: 0.020274863 | F113: Archaea | G113: Thermoplasmatota | H113: EX4484-6 | I113: EX4484-6_unclassified
A114: PRJNA704804_bin_147_orig_refined.contigs | B114: SRR13782134 | C114: -13 | D114: -82.2 | E114: 0.02259644 | F114: Archaea | G114: Thermoplasmatota | H114: EX4484-6 | I114: EX4484-6_unclassified
A115: PRJNA704804_bin_147_orig_refined.contigs | B115: SRR13782135 | C115: -13 | D115: -82.2 | E115: 0.007667926 | F115: Archaea | G115: Thermoplasmatota | H115: EX4484-6 | I115: EX4484-6_unclassified
A116: PRJNA704804_bin_147_orig_refined.contigs | B116: SRR14610254 | C116: -20.5 | D116: -70.7 | E116: 0.024717761 | F116: Archaea | G116: Thermoplasmatota | H116: EX4484-6 | I116: EX4484-6_unclassified
A117: PRJNA704804_bin_147_orig_refined.contigs | B117: SRR14610255 | C117: -20.5 | D117: -70.7 | E117: 0.03791015 | F117: Archaea | G117: Thermoplasmatota | H117: EX4484-6 | I117: EX4484-6_unclassified
A118: PRJNA704804_bin_147_orig_refined.contigs | B118: SRR16028404 | C118: -16.7 | D118: -79 | E118: 0.007457531 | F118: Archaea | G118: Thermoplasmatota | H118: EX4484-6 | I118: EX4484-6_unclassified
A119: PRJNA704804_bin_147_orig_refined.contigs | B119: SRR16028406 | C119: -16.7 | D119: -79 | E119: 0.007403855 | F119: Archaea | G119: Thermoplasmatota | H119: EX4484-6 | I119: EX4484-6_unclassified
A120: PRJNA704804_bin_147_orig_refined.contigs | B120: SRR16028407 | C120: -16.7 | D120: -79 | E120: 0.012242192 | F120: Archaea | G120: Thermoplasmatota | H120: EX4484-6 | I120: EX4484-6_unclassified
A121: PRJNA704804_bin_147_orig_refined.contigs | B121: SRR16028408 | C121: -16.7 | D121: -79 | E121: 0.008796043 | F121: Archaea | G121: Thermoplasmatota | H121: EX4484-6 | I121: EX4484-6_unclassified
A122: PRJNA704804_bin_147_orig_refined.contigs | B122: SRR16028409 | C122: -16.7 | D122: -79 | E122: 0.018885072 | F122: Archaea | G122: Thermoplasmatota | H122: EX4484-6 | I122: EX4484-6_unclassified
A123: PRJNA704804_bin_147_orig_refined.contigs | B123: SRR16028413 | C123: -16.7 | D123: -79 | E123: 0.008081079 | F123: Archaea | G123: Thermoplasmatota | H123: EX4484-6 | I123: EX4484-6_unclassified
A124: PRJNA704804_bin_147_orig_refined.contigs | B124: SRR16028415 | C124: -16.7 | D124: -79 | E124: 0.002844227 | F124: Archaea | G124: Thermoplasmatota | H124: EX4484-6 | I124: EX4484-6_unclassified
A125: PRJNA704804_bin_147_orig_refined.contigs | B125: SRR16028416 | C125: -16.7 | D125: -79 | E125: 0.005007237 | F125: Archaea | G125: Thermoplasmatota | H125: EX4484-6 | I125: EX4484-6_unclassified
A126: PRJNA704804_bin_147_orig_refined.contigs | B126: SRR3962468 | C126: 14.53 | D126: -118.77 | E126: 0.004778999 | F126: Archaea | G126: Thermoplasmatota | H126: EX4484-6 | I126: EX4484-6_unclassified
A127: PRJNA704804_bin_147_orig_refined.contigs | B127: SRR4465026 | C127: 17.0327 | D127: -106.5328 | E127: 0.002649948 | F127: Archaea | G127: Thermoplasmatota | H127: EX4484-6 | I127: EX4484-6_unclassified
A128: PRJNA704804_bin_147_orig_refined.contigs | B128: SRR4465028 | C128: 17.0327 | D128: -106.5328 | E128: 0.008629615 | F128: Archaea | G128: Thermoplasmatota | H128: EX4484-6 | I128: EX4484-6_unclassified
A129: PRJNA704804_bin_147_orig_refined.contigs | B129: SRR4465029 | C129: 17.0327 | D129: -106.5328 | E129: 0.013346479 | F129: Archaea | G129: Thermoplasmatota | H129: EX4484-6 | I129: EX4484-6_unclassified
A130: PRJNA704804_bin_147_orig_refined.contigs | B130: SRR4465030 | C130: 16.5163 | D130: -107.1421 | E130: 0.003668988 | F130: Archaea | G130: Thermoplasmatota | H130: EX4484-6 | I130: EX4484-6_unclassified
A131: PRJNA704804_bin_147_orig_refined.contigs | B131: SRR4465032 | C131: 16.5163 | D131: -107.1421 | E131: 0.001055798 | F131: Archaea | G131: Thermoplasmatota | H131: EX4484-6 | I131: EX4484-6_unclassified
A132: PRJNA704804_bin_147_orig_refined.contigs | B132: SRR4465033 | C132: 16.5163 | D132: -107.1421 | E132: 0.007644265 | F132: Archaea | G132: Thermoplasmatota | H132: EX4484-6 | I132: EX4484-6_unclassified
A133: PRJNA704804_bin_147_orig_refined.contigs | B133: SRR4465035 | C133: 17.0327 | D133: -106.5328 | E133: 0.003865008 | F133: Archaea | G133: Thermoplasmatota | H133: EX4484-6 | I133: EX4484-6_unclassified
A134: PRJNA704804_bin_147_orig_refined.contigs | B134: SRR4465036 | C134: 17.0327 | D134: -106.5328 | E134: 0.01065889 | F134: Archaea | G134: Thermoplasmatota | H134: EX4484-6 | I134: EX4484-6_unclassified
A135: PRJNA721298_bin_46_orig_refined.contigs | B135: SRR14219477 | C135: 58.84358 | D135: 17.544748 | E135: 0.014771209 | F135: Archaea | G135: Thermoplasmatota | H135: EX4484-6 | I135: EX4484-6
A136: PRJNA721298_bin_46_orig_refined.contigs | B136: SRR14219478 | C136: 58.84358 | D136: 17.544748 | E136: 0.011985649 | F136: Archaea | G136: Thermoplasmatota | H136: EX4484-6 | I136: EX4484-6
A137: PRJNA721298_bin_46_orig_refined.contigs | B137: SRR14219479 | C137: 58.84358 | D137: 17.544748 | E137: 0.014363956 | F137: Archaea | G137: Thermoplasmatota | H137: EX4484-6 | I137: EX4484-6
A138: PRJNA721298_bin_46_orig_refined.contigs | B138: SRR14219480 | C138: 58.84358 | D138: 17.544748 | E138: 0.021359034 | F138: Archaea | G138: Thermoplasmatota | H138: EX4484-6 | I138: EX4484-6
A139: PRJNA721298_bin_46_orig_refined.contigs | B139: SRR14219485 | C139: 57.264484 | D139: 16.48195 | E139: 0.008986874 | F139: Archaea | G139: Thermoplasmatota | H139: EX4484-6 | I139: EX4484-6
A140: PRJNA721298_bin_46_orig_refined.contigs | B140: SRR14219486 | C140: 57.264484 | D140: 16.48195 | E140: 0.009399591 | F140: Archaea | G140: Thermoplasmatota | H140: EX4484-6 | I140: EX4484-6
A141: PRJNA721298_bin_46_orig_refined.contigs | B141: SRR14219487 | C141: 57.264484 | D141: 16.48195 | E141: 0.01179779 | F141: Archaea | G141: Thermoplasmatota | H141: EX4484-6 | I141: EX4484-6
A142: PRJNA721298_bin_46_orig_refined.contigs | B142: SRR14219490 | C142: 58.84358 | D142: 17.544748 | E142: 0.01190351 | F142: Archaea | G142: Thermoplasmatota | H142: EX4484-6 | I142: EX4484-6
A143: PRJNA721298_bin_46_orig_refined.contigs | B143: SRR14219491 | C143: 58.84358 | D143: 17.544748 | E143: 0.012650974 | F143: Archaea | G143: Thermoplasmatota | H143: EX4484-6 | I143: EX4484-6
A144: PRJNA721298_bin_46_orig_refined.contigs | B144: SRR8403924 | C144: 63.291 | D144: 19.495 | E144: 0.0452897 | F144: Archaea | G144: Thermoplasmatota | H144: EX4484-6 | I144: EX4484-6
A145: PRJNA721298_bin_46_orig_refined.contigs | B145: SRR8943083 | C145: 57.21366 | D145: 19.508972 | E145: 0.006082005 | F145: Archaea | G145: Thermoplasmatota | H145: EX4484-6 | I145: EX4484-6
A146: PRJNA721298_bin_46_orig_refined.contigs | B146: SRR8943089 | C146: 57.21366 | D146: 19.508972 | E146: 0.00699543 | F146: Archaea | G146: Thermoplasmatota | H146: EX4484-6 | I146: EX4484-6
A147: PRJNA721298_bin_46_orig_refined.contigs | B147: SRR8943093 | C147: 57.21366 | D147: 19.508972 | E147: 0.013064037 | F147: Archaea | G147: Thermoplasmatota | H147: EX4484-6 | I147: EX4484-6
A148: PRJNA721298_bin_46_orig_refined.contigs | B148: SRR8943094 | C148: 57.21366 | D148: 19.508972 | E148: 0.012630778 | F148: Archaea | G148: Thermoplasmatota | H148: EX4484-6 | I148: EX4484-6
A149: PRJNA721298_bin_46_orig_refined.contigs | B149: SRR8943095 | C149: 57.21366 | D149: 19.508972 | E149: 0.011454954 | F149: Archaea | G149: Thermoplasmatota | H149: EX4484-6 | I149: EX4484-6
A150: PRJNA721298_bin_46_orig_refined.contigs | B150: SRR9068927 | C150: 59.8559 | D150: 23.26695 | E150: 0.043134633 | F150: Archaea | G150: Thermoplasmatota | H150: EX4484-6 | I150: EX4484-6
A151: PRJNA721298_bin_46_orig_refined.contigs | B151: SRR9068928 | C151: 59.8559 | D151: 23.26695 | E151: 0.04482781 | F151: Archaea | G151: Thermoplasmatota | H151: EX4484-6 | I151: EX4484-6
A152: PRJNA721298_bin_46_orig_refined.contigs | B152: SRR9068939 | C152: 59.8559 | D152: 23.26695 | E152: 0.045157373 | F152: Archaea | G152: Thermoplasmatota | H152: EX4484-6 | I152: EX4484-6
A153: PRJNA889212_bin_1_orig_refined.contigs | B153: SRR21856587 | C153: 56.242695 | D153: 10.3385 | E153: 0.011895986 | F153: Archaea | G153: Thermoplasmatota | H153: EX4484-6 | I153: EX4484-6
A154: PRJNA889212_bin_1_orig_refined.contigs | B154: SRR21856588 | C154: 56.242695 | D154: 10.3385 | E154: 0.010391386 | F154: Archaea | G154: Thermoplasmatota | H154: EX4484-6 | I154: EX4484-6
A155: PRJNA889212_bin_1_orig_refined.contigs | B155: SRR21856589 | C155: 56.242695 | D155: 10.3385 | E155: 0.012461507 | F155: Archaea | G155: Thermoplasmatota | H155: EX4484-6 | I155: EX4484-6
A156: PRJNA889212_bin_1_orig_refined.contigs | B156: SRR21856590 | C156: 56.242695 | D156: 10.3385 | E156: 0.019002091 | F156: Archaea | G156: Thermoplasmatota | H156: EX4484-6 | I156: EX4484-6
A157: PRJNA889212_bin_1_orig_refined.contigs | B157: SRR9068928 | C157: 59.8559 | D157: 23.26695 | E157: 0.006096636 | F157: Archaea | G157: Thermoplasmatota | H157: EX4484-6 | I157: EX4484-6
A158: PRJNA889212_bin_7_strict_refined.contigs | B158: SRR21856587 | C158: 56.242695 | D158: 10.3385 | E158: 0.018269734 | F158: Archaea | G158: Thermoplasmatota | H158: EX4484-6 | I158: EX4484-6
A159: PRJNA889212_bin_7_strict_refined.contigs | B159: SRR21856588 | C159: 56.242695 | D159: 10.3385 | E159: 0.015614528 | F159: Archaea | G159: Thermoplasmatota | H159: EX4484-6 | I159: EX4484-6
A160: PRJNA889212_bin_7_strict_refined.contigs | B160: SRR21856589 | C160: 56.242695 | D160: 10.3385 | E160: 0.029360456 | F160: Archaea | G160: Thermoplasmatota | H160: EX4484-6 | I160: EX4484-6
A161: PRJNA889212_bin_7_strict_refined.contigs | B161: SRR21856590 | C161: 56.242695 | D161: 10.3385 | E161: 0.044604953 | F161: Archaea | G161: Thermoplasmatota | H161: EX4484-6 | I161: EX4484-6
A162: SUTE22.1_SAMN10231904_MAG_00000012 | B162: SRR8062320 | C162: 10.617 | D162: -65.167 | E162: 0.09111676 | F162: Archaea | G162: Thermoplasmatota | H162: EX4484-6 | I162: EX4484-6_unclassified
A163: SUTE22.1_SAMN10231904_MAG_00000012 | B163: SRR8062321 | C163: 10.617 | D163: -65.167 | E163: 0.037161108 | F163: Archaea | G163: Thermoplasmatota | H163: EX4484-6 | I163: EX4484-6_unclassified
A164: SUTE22.1_SAMN10231904_MAG_00000012 | B164: SRR8062322 | C164: 10.617 | D164: -65.167 | E164: 0.008011995 | F164: Archaea | G164: Thermoplasmatota | H164: EX4484-6 | I164: EX4484-6_unclassified
A165: SUTE22.1_SAMN10231904_MAG_00000012 | B165: SRR8062329 | C165: 10.617 | D165: -65.167 | E165: 0.07915149 | F165: Archaea | G165: Thermoplasmatota | H165: EX4484-6 | I165: EX4484-6_unclassified
A166: SUTE22.1_SAMN10231904_MAG_00000012 | B166: SRR8062330 | C166: 10.617 | D166: -65.167 | E166: 0.059155982 | F166: Archaea | G166: Thermoplasmatota | H166: EX4484-6 | I166: EX4484-6_unclassified
A167: SUTE22.1_SAMN10231904_MAG_00000012 | B167: SRR8062331 | C167: 10.617 | D167: -65.167 | E167: 0.18944605 | F167: Archaea | G167: Thermoplasmatota | H167: EX4484-6 | I167: EX4484-6_unclassified
A168: SUTE22.1_SAMN10231904_MAG_00000012 | B168: SRR8062333 | C168: 10.617 | D168: -65.167 | E168: 0.034502998 | F168: Archaea | G168: Thermoplasmatota | H168: EX4484-6 | I168: EX4484-6_unclassified
A169: SUTE22.1_SAMN10231904_MAG_00000012 | B169: SRR8062343 | C169: 10.617 | D169: -65.167 | E169: 0.11975191 | F169: Archaea | G169: Thermoplasmatota | H169: EX4484-6 | I169: EX4484-6_unclassified
A170: SUTE22.1_SAMN10231904_MAG_00000012 | B170: SRR8062344 | C170: 10.617 | D170: -65.167 | E170: 0.18001175 | F170: Archaea | G170: Thermoplasmatota | H170: EX4484-6 | I170: EX4484-6_unclassified
A171: SUTE22.1_SAMN10231904_MAG_00000012 | B171: SRR8062346 | C171: 10.617 | D171: -65.167 | E171: 0.027007869 | F171: Archaea | G171: Thermoplasmatota | H171: EX4484-6 | I171: EX4484-6_unclassified
A172: SUTE22.1_SAMN10231904_MAG_00000012 | B172: SRR8062348 | C172: 10.617 | D172: -65.167 | E172: 0.021114659 | F172: Archaea | G172: Thermoplasmatota | H172: EX4484-6 | I172: EX4484-6_unclassified
A173: SUTE22.1_SAMN10231904_MAG_00000012 | B173: SRR8062349 | C173: 10.617 | D173: -65.167 | E173: 0.04629607 | F173: Archaea | G173: Thermoplasmatota | H173: EX4484-6 | I173: EX4484-6_unclassified
A174: SUTE22.1_SAMN10231904_MAG_00000012 | B174: SRR8062351 | C174: 10.617 | D174: -65.167 | E174: 0.024595335 | F174: Archaea | G174: Thermoplasmatota | H174: EX4484-6 | I174: EX4484-6_unclassified
A175: SUTE22.1_SAMN10231904_MAG_00000012 | B175: SRR9166041 | C175: 10.617 | D175: -65.167 | E175: 0.18956603 | F175: Archaea | G175: Thermoplasmatota | H175: EX4484-6 | I175: EX4484-6_unclassified
A176: SUTE22.1_SAMN10231904_MAG_00000012 | B176: SRR9166042 | C176: 10.617 | D176: -65.167 | E176: 0.17996088 | F176: Archaea | G176: Thermoplasmatota | H176: EX4484-6 | I176: EX4484-6_unclassified
A177: SUTE22.1_SAMN10231904_MAG_00000012 | B177: SRR9166043 | C177: 10.617 | D177: -65.167 | E177: 0.11973082 | F177: Archaea | G177: Thermoplasmatota | H177: EX4484-6 | I177: EX4484-6_unclassified
A178: SUTE22.1_SAMN10231904_MAG_00000012 | B178: SRR9166047 | C178: 10.617 | D178: -65.167 | E178: 0.07932979 | F178: Archaea | G178: Thermoplasmatota | H178: EX4484-6 | I178: EX4484-6_unclassified
A179: SUTE22.1_SAMN10231904_MAG_00000012 | B179: SRR9166048 | C179: 10.617 | D179: -65.167 | E179: 0.03462516 | F179: Archaea | G179: Thermoplasmatota | H179: EX4484-6 | I179: EX4484-6_unclassified
A180: SUTE22.1_SAMN10231904_MAG_00000012 | B180: SRR9166049 | C180: 10.617 | D180: -65.167 | E180: 0.05918989 | F180: Archaea | G180: Thermoplasmatota | H180: EX4484-6 | I180: EX4484-6_unclassified
A181: SUTE22.1_SAMN10231914_MAG_00000186 | B181: SRR8062320 | C181: 10.617 | D181: -65.167 | E181: 0.07311855 | F181: Archaea | G181: Thermoplasmatota | H181: EX4484-6 | I181: EX4484-6_unclassified
A182: SUTE22.1_SAMN10231914_MAG_00000186 | B182: SRR8062321 | C182: 10.617 | D182: -65.167 | E182: 0.11947904 | F182: Archaea | G182: Thermoplasmatota | H182: EX4484-6 | I182: EX4484-6_unclassified
A183: SUTE22.1_SAMN10231914_MAG_00000186 | B183: SRR8062322 | C183: 10.617 | D183: -65.167 | E183: 0.005864285 | F183: Archaea | G183: Thermoplasmatota | H183: EX4484-6 | I183: EX4484-6_unclassified
A184: SUTE22.1_SAMN10231914_MAG_00000186 | B184: SRR8062346 | C184: 10.617 | D184: -65.167 | E184: 0.15010428 | F184: Archaea | G184: Thermoplasmatota | H184: EX4484-6 | I184: EX4484-6_unclassified
A185: SUTE22.1_SAMN10231914_MAG_00000186 | B185: SRR8062348 | C185: 10.617 | D185: -65.167 | E185: 0.044051442 | F185: Archaea | G185: Thermoplasmatota | H185: EX4484-6 | I185: EX4484-6_unclassified
A186: SUTE22.1_SAMN10231914_MAG_00000186 | B186: SRR8062349 | C186: 10.617 | D186: -65.167 | E186: 0.16370629 | F186: Archaea | G186: Thermoplasmatota | H186: EX4484-6 | I186: EX4484-6_unclassified
A187: SUTE22.1_SAMN10231914_MAG_00000186 | B187: SRR8062351 | C187: 10.617 | D187: -65.167 | E187: 0.047398575 | F187: Archaea | G187: Thermoplasmatota | H187: EX4484-6 | I187: EX4484-6_unclassified
A188: SUTE22.1_SAMN10231914_MAG_00000292 | B188: SRR8062320 | C188: 10.617 | D188: -65.167 | E188: 0.19668095 | F188: Archaea | G188: Thermoplasmatota | H188: EX4484-6 | I188: EX4484-6_unclassified
A189: SUTE22.1_SAMN10231914_MAG_00000292 | B189: SRR8062321 | C189: 10.617 | D189: -65.167 | E189: 0.3196513 | F189: Archaea | G189: Thermoplasmatota | H189: EX4484-6 | I189: EX4484-6_unclassified
A190: SUTE22.1_SAMN10231914_MAG_00000292 | B190: SRR8062322 | C190: 10.617 | D190: -65.167 | E190: 0.00691155 | F190: Archaea | G190: Thermoplasmatota | H190: EX4484-6 | I190: EX4484-6_unclassified
A191: SUTE22.1_SAMN10231914_MAG_00000292 | B191: SRR8062329 | C191: 10.617 | D191: -65.167 | E191: 0.002076969 | F191: Archaea | G191: Thermoplasmatota | H191: EX4484-6 | I191: EX4484-6_unclassified
A192: SUTE22.1_SAMN10231914_MAG_00000292 | B192: SRR8062343 | C192: 10.617 | D192: -65.167 | E192: 0.005941527 | F192: Archaea | G192: Thermoplasmatota | H192: EX4484-6 | I192: EX4484-6_unclassified
A193: SUTE22.1_SAMN10231914_MAG_00000292 | B193: SRR8062346 | C193: 10.617 | D193: -65.167 | E193: 0.03352026 | F193: Archaea | G193: Thermoplasmatota | H193: EX4484-6 | I193: EX4484-6_unclassified
A194: SUTE22.1_SAMN10231914_MAG_00000292 | B194: SRR8062348 | C194: 10.617 | D194: -65.167 | E194: 0.04071477 | F194: Archaea | G194: Thermoplasmatota | H194: EX4484-6 | I194: EX4484-6_unclassified
A195: SUTE22.1_SAMN10231914_MAG_00000292 | B195: SRR8062349 | C195: 10.617 | D195: -65.167 | E195: 0.04158564 | F195: Archaea | G195: Thermoplasmatota | H195: EX4484-6 | I195: EX4484-6_unclassified
A196: SUTE22.1_SAMN10231914_MAG_00000292 | B196: SRR8062351 | C196: 10.617 | D196: -65.167 | E196: 0.049933482 | F196: Archaea | G196: Thermoplasmatota | H196: EX4484-6 | I196: EX4484-6_unclassified
A197: SUTE22.1_SAMN10231914_MAG_00000292 | B197: SRR9166043 | C197: 10.617 | D197: -65.167 | E197: 0.005946261 | F197: Archaea | G197: Thermoplasmatota | H197: EX4484-6 | I197: EX4484-6_unclassified
A198: SUTE22.1_SAMN10231914_MAG_00000292 | B198: SRR9166047 | C198: 10.617 | D198: -65.167 | E198: 0.002090684 | F198: Archaea | G198: Thermoplasmatota | H198: EX4484-6 | I198: EX4484-6_unclassified
A199: TARA_SAMEA2620113_MAG_00000097 | B199: ERR599031 | C199: 20.8457 | D199: 63.5851 | E199: 0.008877697 | F199: Archaea | G199: Thermoplasmatota | H199: EX4484-6 | I199: EX4484-6_unclassified
A200: TARA_SAMEA2620113_MAG_00000097 | B200: ERR599037 | C200: 18.7341 | D200: 66.3896 | E200: 0.01958114 | F200: Archaea | G200: Thermoplasmatota | H200: EX4484-6 | I200: EX4484-6_unclassified
A201: TARA_SAMEA2620113_MAG_00000097 | B201: ERR599062 | C201: 20.8457 | D201: 63.5851 | E201: 0.008886789 | F201: Archaea | G201: Thermoplasmatota | H201: EX4484-6 | I201: EX4484-6_unclassified
... 12 more rows

Sheet S7
A1: S7. List of all unique metagenomic runs, in which EX4484-6 MAGs were found with meta data derived from ENA of the sampling location and environment details.
A3: run_accession | B3: environment_detailed | C3: info_sampling | D3: water_depth | E3: filter_category | F3: country | G3: isolation_source | H3: lat | I3: location | J3: lon | K3: sample_description | L3: sample_title | M3: scientific_name | N3: sample_accession | O3: study_accession | P3: parent_study
A4: ERR599004 | B4: marine water | C4: Oxygen Minimum Zone 440-458 m, 0.22-3 um | D4: 450 | E4: free-living | H4: 6.3559 | I4: 6.3559 N 103.0598 W | J4: -103.0598 | K4: &quot;This sample (TARA_B100002003) was collected during the Tara Oceans expedition (2009-2013) at station TARA_138 (latitudeN=6.3559, longitudeE=-103.0598) on date/time=2011-12-11T20:37:22, using a ROSETTE sampler with CTD (sbe9C) and 10 Niskin bottles. The sample material (saline water (ENVO:00002010), including plankton (ENVO:xxxxxxxx)) was collected at a depth of 440-458 m, targeting a mesopelagic zone (ENVO:00000213) in the marine biome (ENVO:00000447). The sample was size-fractionated (0.22-3 micrometres), preserved on board with RNA-Later, and stored in liquid nitrogen for later detection of prokaryote nucleic acid sequences by pyrosequencing methods, and for later metagenomics/transcriptomics analysis. This sample has replicate sample(s): TARA_B100002004.&quot; | L4: TARA_20111211T2040Z_138_Combined-EVENTS_CAST_MB_M_(450 m)_BACT_NUC-RNA(10L-or-10min)_W0.22-3_TARA_B100002003 | M4: marine metagenome | N4: SAMEA2623390 | O4: PRJEB1787 | P4: PRJEB402
A5: ERR599015 | B5: marine water | C5: Oxygen Minimum Zone 370-379 m, 0.22-3 um | D5: 375 | E5: free-living | H5: 14.2025 | I5: 14.2025 N 116.6433 W | J5: -116.6433 | K5: &quot;This sample (TARA_B100001971) was collected during the Tara Oceans expedition (2009-2013) at station TARA_137 (latitudeN=14.2025, longitudeE=-116.6433) on date/time=2011-12-03T14:31:20, using a ROSETTE sampler with CTD (sbe9C) and 10 Niskin bottles. The sample material (saline water (ENVO:00002010), including plankton (ENVO:xxxxxxxx)) was collected at a depth of 370-379 m, targeting a mesopelagic zone (ENVO:00000213) in the marine biome (ENVO:00000447). The sample was size-fractionated (0.22-3 micrometres), preserved on board with RNA-Later, and stored in liquid nitrogen for later detection of prokaryote nucleic acid sequences by pyrosequencing methods, and for later metagenomics/transcriptomics analysis. This sample has replicate sample(s): TARA_B100001972.&quot; | L5: TARA_20111203T1433Z_137_Combined-EVENTS_CAST_MB_M_(375 m)_BACT_NUC-RNA(10L-or-10min)_W0.22-3_TARA_B100001971 | M5: marine metagenome | N5: SAMEA2623314 | O5: PRJEB1787 | P5: PRJEB402
A6: ERR599031 | B6: marine water | C6: Oxygen Minimum Zone 596-605 m, 0.22-1.6 um | D6: 600 | E6: free-living | H6: 20.8457 | I6: 20.8457 N 63.5851 E | J6: 63.5851 | K6: &quot;This sample (TARA_B100000315) was collected during the Tara Oceans expedition (2009-2013) at station TARA_037 (latitudeN=20.8457, longitudeE=63.5851) on date/time=2010-03-12T17:08:47, using a ROSETTE sampler with CTD (sbe9C) and 10 Niskin bottles. The sample material (saline water (ENVO:00002010), including plankton (ENVO:xxxxxxxx)) was collected at a depth of 596-605 m, targeting a mesopelagic zone (ENVO:00000213) &amp; marine oxygen minimum zone (ENVO:01000065) in the marine biome (ENVO:00000447). The sample was size-fractionated (0.22-1.6 micrometres), preserved on board with RNA-Later, and stored in liquid nitrogen for later detection of prokaryote nucleic acid sequences by pyrosequencing methods, and for later metagenomics/transcriptomics analysis. This sample has replicate sample(s): TARA_B100000316.&quot; | L6: TARA_20100313T0507Z_037_Combined-EVENTS_CAST_MB_M_(600 m)_BACT_NUC-RNA(10L-or-10min)_W0.22-1.6_TARA_B100000315 | M6: marine metagenome | N6: SAMEA2619970 | O6: PRJEB1787 | P6: PRJEB402
A7: ERR599037 | B7: marine water | C7: Oxygen Minimum Zone 262-280 m, 0.22-1.6 um | D7: 270 | E7: free-living | H7: 18.7341 | I7: 18.7341 N 66.3896 E | J7: 66.3896 | K7: &quot;This sample (TARA_B100000097) was collected during the Tara Oceans expedition (2009-2013) at station TARA_039 (latitudeN=18.7341, longitudeE=66.3896) on date/time=2010-03-20T08:15:28, using a ROSETTE sampler with CTD (sbe9C) and 10 Niskin bottles. The sample material (saline water (ENVO:00002010), including plankton (ENVO:xxxxxxxx)) was collected at a depth of 262-280 m, targeting a mesopelagic zone (ENVO:00000213) &amp; marine oxygen minimum zone (ENVO:01000065) in the marine biome (ENVO:00000447). The sample was size-fractionated (0.22-1.6 micrometres), and stored in liquid nitrogen for later detection of prokaryote nucleic acid sequences by pyrosequencing methods, and for later metagenomics analysis. This sample has replicate sample(s): TARA_B100000098.&quot; | L7: TARA_20100320T0817Z_039_Combined-EVENTS_CAST_MB_M_(270 m)_BACT_NUC-DNA(100L)_W0.22-1.6_TARA_B100000097 | M7: marine metagenome | N7: SAMEA2620097 | O7: PRJEB1787 | P7: PRJEB402
A8: ERR599051 | B8: marine water | C8: Oxygen Minimum Zone 440-458 m, 0.22-3 um | D8: 450 | E8: free-living | H8: 6.3559 | I8: 6.3559 N 103.0598 W | J8: -103.0598 | K8: &quot;This sample (TARA_B100002003) was collected during the Tara Oceans expedition (2009-2013) at station TARA_138 (latitudeN=6.3559, longitudeE=-103.0598) on date/time=2011-12-11T20:37:22, using a ROSETTE sampler with CTD (sbe9C) and 10 Niskin bottles. The sample material (saline water (ENVO:00002010), including plankton (ENVO:xxxxxxxx)) was collected at a depth of 440-458 m, targeting a mesopelagic zone (ENVO:00000213) in the marine biome (ENVO:00000447). The sample was size-fractionated (0.22-3 micrometres), preserved on board with RNA-Later, and stored in liquid nitrogen for later detection of prokaryote nucleic acid sequences by pyrosequencing methods, and for later metagenomics/transcriptomics analysis. This sample has replicate sample(s): TARA_B100002004.&quot; | L8: TARA_20111211T2040Z_138_Combined-EVENTS_CAST_MB_M_(450 m)_BACT_NUC-RNA(10L-or-10min)_W0.22-3_TARA_B100002003 | M8: marine metagenome | N8: SAMEA2623390 | O8: PRJEB1787 | P8: PRJEB402
A9: ERR599060 | B9: marine water | C9: Oxygen Minimum Zone 440-458 m, 0.22-3 um | D9: 450 | E9: free-living | H9: 6.3559 | I9: 6.3559 N 103.0598 W | J9: -103.0598 | K9: &quot;This sample (TARA_B100002003) was collected during the Tara Oceans expedition (2009-2013) at station TARA_138 (latitudeN=6.3559, longitudeE=-103.0598) on date/time=2011-12-11T20:37:22, using a ROSETTE sampler with CTD (sbe9C) and 10 Niskin bottles. The sample material (saline water (ENVO:00002010), including plankton (ENVO:xxxxxxxx)) was collected at a depth of 440-458 m, targeting a mesopelagic zone (ENVO:00000213) in the marine biome (ENVO:00000447). The sample was size-fractionated (0.22-3 micrometres), preserved on board with RNA-Later, and stored in liquid nitrogen for later detection of prokaryote nucleic acid sequences by pyrosequencing methods, and for later metagenomics/transcriptomics analysis. This sample has replicate sample(s): TARA_B100002004.&quot; | L9: TARA_20111211T2040Z_138_Combined-EVENTS_CAST_MB_M_(450 m)_BACT_NUC-RNA(10L-or-10min)_W0.22-3_TARA_B100002003 | M9: marine metagenome | N9: SAMEA2623390 | O9: PRJEB1787 | P9: PRJEB402
A10: ERR599062 | B10: marine water | C10: Oxygen Minimum Zone 596-605 m, 0.22-1.6 um | D10: 600 | E10: free-living | H10: 20.8457 | I10: 20.8457 N 63.5851 E | J10: 63.5851 | K10: &quot;This sample (TARA_B100000315) was collected during the Tara Oceans expedition (2009-2013) at station TARA_037 (latitudeN=20.8457, longitudeE=63.5851) on date/time=2010-03-12T17:08:47, using a ROSETTE sampler with CTD (sbe9C) and 10 Niskin bottles. The sample material (saline water (ENVO:00002010), including plankton (ENVO:xxxxxxxx)) was collected at a depth of 596-605 m, targeting a mesopelagic zone (ENVO:00000213) &amp; marine oxygen minimum zone (ENVO:01000065) in the marine biome (ENVO:00000447). The sample was size-fractionated (0.22-1.6 micrometres), preserved on board with RNA-Later, and stored in liquid nitrogen for later detection of prokaryote nucleic acid sequences by pyrosequencing methods, and for later metagenomics/transcriptomics analysis. This sample has replicate sample(s): TARA_B100000316.&quot; | L10: TARA_20100313T0507Z_037_Combined-EVENTS_CAST_MB_M_(600 m)_BACT_NUC-RNA(10L-or-10min)_W0.22-1.6_TARA_B100000315 | M10: marine metagenome | N10: SAMEA2619970 | O10: PRJEB1787 | P10: PRJEB402
A11: ERR599076 | B11: marine water | C11: Oxygen Minimum Zone 370-379 m, 0.22-3 um | D11: 375 | E11: free-living | H11: 14.2025 | I11: 14.2025 N 116.6433 W | J11: -116.6433 | K11: &quot;This sample (TARA_B100001971) was collected during the Tara Oceans expedition (2009-2013) at station TARA_137 (latitudeN=14.2025, longitudeE=-116.6433) on date/time=2011-12-03T14:31:20, using a ROSETTE sampler with CTD (sbe9C) and 10 Niskin bottles. The sample material (saline water (ENVO:00002010), including plankton (ENVO:xxxxxxxx)) was collected at a depth of 370-379 m, targeting a mesopelagic zone (ENVO:00000213) in the marine biome (ENVO:00000447). The sample was size-fractionated (0.22-3 micrometres), preserved on board with RNA-Later, and stored in liquid nitrogen for later detection of prokaryote nucleic acid sequences by pyrosequencing methods, and for later metagenomics/transcriptomics analysis. This sample has replicate sample(s): TARA_B100001972.&quot; | L11: TARA_20111203T1433Z_137_Combined-EVENTS_CAST_MB_M_(375 m)_BACT_NUC-RNA(10L-or-10min)_W0.22-3_TARA_B100001971 | M11: marine metagenome | N11: SAMEA2623314 | O11: PRJEB1787 | P11: PRJEB402
A12: ERR599127 | B12: marine water | C12: Oxygen Minimum Zone 370-379 m, 0.22-3 um | D12: 375 | E12: free-living | H12: 14.2025 | I12: 14.2025 N 116.6433 W | J12: -116.6433 | K12: &quot;This sample (TARA_B100001971) was collected during the Tara Oceans expedition (2009-2013) at station TARA_137 (latitudeN=14.2025, longitudeE=-116.6433) on date/time=2011-12-03T14:31:20, using a ROSETTE sampler with CTD (sbe9C) and 10 Niskin bottles. The sample material (saline water (ENVO:00002010), including plankton (ENVO:xxxxxxxx)) was collected at a depth of 370-379 m, targeting a mesopelagic zone (ENVO:00000213) in the marine biome (ENVO:00000447). The sample was size-fractionated (0.22-3 micrometres), preserved on board with RNA-Later, and stored in liquid nitrogen for later detection of prokaryote nucleic acid sequences by pyrosequencing methods, and for later metagenomics/transcriptomics analysis. This sample has replicate sample(s): TARA_B100001972.&quot; | L12: TARA_20111203T1433Z_137_Combined-EVENTS_CAST_MB_M_(375 m)_BACT_NUC-RNA(10L-or-10min)_W0.22-3_TARA_B100001971 | M12: marine metagenome | N12: SAMEA2623314 | O12: PRJEB1787 | P12: PRJEB402
A13: ERR599152 | B13: marine water | C13: Oxygen Minimum Zone 370-379 m, 0.22-3 um | D13: 375 | E13: free-living | H13: 14.2025 | I13: 14.2025 N 116.6433 W | J13: -116.6433 | K13: &quot;This sample (TARA_B100001971) was collected during the Tara Oceans expedition (2009-2013) at station TARA_137 (latitudeN=14.2025, longitudeE=-116.6433) on date/time=2011-12-03T14:31:20, using a ROSETTE sampler with CTD (sbe9C) and 10 Niskin bottles. The sample material (saline water (ENVO:00002010), including plankton (ENVO:xxxxxxxx)) was collected at a depth of 370-379 m, targeting a mesopelagic zone (ENVO:00000213) in the marine biome (ENVO:00000447). The sample was size-fractionated (0.22-3 micrometres), preserved on board with RNA-Later, and stored in liquid nitrogen for later detection of prokaryote nucleic acid sequences by pyrosequencing methods, and for later metagenomics/transcriptomics analysis. This sample has replicate sample(s): TARA_B100001972.&quot; | L13: TARA_20111203T1433Z_137_Combined-EVENTS_CAST_MB_M_(375 m)_BACT_NUC-RNA(10L-or-10min)_W0.22-3_TARA_B100001971 | M13: marine metagenome | N13: SAMEA2623314 | O13: PRJEB1787 | P13: PRJEB402
A14: ERR599172 | B14: marine water | C14: Oxygen Minimum Zone 262-280 m, 0.22-1.6 um | D14: 270 | E14: free-living | H14: 18.7341 | I14: 18.7341 N 66.3896 E | J14: 66.3896 | K14: &quot;This sample (TARA_B100000097) was collected during the Tara Oceans expedition (2009-2013) at station TARA_039 (latitudeN=18.7341, longitudeE=66.3896) on date/time=2010-03-20T08:15:28, using a ROSETTE sampler with CTD (sbe9C) and 10 Niskin bottles. The sample material (saline water (ENVO:00002010), including plankton (ENVO:xxxxxxxx)) was collected at a depth of 262-280 m, targeting a mesopelagic zone (ENVO:00000213) &amp; marine oxygen minimum zone (ENVO:01000065) in the marine biome (ENVO:00000447). The sample was size-fractionated (0.22-1.6 micrometres), and stored in liquid nitrogen for later detection of prokaryote nucleic acid sequences by pyrosequencing methods, and for later metagenomics analysis. This sample has replicate sample(s): TARA_B100000098.&quot; | L14: TARA_20100320T0817Z_039_Combined-EVENTS_CAST_MB_M_(270 m)_BACT_NUC-DNA(100L)_W0.22-1.6_TARA_B100000097 | M14: marine metagenome | N14: SAMEA2620097 | O14: PRJEB1787 | P14: PRJEB402
A15: ERR599175 | B15: marine water | C15: Oxygen Minimum Zone 440-458 m, 0.22-3 um | D15: 450 | E15: free-living | H15: 6.3559 | I15: 6.3559 N 103.0598 W | J15: -103.0598 | K15: &quot;This sample (TARA_B100002003) was collected during the Tara Oceans expedition (2009-2013) at station TARA_138 (latitudeN=6.3559, longitudeE=-103.0598) on date/time=2011-12-11T20:37:22, using a ROSETTE sampler with CTD (sbe9C) and 10 Niskin bottles. The sample material (saline water (ENVO:00002010), including plankton (ENVO:xxxxxxxx)) was collected at a depth of 440-458 m, targeting a mesopelagic zone (ENVO:00000213) in the marine biome (ENVO:00000447). The sample was size-fractionated (0.22-3 micrometres), preserved on board with RNA-Later, and stored in liquid nitrogen for later detection of prokaryote nucleic acid sequences by pyrosequencing methods, and for later metagenomics/transcriptomics analysis. This sample has replicate sample(s): TARA_B100002004.&quot; | L15: TARA_20111211T2040Z_138_Combined-EVENTS_CAST_MB_M_(450 m)_BACT_NUC-RNA(10L-or-10min)_W0.22-3_TARA_B100002003 | M15: marine metagenome | N15: SAMEA2623390 | O15: PRJEB1787 | P15: PRJEB402
A16: SRR10556723 | B16: marine water | C16: Oxygen Minimum Zone 400 m, 0.2-1.6 um | D16: 400 | E16: free-living | F16: Pacific Ocean: Eastern Tropical North Pacific | G16: Seawater from oxygen minimum zone | H16: 20.3333 | I16: 20.3333 N 107.0 W | J16: -107 | K16: Marine microbial and viral communities from oxygen minimum zone, Eastern Pacific Ocean - ETNP2014_SV_400_PacBio MetaG | L16: Marine microbial and viral communities from oxygen minimum zone, Eastern Pacific Ocean - ETNP2014_SV_400_PacBio MetaG | M16: marine metagenome | N16: SAMN09202732 | O16: PRJNA465919
A17: SRR10556728 | B17: marine water | C17: Oxygen Minimum Zone 150 m, 0.2-1.6 um | D17: 150 | E17: free-living | F17: Pacific Ocean: Eastern Tropical North Pacific | G17: Seawater from oxygen minimum zone | H17: 18.2 | I17: 18.2 N 104.2 W | J17: -104.2 | K17: Marine microbial and viral communities from oxygen minimum zone, Eastern Pacific Ocean - ETNP2014_SV_150_PacBio MetaG | L17: Marine microbial and viral communities from oxygen minimum zone, Eastern Pacific Ocean - ETNP2014_SV_150_PacBio MetaG | M17: marine metagenome | N17: SAMN09200275 | O17: PRJNA465918
A18: SRR11743108 | B18: marine water | C18: Oxygen Minimum Zone 120 m | D18: 120 | E18: no meta data available | F18: Pacific Ocean:North Pacific Ocean | G18: untreated seawater | H18: 18.6893 | I18: 18.6893 N 104.4164 W | J18: -104.4164 | K18: Seawater microbial communities from eastern tropical North Pacific Ocean | L18: Seawater microbial communities from eastern tropical North Pacific Ocean - AMALJGI-DNA-2 | M18: seawater metagenome | N18: SAMN14515348 | O18: PRJNA621291
A19: SRR11744890 | B19: marine water | C19: Oxygen Minimum Zone 215 m | D19: 215 | E19: no meta data available | F19: Pacific Ocean:North Pacific Ocean | G19: untreated seawater | H19: 17.206 | I19: 17.206 N 110.7114 W | J19: -110.7114 | K19: Seawater microbial communities from eastern tropical North Pacific Ocean | L19: Seawater microbial communities from eastern tropical North Pacific Ocean - AMALJGI-DNA-8 | M19: seawater metagenome | N19: SAMN14514934 | O19: PRJNA621297
A20: SRR11744943 | B20: marine water | C20: Oxygen Minimum Zone 150 m | D20: 150 | E20: no meta data available | F20: Indian Ocean: Arabian Sea | G20: untreated seawater | H20: 15.15 | I20: 15.15 N 64.0 E | J20: 64 | K20: Seawater microbial communities from, Arabian Sea, Indian Ocean | L20: Seawater microbial communities from, Arabian Sea, Indian Ocean - AMALJGI-DNA-10 | M20: seawater metagenome | N20: SAMN14515068 | O20: PRJNA621299
A21: SRR11745179 | B21: marine water | C21: Oxygen Minimum Zone 200 m | D21: 200 | E21: no meta data available | F21: Indian Ocean: Arabian Sea | G21: untreated seawater | H21: 15.15 | I21: 15.15 N 64.0 E | J21: 64 | K21: Seawater microbial communities from, Arabian Sea, Indian Ocean | L21: Seawater microbial communities from, Arabian Sea, Indian Ocean - AMALJGI-DNA-11 | M21: seawater metagenome | N21: SAMN14514822 | O21: PRJNA621300
A22: SRR11791037 | B22: marine water | C22: Oxygen Minimum Zone 400 m | D22: 400 | E22: no meta data available | F22: Indian Ocean: Arabian Sea | G22: untreated seawater | H22: 15.15 | I22: 15.15 N 64.0 E | J22: 64 | K22: Seawater microbial communities from, Arabian Sea, Indian Ocean | L22: Seawater microbial communities from, Arabian Sea, Indian Ocean - AMALJGI-DNA-12 | M22: seawater metagenome | N22: SAMN14515454 | O22: PRJNA621301
A23: SRR11826758 | B23: marine water | C23: Oxygen Minimum Zone 200 m | D23: 200 | E23: no meta data available | F23: Pacific Ocean:North Pacific Ocean | G23: untreated seawater | H23: 18.6893 | I23: 18.6893 N 104.4164 W | J23: -104.4164 | K23: Seawater microbial communities from eastern tropical North Pacific Ocean | L23: Seawater microbial communities from eastern tropical North Pacific Ocean - AMALJGI-DNA-3 | M23: seawater metagenome | N23: SAMN14515902 | O23: PRJNA621292
A24: SRR11826814 | B24: marine water | C24: Oxygen Minimum Zone 185 m | D24: 185 | E24: no meta data available | F24: Pacific Ocean:North Pacific Ocean | G24: untreated seawater | H24: 17.206 | I24: 17.206 N 110.7114 W | J24: -110.7114 | K24: Seawater microbial communities from eastern tropical North Pacific Ocean | L24: Seawater microbial communities from eastern tropical North Pacific Ocean - AMALJGI-DNA-7 | M24: seawater metagenome | N24: SAMN14515069 | O24: PRJNA621296
A25: SRR11923209 | B25: marine water | C25: Oxygen Minimum Zone 180 m | D25: 180 | E25: bulk | F25: Pacific Ocean | G25: seawater at 180m depth at Station 3 | H25: 16 | I25: 16.0 N 110.0 W | J25: -110 | K25: This sample has been submitted by pda|jmbeman on 2021-06-02; marine metagenome | L25: This sample has been submitted by pda|jmbeman on 2021-06-02; marine metagenome | M25: marine metagenome | N25: SAMN15000295 | O25: PRJNA634212
A26: SRR11923212 | B26: marine water | C26: Oxygen Minimum Zone 160 m | D26: 160 | E26: bulk | F26: Pacific Ocean | G26: seawater at 160m depth at Station 2 | H26: 16.5 | I26: 16.5 N 107.2 W | J26: -107.2 | K26: This sample has been submitted by pda|jmbeman on 2021-06-02; marine metagenome | L26: This sample has been submitted by pda|jmbeman on 2021-06-02; marine metagenome | M26: marine metagenome | N26: SAMN15000292 | O26: PRJNA634212
A27: SRR11923215 | B27: marine water | C27: Oxygen Minimum Zone 100 m | D27: 100 | E27: bulk | F27: Pacific Ocean | G27: seawater at 100m depth at Station 1 | H27: 20.5 | I27: 20.5 N 106.5 W | J27: -106.5 | K27: This sample has been submitted by pda|jmbeman on 2021-06-02; marine metagenome | L27: This sample has been submitted by pda|jmbeman on 2021-06-02; marine metagenome | M27: marine metagenome | N27: SAMN15000289 | O27: PRJNA634212
A28: SRR12424656 | B28: marine water | C28: Oxygen Minimum Zone 100 m, particle attached | D28: 100 | E28: particle attached | F28: Mexico: oxygen minimum zone off of Manzanillo, Mexico | G28: ocean water | H28: 18.9 | I28: 18.9 N 104.9 W | J28: -104.9 | K28: ETNP_2013_st6_depth100m_particle_attached | L28: ETNP_2013_st6_depth100m_particle_attached | M28: marine metagenome | N28: SAMN15776834 | O28: PRJNA632347
A29: SRR12426445 | B29: marine water | C29: Oxygen Minimum Zone | D29: 300 | E29: particle attached | F29: Mexico: oxygen minimum zone off of Manzanillo, Mexico | G29: ocean water | H29: 18.92 | I29: 18.92 N 108.8 W | J29: -108.8 | K29: ETNP13S02MG300PF | L29: ETNP13S02MG300PF | M29: marine metagenome | N29: SAMN15782434 | O29: PRJNA632347
A30: SRR12430884 | B30: marine water | C30: Oxygen Minimum Zone | D30: 200 | E30: free-living | F30: Mexico: oxygen minimum zone off of Manzanillo, Mexico | G30: marine waters | H30: 18.92 | I30: 18.92 N 104.8 W | J30: -104.8 | K30: ETNP14S06D19MG200SV | L30: ETNP14S06D19MG200SV | M30: marine metagenome | N30: SAMN15793044 | O30: PRJNA632347
A31: SRR12936904 | B31: marine water | C31: seawater 16 m | D31: 16 | E31: no meta data available | F31: Pacific Ocean:North Pacific Ocean | G31: untreated seawater | H31: 18 | I31: 18.0 N 102.0 W | J31: -102 | K31: Seawater microbial communities from eastern tropical North Pacific Ocean | L31: Seawater microbial communities from eastern tropical North Pacific Ocean - AMALJGI-DNA-15 | M31: seawater metagenome | N31: SAMN15740749 | O31: PRJNA653158
A32: SRR12937698 | B32: marine water | C32: seawater 850 m | D32: 850 | E32: no meta data available | F32: Pacific Ocean:North Pacific Ocean | G32: untreated seawater | H32: 16 | I32: 16.0 N 105.0 W | J32: -105 | K32: Seawater microbial communities from eastern tropical North Pacific Ocean | L32: Seawater microbial communities from eastern tropical North Pacific Ocean - AMALJGI-DNA-20 | M32: seawater metagenome | N32: SAMN15741257 | O32: PRJNA653162
A33: SRR13782122 | B33: marine water | C33: Oxygen Deficient Zone 200m, 0.2 um | D33: 200 | E33: bulk | F33: Pacific Ocean | G33: marine; 200m at St9 in the ETSP 2013 Oxygen Deficient Zone | H33: -13 | I33: 13.0 S 82.2 W | J33: -82.2 | K33: Metagenome from 200m at St9 in the ETSP 2013 Oxygen Deficient Zone | L33: Metagenome from 200m at St9 in the ETSP 2013 Oxygen Deficient Zone | M33: marine metagenome | N33: SAMN18055981 | O33: PRJNA704804
A34: SRR13782123 | B34: marine water | C34: Oxygen Deficient Zone 175m, 0.2 um | D34: 175 | E34: bulk | F34: Pacific Ocean | G34: marine; 175m at St9 in the ETSP 2013 Oxygen Deficient Zone | H34: -13 | I34: 13.0 S 82.2 W | J34: -82.2 | K34: Metagenome from 175m at St9 in the ETSP 2013 Oxygen Deficient Zone | L34: Metagenome from 175m at St9 in the ETSP 2013 Oxygen Deficient Zone | M34: marine metagenome | N34: SAMN18055980 | O34: PRJNA704804
A35: SRR13782124 | B35: marine water | C35: Oxygen Deficient Zone 160m, 0.2 um | D35: 160 | E35: bulk | F35: Pacific Ocean | G35: marine; 160m at St9 in the ETSP 2013 Oxygen Deficient Zone | H35: -13 | I35: 13.0 S 82.2 W | J35: -82.2 | K35: Metagenome from 160m at St9 in the ETSP 2013 Oxygen Deficient Zone | L35: Metagenome from 160m at St9 in the ETSP 2013 Oxygen Deficient Zone | M35: marine metagenome | N35: SAMN18055979 | O35: PRJNA704804
A36: SRR13782125 | B36: marine water | C36: Oxygen Deficient Zone 150m, 0.2 um | D36: 150 | E36: bulk | F36: Pacific Ocean | G36: marine; 150m at St9 in the ETSP 2013 Oxygen Deficient Zone | H36: -13 | I36: 13.0 S 82.2 W | J36: -82.2 | K36: Metagenome from 150m at St9 in the ETSP 2013 Oxygen Deficient Zone | L36: Metagenome from 150m at St9 in the ETSP 2013 Oxygen Deficient Zone | M36: marine metagenome | N36: SAMN18055978 | O36: PRJNA704804
A37: SRR13782126 | B37: marine water | C37: Oxygen Deficient Zone 130m, 0.2 um | D37: 130 | E37: bulk | F37: Pacific Ocean | G37: marine; 130m at St9 in the ETSP 2013 Oxygen Deficient Zone | H37: -13 | I37: 13.0 S 82.2 W | J37: -82.2 | K37: Metagenome from 130m at St9 in the ETSP 2013 Oxygen Deficient Zone | L37: Metagenome from 130m at St9 in the ETSP 2013 Oxygen Deficient Zone | M37: marine metagenome | N37: SAMN18055977 | O37: PRJNA704804
A38: SRR13782127 | B38: marine water | C38: Oxygen Deficient Zone 125m, 0.2 um | D38: 125 | E38: bulk | F38: Pacific Ocean | G38: marine; 125m at St9 in the ETSP 2013 Oxygen Deficient Zone | H38: -13 | I38: 13.0 S 82.2 W | J38: -82.2 | K38: Metagenome from 125m at St9 in the ETSP 2013 Oxygen Deficient Zone | L38: Metagenome from 125m at St9 in the ETSP 2013 Oxygen Deficient Zone | M38: marine metagenome | N38: SAMN18055976 | O38: PRJNA704804
A39: SRR13782128 | B39: marine water | C39: Oxygen Deficient Zone 120m, 0.2 um | D39: 120 | E39: bulk | F39: Pacific Ocean | G39: marine; 120m at St9 in the ETSP 2013 Oxygen Deficient Zone | H39: -13 | I39: 13.0 S 82.2 W | J39: -82.2 | K39: Metagenome from 120m at St9 in the ETSP 2013 Oxygen Deficient Zone | L39: Metagenome from 120m at St9 in the ETSP 2013 Oxygen Deficient Zone | M39: marine metagenome | N39: SAMN18055975 | O39: PRJNA704804
A40: SRR13782130 | B40: marine water | C40: Oxygen Deficient Zone 275m, 0.2 um | D40: 275 | E40: bulk | F40: Pacific Ocean | G40: marine; 275m at St9 in the ETSP 2013 Oxygen Deficient Zone | H40: -13 | I40: 13.0 S 82.2 W | J40: -82.2 | K40: Metagenome from 275m at St9 in the ETSP 2013 Oxygen Deficient Zone | L40: Metagenome from 275m at St9 in the ETSP 2013 Oxygen Deficient Zone | M40: marine metagenome | N40: SAMN18055987 | O40: PRJNA704804
A41: SRR13782132 | B41: marine water | C41: Oxygen Deficient Zone 350m, 0.2 um | D41: 350 | E41: bulk | F41: Pacific Ocean | G41: marine; 350m at St9 in the ETSP 2013 Oxygen Deficient Zone | H41: -13 | I41: 13.0 S 82.2 W | J41: -82.2 | K41: Metagenome from 350m at St9 in the ETSP 2013 Oxygen Deficient Zone | L41: Metagenome from 350m at St9 in the ETSP 2013 Oxygen Deficient Zone | M41: marine metagenome | N41: SAMN18055985 | O41: PRJNA704804
A42: SRR13782133 | B42: marine water | C42: Oxygen Deficient Zone 300m, 0.2 um | D42: 300 | E42: bulk | F42: Pacific Ocean | G42: marine; 300m at St9 in the ETSP 2013 Oxygen Deficient Zone | H42: -13 | I42: 13.0 S 82.2 W | J42: -82.2 | K42: Metagenome from 300m at St9 in the ETSP 2013 Oxygen Deficient Zone | L42: Metagenome from 300m at St9 in the ETSP 2013 Oxygen Deficient Zone | M42: marine metagenome | N42: SAMN18055984 | O42: PRJNA704804
A43: SRR13782134 | B43: marine water | C43: Oxygen Deficient Zone 260m, 0.2 um | D43: 260 | E43: bulk | F43: Pacific Ocean | G43: marine; 260m at St9 in the ETSP 2013 Oxygen Deficient Zone | H43: -13 | I43: 13.0 S 82.2 W | J43: -82.2 | K43: Metagenome from 260m at St9 in the ETSP 2013 Oxygen Deficient Zone | L43: Metagenome from 260m at St9 in the ETSP 2013 Oxygen Deficient Zone | M43: marine metagenome | N43: SAMN18055983 | O43: PRJNA704804
A44: SRR13782135 | B44: marine water | C44: Oxygen Deficient Zone 230m, 0.2 um | D44: 230 | E44: bulk | F44: Pacific Ocean | G44: marine; 230m at St9 in the ETSP 2013 Oxygen Deficient Zone | H44: -13 | I44: 13.0 S 82.2 W | J44: -82.2 | K44: Metagenome from 230m at St9 in the ETSP 2013 Oxygen Deficient Zone | L44: Metagenome from 230m at St9 in the ETSP 2013 Oxygen Deficient Zone | M44: marine metagenome | N44: SAMN18055982 | O44: PRJNA704804
A45: SRR13892585 | B45: cold seep | C45: sediment, 10-12 cm | F45: China: South China Sea | G45: sediment (10-12 cmbsf) | H45: 22.01 | I45: 22.01 N 119.28 E | J45: 119.28 | K45: This sample has been submitted by pda|zhcosa on 2021-06-09; cold seep metagenome | L45: This sample has been submitted by pda|zhcosa on 2021-06-09; cold seep metagenome | M45: cold seep metagenome | N45: SAMN18200494 | O45: PRJNA707313
A46: SRR13892586 | B46: cold seep | C46: sediment, 8-10 cm | F46: China: South China Sea | G46: sediment (8-10 cmbsf) | H46: 22.01 | I46: 22.01 N 119.28 E | J46: 119.28 | K46: This sample has been submitted by pda|zhcosa on 2021-06-09; cold seep metagenome | L46: This sample has been submitted by pda|zhcosa on 2021-06-09; cold seep metagenome | M46: cold seep metagenome | N46: SAMN18200493 | O46: PRJNA707313
A47: SRR13892588 | B47: cold seep | C47: sediment, 4-6 cm | F47: China: South China Sea | G47: sediment (4-6 cmbsf) | H47: 22.01 | I47: 22.01 N 119.28 E | J47: 119.28 | K47: This sample has been submitted by pda|zhcosa on 2021-06-09; cold seep metagenome | L47: This sample has been submitted by pda|zhcosa on 2021-06-09; cold seep metagenome | M47: cold seep metagenome | N47: SAMN18200491 | O47: PRJNA707313
A48: SRR13892591 | B48: cold seep | C48: fluid under invertebrate community | F48: China: South China Sea | G48: fluid under the invertebrate communities | H48: 22.16 | I48: 22.16 N 119.29 E | J48: 119.29 | K48: This sample has been submitted by pda|zhcosa on 2021-06-09; cold seep metagenome | L48: This sample has been submitted by pda|zhcosa on 2021-06-09; cold seep metagenome | M48: cold seep metagenome | N48: SAMN18200488 | O48: PRJNA707313
A49: SRR13892599 | B49: cold seep | C49: sediment, 55-90 cm | F49: China: South China Sea | G49: sediment (55-90 cmbsf) | H49: 22.17 | I49: 22.17 N 119.28 E | J49: 119.28 | K49: This sample has been submitted by pda|zhcosa on 2021-06-09; cold seep metagenome | L49: This sample has been submitted by pda|zhcosa on 2021-06-09; cold seep metagenome | M49: cold seep metagenome | N49: SAMN18200501 | O49: PRJNA707313
A50: SRR13892604 | B50: cold seep | C50: sediment, 14-16 cm | F50: China: South China Sea | G50: sediment (14-16 cmbsf) | H50: 22.01 | I50: 22.01 N 119.28 E | J50: 119.28 | K50: This sample has been submitted by pda|zhcosa on 2021-06-09; cold seep metagenome | L50: This sample has been submitted by pda|zhcosa on 2021-06-09; cold seep metagenome | M50: cold seep metagenome | N50: SAMN18200496 | O50: PRJNA707313
A51: SRR13892605 | B51: cold seep | C51: sediment, 12-14 cm | F51: China: South China Sea | G51: sediment (12-14 cmbsf) | H51: 22.01 | I51: 22.01 N 119.28 E | J51: 119.28 | K51: This sample has been submitted by pda|zhcosa on 2021-06-09; cold seep metagenome | L51: This sample has been submitted by pda|zhcosa on 2021-06-09; cold seep metagenome | M51: cold seep metagenome | N51: SAMN18200495 | O51: PRJNA707313
A52: SRR13892606 | B52: cold seep | C52: water above invertebrate community | F52: China: South China Sea | G52: water closely above the invertebrate communities_2 | H52: 22.36 | I52: 22.36 N 119.32 E | J52: 119.32 | K52: This sample has been submitted by pda|zhcosa on 2021-06-09; cold seep metagenome | L52: This sample has been submitted by pda|zhcosa on 2021-06-09; cold seep metagenome | M52: cold seep metagenome | N52: SAMN18200486 | O52: PRJNA707313
A53: SRR14000031 | B53: hydrothermal vent | C53: hydrothermal vent, 7-14 cm, 10 um | F53: Pacific Ocean: Mexico, Pescadero Basin | H53: 23.957043 | I53: 23.957043 N 108.862274 W | J53: -108.862274 | K53: DR750_PC80_7to14cm_10umfiltrate | L53: DR750_PC80_7to14cm_10umfiltrate | M53: hydrothermal vent metagenome | N53: SAMN18353079 | O53: PRJNA713414
A54: SRR14000032 | B54: hydrothermal vent | C54: hydrothermal vent, 7-14 cm | F54: Pacific Ocean: Mexico, Pescadero Basin | H54: 23.957043 | I54: 23.957043 N 108.862274 W | J54: -108.862274 | K54: DR750_PC80_7to14cm_unfiltered | L54: DR750_PC80_7to14cm_unfiltered | M54: hydrothermal vent metagenome | N54: SAMN18353078 | O54: PRJNA713414
A55: SRR14000033 | B55: hydrothermal vent | C55: hydrothermal vent, 0-7 cm, 10um | F55: Pacific Ocean: Mexico, Pescadero Basin | H55: 23.957043 | I55: 23.957043 N 108.862274 W | J55: -108.862274 | K55: DR750_PC80_0to7cm_10umfiltrate | L55: DR750_PC80_0to7cm_10umfiltrate | M55: hydrothermal vent metagenome | N55: SAMN18353077 | O55: PRJNA713414
A56: SRR14000034 | B56: hydrothermal vent | C56: hydrothermal, 0-7 cm | F56: Pacific Ocean: Mexico, Pescadero Basin | H56: 23.957043 | I56: 23.957043 N 108.862274 W | J56: -108.862274 | K56: DR750_PC80_0to7cm_unfiltered | L56: DR750_PC80_0to7cm_unfiltered | M56: hydrothermal vent metagenome | N56: SAMN18353076 | O56: PRJNA713414
A57: SRR14000035 | B57: hydrothermal vent | C57: hydrothermal vent, 7-14 cm, 10 um | F57: Pacific Ocean: Mexico, Pescadero Basin | H57: 23.957043 | I57: 23.957043 N 108.862274 W | J57: -108.862274 | K57: DR750_PC67_7to14cm_10umfiltrate | L57: DR750_PC67_7to14cm_10umfiltrate | M57: hydrothermal vent metagenome | N57: SAMN18353075 | O57: PRJNA713414
A58: SRR14000036 | B58: hydrothermal vent | C58: hydrothermal vent, 7-14 cm | F58: Pacific Ocean: Mexico, Pescadero Basin | H58: 23.957043 | I58: 23.957043 N 108.862274 W | J58: -108.862274 | K58: DR750_PC67_7to14cm_unfiltered | L58: DR750_PC67_7to14cm_unfiltered | M58: hydrothermal vent metagenome | N58: SAMN18353074 | O58: PRJNA713414
A59: SRR14000037 | B59: hydrothermal vent | C59: hydrothermal vent, 0-7 cm, 10 um | F59: Pacific Ocean: Mexico, Pescadero Basin | H59: 23.957043 | I59: 23.957043 N 108.862274 W | J59: -108.862274 | K59: DR750_PC67_0to7cm_10umfiltrate | L59: DR750_PC67_0to7cm_10umfiltrate | M59: hydrothermal vent metagenome | N59: SAMN18353073 | O59: PRJNA713414
A60: SRR14000038 | B60: hydrothermal vent | C60: hydrothermal vent, 0-7 cm | F60: Pacific Ocean: Mexico, Pescadero Basin | H60: 23.957043 | I60: 23.957043 N 108.862274 W | J60: -108.862274 | K60: DR750_PC67_0to7cm_unfiltered | L60: DR750_PC67_0to7cm_unfiltered | M60: hydrothermal vent metagenome | N60: SAMN18353072 | O60: PRJNA713414
A61: SRR14219477 | B61: marine sediment | C61: sediment, 0-1 cm | F61: Sweden: Asko | H61: 58.84358 | I61: 58.84358 N 17.544748 E | J61: 17.544748 | K61: Asko sediment metagenome | L61: Asko sediment metagenome | M61: aquatic metagenome | N61: SAMN18713793 | O61: PRJNA721298
A62: SRR14219478 | B62: marine sediment | C62: sediment, 0-1 cm | F62: Sweden: Asko | H62: 58.84358 | I62: 58.84358 N 17.544748 E | J62: 17.544748 | K62: Asko sediment metagenome | L62: Asko sediment metagenome | M62: aquatic metagenome | N62: SAMN18713793 | O62: PRJNA721298
A63: SRR14219479 | B63: marine sediment | C63: sediment, 0-1 cm | F63: Sweden: Asko | H63: 58.84358 | I63: 58.84358 N 17.544748 E | J63: 17.544748 | K63: Asko sediment metagenome | L63: Asko sediment metagenome | M63: aquatic metagenome | N63: SAMN18713793 | O63: PRJNA721298
A64: SRR14219480 | B64: marine sediment | C64: sediment, 0-1 cm | F64: Sweden: Asko | H64: 58.84358 | I64: 58.84358 N 17.544748 E | J64: 17.544748 | K64: Asko sediment metagenome | L64: Asko sediment metagenome | M64: aquatic metagenome | N64: SAMN18713793 | O64: PRJNA721298
A65: SRR14219485 | B65: marine sediment | C65: sediment, 0-1 cm | F65: Sweden: Oskarshamn | H65: 57.264484 | I65: 57.264484 N 16.48195 E | J65: 16.48195 | K65: Oskarshamn sediment metagenome | L65: Oskarshamn sediment metagenome | M65: aquatic metagenome | N65: SAMN18713786 | O65: PRJNA721298
A66: SRR14219486 | B66: marine sediment | C66: sediment, 0-1 cm | F66: Sweden: Oskarshamn | H66: 57.264484 | I66: 57.264484 N 16.48195 E | J66: 16.48195 | K66: Oskarshamn sediment metagenome | L66: Oskarshamn sediment metagenome | M66: aquatic metagenome | N66: SAMN18713786 | O66: PRJNA721298
A67: SRR14219487 | B67: marine sediment | C67: sediment, 0-1 cm | F67: Sweden: Oskarshamn | H67: 57.264484 | I67: 57.264484 N 16.48195 E | J67: 16.48195 | K67: Oskarshamn sediment metagenome | L67: Oskarshamn sediment metagenome | M67: aquatic metagenome | N67: SAMN18713786 | O67: PRJNA721298
A68: SRR14219490 | B68: marine sediment | C68: sediment, 0-1 cm | F68: Sweden: Asko | H68: 58.84358 | I68: 58.84358 N 17.544748 E | J68: 17.544748 | K68: Asko sediment metagenome | L68: Asko sediment metagenome | M68: aquatic metagenome | N68: SAMN18713793 | O68: PRJNA721298
A69: SRR14219491 | B69: marine sediment | C69: sediment, 0-1 cm | F69: Sweden: Asko | H69: 58.84358 | I69: 58.84358 N 17.544748 E | J69: 17.544748 | K69: Asko sediment metagenome | L69: Asko sediment metagenome | M69: aquatic metagenome | N69: SAMN18713793 | O69: PRJNA721298
A70: SRR14610254 | B70: marine water | C70: Oxygen Minimum Zone, 200 m | D70: 200 | E70: bulk | F70: Chile | G70: Oxygen minimum zone | H70: -20.5 | I70: 20.5 S 70.7 W | J70: -70.7 | K70: Metagenome or environmental sample from marine metagenome | L70: Metagenome or environmental sample from marine metagenome | M70: marine metagenome | N70: SAMN10474716 | O70: PRJNA505148
A71: SRR14610255 | B71: marine water | C71: Oxygen Minimum Zone, 300m | D71: 300 | E71: bulk | F71: Chile | G71: Oxygen minimum zone | H71: -20.5 | I71: 20.5 S 70.7 W | J71: -70.7 | K71: Metagenome or environmental sample from marine metagenome | L71: Metagenome or environmental sample from marine metagenome | M71: marine metagenome | N71: SAMN10474716 | O71: PRJNA505148
A72: SRR16028404 | B72: marine water | C72: Oxygen Deficient Zone 270 m, 0.2 um | D72: 270 | E72: bulk | F72: Pacific Ocean: Eastern Tropical South Pacific | G72: marine; 270m at St17 in the ETSP 2013 Oxygen Deficient Zone | H72: -16.7 | I72: 16.7 S 79.0 W | J72: -79 | K72: Metagenome from 270m at St17 in the ETSP 2013 Oxygen Deficient Zone | L72: Metagenome from 270m at St17 in the ETSP 2013 Oxygen Deficient Zone | M72: marine metagenome | N72: SAMN21575218 | O72: PRJNA704804
A73: SRR16028406 | B73: marine water | C73: Oxygen Deficient Zone 165 m, 0.2 um | D73: 165 | E73: bulk | F73: Pacific Ocean: Eastern Tropical South Pacific | G73: marine; 165m at St17 in the ETSP 2013 Oxygen Deficient Zone | H73: -16.7 | I73: 16.7 S 79.0 W | J73: -79 | K73: Metagenome from 165m at St17 in the ETSP 2013 Oxygen Deficient Zone | L73: Metagenome from 165m at St17 in the ETSP 2013 Oxygen Deficient Zone | M73: marine metagenome | N73: SAMN21575216 | O73: PRJNA704804
A74: SRR16028407 | B74: marine water | C74: Oxygen Deficient Zone 210 m, 0.2 um | D74: 210 | E74: bulk | F74: Pacific Ocean: Eastern Tropical South Pacific | G74: marine; 210m at St17 in the ETSP 2013 Oxygen Deficient Zone | H74: -16.7 | I74: 16.7 S 79.0 W | J74: -79 | K74: Metagenome from 210m at St17 in the ETSP 2013 Oxygen Deficient Zone | L74: Metagenome from 210m at St17 in the ETSP 2013 Oxygen Deficient Zone | M74: marine metagenome | N74: SAMN21575215 | O74: PRJNA704804
A75: SRR16028408 | B75: marine water | C75: Oxygen Deficient Zone 330 m, 0.2 um | D75: 330 | E75: bulk | F75: Pacific Ocean: Eastern Tropical South Pacific | G75: marine; 330m at St17 in the ETSP 2013 Oxygen Deficient Zone | H75: -16.7 | I75: 16.7 S 79.0 W | J75: -79 | K75: Metagenome from 330m at St17 in the ETSP 2013 Oxygen Deficient Zone | L75: Metagenome from 330m at St17 in the ETSP 2013 Oxygen Deficient Zone | M75: marine metagenome | N75: SAMN21575214 | O75: PRJNA704804
A76: SRR16028409 | B76: marine water | C76: Oxygen Deficient Zone 250 m, 0.2 um | D76: 250 | E76: bulk | F76: Pacific Ocean: Eastern Tropical South Pacific | G76: marine; 250m at St17 in the ETSP 2013 Oxygen Deficient Zone | H76: -16.7 | I76: 16.7 S 79.0 W | J76: -79 | K76: Metagenome from 250m at St17 in the ETSP 2013 Oxygen Deficient Zone | L76: Metagenome from 250m at St17 in the ETSP 2013 Oxygen Deficient Zone | M76: marine metagenome | N76: SAMN21575213 | O76: PRJNA704804
A77: SRR16028413 | B77: marine water | C77: Oxygen Deficient Zone 350 m, 0.2 um | D77: 350 | E77: bulk | F77: Pacific Ocean: Eastern Tropical South Pacific | G77: marine; 350m at St17 in the ETSP 2013 Oxygen Deficient Zone | H77: -16.7 | I77: 16.7 S 79.0 W | J77: -79 | K77: Metagenome from 350m at St17 in the ETSP 2013 Oxygen Deficient Zone | L77: Metagenome from 350m at St17 in the ETSP 2013 Oxygen Deficient Zone | M77: marine metagenome | N77: SAMN21575221 | O77: PRJNA704804
A78: SRR16028415 | B78: marine water | C78: Oxygen Deficient Zone 140 m, 0.2 um | D78: 140 | E78: bulk | F78: Pacific Ocean: Eastern Tropical South Pacific | G78: marine; 140m at St17 in the ETSP 2013 Oxygen Deficient Zone | H78: -16.7 | I78: 16.7 S 79.0 W | J78: -79 | K78: Metagenome from 140m at St17 in the ETSP 2013 Oxygen Deficient Zone | L78: Metagenome from 140m at St17 in the ETSP 2013 Oxygen Deficient Zone | M78: marine metagenome | N78: SAMN21575211 | O78: PRJNA704804
A79: SRR16028416 | B79: marine water | C79: Oxygen Deficient Zone 150 m, 0.2 um | D79: 150 | E79: bulk | F79: Pacific Ocean: Eastern Tropical South Pacific | G79: marine; 150m at St17 in the ETSP 2013 Oxygen Deficient Zone | H79: -16.7 | I79: 16.7 S 79.0 W | J79: -79 | K79: Metagenome from 150m at St17 in the ETSP 2013 Oxygen Deficient Zone | L79: Metagenome from 150m at St17 in the ETSP 2013 Oxygen Deficient Zone | M79: marine metagenome | N79: SAMN21575210 | O79: PRJNA704804
A80: SRR16631310 | B80: lake sediment | C80: lake sediment | F80: China: Qinghai Lake | H80: 36.69 | I80: 36.69 N 100.45 E | J80: 100.45 | K80: This sample has been submitted by pda|microben on 2021-12-01; sediment metagenome | L80: This sample has been submitted by pda|microben on 2021-12-01; sediment metagenome | M80: sediment metagenome | N80: SAMN22703514 | O80: PRJNA776043
A81: SRR16631311 | B81: lake sediment | C81: lake sediment | F81: China: Qinghai Lake | H81: 36.68 | I81: 36.68 N 100.47 E | J81: 100.47 | K81: This sample has been submitted by pda|microben on 2021-12-01; sediment metagenome | L81: This sample has been submitted by pda|microben on 2021-12-01; sediment metagenome | M81: sediment metagenome | N81: SAMN22703513 | O81: PRJNA776043
A82: SRR16631312 | B82: lake sediment | C82: lake sediment | F82: China: Qinghai Lake | H82: 36.71 | I82: 36.71 N 100.42 E | J82: 100.42 | K82: This sample has been submitted by pda|microben on 2021-12-01; sediment metagenome | L82: This sample has been submitted by pda|microben on 2021-12-01; sediment metagenome | M82: sediment metagenome | N82: SAMN22703512 | O82: PRJNA776043
A83: SRR21418559 | B83: hydrothermal vent | C83: hydrothermal vent, precipitate | F83: Mexico: Gulf of California, South Pescadero Basin, Auka Vent Field, Matterhorn | G83: Hydrothermal precipitate | H83: 23.954037 | I83: 23.954037 N 108.86296 W | J83: -108.86296 | K83: This sample has been submitted by pda|rlperez@orcid on 2022-10-18; hydrothermal vent metagenome | L83: This sample has been submitted by pda|rlperez@orcid on 2022-10-18; hydrothermal vent metagenome | M83: hydrothermal vent metagenome | N83: SAMN30597063 | O83: PRJNA875076
A84: SRR21418560 | B84: hydrothermal vent | C84: hydrothermal vent, rock | F84: Mexico: Gulf of California, South Pescadero Basin, Auka Vent Field, Z-Mound | G84: Hydrothermal precipitate | H84: 23.956095 | I84: 23.956095 N 108.86192 W | J84: -108.86192 | K84: This sample has been submitted by pda|rlperez@orcid on 2022-10-18; hydrothermal vent metagenome | L84: This sample has been submitted by pda|rlperez@orcid on 2022-10-18; hydrothermal vent metagenome | M84: hydrothermal vent metagenome | N84: SAMN30597062 | O84: PRJNA875076
A85: SRR21856587 | B85: marine sediment | C85: estuarine mud, surface | F85: Denmark: Kaloe Vig Marina | H85: 56.242695 | I85: 56.242695 N 10.3385 E | J85: 10.3385 | K85: This sample has been submitted by pda|ipgmarshall@gmail.com on 2022-10-12; marine sediment metagenome | L85: This sample has been submitted by pda|ipgmarshall@gmail.com on 2022-10-12; marine sediment metagenome | M85: marine sediment metagenome | N85: SAMN31233760 | O85: PRJNA889212
A86: SRR21856588 | B86: marine sediment | C86: estuarine mud, surface | F86: Denmark: Kaloe Vig Marina | H86: 56.242695 | I86: 56.242695 N 10.3385 E | J86: 10.3385 | K86: This sample has been submitted by pda|ipgmarshall@gmail.com on 2022-10-12; marine sediment metagenome | L86: This sample has been submitted by pda|ipgmarshall@gmail.com on 2022-10-12; marine sediment metagenome | M86: marine sediment metagenome | N86: SAMN31233760 | O86: PRJNA889212
A87: SRR21856589 | B87: marine sediment | C87: estuarine mud, surface | F87: Denmark: Kaloe Vig Marina | H87: 56.242695 | I87: 56.242695 N 10.3385 E | J87: 10.3385 | K87: This sample has been submitted by pda|ipgmarshall@gmail.com on 2022-10-12; marine sediment metagenome | L87: This sample has been submitted by pda|ipgmarshall@gmail.com on 2022-10-12; marine sediment metagenome | M87: marine sediment metagenome | N87: SAMN31233759 | O87: PRJNA889212
A88: SRR21856590 | B88: marine sediment | C88: estuarine mud, surface | F88: Denmark: Kaloe Vig Marina | H88: 56.242695 | I88: 56.242695 N 10.3385 E | J88: 10.3385 | K88: This sample has been submitted by pda|ipgmarshall@gmail.com on 2022-10-12; marine sediment metagenome | L88: This sample has been submitted by pda|ipgmarshall@gmail.com on 2022-10-12; marine sediment metagenome | M88: marine sediment metagenome | N88: SAMN31233759 | O88: PRJNA889212
A89: SRR3962468 | B89: marine water | C89: water, 294 m | D89: 294 | E89: no meta data available | F89: Pacific Ocean:North Pacific Ocean | G89: North Pacific Ocean | H89: 14.53 | I89: 14.53 N 118.77 W | J89: -118.77 | K89: Marine microbial communities from the Deep Pacific Ocean - MP2098 | L89: Marine microbial communities from the Deep Pacific Ocean - MP2098 | M89: marine metagenome | N89: SAMN05422142 | O89: PRJNA330087
A90: SRR4465026 | B90: marine water | C90: Oxygen Deficient Zone 120 m, 0.2 um | D90: 120 | E90: bulk | F90: Pacific Ocean | G90: 120 m water sample filtered on 0.2 um supor filter | H90: 17.0327 | I90: 17.0327 N 106.5328 W | J90: -106.5328 | K90: Marine metagenome ETNP 120m 2012 | L90: Marine metagenome ETNP 120m 2012 | M90: marine metagenome | N90: SAMN05944804 | O90: PRJNA350692
A91: SRR4465028 | B91: marine water | C91: Oxygen Deficient Zone 160 m, 0.2 um | D91: 160 | E91: bulk | F91: Pacific Ocean | G91: 160 m water sample filtered on 0.2 um supor filter | H91: 17.0327 | I91: 17.0327 N 106.5328 W | J91: -106.5328 | K91: Marine metagenome ETNP 160m 2012 | L91: Marine metagenome ETNP 160m 2012 | M91: marine metagenome | N91: SAMN05944806 | O91: PRJNA350692
A92: SRR4465029 | B92: marine water | C92: Oxygen Deficient Zone 140 m, 0.2 um | D92: 140 | E92: bulk | F92: Pacific Ocean | G92: 140 m water sample filtered on 0.2 um supor filter | H92: 17.0327 | I92: 17.0327 N 106.5328 W | J92: -106.5328 | K92: Marine metagenome ETNP 140m 2012 | L92: Marine metagenome ETNP 140m 2012 | M92: marine metagenome | N92: SAMN05944805 | O92: PRJNA350692
A93: SRR4465030 | B93: marine water | C93: Oxygen Deficient Zone 120 m, 30 um | D93: 120 | E93: particle attached | F93: Pacific Ocean | G93: 120 m water sample filtered on 30 um supor filter | H93: 16.5163 | I93: 16.5163 N 107.1421 W | J93: -107.1421 | K93: Marine metagenome ETNP 120m particle 2012 | L93: Marine metagenome ETNP 120m particle 2012 | M93: marine metagenome | N93: SAMN05944810 | O93: PRJNA350692
A94: SRR4465032 | B94: marine water | C94: Oxygen Deficient Zone 120 m, 0.2-30 um | D94: 120 | E94: bulk | F94: Pacific Ocean | G94: 120 m water sample prefiltered with 30 um filter, filtered on to 0.2 um supor filter | H94: 16.5163 | I94: 16.5163 N 107.1421 W | J94: -107.1421 | K94: Marine metagenome ETNP 120m free living 2012 | L94: Marine metagenome ETNP 120m free living 2012 | M94: marine metagenome | N94: SAMN05944812 | O94: PRJNA350692
A95: SRR4465033 | B95: marine water | C95: Oxygen Deficient Zone 150 m, 30 um | D95: 150 | E95: particle attached | F95: Pacific Ocean | G95: 150 m water sample filtered on 30 um supor filter | H95: 16.5163 | I95: 16.5163 N 107.1421 W | J95: -107.1421 | K95: Marine metagenome ETNP 150m particle 2012 | L95: Marine metagenome ETNP 150m particle 2012 | M95: marine metagenome | N95: SAMN05944811 | O95: PRJNA350692
A96: SRR4465035 | B96: marine water | C96: Oxygen Deficient Zone 300 m, 0.2 um | D96: 300 | E96: bulk | F96: Pacific Ocean | G96: 300 m water sample filtered on 0.2 um supor filter | H96: 17.0327 | I96: 17.0327 N 106.5328 W | J96: -106.5328 | K96: Marine metagenome ETNP 300m 2012 | L96: Marine metagenome ETNP 300m 2012 | M96: marine metagenome | N96: SAMN05944808 | O96: PRJNA350692
A97: SRR4465036 | B97: marine water | C97: Oxygen Deficient Zone 180 m, 0.2 um | D97: 180 | E97: bulk | F97: Pacific Ocean | G97: 180 m water sample filtered on 0.2 um supor filter | H97: 17.0327 | I97: 17.0327 N 106.5328 W | J97: -106.5328 | K97: Marine metagenome ETNP 180m 2012 | L97: Marine metagenome ETNP 180m 2012 | M97: marine metagenome | N97: SAMN05944807 | O97: PRJNA350692
A98: SRR6478866 | B98: marine sediment | C98: sediment, 0-3 cm | F98: Mexico: Gulf of California | G98: subseafloor sediment | H98: 27.0151 | I98: 27.0151 N 111.3798 W | J98: -111.3798 | K98: Subseafloor sediment microbial communities from Guaymas Basin, Gulf of California, Mexico - Guay6, Core 4569-2, 0-3 cm | L98: Subseafloor sediment microbial communities from Guaymas Basin, Gulf of California, Mexico - Guay6, Core 4569-2, 0-3 cm | M98: sediment metagenome | N98: SAMN06269076 | O98: PRJNA368388
A99: SRR6478915 | B99: marine sediment | C99: sediment, 0-3 cm | F99: Mexico: Gulf of California | G99: subseafloor sediment | H99: 27.0151 | I99: 27.0151 N 111.3798 W | J99: -111.3798 | K99: Subseafloor sediment microbial communities from Guaymas Basin, Gulf of California, Mexico - Guay4, Core 4569-4, 0-3 cm | L99: Subseafloor sediment microbial communities from Guaymas Basin, Gulf of California, Mexico - Guay4, Core 4569-4, 0-3 cm | M99: sediment metagenome | N99: SAMN06269074 | O99: PRJNA368386
A100: SRR6479061 | B100: marine sediment | C100: sediment, 0-3 cm | F100: Mexico: Guaymas Basin, Gulf of California | G100: subseafloor sediment | H100: 27.0183 | I100: 27.0183 N 111.3802 W | J100: -111.3802 | K100: Subseafloor sediment microbial communities from Guaymas Basin, Gulf of California, Mexico - Guay9, Core 4571-4, 0-3 cm | L100: Subseafloor sediment microbial communities from Guaymas Basin, Gulf of California, Mexico - Guay9, Core 4571-4, 0-3 cm | M100: marine sediment metagenome | N100: SAMN06269079 | O100: PRJNA368391
A101: SRR8062320 | B101: marine water | C101: Oxygen Deficient Zone 267 m, >2.7 um | D101: 267 | E101: bulk | F101: Venezuela: Cariaco Basin | G101: seawater | H101: 10.617 | I101: 10.617 N 65.167 W | J101: -65.167 | K101: This sample has been submitted by pda|elizabeth_suter on 2019-11-01; marine metagenome | L101: This sample has been submitted by pda|elizabeth_suter on 2019-11-01; marine metagenome | M101: marine metagenome | N101: SAMN10231914 | O101: PRJNA326482
A102: SRR8062321 | B102: marine water | C102: Oxygen Deficient Zone 267 m, >2.7 um | D102: 267 | E102: bulk | F102: Venezuela: Cariaco Basin | G102: seawater | H102: 10.617 | I102: 10.617 N 65.167 W | J102: -65.167 | K102: This sample has been submitted by pda|elizabeth_suter on 2019-11-01; marine metagenome | L102: This sample has been submitted by pda|elizabeth_suter on 2019-11-01; marine metagenome | M102: marine metagenome | N102: SAMN10231913 | O102: PRJNA326482
A103: SRR8062322 | B103: marine water | C103: Oxygen Deficient Zone 247 m, >2.7 um | D103: 247 | E103: bulk | F103: Venezuela: Cariaco Basin | G103: seawater | H103: 10.617 | I103: 10.617 N 65.167 W | J103: -65.167 | K103: This sample has been submitted by pda|elizabeth_suter on 2019-11-01; marine metagenome | L103: This sample has been submitted by pda|elizabeth_suter on 2019-11-01; marine metagenome | M103: marine metagenome | N103: SAMN10231912 | O103: PRJNA326482
A104: SRR8062329 | B104: marine water | C104: Oxygen Deficient Zone 267 m, 0.2-2.7 um | D104: 267 | E104: free-living | F104: Venezuela: Cariaco Basin | G104: seawater | H104: 10.617 | I104: 10.617 N 65.167 W | J104: -65.167 | K104: This sample has been submitted by pda|elizabeth_suter on 2019-11-01; marine metagenome | L104: This sample has been submitted by pda|elizabeth_suter on 2019-11-01; marine metagenome | M104: marine metagenome | N104: SAMN10231924 | O104: PRJNA326482
A105: SRR8062330 | B105: marine water | C105: Oxygen Deficient Zone 295 m, 0.2-2.7 um | D105: 295 | E105: free-living | F105: Venezuela: Cariaco Basin | G105: seawater | H105: 10.617 | I105: 10.617 N 65.167 W | J105: -65.167 | K105: This sample has been submitted by pda|elizabeth_suter on 2019-11-01; marine metagenome | L105: This sample has been submitted by pda|elizabeth_suter on 2019-11-01; marine metagenome | M105: marine metagenome | N105: SAMN10231902 | O105: PRJNA326482
A106: SRR8062331 | B106: marine water | C106: Oxygen Deficient Zone 314 m, 0.2-2.7 um | D106: 314 | E106: free-living | F106: Venezuela: Cariaco Basin | G106: seawater | H106: 10.617 | I106: 10.617 N 65.167 W | J106: -65.167 | K106: This sample has been submitted by pda|elizabeth_suter on 2019-11-01; marine metagenome | L106: This sample has been submitted by pda|elizabeth_suter on 2019-11-01; marine metagenome | M106: marine metagenome | N106: SAMN10231903 | O106: PRJNA326482
A107: SRR8062333 | B107: marine water | C107: Oxygen Deficient Zone 295 m, 0.2-2.7 um | D107: 295 | E107: free-living | F107: Venezuela: Cariaco Basin | G107: seawater | H107: 10.617 | I107: 10.617 N 65.167 W | J107: -65.167 | K107: This sample has been submitted by pda|elizabeth_suter on 2019-11-01; marine metagenome | L107: This sample has been submitted by pda|elizabeth_suter on 2019-11-01; marine metagenome | M107: marine metagenome | N107: SAMN10231901 | O107: PRJNA326482
A108: SRR8062343 | B108: marine water | C108: Oxygen Deficient Zone 247 m, 0.2-2.7 um | D108: 247 | E108: free-living | F108: Venezuela: Cariaco Basin | G108: seawater | H108: 10.617 | I108: 10.617 N 65.167 W | J108: -65.167 | K108: This sample has been submitted by pda|elizabeth_suter on 2019-11-01; marine metagenome | L108: This sample has been submitted by pda|elizabeth_suter on 2019-11-01; marine metagenome | M108: marine metagenome | N108: SAMN10231921 | O108: PRJNA326482
A109: SRR8062344 | B109: marine water | C109: Oxygen Deficient Zone 314 m, 0.2-2.7 um | D109: 314 | E109: free-living | F109: Venezuela: Cariaco Basin | G109: seawater | H109: 10.617 | I109: 10.617 N 65.167 W | J109: -65.167 | K109: This sample has been submitted by pda|elizabeth_suter on 2019-11-01; marine metagenome | L109: This sample has been submitted by pda|elizabeth_suter on 2019-11-01; marine metagenome | M109: marine metagenome | N109: SAMN10231904 | O109: PRJNA326482
A110: SRR8062346 | B110: marine water | C110: Oxygen Deficient Zone 314 m, >2.7 um | D110: 314 | E110: bulk | F110: Venezuela: Cariaco Basin | G110: seawater | H110: 10.617 | I110: 10.617 N 65.167 W | J110: -65.167 | K110: This sample has been submitted by pda|elizabeth_suter on 2019-11-01; marine metagenome | L110: This sample has been submitted by pda|elizabeth_suter on 2019-11-01; marine metagenome | M110: marine metagenome | N110: SAMN10231894 | O110: PRJNA326482
A111: SRR8062348 | B111: marine water | C111: Oxygen Deficient Zone 295 m, >2.7 um | D111: 295 | E111: bulk | F111: Venezuela: Cariaco Basin | G111: seawater | H111: 10.617 | I111: 10.617 N 65.167 W | J111: -65.167 | K111: This sample has been submitted by pda|elizabeth_suter on 2019-11-01; marine metagenome | L111: This sample has been submitted by pda|elizabeth_suter on 2019-11-01; marine metagenome | M111: marine metagenome | N111: SAMN10231892 | O111: PRJNA326482
A112: SRR8062349 | B112: marine water | C112: Oxygen Deficient Zone 314 m, >2.7 um | D112: 314 | E112: bulk | F112: Venezuela: Cariaco Basin | G112: seawater | H112: 10.617 | I112: 10.617 N 65.167 W | J112: -65.167 | K112: This sample has been submitted by pda|elizabeth_suter on 2019-11-01; marine metagenome | L112: This sample has been submitted by pda|elizabeth_suter on 2019-11-01; marine metagenome | M112: marine metagenome | N112: SAMN10231893 | O112: PRJNA326482
A113: SRR8062351 | B113: marine water | C113: Oxygen Deficient Zone 295 m, >2.7 um | D113: 295 | E113: bulk | F113: Venezuela: Cariaco Basin | G113: seawater | H113: 10.617 | I113: 10.617 N 65.167 W | J113: -65.167 | K113: This sample has been submitted by pda|elizabeth_suter on 2019-11-01; marine metagenome | L113: This sample has been submitted by pda|elizabeth_suter on 2019-11-01; marine metagenome | M113: marine metagenome | N113: SAMN10231891 | O113: PRJNA326482
A114: SRR8403924 | B114: marine sediment | C114: incubation | F114: Sweden: Bothnian Sea | G114: sediment, site NB8, incubated subsample BS1 | H114: 63.291 | I114: 63.291 N 19.495 E | J114: 19.495 | K114: Bothnian Sea sediment, site NB8, incubated subsample BS1 | L114: Bothnian Sea sediment, site NB8, incubated subsample BS1 | M114: marine sediment metagenome | N114: SAMN10915589 | O114: PRJNA511814
A115: SRR8943083 | B115: marine sediment | C115: sediment, 0-2 cm | F115: Sweden: Baltic Sea | H115: 57.21366 | I115: 57.21366 N 19.508972 E | J115: 19.508972 | K115: DNA data from Eastern Gotland Basin sediment | L115: DNA data from Eastern Gotland Basin sediment | M115: aquatic metagenome | N115: SAMN11381956 | O115: PRJNA531756
A116: SRR8943089 | B116: marine sediment | C116: sediment, 0-2 cm | F116: Sweden: Baltic Sea | H116: 57.21366 | I116: 57.21366 N 19.508972 E | J116: 19.508972 | K116: DNA data from Eastern Gotland Basin sediment | L116: DNA data from Eastern Gotland Basin sediment | M116: aquatic metagenome | N116: SAMN11381956 | O116: PRJNA531756
A117: SRR8943090 | B117: marine sediment | C117: sediment, 0-2 cm | F117: Sweden: Baltic Sea | H117: 57.21366 | I117: 57.21366 N 19.508972 E | J117: 19.508972 | K117: DNA data from Eastern Gotland Basin sediment | L117: DNA data from Eastern Gotland Basin sediment | M117: aquatic metagenome | N117: SAMN11381956 | O117: PRJNA531756
A118: SRR8943091 | B118: marine sediment | C118: sediment, 0-2 cm | F118: Sweden: Baltic Sea | H118: 57.21366 | I118: 57.21366 N 19.508972 E | J118: 19.508972 | K118: DNA data from Eastern Gotland Basin sediment | L118: DNA data from Eastern Gotland Basin sediment | M118: aquatic metagenome | N118: SAMN11381956 | O118: PRJNA531756
A119: SRR8943092 | B119: marine sediment | C119: sediment, 0-2 cm | F119: Sweden: Baltic Sea | H119: 57.21366 | I119: 57.21366 N 19.508972 E | J119: 19.508972 | K119: DNA data from Eastern Gotland Basin sediment | L119: DNA data from Eastern Gotland Basin sediment | M119: aquatic metagenome | N119: SAMN11381956 | O119: PRJNA531756
A120: SRR8943093 | B120: marine sediment | C120: sediment, 0-2 cm | F120: Sweden: Baltic Sea | H120: 57.21366 | I120: 57.21366 N 19.508972 E | J120: 19.508972 | K120: DNA data from Eastern Gotland Basin sediment | L120: DNA data from Eastern Gotland Basin sediment | M120: aquatic metagenome | N120: SAMN11381956 | O120: PRJNA531756
A121: SRR8943094 | B121: marine sediment | C121: sediment, 0-2 cm | F121: Sweden: Baltic Sea | H121: 57.21366 | I121: 57.21366 N 19.508972 E | J121: 19.508972 | K121: DNA data from Eastern Gotland Basin sediment | L121: DNA data from Eastern Gotland Basin sediment | M121: aquatic metagenome | N121: SAMN11381956 | O121: PRJNA531756
A122: SRR8943095 | B122: marine sediment | C122: sediment, 0-2 cm | F122: Sweden: Baltic Sea | H122: 57.21366 | I122: 57.21366 N 19.508972 E | J122: 19.508972 | K122: DNA data from Eastern Gotland Basin sediment | L122: DNA data from Eastern Gotland Basin sediment | M122: aquatic metagenome | N122: SAMN11381956 | O122: PRJNA531756
A123: SRR9068927 | B123: marine sediment | C123: sediment, 0-2 cm | F123: Finland: Baltic Sea | H123: 59.8559 | I123: 59.8559 N 23.26695 E | J123: 23.26695 | K123: Tvarminne sediment DNA | L123: Tvarminne sediment DNA | M123: aquatic metagenome | N123: SAMN11584814 | O123: PRJNA541421
A124: SRR9068928 | B124: marine sediment | C124: sediment, 0-2 cm | F124: Finland: Baltic Sea | H124: 59.8559 | I124: 59.8559 N 23.26695 E | J124: 23.26695 | K124: Tvarminne sediment DNA | L124: Tvarminne sediment DNA | M124: aquatic metagenome | N124: SAMN11584814 | O124: PRJNA541421
A125: SRR9068939 | B125: marine sediment | C125: sediment, 0-2 cm | F125: Finland: Baltic Sea | H125: 59.8559 | I125: 59.8559 N 23.26695 E | J125: 23.26695 | K125: Tvarminne sediment DNA | L125: Tvarminne sediment DNA | M125: aquatic metagenome | N125: SAMN11584814 | O125: PRJNA541421
A126: SRR9166041 | B126: marine water | C126: Oxygen Deficient Zone 314 m, 0.2-2.7 um | D126: 314 | E126: free-living | F126: Venezuela: Cariaco Basin | G126: seawater | H126: 10.617 | I126: 10.617 N 65.167 W | J126: -65.167 | K126: This sample has been submitted by pda|mpachiadaki@whoi.edu on 2019-06-04; seawater metagenome | L126: This sample has been submitted by pda|mpachiadaki@whoi.edu on 2019-06-04; seawater metagenome | M126: seawater metagenome | N126: SAMN11854493 | O126: PRJNA544741
A127: SRR9166042 | B127: marine water | C127: Oxygen Deficient Zone 314 m, 0.2-2.7 um | D127: 314 | E127: free-living | F127: Venezuela: Cariaco Basin | G127: seawater | H127: 10.617 | I127: 10.617 N 65.167 W | J127: -65.167 | K127: This sample has been submitted by pda|mpachiadaki@whoi.edu on 2019-06-04; seawater metagenome | L127: This sample has been submitted by pda|mpachiadaki@whoi.edu on 2019-06-04; seawater metagenome | M127: seawater metagenome | N127: SAMN11854494 | O127: PRJNA544741
A128: SRR9166043 | B128: marine water | C128: Oxygen Deficient Zone 247 m, 0.2-2.7 um | D128: 247 | E128: free-living | F128: Venezuela: Cariaco Basin | G128: seawater | H128: 10.617 | I128: 10.617 N 65.167 W | J128: -65.167 | K128: This sample has been submitted by pda|mpachiadaki@whoi.edu on 2019-06-04; seawater metagenome | L128: This sample has been submitted by pda|mpachiadaki@whoi.edu on 2019-06-04; seawater metagenome | M128: seawater metagenome | N128: SAMN11854481 | O128: PRJNA544741
A129: SRR9166047 | B129: marine water | C129: Oxygen Deficient Zone 267 m, 0.2-2.7 um | D129: 267 | E129: free-living | F129: Venezuela: Cariaco Basin | G129: seawater | H129: 10.617 | I129: 10.617 N 65.167 W | J129: -65.167 | K129: This sample has been submitted by pda|mpachiadaki@whoi.edu on 2019-06-04; seawater metagenome | L129: This sample has been submitted by pda|mpachiadaki@whoi.edu on 2019-06-04; seawater metagenome | M129: seawater metagenome | N129: SAMN11854486 | O129: PRJNA544741
A130: SRR9166048 | B130: marine water | C130: Oxygen Deficient Zone 295 m, 0.2-2.7 um | D130: 295 | E130: free-living | F130: Venezuela: Cariaco Basin | G130: seawater | H130: 10.617 | I130: 10.617 N 65.167 W | J130: -65.167 | K130: This sample has been submitted by pda|mpachiadaki@whoi.edu on 2019-06-04; seawater metagenome | L130: This sample has been submitted by pda|mpachiadaki@whoi.edu on 2019-06-04; seawater metagenome | M130: seawater metagenome | N130: SAMN11854489 | O130: PRJNA544741
A131: SRR9166049 | B131: marine water | C131: Oxygen Deficient Zone 295 m, 0.2-2.7 um | D131: 295 | E131: free-living | F131: Venezuela: Cariaco Basin | G131: seawater | H131: 10.617 | I131: 10.617 N 65.167 W | J131: -65.167 | K131: This sample has been submitted by pda|mpachiadaki@whoi.edu on 2019-06-04; seawater metagenome | L131: This sample has been submitted by pda|mpachiadaki@whoi.edu on 2019-06-04; seawater metagenome | M131: seawater metagenome | N131: SAMN11854490 | O131: PRJNA544741

Sheet S8
A1: S8. List of Orthogroups, which were selected as core genome (Orthogroup present in at least 90% of MAGs). The table shows gene counts for each MAG within single orthogroups.
A2: Orthogroups | B2: E3_1_d157 | C2: PRJNA889212_2 | D2: PRJNA541421_1 | E2: MSM105 | F2: GCA_003663595.1 | G2: PRJNA368391_1 | H2: EMB267 | I2: PRJNA721298_1 | J2: PRJNA541421_2 | K2: PRJNA889212_1 | L2: GCA_016928095.1 | M2: PRJNA531756_2 | N2: GCA_023145185.1 | O2: SAMN30647027_1 | P2: SAMN22703513_1 | Q2: SAMN22703514_1 | R2: SAMN22703512_1 | S2: GCA_011039765.1 | T2: GCA_003650025.1 | U2: PRJNA368391_2 | V2: GCA_003663625.1 | W2: GCA_021158585.1 | X2: GCA_021160765.1 | Y2: PRJNA531756_1 | Z2: PRJNA541421_3 | AA2: SAMEA2620113_1 | AB2: PRJNA704804_1 | AC2: SAMN11854494_1 | AD2: SAMN10231904_1 | AE2: SAMN10231913_2 | AF2: SAMN10231914_2 | AG2: SAMN10231893_1 | AH2: SAMN10231913_1 | AI2: SAMN10231894_1 | AJ2: SAMN10231914_1
A3: OG0000000 | B3: 31 | C3: 17 | D3: 7 | E3: 18 | F3: 0 | G3: 1 | H3: 5 | I3: 10 | J3: 13 | K3: 13 | L3: 13 | M3: 23 | N3: 39 | O3: 11 | P3: 6 | Q3: 5 | R3: 2 | S3: 3 | T3: 3 | U3: 1 | V3: 4 | W3: 2 | X3: 4 | Y3: 54 | Z3: 53 | AA3: 32 | AB3: 26 | AC3: 12 | AD3: 16 | AE3: 6 | AF3: 7 | AG3: 6 | AH3: 7 | AI3: 9 | AJ3: 3
A4: OG0000001 | B4: 30 | C4: 19 | D4: 16 | E4: 21 | F4: 7 | G4: 10 | H4: 26 | I4: 21 | J4: 22 | K4: 22 | L4: 11 | M4: 23 | N4: 30 | O4: 9 | P4: 14 | Q4: 14 | R4: 10 | S4: 6 | T4: 17 | U4: 6 | V4: 15 | W4: 14 | X4: 7 | Y4: 8 | Z4: 6 | AA4: 12 | AB4: 10 | AC4: 6 | AD4: 4 | AE4: 4 | AF4: 4 | AG4: 5 | AH4: 5 | AI4: 5 | AJ4: 5
A5: OG0000002 | B5: 9 | C5: 3 | D5: 0 | E5: 6 | F5: 4 | G5: 3 | H5: 2 | I5: 2 | J5: 4 | K5: 6 | L5: 8 | M5: 7 | N5: 10 | O5: 3 | P5: 9 | Q5: 4 | R5: 2 | S5: 4 | T5: 6 | U5: 6 | V5: 4 | W5: 4 | X5: 3 | Y5: 13 | Z5: 7 | AA5: 44 | AB5: 41 | AC5: 30 | AD5: 34 | AE5: 20 | AF5: 21 | AG5: 13 | AH5: 17 | AI5: 14 | AJ5: 16
A6: OG0000004 | B6: 11 | C6: 11 | D6: 8 | E6: 11 | F6: 3 | G6: 5 | H6: 9 | I6: 6 | J6: 6 | K6: 8 | L6: 7 | M6: 6 | N6: 6 | O6: 5 | P6: 6 | Q6: 7 | R6: 8 | S6: 3 | T6: 3 | U6: 3 | V6: 3 | W6: 3 | X6: 2 | Y6: 9 | Z6: 12 | AA6: 8 | AB6: 7 | AC6: 9 | AD6: 9 | AE6: 8 | AF6: 7 | AG6: 5 | AH6: 5 | AI6: 5 | AJ6: 5
A7: OG0000005 | B7: 1 | C7: 1 | D7: 0 | E7: 3 | F7: 3 | G7: 3 | H7: 2 | I7: 2 | J7: 2 | K7: 2 | L7: 3 | M7: 2 | N7: 5 | O7: 2 | P7: 2 | Q7: 2 | R7: 1 | S7: 4 | T7: 3 | U7: 2 | V7: 2 | W7: 2 | X7: 0 | Y7: 6 | Z7: 5 | AA7: 6 | AB7: 5 | AC7: 6 | AD7: 7 | AE7: 4 | AF7: 3 | AG7: 20 | AH7: 23 | AI7: 23 | AJ7: 17
A8: OG0000008 | B8: 2 | C8: 4 | D8: 3 | E8: 4 | F8: 2 | G8: 3 | H8: 4 | I8: 2 | J8: 3 | K8: 3 | L8: 1 | M8: 4 | N8: 0 | O8: 1 | P8: 2 | Q8: 2 | R8: 2 | S8: 2 | T8: 2 | U8: 2 | V8: 2 | W8: 3 | X8: 3 | Y8: 6 | Z8: 11 | AA8: 10 | AB8: 3 | AC8: 8 | AD8: 6 | AE8: 2 | AF8: 3 | AG8: 6 | AH8: 7 | AI8: 7 | AJ8: 7
A9: OG0000009 | B9: 4 | C9: 4 | D9: 3 | E9: 3 | F9: 3 | G9: 3 | H9: 4 | I9: 5 | J9: 5 | K9: 5 | L9: 3 | M9: 5 | N9: 3 | O9: 4 | P9: 3 | Q9: 3 | R9: 3 | S9: 1 | T9: 2 | U9: 3 | V9: 2 | W9: 1 | X9: 2 | Y9: 7 | Z9: 6 | AA9: 3 | AB9: 5 | AC9: 5 | AD9: 4 | AE9: 2 | AF9: 2 | AG9: 6 | AH9: 5 | AI9: 5 | AJ9: 5
A10: OG0000011 | B10: 4 | C10: 5 | D10: 3 | E10: 3 | F10: 2 | G10: 2 | H10: 3 | I10: 3 | J10: 2 | K10: 3 | L10: 4 | M10: 4 | N10: 4 | O10: 2 | P10: 2 | Q10: 1 | R10: 2 | S10: 4 | T10: 2 | U10: 3 | V10: 5 | W10: 2 | X10: 3 | Y10: 5 | Z10: 6 | AA10: 8 | AB10: 7 | AC10: 4 | AD10: 6 | AE10: 4 | AF10: 3 | AG10: 3 | AH10: 2 | AI10: 3 | AJ10: 2
A11: OG0000012 | B11: 4 | C11: 4 | D11: 3 | E11: 4 | F11: 3 | G11: 5 | H11: 3 | I11: 3 | J11: 3 | K11: 3 | L11: 4 | M11: 2 | N11: 5 | O11: 3 | P11: 3 | Q11: 3 | R11: 3 | S11: 2 | T11: 3 | U11: 2 | V11: 2 | W11: 2 | X11: 1 | Y11: 4 | Z11: 3 | AA11: 3 | AB11: 3 | AC11: 3 | AD11: 3 | AE11: 2 | AF11: 2 | AG11: 7 | AH11: 6 | AI11: 8 | AJ11: 5
A12: OG0000014 | B12: 6 | C12: 5 | D12: 5 | E12: 5 | F12: 2 | G12: 2 | H12: 4 | I12: 6 | J12: 5 | K12: 6 | L12: 4 | M12: 8 | N12: 3 | O12: 4 | P12: 5 | Q12: 5 | R12: 3 | S12: 1 | T12: 1 | U12: 1 | V12: 1 | W12: 1 | X12: 1 | Y12: 5 | Z12: 6 | AA12: 4 | AB12: 6 | AC12: 3 | AD12: 3 | AE12: 1 | AF12: 1 | AG12: 1 | AH12: 1 | AI12: 1 | AJ12: 1
A13: OG0000015 | B13: 5 | C13: 4 | D13: 5 | E13: 8 | F13: 4 | G13: 5 | H13: 5 | I13: 4 | J13: 3 | K13: 5 | L13: 4 | M13: 4 | N13: 6 | O13: 5 | P13: 5 | Q13: 5 | R13: 5 | S13: 3 | T13: 2 | U13: 2 | V13: 2 | W13: 2 | X13: 2 | Y13: 3 | Z13: 3 | AA13: 2 | AB13: 2 | AC13: 1 | AD13: 1 | AE13: 2 | AF13: 2 | AG13: 0 | AH13: 0 | AI13: 0 | AJ13: 1
A14: OG0000016 | B14: 7 | C14: 3 | D14: 3 | E14: 3 | F14: 2 | G14: 2 | H14: 3 | I14: 1 | J14: 3 | K14: 2 | L14: 3 | M14: 3 | N14: 2 | O14: 2 | P14: 3 | Q14: 2 | R14: 2 | S14: 4 | T14: 3 | U14: 2 | V14: 5 | W14: 2 | X14: 4 | Y14: 6 | Z14: 7 | AA14: 3 | AB14: 2 | AC14: 2 | AD14: 2 | AE14: 3 | AF14: 3 | AG14: 6 | AH14: 4 | AI14: 3 | AJ14: 4
A15: OG0000017 | B15: 4 | C15: 4 | D15: 3 | E15: 4 | F15: 6 | G15: 5 | H15: 4 | I15: 4 | J15: 4 | K15: 4 | L15: 4 | M15: 4 | N15: 5 | O15: 4 | P15: 3 | Q15: 3 | R15: 3 | S15: 3 | T15: 4 | U15: 3 | V15: 3 | W15: 3 | X15: 2 | Y15: 6 | Z15: 3 | AA15: 1 | AB15: 1 | AC15: 2 | AD15: 1 | AE15: 1 | AF15: 2 | AG15: 1 | AH15: 2 | AI15: 2 | AJ15: 1
A16: OG0000018 | B16: 3 | C16: 3 | D16: 4 | E16: 4 | F16: 3 | G16: 3 | H16: 3 | I16: 3 | J16: 3 | K16: 3 | L16: 3 | M16: 3 | N16: 4 | O16: 3 | P16: 2 | Q16: 3 | R16: 4 | S16: 2 | T16: 2 | U16: 2 | V16: 1 | W16: 2 | X16: 2 | Y16: 2 | Z16: 3 | AA16: 3 | AB16: 3 | AC16: 3 | AD16: 4 | AE16: 2 | AF16: 2 | AG16: 5 | AH16: 4 | AI16: 5 | AJ16: 5
A17: OG0000019 | B17: 3 | C17: 3 | D17: 3 | E17: 4 | F17: 1 | G17: 2 | H17: 3 | I17: 3 | J17: 3 | K17: 5 | L17: 3 | M17: 4 | N17: 3 | O17: 1 | P17: 2 | Q17: 2 | R17: 1 | S17: 2 | T17: 2 | U17: 1 | V17: 2 | W17: 1 | X17: 1 | Y17: 1 | Z17: 4 | AA17: 4 | AB17: 4 | AC17: 6 | AD17: 6 | AE17: 6 | AF17: 6 | AG17: 4 | AH17: 3 | AI17: 4 | AJ17: 3
A18: OG0000020 | B18: 3 | C18: 3 | D18: 3 | E18: 4 | F18: 2 | G18: 2 | H18: 3 | I18: 2 | J18: 3 | K18: 4 | L18: 2 | M18: 2 | N18: 3 | O18: 3 | P18: 2 | Q18: 3 | R18: 2 | S18: 3 | T18: 5 | U18: 3 | V18: 3 | W18: 2 | X18: 3 | Y18: 5 | Z18: 5 | AA18: 3 | AB18: 3 | AC18: 4 | AD18: 4 | AE18: 2 | AF18: 3 | AG18: 2 | AH18: 2 | AI18: 2 | AJ18: 2
A19: OG0000021 | B19: 2 | C19: 2 | D19: 2 | E19: 1 | F19: 2 | G19: 1 | H19: 1 | I19: 1 | J19: 1 | K19: 2 | L19: 1 | M19: 1 | N19: 4 | O19: 2 | P19: 1 | Q19: 1 | R19: 1 | S19: 2 | T19: 2 | U19: 2 | V19: 3 | W19: 2 | X19: 3 | Y19: 8 | Z19: 7 | AA19: 11 | AB19: 4 | AC19: 6 | AD19: 5 | AE19: 4 | AF19: 5 | AG19: 3 | AH19: 2 | AI19: 2 | AJ19: 4
A20: OG0000024 | B20: 3 | C20: 3 | D20: 3 | E20: 3 | F20: 4 | G20: 5 | H20: 2 | I20: 3 | J20: 3 | K20: 3 | L20: 3 | M20: 2 | N20: 2 | O20: 2 | P20: 2 | Q20: 2 | R20: 2 | S20: 3 | T20: 3 | U20: 2 | V20: 2 | W20: 2 | X20: 3 | Y20: 4 | Z20: 4 | AA20: 2 | AB20: 2 | AC20: 2 | AD20: 1 | AE20: 2 | AF20: 2 | AG20: 3 | AH20: 3 | AI20: 3 | AJ20: 3
A21: OG0000026 | B21: 3 | C21: 5 | D21: 1 | E21: 7 | F21: 2 | G21: 1 | H21: 1 | I21: 3 | J21: 3 | K21: 5 | L21: 3 | M21: 4 | N21: 3 | O21: 3 | P21: 3 | Q21: 2 | R21: 2 | S21: 1 | T21: 1 | U21: 1 | V21: 1 | W21: 1 | X21: 1 | Y21: 5 | Z21: 2 | AA21: 7 | AB21: 5 | AC21: 2 | AD21: 3 | AE21: 3 | AF21: 3 | AG21: 1 | AH21: 1 | AI21: 1 | AJ21: 1
A22: OG0000027 | B22: 2 | C22: 2 | D22: 2 | E22: 3 | F22: 3 | G22: 2 | H22: 4 | I22: 5 | J22: 5 | K22: 5 | L22: 4 | M22: 6 | N22: 4 | O22: 3 | P22: 2 | Q22: 2 | R22: 2 | S22: 0 | T22: 1 | U22: 1 | V22: 1 | W22: 0 | X22: 1 | Y22: 2 | Z22: 3 | AA22: 4 | AB22: 4 | AC22: 1 | AD22: 2 | AE22: 3 | AF22: 3 | AG22: 2 | AH22: 2 | AI22: 2 | AJ22: 1
A23: OG0000030 | B23: 3 | C23: 3 | D23: 3 | E23: 2 | F23: 2 | G23: 2 | H23: 3 | I23: 3 | J23: 3 | K23: 3 | L23: 3 | M23: 3 | N23: 3 | O23: 1 | P23: 3 | Q23: 3 | R23: 3 | S23: 3 | T23: 3 | U23: 3 | V23: 3 | W23: 3 | X23: 1 | Y23: 3 | Z23: 1 | AA23: 3 | AB23: 3 | AC23: 3 | AD23: 2 | AE23: 2 | AF23: 2 | AG23: 2 | AH23: 2 | AI23: 2 | AJ23: 1
A24: OG0000031 | B24: 2 | C24: 3 | D24: 2 | E24: 4 | F24: 2 | G24: 2 | H24: 2 | I24: 6 | J24: 4 | K24: 4 | L24: 3 | M24: 3 | N24: 4 | O24: 2 | P24: 2 | Q24: 1 | R24: 2 | S24: 2 | T24: 5 | U24: 2 | V24: 2 | W24: 2 | X24: 3 | Y24: 3 | Z24: 4 | AA24: 1 | AB24: 2 | AC24: 1 | AD24: 1 | AE24: 2 | AF24: 2 | AG24: 2 | AH24: 1 | AI24: 2 | AJ24: 2
A25: OG0000032 | B25: 3 | C25: 3 | D25: 3 | E25: 3 | F25: 2 | G25: 2 | H25: 2 | I25: 3 | J25: 3 | K25: 3 | L25: 2 | M25: 3 | N25: 3 | O25: 1 | P25: 3 | Q25: 3 | R25: 2 | S25: 2 | T25: 2 | U25: 2 | V25: 2 | W25: 2 | X25: 2 | Y25: 5 | Z25: 4 | AA25: 4 | AB25: 3 | AC25: 2 | AD25: 2 | AE25: 1 | AF25: 1 | AG25: 2 | AH25: 1 | AI25: 2 | AJ25: 1
A26: OG0000033 | B26: 2 | C26: 2 | D26: 2 | E26: 2 | F26: 1 | G26: 1 | H26: 2 | I26: 3 | J26: 4 | K26: 2 | L26: 2 | M26: 2 | N26: 1 | O26: 1 | P26: 1 | Q26: 1 | R26: 1 | S26: 1 | T26: 1 | U26: 1 | V26: 2 | W26: 2 | X26: 1 | Y26: 4 | Z26: 2 | AA26: 5 | AB26: 4 | AC26: 6 | AD26: 4 | AE26: 3 | AF26: 4 | AG26: 3 | AH26: 4 | AI26: 3 | AJ26: 4
A27: OG0000035 | B27: 3 | C27: 3 | D27: 4 | E27: 2 | F27: 3 | G27: 3 | H27: 3 | I27: 2 | J27: 3 | K27: 2 | L27: 3 | M27: 3 | N27: 3 | O27: 1 | P27: 2 | Q27: 3 | R27: 3 | S27: 2 | T27: 3 | U27: 2 | V27: 1 | W27: 2 | X27: 2 | Y27: 4 | Z27: 4 | AA27: 2 | AB27: 2 | AC27: 2 | AD27: 1 | AE27: 2 | AF27: 2 | AG27: 1 | AH27: 1 | AI27: 1 | AJ27: 1
A28: OG0000036 | B28: 3 | C28: 2 | D28: 2 | E28: 3 | F28: 2 | G28: 2 | H28: 2 | I28: 2 | J28: 2 | K28: 2 | L28: 2 | M28: 2 | N28: 2 | O28: 1 | P28: 2 | Q28: 2 | R28: 2 | S28: 3 | T28: 3 | U28: 3 | V28: 2 | W28: 3 | X28: 1 | Y28: 1 | Z28: 2 | AA28: 4 | AB28: 3 | AC28: 3 | AD28: 2 | AE28: 2 | AF28: 2 | AG28: 4 | AH28: 3 | AI28: 3 | AJ28: 2
A29: OG0000039 | B29: 2 | C29: 2 | D29: 2 | E29: 2 | F29: 2 | G29: 2 | H29: 2 | I29: 2 | J29: 2 | K29: 2 | L29: 2 | M29: 2 | N29: 2 | O29: 2 | P29: 2 | Q29: 2 | R29: 2 | S29: 2 | T29: 2 | U29: 2 | V29: 2 | W29: 2 | X29: 2 | Y29: 2 | Z29: 2 | AA29: 3 | AB29: 3 | AC29: 4 | AD29: 3 | AE29: 2 | AF29: 2 | AG29: 3 | AH29: 4 | AI29: 3 | AJ29: 3
A30: OG0000040 | B30: 3 | C30: 3 | D30: 3 | E30: 4 | F30: 3 | G30: 3 | H30: 3 | I30: 3 | J30: 3 | K30: 4 | L30: 3 | M30: 4 | N30: 3 | O30: 2 | P30: 4 | Q30: 3 | R30: 1 | S30: 2 | T30: 2 | U30: 2 | V30: 2 | W30: 3 | X30: 1 | Y30: 0 | Z30: 1 | AA30: 1 | AB30: 0 | AC30: 2 | AD30: 2 | AE30: 1 | AF30: 1 | AG30: 2 | AH30: 2 | AI30: 2 | AJ30: 2
A31: OG0000041 | B31: 1 | C31: 1 | D31: 1 | E31: 1 | F31: 1 | G31: 1 | H31: 1 | I31: 1 | J31: 1 | K31: 1 | L31: 2 | M31: 1 | N31: 1 | O31: 1 | P31: 3 | Q31: 3 | R31: 1 | S31: 2 | T31: 2 | U31: 2 | V31: 2 | W31: 2 | X31: 0 | Y31: 1 | Z31: 1 | AA31: 4 | AB31: 2 | AC31: 2 | AD31: 1 | AE31: 1 | AF31: 1 | AG31: 9 | AH31: 9 | AI31: 8 | AJ31: 9
A32: OG0000043 | B32: 2 | C32: 2 | D32: 2 | E32: 5 | F32: 1 | G32: 2 | H32: 3 | I32: 3 | J32: 3 | K32: 3 | L32: 1 | M32: 3 | N32: 4 | O32: 3 | P32: 2 | Q32: 2 | R32: 2 | S32: 1 | T32: 2 | U32: 1 | V32: 2 | W32: 1 | X32: 0 | Y32: 0 | Z32: 6 | AA32: 7 | AB32: 4 | AC32: 1 | AD32: 1 | AE32: 2 | AF32: 2 | AG32: 1 | AH32: 1 | AI32: 1 | AJ32: 1
A33: OG0000044 | B33: 3 | C33: 2 | D33: 3 | E33: 3 | F33: 1 | G33: 2 | H33: 3 | I33: 3 | J33: 3 | K33: 3 | L33: 3 | M33: 3 | N33: 2 | O33: 2 | P33: 3 | Q33: 3 | R33: 3 | S33: 3 | T33: 3 | U33: 3 | V33: 1 | W33: 2 | X33: 1 | Y33: 1 | Z33: 2 | AA33: 2 | AB33: 2 | AC33: 2 | AD33: 2 | AE33: 2 | AF33: 2 | AG33: 1 | AH33: 1 | AI33: 1 | AJ33: 0
A34: OG0000045 | B34: 2 | C34: 2 | D34: 2 | E34: 2 | F34: 2 | G34: 2 | H34: 2 | I34: 2 | J34: 2 | K34: 2 | L34: 2 | M34: 3 | N34: 2 | O34: 1 | P34: 2 | Q34: 2 | R34: 2 | S34: 2 | T34: 2 | U34: 2 | V34: 2 | W34: 2 | X34: 3 | Y34: 2 | Z34: 1 | AA34: 2 | AB34: 2 | AC34: 3 | AD34: 3 | AE34: 1 | AF34: 2 | AG34: 3 | AH34: 3 | AI34: 3 | AJ34: 3
A35: OG0000046 | B35: 2 | C35: 2 | D35: 2 | E35: 1 | F35: 4 | G35: 4 | H35: 1 | I35: 1 | J35: 1 | K35: 1 | L35: 1 | M35: 2 | N35: 1 | O35: 1 | P35: 3 | Q35: 3 | R35: 3 | S35: 1 | T35: 2 | U35: 1 | V35: 1 | W35: 2 | X35: 3 | Y35: 7 | Z35: 5 | AA35: 3 | AB35: 3 | AC35: 3 | AD35: 3 | AE35: 2 | AF35: 2 | AG35: 1 | AH35: 1 | AI35: 1 | AJ35: 1
A36: OG0000047 | B36: 3 | C36: 3 | D36: 2 | E36: 3 | F36: 2 | G36: 2 | H36: 4 | I36: 3 | J36: 2 | K36: 1 | L36: 3 | M36: 2 | N36: 2 | O36: 2 | P36: 2 | Q36: 2 | R36: 2 | S36: 2 | T36: 3 | U36: 2 | V36: 2 | W36: 2 | X36: 2 | Y36: 3 | Z36: 2 | AA36: 1 | AB36: 1 | AC36: 0 | AD36: 1 | AE36: 1 | AF36: 1 | AG36: 3 | AH36: 3 | AI36: 3 | AJ36: 3
A37: OG0000048 | B37: 2 | C37: 2 | D37: 2 | E37: 2 | F37: 1 | G37: 2 | H37: 2 | I37: 2 | J37: 2 | K37: 2 | L37: 2 | M37: 2 | N37: 3 | O37: 2 | P37: 1 | Q37: 2 | R37: 1 | S37: 3 | T37: 4 | U37: 2 | V37: 2 | W37: 2 | X37: 3 | Y37: 3 | Z37: 2 | AA37: 2 | AB37: 2 | AC37: 2 | AD37: 2 | AE37: 2 | AF37: 2 | AG37: 2 | AH37: 2 | AI37: 2 | AJ37: 2
A38: OG0000049 | B38: 4 | C38: 2 | D38: 2 | E38: 2 | F38: 3 | G38: 3 | H38: 3 | I38: 1 | J38: 1 | K38: 1 | L38: 3 | M38: 1 | N38: 2 | O38: 1 | P38: 1 | Q38: 1 | R38: 1 | S38: 2 | T38: 1 | U38: 2 | V38: 1 | W38: 2 | X38: 1 | Y38: 3 | Z38: 3 | AA38: 2 | AB38: 2 | AC38: 3 | AD38: 2 | AE38: 2 | AF38: 1 | AG38: 4 | AH38: 3 | AI38: 4 | AJ38: 2
A39: OG0000050 | B39: 3 | C39: 3 | D39: 2 | E39: 3 | F39: 2 | G39: 2 | H39: 3 | I39: 3 | J39: 2 | K39: 2 | L39: 2 | M39: 2 | N39: 4 | O39: 2 | P39: 2 | Q39: 2 | R39: 2 | S39: 2 | T39: 2 | U39: 2 | V39: 1 | W39: 2 | X39: 1 | Y39: 3 | Z39: 2 | AA39: 1 | AB39: 1 | AC39: 3 | AD39: 3 | AE39: 1 | AF39: 1 | AG39: 1 | AH39: 1 | AI39: 2 | AJ39: 2
A40: OG0000051 | B40: 2 | C40: 1 | D40: 1 | E40: 1 | F40: 1 | G40: 2 | H40: 1 | I40: 2 | J40: 2 | K40: 2 | L40: 1 | M40: 1 | N40: 1 | O40: 0 | P40: 0 | Q40: 1 | R40: 1 | S40: 2 | T40: 3 | U40: 3 | V40: 2 | W40: 3 | X40: 3 | Y40: 12 | Z40: 6 | AA40: 2 | AB40: 2 | AC40: 2 | AD40: 2 | AE40: 1 | AF40: 1 | AG40: 2 | AH40: 1 | AI40: 4 | AJ40: 1
A41: OG0000052 | B41: 2 | C41: 2 | D41: 2 | E41: 2 | F41: 2 | G41: 2 | H41: 2 | I41: 2 | J41: 2 | K41: 2 | L41: 3 | M41: 2 | N41: 2 | O41: 2 | P41: 2 | Q41: 2 | R41: 2 | S41: 2 | T41: 2 | U41: 2 | V41: 2 | W41: 2 | X41: 2 | Y41: 4 | Z41: 3 | AA41: 2 | AB41: 2 | AC41: 3 | AD41: 2 | AE41: 2 | AF41: 2 | AG41: 1 | AH41: 1 | AI41: 1 | AJ41: 1
A42: OG0000053 | B42: 1 | C42: 2 | D42: 1 | E42: 1 | F42: 2 | G42: 2 | H42: 1 | I42: 1 | J42: 1 | K42: 1 | L42: 1 | M42: 1 | N42: 1 | O42: 1 | P42: 1 | Q42: 3 | R42: 0 | S42: 1 | T42: 0 | U42: 1 | V42: 1 | W42: 1 | X42: 1 | Y42: 1 | Z42: 6 | AA42: 1 | AB42: 1 | AC42: 1 | AD42: 1 | AE42: 1 | AF42: 1 | AG42: 10 | AH42: 9 | AI42: 6 | AJ42: 7
A43: OG0000054 | B43: 1 | C43: 1 | D43: 1 | E43: 2 | F43: 1 | G43: 2 | H43: 1 | I43: 1 | J43: 1 | K43: 2 | L43: 1 | M43: 1 | N43: 6 | O43: 2 | P43: 2 | Q43: 2 | R43: 1 | S43: 2 | T43: 2 | U43: 1 | V43: 3 | W43: 2 | X43: 2 | Y43: 2 | Z43: 3 | AA43: 3 | AB43: 3 | AC43: 1 | AD43: 1 | AE43: 4 | AF43: 5 | AG43: 2 | AH43: 3 | AI43: 2 | AJ43: 2
A44: OG0000055 | B44: 2 | C44: 2 | D44: 3 | E44: 2 | F44: 2 | G44: 2 | H44: 2 | I44: 2 | J44: 3 | K44: 2 | L44: 1 | M44: 2 | N44: 2 | O44: 2 | P44: 2 | Q44: 2 | R44: 1 | S44: 1 | T44: 1 | U44: 1 | V44: 1 | W44: 1 | X44: 0 | Y44: 2 | Z44: 1 | AA44: 3 | AB44: 2 | AC44: 4 | AD44: 3 | AE44: 2 | AF44: 2 | AG44: 3 | AH44: 3 | AI44: 3 | AJ44: 3
A45: OG0000056 | B45: 3 | C45: 3 | D45: 3 | E45: 3 | F45: 2 | G45: 2 | H45: 3 | I45: 3 | J45: 4 | K45: 3 | L45: 2 | M45: 2 | N45: 2 | O45: 2 | P45: 2 | Q45: 2 | R45: 2 | S45: 2 | T45: 2 | U45: 2 | V45: 2 | W45: 2 | X45: 2 | Y45: 1 | Z45: 0 | AA45: 2 | AB45: 2 | AC45: 1 | AD45: 1 | AE45: 2 | AF45: 2 | AG45: 1 | AH45: 1 | AI45: 1 | AJ45: 1
A46: OG0000057 | B46: 2 | C46: 2 | D46: 2 | E46: 2 | F46: 1 | G46: 2 | H46: 2 | I46: 2 | J46: 2 | K46: 2 | L46: 2 | M46: 2 | N46: 3 | O46: 1 | P46: 2 | Q46: 2 | R46: 2 | S46: 2 | T46: 2 | U46: 2 | V46: 2 | W46: 2 | X46: 0 | Y46: 1 | Z46: 1 | AA46: 5 | AB46: 4 | AC46: 2 | AD46: 3 | AE46: 2 | AF46: 3 | AG46: 2 | AH46: 1 | AI46: 2 | AJ46: 1
A47: OG0000058 | B47: 1 | C47: 1 | D47: 1 | E47: 1 | F47: 1 | G47: 2 | H47: 1 | I47: 1 | J47: 1 | K47: 1 | L47: 1 | M47: 1 | N47: 3 | O47: 1 | P47: 1 | Q47: 1 | R47: 1 | S47: 1 | T47: 1 | U47: 1 | V47: 1 | W47: 1 | X47: 2 | Y47: 5 | Z47: 5 | AA47: 5 | AB47: 6 | AC47: 5 | AD47: 5 | AE47: 4 | AF47: 4 | AG47: 1 | AH47: 1 | AI47: 1 | AJ47: 1
A48: OG0000059 | B48: 2 | C48: 2 | D48: 1 | E48: 3 | F48: 2 | G48: 2 | H48: 2 | I48: 2 | J48: 3 | K48: 2 | L48: 2 | M48: 2 | N48: 3 | O48: 1 | P48: 2 | Q48: 2 | R48: 2 | S48: 2 | T48: 1 | U48: 3 | V48: 1 | W48: 1 | X48: 1 | Y48: 2 | Z48: 2 | AA48: 4 | AB48: 2 | AC48: 2 | AD48: 2 | AE48: 2 | AF48: 1 | AG48: 4 | AH48: 1 | AI48: 2 | AJ48: 1
A49: OG0000060 | B49: 3 | C49: 3 | D49: 3 | E49: 3 | F49: 1 | G49: 2 | H49: 2 | I49: 3 | J49: 3 | K49: 5 | L49: 3 | M49: 2 | N49: 4 | O49: 3 | P49: 2 | Q49: 2 | R49: 2 | S49: 1 | T49: 1 | U49: 1 | V49: 1 | W49: 1 | X49: 0 | Y49: 1 | Z49: 1 | AA49: 1 | AB49: 1 | AC49: 1 | AD49: 1 | AE49: 1 | AF49: 1 | AG49: 2 | AH49: 2 | AI49: 3 | AJ49: 2
A50: OG0000061 | B50: 2 | C50: 2 | D50: 2 | E50: 2 | F50: 2 | G50: 3 | H50: 2 | I50: 2 | J50: 2 | K50: 3 | L50: 2 | M50: 2 | N50: 3 | O50: 2 | P50: 2 | Q50: 2 | R50: 2 | S50: 1 | T50: 1 | U50: 1 | V50: 1 | W50: 1 | X50: 0 | Y50: 3 | Z50: 3 | AA50: 3 | AB50: 3 | AC50: 1 | AD50: 1 | AE50: 2 | AF50: 2 | AG50: 1 | AH50: 2 | AI50: 2 | AJ50: 2
A51: OG0000063 | B51: 2 | C51: 2 | D51: 2 | E51: 2 | F51: 1 | G51: 1 | H51: 2 | I51: 2 | J51: 2 | K51: 2 | L51: 2 | M51: 2 | N51: 2 | O51: 1 | P51: 2 | Q51: 2 | R51: 1 | S51: 2 | T51: 2 | U51: 2 | V51: 2 | W51: 2 | X51: 2 | Y51: 3 | Z51: 2 | AA51: 2 | AB51: 2 | AC51: 2 | AD51: 2 | AE51: 2 | AF51: 2 | AG51: 2 | AH51: 2 | AI51: 2 | AJ51: 2
A52: OG0000064 | B52: 2 | C52: 2 | D52: 2 | E52: 3 | F52: 1 | G52: 2 | H52: 2 | I52: 1 | J52: 1 | K52: 2 | L52: 3 | M52: 2 | N52: 3 | O52: 1 | P52: 2 | Q52: 3 | R52: 4 | S52: 2 | T52: 2 | U52: 2 | V52: 2 | W52: 2 | X52: 1 | Y52: 3 | Z52: 1 | AA52: 2 | AB52: 2 | AC52: 1 | AD52: 2 | AE52: 2 | AF52: 2 | AG52: 1 | AH52: 1 | AI52: 1 | AJ52: 1
A53: OG0000065 | B53: 3 | C53: 3 | D53: 3 | E53: 2 | F53: 1 | G53: 2 | H53: 3 | I53: 2 | J53: 2 | K53: 3 | L53: 2 | M53: 2 | N53: 2 | O53: 2 | P53: 1 | Q53: 1 | R53: 1 | S53: 2 | T53: 2 | U53: 2 | V53: 2 | W53: 2 | X53: 2 | Y53: 4 | Z53: 2 | AA53: 2 | AB53: 2 | AC53: 0 | AD53: 1 | AE53: 2 | AF53: 2 | AG53: 1 | AH53: 1 | AI53: 1 | AJ53: 1
A54: OG0000066 | B54: 2 | C54: 2 | D54: 2 | E54: 2 | F54: 2 | G54: 1 | H54: 2 | I54: 2 | J54: 2 | K54: 2 | L54: 2 | M54: 2 | N54: 2 | O54: 2 | P54: 2 | Q54: 2 | R54: 2 | S54: 1 | T54: 2 | U54: 2 | V54: 2 | W54: 2 | X54: 2 | Y54: 2 | Z54: 3 | AA54: 2 | AB54: 2 | AC54: 1 | AD54: 2 | AE54: 2 | AF54: 2 | AG54: 1 | AH54: 2 | AI54: 2 | AJ54: 1
A55: OG0000067 | B55: 2 | C55: 2 | D55: 2 | E55: 1 | F55: 2 | G55: 2 | H55: 3 | I55: 4 | J55: 4 | K55: 4 | L55: 3 | M55: 3 | N55: 1 | O55: 1 | P55: 2 | Q55: 2 | R55: 2 | S55: 1 | T55: 1 | U55: 1 | V55: 1 | W55: 1 | X55: 1 | Y55: 3 | Z55: 4 | AA55: 2 | AB55: 2 | AC55: 2 | AD55: 2 | AE55: 1 | AF55: 1 | AG55: 1 | AH55: 1 | AI55: 1 | AJ55: 0
A56: OG0000069 | B56: 2 | C56: 2 | D56: 2 | E56: 1 | F56: 2 | G56: 2 | H56: 2 | I56: 1 | J56: 2 | K56: 2 | L56: 2 | M56: 2 | N56: 3 | O56: 1 | P56: 1 | Q56: 2 | R56: 2 | S56: 1 | T56: 2 | U56: 2 | V56: 1 | W56: 3 | X56: 1 | Y56: 2 | Z56: 2 | AA56: 3 | AB56: 3 | AC56: 3 | AD56: 3 | AE56: 2 | AF56: 3 | AG56: 1 | AH56: 1 | AI56: 1 | AJ56: 0
A57: OG0000070 | B57: 2 | C57: 2 | D57: 2 | E57: 3 | F57: 2 | G57: 2 | H57: 2 | I57: 1 | J57: 2 | K57: 2 | L57: 2 | M57: 2 | N57: 2 | O57: 1 | P57: 1 | Q57: 2 | R57: 2 | S57: 2 | T57: 2 | U57: 2 | V57: 1 | W57: 2 | X57: 2 | Y57: 3 | Z57: 2 | AA57: 2 | AB57: 2 | AC57: 3 | AD57: 2 | AE57: 2 | AF57: 2 | AG57: 1 | AH57: 1 | AI57: 1 | AJ57: 1
A58: OG0000071 | B58: 2 | C58: 3 | D58: 2 | E58: 2 | F58: 1 | G58: 2 | H58: 2 | I58: 2 | J58: 2 | K58: 2 | L58: 2 | M58: 2 | N58: 2 | O58: 2 | P58: 2 | Q58: 2 | R58: 2 | S58: 2 | T58: 2 | U58: 2 | V58: 2 | W58: 2 | X58: 2 | Y58: 2 | Z58: 3 | AA58: 1 | AB58: 1 | AC58: 1 | AD58: 1 | AE58: 1 | AF58: 1 | AG58: 2 | AH58: 2 | AI58: 2 | AJ58: 2
A59: OG0000072 | B59: 2 | C59: 2 | D59: 2 | E59: 2 | F59: 1 | G59: 2 | H59: 2 | I59: 2 | J59: 2 | K59: 2 | L59: 2 | M59: 2 | N59: 2 | O59: 2 | P59: 3 | Q59: 3 | R59: 2 | S59: 2 | T59: 2 | U59: 2 | V59: 2 | W59: 2 | X59: 2 | Y59: 3 | Z59: 3 | AA59: 1 | AB59: 1 | AC59: 1 | AD59: 1 | AE59: 2 | AF59: 2 | AG59: 1 | AH59: 1 | AI59: 1 | AJ59: 1
A60: OG0000073 | B60: 1 | C60: 1 | D60: 1 | E60: 1 | F60: 1 | G60: 1 | H60: 1 | I60: 1 | J60: 1 | K60: 1 | L60: 1 | M60: 1 | N60: 2 | O60: 1 | P60: 1 | Q60: 2 | R60: 2 | S60: 2 | T60: 2 | U60: 2 | V60: 2 | W60: 2 | X60: 2 | Y60: 1 | Z60: 2 | AA60: 4 | AB60: 4 | AC60: 2 | AD60: 3 | AE60: 3 | AF60: 3 | AG60: 4 | AH60: 2 | AI60: 2 | AJ60: 3
A61: OG0000074 | B61: 2 | C61: 2 | D61: 2 | E61: 2 | F61: 2 | G61: 2 | H61: 2 | I61: 1 | J61: 1 | K61: 4 | L61: 1 | M61: 2 | N61: 3 | O61: 2 | P61: 2 | Q61: 1 | R61: 2 | S61: 2 | T61: 2 | U61: 2 | V61: 2 | W61: 1 | X61: 2 | Y61: 2 | Z61: 2 | AA61: 2 | AB61: 1 | AC61: 1 | AD61: 1 | AE61: 2 | AF61: 2 | AG61: 2 | AH61: 2 | AI61: 2 | AJ61: 2
A62: OG0000075 | B62: 4 | C62: 3 | D62: 3 | E62: 3 | F62: 2 | G62: 2 | H62: 2 | I62: 2 | J62: 2 | K62: 2 | L62: 1 | M62: 3 | N62: 0 | O62: 0 | P62: 1 | Q62: 2 | R62: 2 | S62: 1 | T62: 2 | U62: 1 | V62: 2 | W62: 1 | X62: 1 | Y62: 2 | Z62: 0 | AA62: 1 | AB62: 1 | AC62: 2 | AD62: 2 | AE62: 1 | AF62: 1 | AG62: 3 | AH62: 3 | AI62: 2 | AJ62: 4
A63: OG0000077 | B63: 3 | C63: 3 | D63: 3 | E63: 2 | F63: 2 | G63: 2 | H63: 2 | I63: 3 | J63: 3 | K63: 3 | L63: 3 | M63: 2 | N63: 3 | O63: 3 | P63: 2 | Q63: 2 | R63: 2 | S63: 1 | T63: 1 | U63: 1 | V63: 1 | W63: 1 | X63: 1 | Y63: 1 | Z63: 2 | AA63: 1 | AB63: 1 | AC63: 0 | AD63: 0 | AE63: 1 | AF63: 1 | AG63: 2 | AH63: 2 | AI63: 2 | AJ63: 2
A64: OG0000078 | B64: 2 | C64: 2 | D64: 2 | E64: 2 | F64: 2 | G64: 2 | H64: 2 | I64: 2 | J64: 2 | K64: 2 | L64: 2 | M64: 2 | N64: 2 | O64: 2 | P64: 1 | Q64: 1 | R64: 0 | S64: 1 | T64: 1 | U64: 1 | V64: 1 | W64: 1 | X64: 1 | Y64: 2 | Z64: 2 | AA64: 2 | AB64: 2 | AC64: 5 | AD64: 4 | AE64: 2 | AF64: 2 | AG64: 2 | AH64: 1 | AI64: 2 | AJ64: 2
A65: OG0000079 | B65: 4 | C65: 3 | D65: 4 | E65: 1 | F65: 2 | G65: 2 | H65: 3 | I65: 2 | J65: 2 | K65: 2 | L65: 1 | M65: 2 | N65: 2 | O65: 2 | P65: 3 | Q65: 3 | R65: 3 | S65: 3 | T65: 1 | U65: 2 | V65: 1 | W65: 1 | X65: 1 | Y65: 2 | Z65: 1 | AA65: 2 | AB65: 2 | AC65: 2 | AD65: 2 | AE65: 1 | AF65: 1 | AG65: 0 | AH65: 0 | AI65: 1 | AJ65: 0
A66: OG0000080 | B66: 2 | C66: 1 | D66: 1 | E66: 3 | F66: 2 | G66: 2 | H66: 1 | I66: 1 | J66: 1 | K66: 1 | L66: 2 | M66: 1 | N66: 3 | O66: 3 | P66: 0 | Q66: 0 | R66: 0 | S66: 1 | T66: 1 | U66: 1 | V66: 1 | W66: 1 | X66: 1 | Y66: 3 | Z66: 1 | AA66: 3 | AB66: 3 | AC66: 3 | AD66: 3 | AE66: 3 | AF66: 3 | AG66: 3 | AH66: 3 | AI66: 3 | AJ66: 3
A67: OG0000082 | B67: 1 | C67: 2 | D67: 1 | E67: 1 | F67: 1 | G67: 1 | H67: 1 | I67: 1 | J67: 1 | K67: 1 | L67: 1 | M67: 1 | N67: 1 | O67: 1 | P67: 1 | Q67: 1 | R67: 1 | S67: 1 | T67: 1 | U67: 1 | V67: 1 | W67: 1 | X67: 1 | Y67: 4 | Z67: 4 | AA67: 2 | AB67: 2 | AC67: 5 | AD67: 4 | AE67: 1 | AF67: 1 | AG67: 5 | AH67: 4 | AI67: 4 | AJ67: 3
A68: OG0000083 | B68: 2 | C68: 2 | D68: 2 | E68: 2 | F68: 2 | G68: 2 | H68: 2 | I68: 2 | J68: 2 | K68: 2 | L68: 1 | M68: 4 | N68: 1 | O68: 1 | P68: 1 | Q68: 2 | R68: 2 | S68: 3 | T68: 2 | U68: 2 | V68: 1 | W68: 2 | X68: 1 | Y68: 2 | Z68: 2 | AA68: 2 | AB68: 2 | AC68: 1 | AD68: 1 | AE68: 1 | AF68: 1 | AG68: 2 | AH68: 2 | AI68: 2 | AJ68: 2
A69: OG0000084 | B69: 2 | C69: 1 | D69: 1 | E69: 1 | F69: 1 | G69: 1 | H69: 1 | I69: 2 | J69: 2 | K69: 2 | L69: 1 | M69: 2 | N69: 2 | O69: 1 | P69: 2 | Q69: 2 | R69: 2 | S69: 1 | T69: 1 | U69: 1 | V69: 1 | W69: 1 | X69: 1 | Y69: 1 | Z69: 0 | AA69: 2 | AB69: 2 | AC69: 0 | AD69: 1 | AE69: 1 | AF69: 1 | AG69: 6 | AH69: 6 | AI69: 6 | AJ69: 5
A70: OG0000087 | B70: 2 | C70: 2 | D70: 2 | E70: 2 | F70: 2 | G70: 2 | H70: 2 | I70: 2 | J70: 2 | K70: 2 | L70: 2 | M70: 2 | N70: 2 | O70: 1 | P70: 1 | Q70: 2 | R70: 1 | S70: 3 | T70: 2 | U70: 2 | V70: 1 | W70: 2 | X70: 2 | Y70: 2 | Z70: 2 | AA70: 2 | AB70: 2 | AC70: 2 | AD70: 2 | AE70: 2 | AF70: 2 | AG70: 1 | AH70: 1 | AI70: 1 | AJ70: 1
A71: OG0000088 | B71: 2 | C71: 2 | D71: 2 | E71: 1 | F71: 2 | G71: 2 | H71: 2 | I71: 2 | J71: 2 | K71: 3 | L71: 1 | M71: 1 | N71: 1 | O71: 1 | P71: 2 | Q71: 2 | R71: 2 | S71: 1 | T71: 1 | U71: 1 | V71: 1 | W71: 1 | X71: 1 | Y71: 2 | Z71: 2 | AA71: 3 | AB71: 3 | AC71: 2 | AD71: 2 | AE71: 2 | AF71: 2 | AG71: 2 | AH71: 2 | AI71: 2 | AJ71: 2
A72: OG0000090 | B72: 3 | C72: 3 | D72: 2 | E72: 2 | F72: 2 | G72: 2 | H72: 2 | I72: 2 | J72: 2 | K72: 2 | L72: 2 | M72: 2 | N72: 2 | O72: 2 | P72: 2 | Q72: 2 | R72: 2 | S72: 1 | T72: 1 | U72: 1 | V72: 1 | W72: 1 | X72: 1 | Y72: 4 | Z72: 3 | AA72: 1 | AB72: 1 | AC72: 1 | AD72: 1 | AE72: 1 | AF72: 1 | AG72: 2 | AH72: 2 | AI72: 2 | AJ72: 1
A73: OG0000091 | B73: 3 | C73: 2 | D73: 3 | E73: 2 | F73: 2 | G73: 2 | H73: 2 | I73: 2 | J73: 2 | K73: 3 | L73: 2 | M73: 1 | N73: 2 | O73: 2 | P73: 3 | Q73: 3 | R73: 3 | S73: 1 | T73: 2 | U73: 1 | V73: 2 | W73: 1 | X73: 2 | Y73: 2 | Z73: 1 | AA73: 0 | AB73: 0 | AC73: 1 | AD73: 2 | AE73: 2 | AF73: 2 | AG73: 1 | AH73: 1 | AI73: 1 | AJ73: 1
A74: OG0000092 | B74: 2 | C74: 2 | D74: 2 | E74: 2 | F74: 2 | G74: 2 | H74: 2 | I74: 2 | J74: 2 | K74: 1 | L74: 1 | M74: 2 | N74: 2 | O74: 2 | P74: 1 | Q74: 1 | R74: 1 | S74: 1 | T74: 1 | U74: 1 | V74: 1 | W74: 1 | X74: 0 | Y74: 1 | Z74: 2 | AA74: 1 | AB74: 1 | AC74: 1 | AD74: 1 | AE74: 1 | AF74: 1 | AG74: 8 | AH74: 4 | AI74: 4 | AJ74: 3
A75: OG0000093 | B75: 2 | C75: 2 | D75: 1 | E75: 2 | F75: 2 | G75: 2 | H75: 2 | I75: 2 | J75: 2 | K75: 2 | L75: 2 | M75: 2 | N75: 2 | O75: 2 | P75: 2 | Q75: 2 | R75: 2 | S75: 2 | T75: 2 | U75: 2 | V75: 2 | W75: 2 | X75: 2 | Y75: 2 | Z75: 2 | AA75: 2 | AB75: 2 | AC75: 1 | AD75: 1 | AE75: 2 | AF75: 2 | AG75: 1 | AH75: 1 | AI75: 0 | AJ75: 1
A76: OG0000097 | B76: 2 | C76: 2 | D76: 2 | E76: 2 | F76: 2 | G76: 2 | H76: 2 | I76: 2 | J76: 2 | K76: 2 | L76: 2 | M76: 2 | N76: 2 | O76: 2 | P76: 4 | Q76: 3 | R76: 2 | S76: 1 | T76: 1 | U76: 1 | V76: 1 | W76: 2 | X76: 0 | Y76: 0 | Z76: 2 | AA76: 1 | AB76: 0 | AC76: 2 | AD76: 1 | AE76: 1 | AF76: 1 | AG76: 2 | AH76: 2 | AI76: 2 | AJ76: 2
A77: OG0000100 | B77: 2 | C77: 3 | D77: 2 | E77: 2 | F77: 2 | G77: 2 | H77: 2 | I77: 2 | J77: 2 | K77: 1 | L77: 2 | M77: 2 | N77: 2 | O77: 2 | P77: 2 | Q77: 2 | R77: 2 | S77: 1 | T77: 1 | U77: 1 | V77: 1 | W77: 1 | X77: 1 | Y77: 2 | Z77: 2 | AA77: 1 | AB77: 1 | AC77: 1 | AD77: 1 | AE77: 1 | AF77: 1 | AG77: 2 | AH77: 2 | AI77: 2 | AJ77: 2
A78: OG0000101 | B78: 2 | C78: 2 | D78: 2 | E78: 2 | F78: 2 | G78: 2 | H78: 1 | I78: 2 | J78: 2 | K78: 2 | L78: 2 | M78: 2 | N78: 2 | O78: 2 | P78: 2 | Q78: 2 | R78: 1 | S78: 1 | T78: 1 | U78: 1 | V78: 1 | W78: 1 | X78: 1 | Y78: 2 | Z78: 1 | AA78: 2 | AB78: 2 | AC78: 2 | AD78: 2 | AE78: 2 | AF78: 2 | AG78: 1 | AH78: 1 | AI78: 1 | AJ78: 2
A79: OG0000103 | B79: 2 | C79: 2 | D79: 1 | E79: 1 | F79: 1 | G79: 1 | H79: 2 | I79: 2 | J79: 2 | K79: 2 | L79: 3 | M79: 1 | N79: 1 | O79: 1 | P79: 3 | Q79: 3 | R79: 2 | S79: 1 | T79: 1 | U79: 1 | V79: 0 | W79: 0 | X79: 1 | Y79: 2 | Z79: 2 | AA79: 3 | AB79: 3 | AC79: 2 | AD79: 2 | AE79: 2 | AF79: 2 | AG79: 2 | AH79: 1 | AI79: 1 | AJ79: 1
A80: OG0000104 | B80: 2 | C80: 2 | D80: 2 | E80: 2 | F80: 2 | G80: 2 | H80: 1 | I80: 2 | J80: 2 | K80: 2 | L80: 2 | M80: 2 | N80: 2 | O80: 1 | P80: 2 | Q80: 2 | R80: 2 | S80: 2 | T80: 2 | U80: 2 | V80: 2 | W80: 2 | X80: 2 | Y80: 2 | Z80: 2 | AA80: 2 | AB80: 1 | AC80: 0 | AD80: 1 | AE80: 1 | AF80: 1 | AG80: 1 | AH80: 0 | AI80: 0 | AJ80: 1
A81: OG0000109 | B81: 1 | C81: 1 | D81: 1 | E81: 2 | F81: 1 | G81: 2 | H81: 1 | I81: 1 | J81: 2 | K81: 3 | L81: 1 | M81: 1 | N81: 1 | O81: 0 | P81: 1 | Q81: 1 | R81: 0 | S81: 2 | T81: 1 | U81: 1 | V81: 1 | W81: 1 | X81: 0 | Y81: 1 | Z81: 2 | AA81: 5 | AB81: 3 | AC81: 3 | AD81: 4 | AE81: 2 | AF81: 2 | AG81: 2 | AH81: 1 | AI81: 2 | AJ81: 2
A82: OG0000111 | B82: 4 | C82: 1 | D82: 1 | E82: 1 | F82: 2 | G82: 2 | H82: 1 | I82: 3 | J82: 2 | K82: 3 | L82: 1 | M82: 1 | N82: 2 | O82: 2 | P82: 1 | Q82: 1 | R82: 1 | S82: 2 | T82: 2 | U82: 1 | V82: 1 | W82: 1 | X82: 1 | Y82: 3 | Z82: 3 | AA82: 2 | AB82: 1 | AC82: 1 | AD82: 1 | AE82: 1 | AF82: 1 | AG82: 2 | AH82: 1 | AI82: 0 | AJ82: 1
A83: OG0000113 | B83: 2 | C83: 2 | D83: 2 | E83: 1 | F83: 2 | G83: 2 | H83: 2 | I83: 1 | J83: 1 | K83: 1 | L83: 1 | M83: 1 | N83: 2 | O83: 2 | P83: 2 | Q83: 2 | R83: 1 | S83: 2 | T83: 3 | U83: 2 | V83: 2 | W83: 1 | X83: 1 | Y83: 1 | Z83: 1 | AA83: 2 | AB83: 2 | AC83: 1 | AD83: 1 | AE83: 2 | AF83: 2 | AG83: 1 | AH83: 1 | AI83: 1 | AJ83: 1
A84: OG0000114 | B84: 2 | C84: 2 | D84: 2 | E84: 1 | F84: 1 | G84: 1 | H84: 2 | I84: 1 | J84: 1 | K84: 1 | L84: 2 | M84: 1 | N84: 2 | O84: 2 | P84: 2 | Q84: 2 | R84: 2 | S84: 1 | T84: 1 | U84: 1 | V84: 1 | W84: 1 | X84: 1 | Y84: 1 | Z84: 1 | AA84: 3 | AB84: 3 | AC84: 2 | AD84: 2 | AE84: 3 | AF84: 3 | AG84: 1 | AH84: 0 | AI84: 1 | AJ84: 1
A85: OG0000117 | B85: 2 | C85: 2 | D85: 2 | E85: 2 | F85: 2 | G85: 2 | H85: 2 | I85: 2 | J85: 2 | K85: 2 | L85: 2 | M85: 2 | N85: 2 | O85: 1 | P85: 2 | Q85: 2 | R85: 2 | S85: 1 | T85: 1 | U85: 1 | V85: 1 | W85: 1 | X85: 1 | Y85: 2 | Z85: 2 | AA85: 1 | AB85: 1 | AC85: 1 | AD85: 1 | AE85: 1 | AF85: 1 | AG85: 1 | AH85: 1 | AI85: 1 | AJ85: 1
A86: OG0000119 | B86: 1 | C86: 1 | D86: 1 | E86: 2 | F86: 2 | G86: 1 | H86: 1 | I86: 3 | J86: 2 | K86: 3 | L86: 1 | M86: 2 | N86: 1 | O86: 1 | P86: 1 | Q86: 1 | R86: 1 | S86: 1 | T86: 1 | U86: 1 | V86: 1 | W86: 1 | X86: 1 | Y86: 3 | Z86: 3 | AA86: 4 | AB86: 1 | AC86: 2 | AD86: 2 | AE86: 1 | AF86: 2 | AG86: 1 | AH86: 1 | AI86: 1 | AJ86: 1
A87: OG0000120 | B87: 3 | C87: 1 | D87: 1 | E87: 2 | F87: 1 | G87: 1 | H87: 1 | I87: 1 | J87: 2 | K87: 2 | L87: 2 | M87: 3 | N87: 2 | O87: 1 | P87: 1 | Q87: 1 | R87: 0 | S87: 2 | T87: 1 | U87: 1 | V87: 1 | W87: 1 | X87: 1 | Y87: 2 | Z87: 2 | AA87: 2 | AB87: 2 | AC87: 1 | AD87: 4 | AE87: 2 | AF87: 2 | AG87: 1 | AH87: 1 | AI87: 1 | AJ87: 1
A88: OG0000121 | B88: 2 | C88: 2 | D88: 2 | E88: 1 | F88: 1 | G88: 1 | H88: 1 | I88: 1 | J88: 2 | K88: 2 | L88: 2 | M88: 1 | N88: 2 | O88: 2 | P88: 2 | Q88: 1 | R88: 1 | S88: 2 | T88: 2 | U88: 2 | V88: 2 | W88: 2 | X88: 1 | Y88: 0 | Z88: 1 | AA88: 2 | AB88: 1 | AC88: 1 | AD88: 1 | AE88: 1 | AF88: 1 | AG88: 2 | AH88: 1 | AI88: 2 | AJ88: 2
A89: OG0000124 | B89: 3 | C89: 3 | D89: 2 | E89: 4 | F89: 1 | G89: 1 | H89: 3 | I89: 1 | J89: 1 | K89: 1 | L89: 1 | M89: 3 | N89: 1 | O89: 1 | P89: 1 | Q89: 2 | R89: 2 | S89: 1 | T89: 1 | U89: 1 | V89: 0 | W89: 2 | X89: 1 | Y89: 1 | Z89: 1 | AA89: 2 | AB89: 2 | AC89: 2 | AD89: 2 | AE89: 1 | AF89: 0 | AG89: 1 | AH89: 1 | AI89: 1 | AJ89: 1
A90: OG0000125 | B90: 2 | C90: 2 | D90: 2 | E90: 2 | F90: 2 | G90: 2 | H90: 2 | I90: 2 | J90: 2 | K90: 2 | L90: 2 | M90: 2 | N90: 1 | O90: 1 | P90: 2 | Q90: 2 | R90: 1 | S90: 1 | T90: 1 | U90: 1 | V90: 1 | W90: 1 | X90: 1 | Y90: 1 | Z90: 2 | AA90: 1 | AB90: 1 | AC90: 0 | AD90: 0 | AE90: 1 | AF90: 1 | AG90: 2 | AH90: 2 | AI90: 2 | AJ90: 2
A91: OG0000126 | B91: 2 | C91: 2 | D91: 2 | E91: 2 | F91: 2 | G91: 2 | H91: 1 | I91: 1 | J91: 1 | K91: 1 | L91: 1 | M91: 1 | N91: 1 | O91: 1 | P91: 1 | Q91: 1 | R91: 1 | S91: 1 | T91: 1 | U91: 1 | V91: 1 | W91: 1 | X91: 1 | Y91: 1 | Z91: 3 | AA91: 3 | AB91: 3 | AC91: 2 | AD91: 1 | AE91: 1 | AF91: 1 | AG91: 2 | AH91: 2 | AI91: 2 | AJ91: 2
A92: OG0000127 | B92: 1 | C92: 2 | D92: 1 | E92: 2 | F92: 2 | G92: 3 | H92: 1 | I92: 1 | J92: 1 | K92: 1 | L92: 1 | M92: 1 | N92: 1 | O92: 1 | P92: 1 | Q92: 1 | R92: 1 | S92: 1 | T92: 1 | U92: 1 | V92: 1 | W92: 1 | X92: 1 | Y92: 1 | Z92: 4 | AA92: 3 | AB92: 3 | AC92: 2 | AD92: 1 | AE92: 1 | AF92: 1 | AG92: 2 | AH92: 2 | AI92: 2 | AJ92: 2
A93: OG0000129 | B93: 1 | C93: 1 | D93: 1 | E93: 1 | F93: 0 | G93: 1 | H93: 1 | I93: 1 | J93: 1 | K93: 1 | L93: 1 | M93: 1 | N93: 2 | O93: 1 | P93: 1 | Q93: 1 | R93: 1 | S93: 2 | T93: 2 | U93: 2 | V93: 2 | W93: 2 | X93: 2 | Y93: 3 | Z93: 0 | AA93: 2 | AB93: 2 | AC93: 2 | AD93: 2 | AE93: 2 | AF93: 2 | AG93: 2 | AH93: 2 | AI93: 2 | AJ93: 2
A94: OG0000130 | B94: 1 | C94: 1 | D94: 1 | E94: 2 | F94: 1 | G94: 1 | H94: 1 | I94: 1 | J94: 2 | K94: 1 | L94: 1 | M94: 2 | N94: 3 | O94: 2 | P94: 1 | Q94: 1 | R94: 1 | S94: 2 | T94: 3 | U94: 1 | V94: 1 | W94: 1 | X94: 0 | Y94: 2 | Z94: 2 | AA94: 3 | AB94: 2 | AC94: 1 | AD94: 1 | AE94: 1 | AF94: 1 | AG94: 2 | AH94: 2 | AI94: 2 | AJ94: 2
A95: OG0000138 | B95: 4 | C95: 0 | D95: 0 | E95: 2 | F95: 1 | G95: 1 | H95: 2 | I95: 1 | J95: 1 | K95: 1 | L95: 1 | M95: 1 | N95: 1 | O95: 1 | P95: 1 | Q95: 1 | R95: 1 | S95: 1 | T95: 1 | U95: 1 | V95: 1 | W95: 1 | X95: 1 | Y95: 2 | Z95: 1 | AA95: 2 | AB95: 2 | AC95: 2 | AD95: 2 | AE95: 3 | AF95: 3 | AG95: 4 | AH95: 1 | AI95: 1 | AJ95: 1
A96: OG0000139 | B96: 2 | C96: 1 | D96: 1 | E96: 1 | F96: 1 | G96: 2 | H96: 1 | I96: 1 | J96: 1 | K96: 1 | L96: 1 | M96: 1 | N96: 1 | O96: 1 | P96: 1 | Q96: 1 | R96: 0 | S96: 1 | T96: 1 | U96: 2 | V96: 1 | W96: 1 | X96: 0 | Y96: 3 | Z96: 3 | AA96: 3 | AB96: 2 | AC96: 2 | AD96: 2 | AE96: 2 | AF96: 2 | AG96: 2 | AH96: 1 | AI96: 2 | AJ96: 2
A97: OG0000144 | B97: 2 | C97: 2 | D97: 2 | E97: 2 | F97: 1 | G97: 1 | H97: 2 | I97: 2 | J97: 2 | K97: 2 | L97: 2 | M97: 2 | N97: 2 | O97: 2 | P97: 2 | Q97: 2 | R97: 2 | S97: 1 | T97: 1 | U97: 1 | V97: 1 | W97: 1 | X97: 0 | Y97: 2 | Z97: 1 | AA97: 1 | AB97: 1 | AC97: 1 | AD97: 1 | AE97: 1 | AF97: 1 | AG97: 1 | AH97: 1 | AI97: 1 | AJ97: 1
A98: OG0000145 | B98: 1 | C98: 0 | D98: 1 | E98: 3 | F98: 1 | G98: 1 | H98: 2 | I98: 1 | J98: 2 | K98: 2 | L98: 2 | M98: 2 | N98: 2 | O98: 1 | P98: 2 | Q98: 2 | R98: 2 | S98: 1 | T98: 1 | U98: 1 | V98: 1 | W98: 1 | X98: 1 | Y98: 2 | Z98: 1 | AA98: 2 | AB98: 1 | AC98: 1 | AD98: 2 | AE98: 1 | AF98: 1 | AG98: 3 | AH98: 1 | AI98: 0 | AJ98: 2
A99: OG0000148 | B99: 1 | C99: 1 | D99: 2 | E99: 2 | F99: 1 | G99: 1 | H99: 1 | I99: 1 | J99: 1 | K99: 1 | L99: 1 | M99: 1 | N99: 1 | O99: 1 | P99: 1 | Q99: 1 | R99: 1 | S99: 1 | T99: 1 | U99: 1 | V99: 1 | W99: 1 | X99: 1 | Y99: 1 | Z99: 3 | AA99: 2 | AB99: 1 | AC99: 1 | AD99: 1 | AE99: 1 | AF99: 0 | AG99: 4 | AH99: 4 | AI99: 4 | AJ99: 2
A100: OG0000149 | B100: 1 | C100: 1 | D100: 1 | E100: 1 | F100: 1 | G100: 1 | H100: 1 | I100: 1 | J100: 1 | K100: 1 | L100: 1 | M100: 1 | N100: 1 | O100: 1 | P100: 1 | Q100: 1 | R100: 1 | S100: 2 | T100: 2 | U100: 2 | V100: 2 | W100: 2 | X100: 2 | Y100: 1 | Z100: 2 | AA100: 2 | AB100: 1 | AC100: 1 | AD100: 1 | AE100: 2 | AF100: 2 | AG100: 2 | AH100: 2 | AI100: 2 | AJ100: 2
A101: OG0000153 | B101: 1 | C101: 1 | D101: 1 | E101: 1 | F101: 1 | G101: 1 | H101: 1 | I101: 1 | J101: 1 | K101: 1 | L101: 1 | M101: 1 | N101: 2 | O101: 1 | P101: 1 | Q101: 1 | R101: 1 | S101: 1 | T101: 1 | U101: 1 | V101: 1 | W101: 1 | X101: 0 | Y101: 4 | Z101: 4 | AA101: 3 | AB101: 3 | AC101: 1 | AD101: 1 | AE101: 1 | AF101: 1 | AG101: 2 | AH101: 2 | AI101: 2 | AJ101: 2
A102: OG0000154 | B102: 2 | C102: 2 | D102: 2 | E102: 2 | F102: 2 | G102: 2 | H102: 2 | I102: 1 | J102: 1 | K102: 1 | L102: 2 | M102: 2 | N102: 1 | O102: 1 | P102: 1 | Q102: 2 | R102: 2 | S102: 1 | T102: 1 | U102: 1 | V102: 1 | W102: 1 | X102: 1 | Y102: 2 | Z102: 3 | AA102: 1 | AB102: 1 | AC102: 0 | AD102: 1 | AE102: 1 | AF102: 1 | AG102: 1 | AH102: 1 | AI102: 1 | AJ102: 1
A103: OG0000157 | B103: 1 | C103: 1 | D103: 1 | E103: 1 | F103: 1 | G103: 1 | H103: 1 | I103: 1 | J103: 1 | K103: 1 | L103: 1 | M103: 1 | N103: 1 | O103: 1 | P103: 1 | Q103: 0 | R103: 1 | S103: 0 | T103: 1 | U103: 1 | V103: 1 | W103: 1 | X103: 1 | Y103: 2 | Z103: 2 | AA103: 2 | AB103: 2 | AC103: 1 | AD103: 1 | AE103: 1 | AF103: 1 | AG103: 4 | AH103: 4 | AI103: 3 | AJ103: 4
A104: OG0000158 | B104: 1 | C104: 1 | D104: 1 | E104: 1 | F104: 1 | G104: 1 | H104: 1 | I104: 1 | J104: 1 | K104: 1 | L104: 1 | M104: 1 | N104: 1 | O104: 1 | P104: 2 | Q104: 2 | R104: 2 | S104: 1 | T104: 1 | U104: 1 | V104: 1 | W104: 1 | X104: 0 | Y104: 1 | Z104: 3 | AA104: 2 | AB104: 1 | AC104: 1 | AD104: 1 | AE104: 2 | AF104: 2 | AG104: 3 | AH104: 3 | AI104: 3 | AJ104: 1
A105: OG0000161 | B105: 2 | C105: 1 | D105: 1 | E105: 1 | F105: 1 | G105: 1 | H105: 1 | I105: 1 | J105: 1 | K105: 1 | L105: 1 | M105: 2 | N105: 1 | O105: 1 | P105: 0 | Q105: 1 | R105: 1 | S105: 1 | T105: 1 | U105: 1 | V105: 1 | W105: 1 | X105: 1 | Y105: 1 | Z105: 1 | AA105: 2 | AB105: 2 | AC105: 3 | AD105: 2 | AE105: 2 | AF105: 2 | AG105: 2 | AH105: 2 | AI105: 2 | AJ105: 2
A106: OG0000162 | B106: 1 | C106: 1 | D106: 1 | E106: 1 | F106: 1 | G106: 1 | H106: 1 | I106: 1 | J106: 1 | K106: 1 | L106: 1 | M106: 1 | N106: 1 | O106: 1 | P106: 1 | Q106: 1 | R106: 1 | S106: 2 | T106: 2 | U106: 2 | V106: 1 | W106: 2 | X106: 1 | Y106: 1 | Z106: 1 | AA106: 2 | AB106: 2 | AC106: 2 | AD106: 2 | AE106: 1 | AF106: 1 | AG106: 2 | AH106: 2 | AI106: 2 | AJ106: 2
A107: OG0000164 | B107: 1 | C107: 1 | D107: 1 | E107: 1 | F107: 1 | G107: 0 | H107: 1 | I107: 1 | J107: 1 | K107: 1 | L107: 1 | M107: 1 | N107: 2 | O107: 2 | P107: 1 | Q107: 1 | R107: 1 | S107: 2 | T107: 2 | U107: 2 | V107: 2 | W107: 2 | X107: 2 | Y107: 2 | Z107: 3 | AA107: 2 | AB107: 2 | AC107: 1 | AD107: 1 | AE107: 1 | AF107: 1 | AG107: 1 | AH107: 1 | AI107: 1 | AJ107: 1
A108: OG0000166 | B108: 1 | C108: 1 | D108: 1 | E108: 1 | F108: 1 | G108: 1 | H108: 1 | I108: 1 | J108: 1 | K108: 1 | L108: 1 | M108: 1 | N108: 2 | O108: 1 | P108: 1 | Q108: 1 | R108: 1 | S108: 2 | T108: 1 | U108: 1 | V108: 1 | W108: 1 | X108: 0 | Y108: 1 | Z108: 1 | AA108: 2 | AB108: 2 | AC108: 2 | AD108: 2 | AE108: 2 | AF108: 2 | AG108: 2 | AH108: 2 | AI108: 2 | AJ108: 2
A109: OG0000167 | B109: 2 | C109: 2 | D109: 1 | E109: 0 | F109: 1 | G109: 1 | H109: 2 | I109: 1 | J109: 1 | K109: 1 | L109: 2 | M109: 3 | N109: 2 | O109: 1 | P109: 1 | Q109: 1 | R109: 2 | S109: 1 | T109: 1 | U109: 1 | V109: 1 | W109: 1 | X109: 1 | Y109: 2 | Z109: 1 | AA109: 1 | AB109: 1 | AC109: 1 | AD109: 1 | AE109: 1 | AF109: 1 | AG109: 2 | AH109: 2 | AI109: 2 | AJ109: 1
A110: OG0000168 | B110: 1 | C110: 1 | D110: 1 | E110: 1 | F110: 0 | G110: 2 | H110: 1 | I110: 2 | J110: 1 | K110: 1 | L110: 1 | M110: 1 | N110: 1 | O110: 2 | P110: 1 | Q110: 1 | R110: 1 | S110: 1 | T110: 1 | U110: 1 | V110: 1 | W110: 1 | X110: 1 | Y110: 2 | Z110: 1 | AA110: 1 | AB110: 1 | AC110: 1 | AD110: 1 | AE110: 1 | AF110: 1 | AG110: 3 | AH110: 3 | AI110: 3 | AJ110: 3
A111: OG0000174 | B111: 1 | C111: 1 | D111: 1 | E111: 3 | F111: 1 | G111: 1 | H111: 1 | I111: 1 | J111: 1 | K111: 1 | L111: 1 | M111: 1 | N111: 1 | O111: 1 | P111: 1 | Q111: 1 | R111: 1 | S111: 2 | T111: 1 | U111: 1 | V111: 1 | W111: 1 | X111: 1 | Y111: 2 | Z111: 0 | AA111: 2 | AB111: 1 | AC111: 1 | AD111: 1 | AE111: 2 | AF111: 2 | AG111: 2 | AH111: 2 | AI111: 2 | AJ111: 2
A112: OG0000175 | B112: 1 | C112: 1 | D112: 1 | E112: 1 | F112: 1 | G112: 1 | H112: 2 | I112: 1 | J112: 1 | K112: 1 | L112: 1 | M112: 1 | N112: 1 | O112: 1 | P112: 1 | Q112: 1 | R112: 0 | S112: 2 | T112: 2 | U112: 2 | V112: 2 | W112: 2 | X112: 0 | Y112: 1 | Z112: 1 | AA112: 1 | AB112: 1 | AC112: 2 | AD112: 2 | AE112: 3 | AF112: 3 | AG112: 1 | AH112: 1 | AI112: 1 | AJ112: 1
A113: OG0000176 | B113: 1 | C113: 1 | D113: 1 | E113: 1 | F113: 0 | G113: 1 | H113: 1 | I113: 1 | J113: 1 | K113: 1 | L113: 0 | M113: 1 | N113: 1 | O113: 1 | P113: 1 | Q113: 1 | R113: 1 | S113: 2 | T113: 3 | U113: 2 | V113: 2 | W113: 1 | X113: 1 | Y113: 0 | Z113: 1 | AA113: 2 | AB113: 2 | AC113: 2 | AD113: 1 | AE113: 2 | AF113: 2 | AG113: 2 | AH113: 1 | AI113: 2 | AJ113: 2
A114: OG0000180 | B114: 1 | C114: 1 | D114: 1 | E114: 1 | F114: 1 | G114: 1 | H114: 2 | I114: 2 | J114: 2 | K114: 2 | L114: 3 | M114: 1 | N114: 1 | O114: 1 | P114: 2 | Q114: 2 | R114: 2 | S114: 1 | T114: 1 | U114: 1 | V114: 1 | W114: 1 | X114: 1 | Y114: 1 | Z114: 0 | AA114: 1 | AB114: 1 | AC114: 1 | AD114: 1 | AE114: 2 | AF114: 2 | AG114: 1 | AH114: 1 | AI114: 1 | AJ114: 1
A115: OG0000181 | B115: 1 | C115: 1 | D115: 1 | E115: 2 | F115: 1 | G115: 1 | H115: 1 | I115: 1 | J115: 1 | K115: 1 | L115: 1 | M115: 1 | N115: 1 | O115: 1 | P115: 1 | Q115: 1 | R115: 1 | S115: 0 | T115: 1 | U115: 1 | V115: 1 | W115: 0 | X115: 1 | Y115: 0 | Z115: 1 | AA115: 3 | AB115: 3 | AC115: 3 | AD115: 3 | AE115: 3 | AF115: 3 | AG115: 1 | AH115: 1 | AI115: 1 | AJ115: 1
A116: OG0000182 | B116: 1 | C116: 1 | D116: 1 | E116: 2 | F116: 1 | G116: 2 | H116: 1 | I116: 1 | J116: 1 | K116: 1 | L116: 2 | M116: 1 | N116: 1 | O116: 1 | P116: 1 | Q116: 1 | R116: 1 | S116: 2 | T116: 3 | U116: 2 | V116: 2 | W116: 2 | X116: 2 | Y116: 1 | Z116: 0 | AA116: 1 | AB116: 2 | AC116: 1 | AD116: 1 | AE116: 1 | AF116: 1 | AG116: 1 | AH116: 1 | AI116: 1 | AJ116: 1
A117: OG0000184 | B117: 1 | C117: 1 | D117: 0 | E117: 1 | F117: 1 | G117: 1 | H117: 1 | I117: 2 | J117: 2 | K117: 1 | L117: 0 | M117: 1 | N117: 1 | O117: 1 | P117: 1 | Q117: 1 | R117: 1 | S117: 1 | T117: 1 | U117: 1 | V117: 1 | W117: 1 | X117: 2 | Y117: 2 | Z117: 2 | AA117: 2 | AB117: 2 | AC117: 2 | AD117: 1 | AE117: 1 | AF117: 1 | AG117: 2 | AH117: 2 | AI117: 2 | AJ117: 2
A118: OG0000189 | B118: 1 | C118: 1 | D118: 1 | E118: 1 | F118: 1 | G118: 1 | H118: 1 | I118: 1 | J118: 1 | K118: 1 | L118: 1 | M118: 1 | N118: 1 | O118: 1 | P118: 1 | Q118: 1 | R118: 1 | S118: 1 | T118: 1 | U118: 1 | V118: 1 | W118: 1 | X118: 1 | Y118: 3 | Z118: 2 | AA118: 2 | AB118: 2 | AC118: 2 | AD118: 2 | AE118: 1 | AF118: 1 | AG118: 2 | AH118: 2 | AI118: 1 | AJ118: 1
A119: OG0000191 | B119: 1 | C119: 1 | D119: 1 | E119: 2 | F119: 1 | G119: 1 | H119: 1 | I119: 1 | J119: 1 | K119: 1 | L119: 1 | M119: 1 | N119: 1 | O119: 1 | P119: 1 | Q119: 1 | R119: 0 | S119: 1 | T119: 1 | U119: 1 | V119: 1 | W119: 1 | X119: 1 | Y119: 1 | Z119: 1 | AA119: 1 | AB119: 2 | AC119: 2 | AD119: 2 | AE119: 2 | AF119: 2 | AG119: 2 | AH119: 2 | AI119: 2 | AJ119: 2
A120: OG0000192 | B120: 1 | C120: 1 | D120: 1 | E120: 0 | F120: 1 | G120: 1 | H120: 1 | I120: 1 | J120: 1 | K120: 1 | L120: 1 | M120: 1 | N120: 1 | O120: 1 | P120: 1 | Q120: 1 | R120: 1 | S120: 1 | T120: 1 | U120: 1 | V120: 1 | W120: 1 | X120: 1 | Y120: 2 | Z120: 2 | AA120: 2 | AB120: 2 | AC120: 1 | AD120: 1 | AE120: 2 | AF120: 2 | AG120: 2 | AH120: 2 | AI120: 2 | AJ120: 2
A121: OG0000193 | B121: 1 | C121: 1 | D121: 1 | E121: 1 | F121: 1 | G121: 1 | H121: 1 | I121: 1 | J121: 1 | K121: 1 | L121: 0 | M121: 1 | N121: 1 | O121: 1 | P121: 1 | Q121: 1 | R121: 1 | S121: 1 | T121: 1 | U121: 1 | V121: 1 | W121: 1 | X121: 1 | Y121: 0 | Z121: 2 | AA121: 2 | AB121: 2 | AC121: 1 | AD121: 1 | AE121: 1 | AF121: 1 | AG121: 3 | AH121: 3 | AI121: 3 | AJ121: 3
A122: OG0000195 | B122: 1 | C122: 1 | D122: 1 | E122: 1 | F122: 1 | G122: 1 | H122: 1 | I122: 1 | J122: 1 | K122: 1 | L122: 1 | M122: 1 | N122: 1 | O122: 1 | P122: 1 | Q122: 1 | R122: 1 | S122: 1 | T122: 1 | U122: 1 | V122: 1 | W122: 1 | X122: 1 | Y122: 1 | Z122: 1 | AA122: 2 | AB122: 2 | AC122: 2 | AD122: 2 | AE122: 2 | AF122: 2 | AG122: 1 | AH122: 2 | AI122: 2 | AJ122: 2
A123: OG0000199 | B123: 1 | C123: 1 | D123: 1 | E123: 1 | F123: 1 | G123: 1 | H123: 1 | I123: 1 | J123: 1 | K123: 1 | L123: 2 | M123: 1 | N123: 1 | O123: 1 | P123: 1 | Q123: 1 | R123: 1 | S123: 1 | T123: 1 | U123: 1 | V123: 1 | W123: 1 | X123: 0 | Y123: 4 | Z123: 3 | AA123: 2 | AB123: 1 | AC123: 2 | AD123: 2 | AE123: 1 | AF123: 1 | AG123: 1 | AH123: 1 | AI123: 1 | AJ123: 1
A124: OG0000201 | B124: 1 | C124: 1 | D124: 1 | E124: 1 | F124: 1 | G124: 1 | H124: 1 | I124: 1 | J124: 1 | K124: 1 | L124: 1 | M124: 1 | N124: 1 | O124: 1 | P124: 1 | Q124: 1 | R124: 1 | S124: 1 | T124: 1 | U124: 1 | V124: 0 | W124: 1 | X124: 1 | Y124: 2 | Z124: 3 | AA124: 3 | AB124: 2 | AC124: 1 | AD124: 1 | AE124: 1 | AF124: 1 | AG124: 2 | AH124: 1 | AI124: 2 | AJ124: 2
A125: OG0000208 | B125: 1 | C125: 1 | D125: 1 | E125: 1 | F125: 2 | G125: 2 | H125: 1 | I125: 1 | J125: 1 | K125: 1 | L125: 1 | M125: 1 | N125: 2 | O125: 1 | P125: 0 | Q125: 0 | R125: 1 | S125: 1 | T125: 2 | U125: 2 | V125: 2 | W125: 2 | X125: 1 | Y125: 4 | Z125: 1 | AA125: 1 | AB125: 1 | AC125: 1 | AD125: 1 | AE125: 1 | AF125: 1 | AG125: 1 | AH125: 1 | AI125: 1 | AJ125: 1
A126: OG0000216 | B126: 1 | C126: 1 | D126: 1 | E126: 0 | F126: 1 | G126: 1 | H126: 1 | I126: 1 | J126: 1 | K126: 1 | L126: 1 | M126: 2 | N126: 1 | O126: 1 | P126: 1 | Q126: 1 | R126: 1 | S126: 1 | T126: 1 | U126: 1 | V126: 0 | W126: 2 | X126: 1 | Y126: 1 | Z126: 3 | AA126: 2 | AB126: 1 | AC126: 2 | AD126: 2 | AE126: 2 | AF126: 2 | AG126: 1 | AH126: 1 | AI126: 1 | AJ126: 1
A127: OG0000217 | B127: 1 | C127: 1 | D127: 1 | E127: 2 | F127: 1 | G127: 1 | H127: 1 | I127: 1 | J127: 1 | K127: 1 | L127: 1 | M127: 2 | N127: 1 | O127: 1 | P127: 1 | Q127: 1 | R127: 1 | S127: 2 | T127: 2 | U127: 2 | V127: 2 | W127: 2 | X127: 1 | Y127: 1 | Z127: 1 | AA127: 1 | AB127: 1 | AC127: 1 | AD127: 1 | AE127: 1 | AF127: 1 | AG127: 1 | AH127: 1 | AI127: 1 | AJ127: 1
A128: OG0000220 | B128: 2 | C128: 1 | D128: 1 | E128: 1 | F128: 1 | G128: 1 | H128: 1 | I128: 1 | J128: 1 | K128: 2 | L128: 1 | M128: 1 | N128: 2 | O128: 1 | P128: 1 | Q128: 1 | R128: 1 | S128: 1 | T128: 1 | U128: 1 | V128: 2 | W128: 1 | X128: 0 | Y128: 2 | Z128: 2 | AA128: 1 | AB128: 1 | AC128: 1 | AD128: 1 | AE128: 0 | AF128: 0 | AG128: 1 | AH128: 2 | AI128: 2 | AJ128: 2
A129: OG0000221 | B129: 3 | C129: 2 | D129: 0 | E129: 2 | F129: 1 | G129: 1 | H129: 3 | I129: 1 | J129: 1 | K129: 1 | L129: 1 | M129: 1 | N129: 1 | O129: 1 | P129: 2 | Q129: 3 | R129: 1 | S129: 1 | T129: 1 | U129: 1 | V129: 1 | W129: 1 | X129: 1 | Y129: 1 | Z129: 0 | AA129: 1 | AB129: 1 | AC129: 1 | AD129: 1 | AE129: 1 | AF129: 1 | AG129: 1 | AH129: 1 | AI129: 1 | AJ129: 0
A130: OG0000223 | B130: 3 | C130: 1 | D130: 1 | E130: 1 | F130: 1 | G130: 1 | H130: 1 | I130: 1 | J130: 1 | K130: 3 | L130: 3 | M130: 4 | N130: 1 | O130: 1 | P130: 1 | Q130: 1 | R130: 1 | S130: 1 | T130: 1 | U130: 1 | V130: 1 | W130: 1 | X130: 1 | Y130: 1 | Z130: 0 | AA130: 1 | AB130: 1 | AC130: 0 | AD130: 0 | AE130: 1 | AF130: 1 | AG130: 1 | AH130: 1 | AI130: 1 | AJ130: 1
A131: OG0000224 | B131: 1 | C131: 1 | D131: 0 | E131: 1 | F131: 1 | G131: 1 | H131: 1 | I131: 1 | J131: 1 | K131: 2 | L131: 3 | M131: 1 | N131: 1 | O131: 1 | P131: 1 | Q131: 1 | R131: 1 | S131: 2 | T131: 1 | U131: 1 | V131: 2 | W131: 2 | X131: 2 | Y131: 1 | Z131: 1 | AA131: 1 | AB131: 1 | AC131: 2 | AD131: 1 | AE131: 1 | AF131: 1 | AG131: 1 | AH131: 0 | AI131: 1 | AJ131: 1
A132: OG0000226 | B132: 1 | C132: 1 | D132: 0 | E132: 2 | F132: 1 | G132: 1 | H132: 1 | I132: 1 | J132: 1 | K132: 1 | L132: 1 | M132: 1 | N132: 1 | O132: 1 | P132: 1 | Q132: 1 | R132: 1 | S132: 1 | T132: 1 | U132: 1 | V132: 0 | W132: 1 | X132: 0 | Y132: 1 | Z132: 2 | AA132: 2 | AB132: 3 | AC132: 2 | AD132: 2 | AE132: 2 | AF132: 2 | AG132: 1 | AH132: 1 | AI132: 1 | AJ132: 1
A133: OG0000230 | B133: 1 | C133: 1 | D133: 1 | E133: 1 | F133: 1 | G133: 1 | H133: 1 | I133: 1 | J133: 1 | K133: 0 | L133: 1 | M133: 1 | N133: 1 | O133: 1 | P133: 1 | Q133: 1 | R133: 1 | S133: 1 | T133: 1 | U133: 1 | V133: 1 | W133: 1 | X133: 1 | Y133: 1 | Z133: 1 | AA133: 2 | AB133: 2 | AC133: 2 | AD133: 2 | AE133: 2 | AF133: 2 | AG133: 1 | AH133: 1 | AI133: 1 | AJ133: 1
A134: OG0000232 | B134: 1 | C134: 1 | D134: 1 | E134: 0 | F134: 1 | G134: 1 | H134: 1 | I134: 1 | J134: 1 | K134: 1 | L134: 1 | M134: 2 | N134: 1 | O134: 1 | P134: 1 | Q134: 1 | R134: 1 | S134: 1 | T134: 1 | U134: 1 | V134: 1 | W134: 1 | X134: 1 | Y134: 1 | Z134: 0 | AA134: 2 | AB134: 2 | AC134: 1 | AD134: 1 | AE134: 1 | AF134: 1 | AG134: 2 | AH134: 2 | AI134: 2 | AJ134: 2
A135: OG0000234 | B135: 1 | C135: 1 | D135: 1 | E135: 3 | F135: 1 | G135: 1 | H135: 1 | I135: 1 | J135: 1 | K135: 2 | L135: 1 | M135: 2 | N135: 1 | O135: 1 | P135: 1 | Q135: 1 | R135: 1 | S135: 1 | T135: 1 | U135: 1 | V135: 1 | W135: 1 | X135: 1 | Y135: 1 | Z135: 2 | AA135: 2 | AB135: 2 | AC135: 0 | AD135: 1 | AE135: 1 | AF135: 1 | AG135: 0 | AH135: 1 | AI135: 1 | AJ135: 1
A136: OG0000235 | B136: 1 | C136: 2 | D136: 1 | E136: 2 | F136: 1 | G136: 1 | H136: 1 | I136: 1 | J136: 1 | K136: 2 | L136: 1 | M136: 2 | N136: 2 | O136: 1 | P136: 1 | Q136: 1 | R136: 1 | S136: 1 | T136: 1 | U136: 1 | V136: 1 | W136: 1 | X136: 1 | Y136: 1 | Z136: 2 | AA136: 1 | AB136: 1 | AC136: 0 | AD136: 1 | AE136: 1 | AF136: 1 | AG136: 1 | AH136: 1 | AI136: 1 | AJ136: 1
A137: OG0000236 | B137: 1 | C137: 1 | D137: 1 | E137: 1 | F137: 0 | G137: 0 | H137: 1 | I137: 1 | J137: 1 | K137: 1 | L137: 2 | M137: 1 | N137: 1 | O137: 1 | P137: 1 | Q137: 1 | R137: 1 | S137: 1 | T137: 1 | U137: 1 | V137: 1 | W137: 1 | X137: 1 | Y137: 1 | Z137: 1 | AA137: 2 | AB137: 2 | AC137: 1 | AD137: 1 | AE137: 1 | AF137: 1 | AG137: 2 | AH137: 2 | AI137: 2 | AJ137: 2
A138: OG0000237 | B138: 1 | C138: 1 | D138: 1 | E138: 1 | F138: 1 | G138: 1 | H138: 1 | I138: 1 | J138: 1 | K138: 1 | L138: 1 | M138: 1 | N138: 1 | O138: 1 | P138: 1 | Q138: 1 | R138: 1 | S138: 1 | T138: 1 | U138: 1 | V138: 1 | W138: 1 | X138: 1 | Y138: 1 | Z138: 1 | AA138: 2 | AB138: 3 | AC138: 1 | AD138: 1 | AE138: 2 | AF138: 2 | AG138: 1 | AH138: 1 | AI138: 1 | AJ138: 1
A139: OG0000238 | B139: 1 | C139: 1 | D139: 1 | E139: 1 | F139: 1 | G139: 1 | H139: 1 | I139: 1 | J139: 1 | K139: 1 | L139: 2 | M139: 1 | N139: 1 | O139: 1 | P139: 1 | Q139: 1 | R139: 1 | S139: 1 | T139: 1 | U139: 1 | V139: 2 | W139: 2 | X139: 1 | Y139: 1 | Z139: 1 | AA139: 2 | AB139: 1 | AC139: 1 | AD139: 1 | AE139: 1 | AF139: 1 | AG139: 1 | AH139: 0 | AI139: 1 | AJ139: 3
A140: OG0000240 | B140: 1 | C140: 1 | D140: 1 | E140: 1 | F140: 1 | G140: 1 | H140: 1 | I140: 1 | J140: 1 | K140: 1 | L140: 1 | M140: 1 | N140: 1 | O140: 1 | P140: 1 | Q140: 1 | R140: 1 | S140: 1 | T140: 2 | U140: 0 | V140: 1 | W140: 1 | X140: 0 | Y140: 1 | Z140: 1 | AA140: 2 | AB140: 1 | AC140: 1 | AD140: 1 | AE140: 1 | AF140: 1 | AG140: 2 | AH140: 2 | AI140: 2 | AJ140: 3
A141: OG0000241 | B141: 1 | C141: 1 | D141: 1 | E141: 1 | F141: 1 | G141: 1 | H141: 1 | I141: 1 | J141: 1 | K141: 1 | L141: 1 | M141: 1 | N141: 1 | O141: 1 | P141: 1 | Q141: 1 | R141: 1 | S141: 1 | T141: 1 | U141: 1 | V141: 1 | W141: 1 | X141: 1 | Y141: 1 | Z141: 2 | AA141: 1 | AB141: 1 | AC141: 1 | AD141: 1 | AE141: 1 | AF141: 1 | AG141: 2 | AH141: 2 | AI141: 2 | AJ141: 2
A142: OG0000242 | B142: 1 | C142: 1 | D142: 1 | E142: 1 | F142: 1 | G142: 1 | H142: 1 | I142: 1 | J142: 1 | K142: 1 | L142: 1 | M142: 1 | N142: 1 | O142: 1 | P142: 1 | Q142: 1 | R142: 1 | S142: 1 | T142: 1 | U142: 1 | V142: 1 | W142: 1 | X142: 1 | Y142: 1 | Z142: 1 | AA142: 2 | AB142: 2 | AC142: 1 | AD142: 2 | AE142: 2 | AF142: 2 | AG142: 1 | AH142: 1 | AI142: 1 | AJ142: 1
A143: OG0000245 | B143: 1 | C143: 1 | D143: 1 | E143: 1 | F143: 1 | G143: 1 | H143: 1 | I143: 1 | J143: 1 | K143: 1 | L143: 1 | M143: 1 | N143: 1 | O143: 1 | P143: 1 | Q143: 1 | R143: 1 | S143: 1 | T143: 1 | U143: 1 | V143: 1 | W143: 1 | X143: 0 | Y143: 1 | Z143: 1 | AA143: 2 | AB143: 2 | AC143: 2 | AD143: 2 | AE143: 2 | AF143: 2 | AG143: 1 | AH143: 1 | AI143: 1 | AJ143: 1
A144: OG0000246 | B144: 1 | C144: 1 | D144: 1 | E144: 1 | F144: 1 | G144: 1 | H144: 1 | I144: 1 | J144: 1 | K144: 1 | L144: 1 | M144: 1 | N144: 1 | O144: 1 | P144: 1 | Q144: 1 | R144: 1 | S144: 1 | T144: 1 | U144: 1 | V144: 1 | W144: 1 | X144: 1 | Y144: 2 | Z144: 2 | AA144: 2 | AB144: 1 | AC144: 2 | AD144: 2 | AE144: 1 | AF144: 1 | AG144: 0 | AH144: 1 | AI144: 1 | AJ144: 1
A145: OG0000251 | B145: 1 | C145: 1 | D145: 1 | E145: 1 | F145: 1 | G145: 1 | H145: 1 | I145: 1 | J145: 1 | K145: 1 | L145: 1 | M145: 2 | N145: 1 | O145: 1 | P145: 1 | Q145: 1 | R145: 1 | S145: 1 | T145: 1 | U145: 1 | V145: 1 | W145: 1 | X145: 1 | Y145: 2 | Z145: 1 | AA145: 1 | AB145: 1 | AC145: 1 | AD145: 1 | AE145: 2 | AF145: 2 | AG145: 1 | AH145: 1 | AI145: 1 | AJ145: 1
A146: OG0000256 | B146: 1 | C146: 1 | D146: 1 | E146: 1 | F146: 1 | G146: 1 | H146: 1 | I146: 1 | J146: 1 | K146: 1 | L146: 1 | M146: 1 | N146: 2 | O146: 1 | P146: 1 | Q146: 1 | R146: 1 | S146: 1 | T146: 1 | U146: 1 | V146: 1 | W146: 3 | X146: 1 | Y146: 2 | Z146: 1 | AA146: 1 | AB146: 1 | AC146: 1 | AD146: 1 | AE146: 1 | AF146: 1 | AG146: 1 | AH146: 1 | AI146: 1 | AJ146: 1
A147: OG0000257 | B147: 1 | C147: 1 | D147: 1 | E147: 0 | F147: 1 | G147: 1 | H147: 1 | I147: 1 | J147: 1 | K147: 1 | L147: 1 | M147: 1 | N147: 1 | O147: 0 | P147: 1 | Q147: 1 | R147: 1 | S147: 1 | T147: 1 | U147: 1 | V147: 1 | W147: 1 | X147: 1 | Y147: 1 | Z147: 1 | AA147: 2 | AB147: 2 | AC147: 2 | AD147: 2 | AE147: 2 | AF147: 2 | AG147: 1 | AH147: 1 | AI147: 1 | AJ147: 1
A148: OG0000258 | B148: 1 | C148: 1 | D148: 1 | E148: 0 | F148: 1 | G148: 1 | H148: 1 | I148: 1 | J148: 1 | K148: 1 | L148: 1 | M148: 1 | N148: 1 | O148: 1 | P148: 1 | Q148: 1 | R148: 1 | S148: 1 | T148: 1 | U148: 1 | V148: 1 | W148: 1 | X148: 1 | Y148: 4 | Z148: 4 | AA148: 1 | AB148: 1 | AC148: 1 | AD148: 1 | AE148: 1 | AF148: 1 | AG148: 0 | AH148: 0 | AI148: 1 | AJ148: 1
A149: OG0000259 | B149: 1 | C149: 1 | D149: 1 | E149: 1 | F149: 1 | G149: 1 | H149: 1 | I149: 1 | J149: 1 | K149: 1 | L149: 1 | M149: 1 | N149: 1 | O149: 1 | P149: 1 | Q149: 1 | R149: 1 | S149: 1 | T149: 2 | U149: 1 | V149: 1 | W149: 1 | X149: 2 | Y149: 2 | Z149: 1 | AA149: 1 | AB149: 1 | AC149: 1 | AD149: 1 | AE149: 1 | AF149: 1 | AG149: 1 | AH149: 1 | AI149: 1 | AJ149: 1
A150: OG0000260 | B150: 2 | C150: 2 | D150: 1 | E150: 1 | F150: 1 | G150: 1 | H150: 1 | I150: 1 | J150: 1 | K150: 2 | L150: 1 | M150: 2 | N150: 2 | O150: 0 | P150: 1 | Q150: 1 | R150: 1 | S150: 1 | T150: 1 | U150: 1 | V150: 1 | W150: 1 | X150: 2 | Y150: 1 | Z150: 1 | AA150: 1 | AB150: 1 | AC150: 1 | AD150: 1 | AE150: 1 | AF150: 1 | AG150: 1 | AH150: 0 | AI150: 1 | AJ150: 0
A151: OG0000263 | B151: 1 | C151: 1 | D151: 1 | E151: 1 | F151: 1 | G151: 1 | H151: 1 | I151: 1 | J151: 1 | K151: 1 | L151: 1 | M151: 1 | N151: 1 | O151: 1 | P151: 1 | Q151: 1 | R151: 1 | S151: 2 | T151: 2 | U151: 2 | V151: 2 | W151: 2 | X151: 1 | Y151: 1 | Z151: 1 | AA151: 1 | AB151: 1 | AC151: 1 | AD151: 1 | AE151: 1 | AF151: 1 | AG151: 1 | AH151: 1 | AI151: 0 | AJ151: 0
A152: OG0000270 | B152: 1 | C152: 1 | D152: 1 | E152: 1 | F152: 1 | G152: 2 | H152: 1 | I152: 1 | J152: 1 | K152: 1 | L152: 1 | M152: 1 | N152: 1 | O152: 1 | P152: 1 | Q152: 1 | R152: 2 | S152: 1 | T152: 1 | U152: 1 | V152: 1 | W152: 1 | X152: 1 | Y152: 2 | Z152: 2 | AA152: 1 | AB152: 1 | AC152: 1 | AD152: 1 | AE152: 1 | AF152: 1 | AG152: 1 | AH152: 1 | AI152: 1 | AJ152: 0
A153: OG0000272 | B153: 1 | C153: 1 | D153: 0 | E153: 1 | F153: 1 | G153: 1 | H153: 1 | I153: 1 | J153: 1 | K153: 1 | L153: 1 | M153: 1 | N153: 1 | O153: 1 | P153: 1 | Q153: 1 | R153: 1 | S153: 2 | T153: 1 | U153: 1 | V153: 1 | W153: 2 | X153: 1 | Y153: 2 | Z153: 2 | AA153: 1 | AB153: 1 | AC153: 1 | AD153: 1 | AE153: 1 | AF153: 1 | AG153: 1 | AH153: 1 | AI153: 1 | AJ153: 1
A154: OG0000274 | B154: 1 | C154: 1 | D154: 1 | E154: 1 | F154: 1 | G154: 1 | H154: 1 | I154: 1 | J154: 1 | K154: 1 | L154: 2 | M154: 1 | N154: 1 | O154: 1 | P154: 1 | Q154: 1 | R154: 1 | S154: 1 | T154: 1 | U154: 1 | V154: 1 | W154: 1 | X154: 1 | Y154: 1 | Z154: 2 | AA154: 1 | AB154: 1 | AC154: 2 | AD154: 1 | AE154: 1 | AF154: 1 | AG154: 1 | AH154: 1 | AI154: 1 | AJ154: 1
A155: OG0000276 | B155: 1 | C155: 1 | D155: 1 | E155: 1 | F155: 1 | G155: 1 | H155: 1 | I155: 1 | J155: 1 | K155: 1 | L155: 1 | M155: 1 | N155: 1 | O155: 1 | P155: 1 | Q155: 1 | R155: 1 | S155: 1 | T155: 1 | U155: 1 | V155: 1 | W155: 1 | X155: 1 | Y155: 2 | Z155: 1 | AA155: 1 | AB155: 1 | AC155: 2 | AD155: 1 | AE155: 0 | AF155: 1 | AG155: 2 | AH155: 2 | AI155: 1 | AJ155: 1
A156: OG0000277 | B156: 1 | C156: 1 | D156: 1 | E156: 1 | F156: 1 | G156: 1 | H156: 1 | I156: 1 | J156: 1 | K156: 1 | L156: 1 | M156: 1 | N156: 1 | O156: 1 | P156: 1 | Q156: 1 | R156: 1 | S156: 2 | T156: 2 | U156: 2 | V156: 1 | W156: 2 | X156: 2 | Y156: 1 | Z156: 1 | AA156: 1 | AB156: 0 | AC156: 1 | AD156: 1 | AE156: 0 | AF156: 1 | AG156: 1 | AH156: 1 | AI156: 1 | AJ156: 1
A157: OG0000279 | B157: 1 | C157: 1 | D157: 1 | E157: 1 | F157: 2 | G157: 2 | H157: 1 | I157: 1 | J157: 1 | K157: 1 | L157: 1 | M157: 1 | N157: 1 | O157: 1 | P157: 1 | Q157: 1 | R157: 1 | S157: 1 | T157: 1 | U157: 1 | V157: 1 | W157: 1 | X157: 1 | Y157: 1 | Z157: 2 | AA157: 1 | AB157: 1 | AC157: 1 | AD157: 1 | AE157: 1 | AF157: 1 | AG157: 1 | AH157: 1 | AI157: 1 | AJ157: 1
A158: OG0000282 | B158: 1 | C158: 1 | D158: 1 | E158: 1 | F158: 1 | G158: 1 | H158: 1 | I158: 1 | J158: 1 | K158: 1 | L158: 1 | M158: 1 | N158: 1 | O158: 1 | P158: 1 | Q158: 1 | R158: 1 | S158: 1 | T158: 1 | U158: 1 | V158: 1 | W158: 1 | X158: 1 | Y158: 1 | Z158: 1 | AA158: 1 | AB158: 1 | AC158: 3 | AD158: 2 | AE158: 1 | AF158: 1 | AG158: 1 | AH158: 1 | AI158: 1 | AJ158: 1
A159: OG0000283 | B159: 1 | C159: 1 | D159: 1 | E159: 1 | F159: 2 | G159: 1 | H159: 1 | I159: 1 | J159: 1 | K159: 1 | L159: 1 | M159: 2 | N159: 2 | O159: 1 | P159: 1 | Q159: 1 | R159: 1 | S159: 2 | T159: 1 | U159: 1 | V159: 1 | W159: 1 | X159: 1 | Y159: 1 | Z159: 1 | AA159: 1 | AB159: 1 | AC159: 1 | AD159: 1 | AE159: 0 | AF159: 1 | AG159: 1 | AH159: 1 | AI159: 1 | AJ159: 1
A160: OG0000284 | B160: 1 | C160: 1 | D160: 1 | E160: 1 | F160: 1 | G160: 1 | H160: 1 | I160: 1 | J160: 1 | K160: 1 | L160: 1 | M160: 1 | N160: 1 | O160: 1 | P160: 1 | Q160: 1 | R160: 1 | S160: 1 | T160: 2 | U160: 1 | V160: 2 | W160: 1 | X160: 1 | Y160: 2 | Z160: 1 | AA160: 1 | AB160: 1 | AC160: 1 | AD160: 1 | AE160: 1 | AF160: 1 | AG160: 1 | AH160: 1 | AI160: 1 | AJ160: 1
A161: OG0000290 | B161: 1 | C161: 1 | D161: 1 | E161: 1 | F161: 1 | G161: 1 | H161: 1 | I161: 1 | J161: 1 | K161: 1 | L161: 1 | M161: 1 | N161: 1 | O161: 1 | P161: 1 | Q161: 1 | R161: 1 | S161: 1 | T161: 0 | U161: 1 | V161: 1 | W161: 2 | X161: 1 | Y161: 2 | Z161: 1 | AA161: 1 | AB161: 1 | AC161: 1 | AD161: 1 | AE161: 1 | AF161: 1 | AG161: 2 | AH161: 1 | AI161: 1 | AJ161: 1
A162: OG0000292 | B162: 1 | C162: 1 | D162: 1 | E162: 1 | F162: 1 | G162: 1 | H162: 1 | I162: 1 | J162: 1 | K162: 1 | L162: 1 | M162: 1 | N162: 1 | O162: 1 | P162: 1 | Q162: 1 | R162: 1 | S162: 2 | T162: 1 | U162: 1 | V162: 1 | W162: 1 | X162: 1 | Y162: 2 | Z162: 2 | AA162: 1 | AB162: 1 | AC162: 0 | AD162: 1 | AE162: 1 | AF162: 1 | AG162: 1 | AH162: 1 | AI162: 1 | AJ162: 1
A163: OG0000293 | B163: 1 | C163: 1 | D163: 1 | E163: 1 | F163: 1 | G163: 1 | H163: 1 | I163: 1 | J163: 1 | K163: 1 | L163: 1 | M163: 1 | N163: 1 | O163: 1 | P163: 1 | Q163: 1 | R163: 1 | S163: 2 | T163: 1 | U163: 1 | V163: 2 | W163: 1 | X163: 1 | Y163: 1 | Z163: 1 | AA163: 1 | AB163: 1 | AC163: 1 | AD163: 1 | AE163: 1 | AF163: 1 | AG163: 1 | AH163: 1 | AI163: 0 | AJ163: 2
A164: OG0000295 | B164: 1 | C164: 1 | D164: 1 | E164: 1 | F164: 1 | G164: 1 | H164: 1 | I164: 1 | J164: 1 | K164: 1 | L164: 1 | M164: 1 | N164: 2 | O164: 1 | P164: 1 | Q164: 1 | R164: 2 | S164: 1 | T164: 1 | U164: 1 | V164: 1 | W164: 1 | X164: 1 | Y164: 1 | Z164: 1 | AA164: 1 | AB164: 1 | AC164: 1 | AD164: 1 | AE164: 1 | AF164: 1 | AG164: 1 | AH164: 1 | AI164: 1 | AJ164: 1
A165: OG0000296 | B165: 1 | C165: 1 | D165: 1 | E165: 1 | F165: 1 | G165: 1 | H165: 2 | I165: 1 | J165: 1 | K165: 1 | L165: 1 | M165: 1 | N165: 2 | O165: 1 | P165: 1 | Q165: 1 | R165: 2 | S165: 1 | T165: 1 | U165: 1 | V165: 1 | W165: 1 | X165: 1 | Y165: 1 | Z165: 2 | AA165: 1 | AB165: 1 | AC165: 0 | AD165: 0 | AE165: 1 | AF165: 1 | AG165: 1 | AH165: 1 | AI165: 1 | AJ165: 1
A166: OG0000297 | B166: 1 | C166: 1 | D166: 1 | E166: 1 | F166: 1 | G166: 2 | H166: 1 | I166: 1 | J166: 1 | K166: 1 | L166: 1 | M166: 2 | N166: 2 | O166: 1 | P166: 1 | Q166: 1 | R166: 1 | S166: 1 | T166: 1 | U166: 1 | V166: 1 | W166: 1 | X166: 1 | Y166: 1 | Z166: 2 | AA166: 0 | AB166: 0 | AC166: 1 | AD166: 1 | AE166: 1 | AF166: 1 | AG166: 1 | AH166: 1 | AI166: 1 | AJ166: 1
A167: OG0000298 | B167: 1 | C167: 1 | D167: 1 | E167: 1 | F167: 1 | G167: 1 | H167: 1 | I167: 1 | J167: 1 | K167: 1 | L167: 1 | M167: 1 | N167: 1 | O167: 1 | P167: 0 | Q167: 0 | R167: 0 | S167: 1 | T167: 1 | U167: 1 | V167: 1 | W167: 1 | X167: 1 | Y167: 1 | Z167: 1 | AA167: 1 | AB167: 1 | AC167: 2 | AD167: 2 | AE167: 2 | AF167: 2 | AG167: 1 | AH167: 1 | AI167: 1 | AJ167: 2
A168: OG0000300 | B168: 1 | C168: 1 | D168: 1 | E168: 1 | F168: 1 | G168: 2 | H168: 1 | I168: 1 | J168: 1 | K168: 1 | L168: 1 | M168: 1 | N168: 2 | O168: 1 | P168: 1 | Q168: 1 | R168: 1 | S168: 1 | T168: 1 | U168: 1 | V168: 1 | W168: 1 | X168: 1 | Y168: 1 | Z168: 2 | AA168: 1 | AB168: 1 | AC168: 1 | AD168: 1 | AE168: 1 | AF168: 1 | AG168: 1 | AH168: 1 | AI168: 0 | AJ168: 1
A169: OG0000301 | B169: 1 | C169: 1 | D169: 1 | E169: 1 | F169: 1 | G169: 1 | H169: 1 | I169: 1 | J169: 1 | K169: 1 | L169: 1 | M169: 1 | N169: 1 | O169: 1 | P169: 1 | Q169: 1 | R169: 1 | S169: 1 | T169: 1 | U169: 1 | V169: 1 | W169: 1 | X169: 1 | Y169: 2 | Z169: 1 | AA169: 1 | AB169: 1 | AC169: 0 | AD169: 1 | AE169: 2 | AF169: 2 | AG169: 1 | AH169: 1 | AI169: 1 | AJ169: 1
A170: OG0000302 | B170: 1 | C170: 1 | D170: 1 | E170: 1 | F170: 1 | G170: 1 | H170: 1 | I170: 1 | J170: 1 | K170: 2 | L170: 1 | M170: 1 | N170: 1 | O170: 1 | P170: 1 | Q170: 1 | R170: 1 | S170: 1 | T170: 1 | U170: 1 | V170: 1 | W170: 1 | X170: 2 | Y170: 1 | Z170: 1 | AA170: 1 | AB170: 1 | AC170: 1 | AD170: 1 | AE170: 1 | AF170: 1 | AG170: 1 | AH170: 1 | AI170: 1 | AJ170: 1
A171: OG0000304 | B171: 1 | C171: 1 | D171: 1 | E171: 1 | F171: 1 | G171: 2 | H171: 1 | I171: 1 | J171: 1 | K171: 1 | L171: 1 | M171: 1 | N171: 1 | O171: 1 | P171: 1 | Q171: 1 | R171: 1 | S171: 1 | T171: 1 | U171: 1 | V171: 1 | W171: 1 | X171: 1 | Y171: 2 | Z171: 1 | AA171: 1 | AB171: 1 | AC171: 1 | AD171: 1 | AE171: 1 | AF171: 1 | AG171: 1 | AH171: 1 | AI171: 1 | AJ171: 1
A172: OG0000305 | B172: 1 | C172: 1 | D172: 1 | E172: 1 | F172: 1 | G172: 1 | H172: 1 | I172: 1 | J172: 1 | K172: 1 | L172: 1 | M172: 2 | N172: 1 | O172: 1 | P172: 1 | Q172: 1 | R172: 1 | S172: 1 | T172: 1 | U172: 1 | V172: 1 | W172: 1 | X172: 1 | Y172: 1 | Z172: 1 | AA172: 1 | AB172: 1 | AC172: 1 | AD172: 1 | AE172: 1 | AF172: 1 | AG172: 3 | AH172: 0 | AI172: 1 | AJ172: 1
A173: OG0000306 | B173: 1 | C173: 1 | D173: 1 | E173: 1 | F173: 1 | G173: 2 | H173: 1 | I173: 1 | J173: 1 | K173: 2 | L173: 1 | M173: 1 | N173: 1 | O173: 1 | P173: 1 | Q173: 1 | R173: 1 | S173: 1 | T173: 1 | U173: 1 | V173: 1 | W173: 1 | X173: 1 | Y173: 1 | Z173: 1 | AA173: 1 | AB173: 1 | AC173: 1 | AD173: 1 | AE173: 1 | AF173: 1 | AG173: 1 | AH173: 1 | AI173: 1 | AJ173: 1
A174: OG0000307 | B174: 1 | C174: 1 | D174: 1 | E174: 1 | F174: 1 | G174: 1 | H174: 1 | I174: 1 | J174: 1 | K174: 1 | L174: 1 | M174: 1 | N174: 1 | O174: 1 | P174: 1 | Q174: 1 | R174: 1 | S174: 1 | T174: 1 | U174: 1 | V174: 1 | W174: 1 | X174: 0 | Y174: 2 | Z174: 1 | AA174: 1 | AB174: 1 | AC174: 1 | AD174: 2 | AE174: 1 | AF174: 1 | AG174: 1 | AH174: 1 | AI174: 1 | AJ174: 2
A175: OG0000308 | B175: 1 | C175: 1 | D175: 1 | E175: 0 | F175: 1 | G175: 1 | H175: 1 | I175: 1 | J175: 1 | K175: 1 | L175: 1 | M175: 1 | N175: 1 | O175: 0 | P175: 1 | Q175: 1 | R175: 1 | S175: 2 | T175: 1 | U175: 1 | V175: 2 | W175: 2 | X175: 1 | Y175: 1 | Z175: 1 | AA175: 1 | AB175: 1 | AC175: 1 | AD175: 2 | AE175: 1 | AF175: 1 | AG175: 1 | AH175: 1 | AI175: 1 | AJ175: 1
A176: OG0000309 | B176: 1 | C176: 1 | D176: 1 | E176: 1 | F176: 1 | G176: 1 | H176: 1 | I176: 1 | J176: 1 | K176: 1 | L176: 1 | M176: 1 | N176: 1 | O176: 1 | P176: 1 | Q176: 1 | R176: 1 | S176: 1 | T176: 1 | U176: 1 | V176: 0 | W176: 1 | X176: 1 | Y176: 1 | Z176: 1 | AA176: 1 | AB176: 1 | AC176: 1 | AD176: 1 | AE176: 1 | AF176: 1 | AG176: 2 | AH176: 2 | AI176: 1 | AJ176: 2
A177: OG0000310 | B177: 1 | C177: 1 | D177: 1 | E177: 1 | F177: 1 | G177: 1 | H177: 1 | I177: 1 | J177: 1 | K177: 1 | L177: 2 | M177: 1 | N177: 1 | O177: 1 | P177: 2 | Q177: 2 | R177: 2 | S177: 1 | T177: 0 | U177: 1 | V177: 1 | W177: 1 | X177: 1 | Y177: 1 | Z177: 1 | AA177: 1 | AB177: 1 | AC177: 1 | AD177: 1 | AE177: 1 | AF177: 1 | AG177: 1 | AH177: 0 | AI177: 1 | AJ177: 1
A178: OG0000311 | B178: 1 | C178: 1 | D178: 1 | E178: 1 | F178: 2 | G178: 2 | H178: 1 | I178: 1 | J178: 2 | K178: 1 | L178: 1 | M178: 1 | N178: 1 | O178: 1 | P178: 1 | Q178: 1 | R178: 1 | S178: 1 | T178: 1 | U178: 1 | V178: 1 | W178: 1 | X178: 1 | Y178: 1 | Z178: 1 | AA178: 1 | AB178: 1 | AC178: 1 | AD178: 1 | AE178: 1 | AF178: 1 | AG178: 1 | AH178: 1 | AI178: 0 | AJ178: 1
A179: OG0000313 | B179: 1 | C179: 1 | D179: 1 | E179: 1 | F179: 1 | G179: 1 | H179: 1 | I179: 1 | J179: 1 | K179: 1 | L179: 1 | M179: 1 | N179: 1 | O179: 1 | P179: 1 | Q179: 1 | R179: 1 | S179: 1 | T179: 1 | U179: 1 | V179: 1 | W179: 1 | X179: 1 | Y179: 0 | Z179: 1 | AA179: 1 | AB179: 1 | AC179: 1 | AD179: 1 | AE179: 1 | AF179: 1 | AG179: 2 | AH179: 2 | AI179: 1 | AJ179: 2
A180: OG0000314 | B180: 1 | C180: 1 | D180: 0 | E180: 1 | F180: 1 | G180: 1 | H180: 1 | I180: 1 | J180: 1 | K180: 1 | L180: 1 | M180: 1 | N180: 1 | O180: 1 | P180: 2 | Q180: 2 | R180: 1 | S180: 1 | T180: 1 | U180: 1 | V180: 1 | W180: 1 | X180: 1 | Y180: 1 | Z180: 1 | AA180: 1 | AB180: 1 | AC180: 1 | AD180: 1 | AE180: 2 | AF180: 2 | AG180: 1 | AH180: 1 | AI180: 1 | AJ180: 0
A181: OG0000317 | B181: 1 | C181: 1 | D181: 1 | E181: 1 | F181: 1 | G181: 1 | H181: 1 | I181: 1 | J181: 1 | K181: 1 | L181: 1 | M181: 1 | N181: 1 | O181: 1 | P181: 1 | Q181: 1 | R181: 1 | S181: 2 | T181: 1 | U181: 1 | V181: 2 | W181: 2 | X181: 1 | Y181: 1 | Z181: 1 | AA181: 1 | AB181: 1 | AC181: 1 | AD181: 1 | AE181: 1 | AF181: 1 | AG181: 1 | AH181: 1 | AI181: 0 | AJ181: 1
A182: OG0000318 | B182: 1 | C182: 1 | D182: 1 | E182: 1 | F182: 1 | G182: 1 | H182: 1 | I182: 1 | J182: 1 | K182: 1 | L182: 1 | M182: 1 | N182: 2 | O182: 1 | P182: 1 | Q182: 1 | R182: 1 | S182: 1 | T182: 1 | U182: 1 | V182: 1 | W182: 1 | X182: 1 | Y182: 1 | Z182: 1 | AA182: 1 | AB182: 1 | AC182: 1 | AD182: 2 | AE182: 1 | AF182: 1 | AG182: 1 | AH182: 1 | AI182: 1 | AJ182: 1
A183: OG0000319 | B183: 1 | C183: 1 | D183: 0 | E183: 1 | F183: 1 | G183: 1 | H183: 1 | I183: 1 | J183: 1 | K183: 2 | L183: 1 | M183: 1 | N183: 1 | O183: 0 | P183: 0 | Q183: 1 | R183: 1 | S183: 1 | T183: 1 | U183: 1 | V183: 1 | W183: 1 | X183: 1 | Y183: 2 | Z183: 1 | AA183: 1 | AB183: 1 | AC183: 1 | AD183: 1 | AE183: 1 | AF183: 1 | AG183: 2 | AH183: 2 | AI183: 2 | AJ183: 1
A184: OG0000320 | B184: 1 | C184: 1 | D184: 1 | E184: 1 | F184: 1 | G184: 1 | H184: 1 | I184: 1 | J184: 1 | K184: 1 | L184: 1 | M184: 1 | N184: 2 | O184: 1 | P184: 1 | Q184: 1 | R184: 1 | S184: 1 | T184: 1 | U184: 1 | V184: 1 | W184: 1 | X184: 1 | Y184: 1 | Z184: 1 | AA184: 1 | AB184: 1 | AC184: 2 | AD184: 1 | AE184: 1 | AF184: 1 | AG184: 1 | AH184: 1 | AI184: 1 | AJ184: 1
A185: OG0000322 | B185: 1 | C185: 1 | D185: 1 | E185: 1 | F185: 1 | G185: 1 | H185: 1 | I185: 1 | J185: 1 | K185: 1 | L185: 1 | M185: 1 | N185: 2 | O185: 1 | P185: 1 | Q185: 1 | R185: 1 | S185: 1 | T185: 1 | U185: 1 | V185: 1 | W185: 1 | X185: 0 | Y185: 1 | Z185: 1 | AA185: 1 | AB185: 1 | AC185: 2 | AD185: 2 | AE185: 1 | AF185: 1 | AG185: 1 | AH185: 1 | AI185: 1 | AJ185: 1
A186: OG0000323 | B186: 1 | C186: 1 | D186: 1 | E186: 1 | F186: 1 | G186: 1 | H186: 1 | I186: 1 | J186: 1 | K186: 1 | L186: 1 | M186: 1 | N186: 1 | O186: 1 | P186: 1 | Q186: 1 | R186: 1 | S186: 2 | T186: 1 | U186: 1 | V186: 1 | W186: 1 | X186: 1 | Y186: 1 | Z186: 2 | AA186: 1 | AB186: 1 | AC186: 1 | AD186: 1 | AE186: 1 | AF186: 1 | AG186: 1 | AH186: 1 | AI186: 1 | AJ186: 1
A187: OG0000325 | B187: 1 | C187: 1 | D187: 1 | E187: 1 | F187: 1 | G187: 1 | H187: 1 | I187: 1 | J187: 1 | K187: 1 | L187: 1 | M187: 1 | N187: 1 | O187: 1 | P187: 1 | Q187: 1 | R187: 1 | S187: 1 | T187: 1 | U187: 1 | V187: 2 | W187: 1 | X187: 1 | Y187: 1 | Z187: 1 | AA187: 1 | AB187: 1 | AC187: 1 | AD187: 1 | AE187: 1 | AF187: 1 | AG187: 1 | AH187: 1 | AI187: 1 | AJ187: 1
A188: OG0000326 | B188: 1 | C188: 1 | D188: 1 | E188: 1 | F188: 1 | G188: 1 | H188: 1 | I188: 1 | J188: 1 | K188: 1 | L188: 1 | M188: 1 | N188: 1 | O188: 0 | P188: 1 | Q188: 1 | R188: 1 | S188: 1 | T188: 1 | U188: 1 | V188: 1 | W188: 1 | X188: 2 | Y188: 1 | Z188: 1 | AA188: 1 | AB188: 1 | AC188: 2 | AD188: 1 | AE188: 1 | AF188: 1 | AG188: 1 | AH188: 1 | AI188: 1 | AJ188: 1
A189: OG0000327 | B189: 1 | C189: 1 | D189: 2 | E189: 0 | F189: 1 | G189: 1 | H189: 2 | I189: 1 | J189: 1 | K189: 1 | L189: 1 | M189: 1 | N189: 1 | O189: 1 | P189: 1 | Q189: 1 | R189: 1 | S189: 1 | T189: 1 | U189: 1 | V189: 1 | W189: 1 | X189: 1 | Y189: 1 | Z189: 1 | AA189: 1 | AB189: 1 | AC189: 1 | AD189: 1 | AE189: 1 | AF189: 1 | AG189: 1 | AH189: 1 | AI189: 1 | AJ189: 1
A190: OG0000328 | B190: 1 | C190: 1 | D190: 1 | E190: 1 | F190: 1 | G190: 1 | H190: 1 | I190: 1 | J190: 1 | K190: 1 | L190: 1 | M190: 1 | N190: 1 | O190: 1 | P190: 1 | Q190: 1 | R190: 1 | S190: 1 | T190: 1 | U190: 1 | V190: 1 | W190: 1 | X190: 0 | Y190: 2 | Z190: 2 | AA190: 1 | AB190: 1 | AC190: 1 | AD190: 1 | AE190: 1 | AF190: 1 | AG190: 1 | AH190: 1 | AI190: 1 | AJ190: 1
A191: OG0000330 | B191: 1 | C191: 1 | D191: 1 | E191: 1 | F191: 1 | G191: 1 | H191: 1 | I191: 1 | J191: 1 | K191: 1 | L191: 1 | M191: 1 | N191: 2 | O191: 1 | P191: 1 | Q191: 1 | R191: 1 | S191: 1 | T191: 1 | U191: 1 | V191: 1 | W191: 1 | X191: 1 | Y191: 1 | Z191: 1 | AA191: 1 | AB191: 1 | AC191: 1 | AD191: 1 | AE191: 1 | AF191: 1 | AG191: 1 | AH191: 1 | AI191: 1 | AJ191: 1
A192: OG0000331 | B192: 1 | C192: 1 | D192: 1 | E192: 1 | F192: 1 | G192: 1 | H192: 1 | I192: 1 | J192: 1 | K192: 1 | L192: 1 | M192: 1 | N192: 1 | O192: 1 | P192: 1 | Q192: 1 | R192: 1 | S192: 1 | T192: 1 | U192: 1 | V192: 1 | W192: 2 | X192: 1 | Y192: 1 | Z192: 1 | AA192: 1 | AB192: 1 | AC192: 1 | AD192: 1 | AE192: 1 | AF192: 1 | AG192: 1 | AH192: 1 | AI192: 1 | AJ192: 1
A193: OG0000332 | B193: 1 | C193: 1 | D193: 1 | E193: 2 | F193: 1 | G193: 1 | H193: 1 | I193: 1 | J193: 1 | K193: 1 | L193: 1 | M193: 1 | N193: 1 | O193: 1 | P193: 1 | Q193: 1 | R193: 1 | S193: 1 | T193: 1 | U193: 1 | V193: 1 | W193: 1 | X193: 2 | Y193: 1 | Z193: 0 | AA193: 1 | AB193: 1 | AC193: 1 | AD193: 1 | AE193: 1 | AF193: 1 | AG193: 1 | AH193: 1 | AI193: 1 | AJ193: 1
A194: OG0000333 | B194: 1 | C194: 1 | D194: 1 | E194: 1 | F194: 1 | G194: 1 | H194: 1 | I194: 1 | J194: 1 | K194: 1 | L194: 1 | M194: 1 | N194: 1 | O194: 1 | P194: 1 | Q194: 1 | R194: 1 | S194: 1 | T194: 1 | U194: 1 | V194: 1 | W194: 1 | X194: 1 | Y194: 2 | Z194: 1 | AA194: 1 | AB194: 1 | AC194: 1 | AD194: 1 | AE194: 1 | AF194: 1 | AG194: 1 | AH194: 1 | AI194: 1 | AJ194: 1
A195: OG0000334 | B195: 1 | C195: 1 | D195: 1 | E195: 1 | F195: 1 | G195: 1 | H195: 1 | I195: 1 | J195: 1 | K195: 1 | L195: 1 | M195: 1 | N195: 1 | O195: 1 | P195: 1 | Q195: 1 | R195: 1 | S195: 1 | T195: 1 | U195: 1 | V195: 1 | W195: 1 | X195: 1 | Y195: 1 | Z195: 1 | AA195: 1 | AB195: 1 | AC195: 1 | AD195: 2 | AE195: 1 | AF195: 1 | AG195: 1 | AH195: 1 | AI195: 1 | AJ195: 1
A196: OG0000336 | B196: 1 | C196: 1 | D196: 1 | E196: 2 | F196: 1 | G196: 1 | H196: 1 | I196: 1 | J196: 1 | K196: 1 | L196: 1 | M196: 1 | N196: 1 | O196: 2 | P196: 1 | Q196: 1 | R196: 1 | S196: 2 | T196: 1 | U196: 1 | V196: 1 | W196: 1 | X196: 1 | Y196: 1 | Z196: 1 | AA196: 1 | AB196: 1 | AC196: 0 | AD196: 0 | AE196: 1 | AF196: 1 | AG196: 1 | AH196: 1 | AI196: 1 | AJ196: 1
A197: OG0000338 | B197: 1 | C197: 1 | D197: 1 | E197: 1 | F197: 1 | G197: 1 | H197: 1 | I197: 1 | J197: 1 | K197: 1 | L197: 1 | M197: 1 | N197: 0 | O197: 1 | P197: 1 | Q197: 1 | R197: 1 | S197: 1 | T197: 1 | U197: 1 | V197: 0 | W197: 1 | X197: 1 | Y197: 2 | Z197: 1 | AA197: 1 | AB197: 1 | AC197: 1 | AD197: 1 | AE197: 2 | AF197: 2 | AG197: 1 | AH197: 1 | AI197: 1 | AJ197: 1
A198: OG0000339 | B198: 1 | C198: 1 | D198: 1 | E198: 1 | F198: 1 | G198: 1 | H198: 1 | I198: 1 | J198: 1 | K198: 1 | L198: 1 | M198: 1 | N198: 1 | O198: 1 | P198: 1 | Q198: 1 | R198: 1 | S198: 1 | T198: 1 | U198: 1 | V198: 1 | W198: 1 | X198: 1 | Y198: 1 | Z198: 2 | AA198: 1 | AB198: 1 | AC198: 1 | AD198: 1 | AE198: 1 | AF198: 1 | AG198: 1 | AH198: 1 | AI198: 1 | AJ198: 1
A199: OG0000340 | B199: 1 | C199: 2 | D199: 2 | E199: 1 | F199: 1 | G199: 1 | H199: 1 | I199: 1 | J199: 1 | K199: 1 | L199: 1 | M199: 1 | N199: 1 | O199: 0 | P199: 1 | Q199: 1 | R199: 0 | S199: 1 | T199: 1 | U199: 1 | V199: 1 | W199: 1 | X199: 1 | Y199: 2 | Z199: 1 | AA199: 1 | AB199: 1 | AC199: 1 | AD199: 1 | AE199: 1 | AF199: 1 | AG199: 1 | AH199: 1 | AI199: 1 | AJ199: 1
